{"text_format":"1","workbook":"xlsx","n_sheets":6,"sheets":["Riesgo de liberación","Base 1","Tablas","Vencimiento días","Graficas","Control de avances"],"not_rendered":{"charts":10,"images":4,"macros":1,"external_links":2,"defined_names":11,"comments":2,"pivot_tables":4},"unopened":[],"bounds":{"document_bytes":16777216,"sheet_cells":100000,"rows_first":2000,"rows_last":500,"rows_between":2000,"halvings":0,"cell_chars":16384,"cell_head_chars":4096},"cells_cut":0,"cells_raw":0,"read":"whole","date_system":"1900"}

{"sheet":"Riesgo de liberación","index":0,"n_rows":123,"n_cols":17,"rows_kept":123,"cut":false,"hidden":true,"merged":[]}
[]
["N°","EJECUTOR (Dpto / Entidad)","EJECUTOR INTERNO","ENCARGADO DE LA ENTIDAD ","ENLACE EMTIDAD EJECUTORA","BPIN ","PROYECTO","SECTOR","VALOR PROYECTO","VALOR SGR","OTRAS FUENTES","FECHA DE APROBACIÓN OCAD","ACUERDO DE APROBACIÓN","ESTADO","FECHA LIMITE","DÍAS TRANSCURRIDOS DESDE EL ACUERDO DE APROBACIÓN  "]
[5,"CUNDINAMARCA","SECRETARIA GENERAL","YAHIR ARCINIEGAS",null,2012000050010,"ESTUDIOS Y DISEÑOS PARA LA RECUPERACIÓN Y ADECUACION DEL PATRIMONIO HISTORICO CULTURAL PALACIO DE SAN FRANCISCO EN BOGOTA D.C. DEPARTAMENTO DE CUNDINAMARCA ","CULTURA ",1000000000,1000000000,{"$f":"I3-J3","v":0},41271,"004 DE 2012","TERMINADO",{"$f":"IF(L3=0,\"-\",EDATE(L3,6))","v":41453},{"$f":"IF(L3=0,\"-\",_xlfn.DAYS(TODAY(),L3))","v":3399},{"$f":"IF(O3=\"-\",\"-\",_xlfn.DAYS(TODAY(),O3))","v":3217}]
[10,"CUNDINAMARCA","SECRETARIA DE AGRICULTURA","YAHIR ARCINIEGAS",null,2012000050023,"FORTALECIMIENTO DE LA ACTIVIDAD CAFETERA COMO ALTERNATIVA SOSTENIBLE DE DESARROLLO REGIONAL EN EL DEPARTAMENTO DE CUNDINAMARCA ","AGRICULTURA ",77168795512,1300000000,75868795512,41271,"004 DE 2012","PARA CIERRE",41453,3399,{"$f":"IF(O4=\"-\",\"-\",_xlfn.DAYS(TODAY(),O4))","v":3217}]
[17,"CORMAGDALENA","SECRETARIA DE COMPETITIVIDAD","YAHIR ARCINIEGAS",null,2012000050030,"DESARROLLO CREACION Y FORTALECIMIENTO DE NUEVE (9) CENTROS DE EMPREDIMIENTO Y FORTALECIMIENTO EMPRESARIAL EN EL DEPARTAMENTO DE CUNDINAMARCA ","COMERCIO, INDUSTRIA Y TURISMO ",1752501814,1708104361,44397453,41271,"004 DE 2012","PARA CIERRE",41453,3399,3217]
[23,"SECRETARIA DE MINAS, ENERGIA Y GAS","SECRETARIA DE CIENCIA, TECNOLOGIA E INNOVACIÓN","DAYANA FERNANDEZ / YAHIR ARCINIEGAS",null,2012000100010,"FORTALECIMIENTO DE LAS REGIONES COLOMBIANAS EN SUS CAPACIDADES DE CTI - CUNDINAMARCA","CTEL",8721806744,8721806744,0,41263,"001 DE 2012","CONTRATADO EN EJECUCIÓN",41445,3407,3225]
[27,"CAR","SECRETARIA DE CIENCIA, TECNOLOGIA E INNOVACIÓN","DAYANA FERNANDEZ / YAHIR ARCINIEGAS",null,2012000100144,"INVESTIGACIÓN INVESTIGACION, DESARROLLO Y TRANSFERENCIA TECNOLOGICA EN EL SECTOR AGROPECUARIO Y AGROINDUSTRIAL CON EL FIN DE MEJORAR L TODO EL DEPARTAMENTO, CUNDINAMARCA, CENTRO ORIENTE","CTEL",50514736439,34707000000,15807736439,41263,"001 DE 2012","CONTRATADO EN EJECUCIÓN",41445,3407,3225]
[33,"U EAN","SECRETARIA DE MINAS, ENERGIA Y GAS","DIEGO TORRES",null,2013000050026,"CONSTRUCCIÓN REDES ELECTRICAS EN LA ZONA RURAL DE LOS MUNICIPIOS DE PARATEBUENO Y GUTIERREZ EN EL DEPARTAMENTO DE CUNDINAMARCA","MINAS Y ENERGÍA",1068319227,1045119227,23200000,41502,"007 DE 2013","TERMINADO",41686,3168,2984]
[37,"BANCO AGRARIO DE COLOMBIA","BANCO AGRARIO DE COLOMBIA","DIEGO TORRES / JEIMY FORERO",null,2013000050044,"CONSTRUCCIÓN CUNDINAMARCA VISR 2013 TODO EL DEPARTAMENTO, CUNDINAMARCA, CENTRO ORIENTE","AGRICULTURA ",60041780218,15888838218,44152942000,41569,"005 DE 2015","CONTRATADO EN EJECUCIÓN",41751,3101,2919]
[49,"CUNDINAMARCA","SECRETARIA DE CIENCIA, TECNOLOGIA E INNOVACIÓN","DAYANA FERNANDEZ / YAHIR ARCINIEGAS",null,2013000100129,"INCREMENTO EN LAS ESTRATEGIAS SUSTENTABLES EN EL USO DEL RECURSO DE ENERGA ELECTRICA PARA LA POBLACION VULNERABLE EN EL DPTO. DE CUNDINAMARCA","CTEL",5170002961,4097083299,1072919662,41789,"025 DE 2014","CONTRATADO EN EJECUCIÓN",41973,2881,2697]
[52,"CUNDINAMARCA","SECRETARIA DE CIENCIA, TECNOLOGIA E INNOVACIÓN","DAYANA FERNANDEZ / YAHIR ARCINIEGAS",null,2013000100176,"INNOVACIÓN SISTEMA DE PRODUCCION DE FRUTAS/HORTALIZAS FRESCAS/PROCESADAS TIPO EXPORTACION CON TECNOLOGIA BIOLOGICA /INTEGRAL INOCUA SUBACHOQUE, CUNDINAMARCA, CENTRO ORIENTE","CTEL",9285096292,6556945302,2728150990,41474,"005 DE 2013","CONTRATADO EN EJECUCIÓN",41658,3196,3012]
[57,"CUNDINAMARCA","SECRETARIA DE CIENCIA, TECNOLOGIA E INNOVACIÓN","DAYANA FERNANDEZ / YAHIR ARCINIEGAS",null,2013000100248,"INNOVACIÓN , CIENCIA Y TECNOLOGIA PARA PRODUCTORES DE LECHE EN LA PROVINCIA DE UBATE, CUNDINAMARCA.","CTEL",11619725567,9380319099,2239406468,41565,"011 DE 2013","CONTRATADO EN EJECUCIÓN",41747,3105,2923]
[62,"CUNDINAMARCA","SECRETARIA DE GOBIERNO","DAYANA FERNANDEZ ",null,2014000050010,"CONSTRUCCIÓN DE UN CENTRO DE ATENCION ESPECIALIZADA AL SERVICIO DE ADOLESCENTES INFRACTORES DE LA LEY PENAL EN EL DEPARTAMENTO DE CUNDINAMARCA","JUSTICIA Y DEL DERECHO ",9260000000,8500000000,760000000,41808,"022 DE 2014","PARA CIERRE",41991,2862,2679]
[83,"SECRETARIA DE HABITAT Y VIVIENDA","SECRETARIA DE HABITAT Y VIVIENDA","DIEGO TORRES Y JEIMY FORERO",null,2016000050052,"CONSTRUCCIÓN DE VIVIENDAS NUEVAS RURALES EN EL DEPARTAMENTO DE CUNDINAMARCA","AGRICULTURA ",5983779025,5343748805,640030220,43090,"069 de 2017","CONTRATADO EN EJECUCIÓN",43272,1580,1398]
[84,"CUNDINAMARCA","SECRETARIA DE CIENCIA, TECNOLOGIA E INNOVACIÓN","DAYANA FERNANDEZ / YAHIR ARCINIEGAS",null,2016000100027,"ANLISIS DE FACTORES GENETICOS, SANITARIOS Y MEDIOAMBIENTALES QUE AFECTAN LAS TASAS DE PREÑEZ A PARTIR DE EMBRIONES IN VITRO EN EL DEPARTAMENTO DE CUNDINAMARCA","CTEL",6401358633,5078774029,1322584604,43098,"063 DE 2017","CONTRATADO EN EJECUCIÓN",43280,1572,1390]
[85,"CUNDINAMARCA","RAPE - INTERVENTORIA SECRETARIA DE PLANEACIÓN","YAHIR ARCINIEGAS",null,2016000050012,"IMPLEMENTACIÓN DE ACCIONES DE CONSERVACION Y RESTAURACION DE LOS COMPLEJOS DE PARAMO, BOSQUE ALTO-ANDINO Y SERVICIOS ECOSISTEMICOS DE LA REGION CENTRAL","AMBIENTE Y DESARROLLO SOSTENIBLE",32499987282,{"$f":"I16","v":32499987282},0,42829," 058 DE 2016","CONTRATADO EN EJECUCIÓN",43012,1841,1658]
[87,"CUNDINAMARCA","SECRETARIA DE EDUCACIÓN","YAHIR ARCINIEGAS Y ALEXANDER RIVEROS",null,2017000050027,"FORTALECIMIENTO DE LA PERMANENCIA DE LOS ESTUDIANTES EN LOS MUNICIPIOS DEL DEPARTAMENTO DE CUNDINAMARCA , CENTRO ORIENTE 2017 CUNDINAMARCA","EDUCACIÓN",14995289800,14995289800,0,42961,"064 de 2017","PARA CIERRE",43145,1709,1525]
[88,"MUNICIPIO DE ZIPAQUIRA","MUNICIPIO DE ZIPAQUIRA","ALEXANDER RIVEROS",null,2017000050029,"CONSERVACIÓN  Y GESTIÓN INTEGRAL DEL RECURSO HÍDRICO MEDIANTE LA ADQUISICIÓN Y RESTAURACIÓN DE PREDIOS DE INTERÉS ECOSISTÉMICO EN ELDEPARTAMENTO DE   CUNDINAMARCA","AMBIENTE Y DESARROLLO SOSTENIBLE",900000000,467000000,433000000,43340,"077 DE 2018","CONTRATADO EN EJECUCIÓN",43524,1330,1146]
[90,"SECRETARIA DE MINAS, ENERGIA Y GAS","SECRETARIA DE MINAS, ENERGIA Y GAS","DIEGO TORRES",null,2017000050036,"IMPLEMENTACIÓN Y EXPANSIÓN DEL SERVICIO DE GAS COMBUSTIBLE POR REDES PARA VEREDAS Y CENTROS POBLADOS DEL DEPARTAMENTO DE CUNDINAMARCA","MINAS Y ENERGÍA",4751658472,3069656503,1682001969,43356,"077 DE 2018","CONTRATADO EN EJECUCIÓN",43537,1314,1133]
[91,"SECRETARIA DE PLANEACIÓN","SECRETARIA DE PLANEACIÓN","YESID CASTAÑO Y JEIMY FORERO",null,2017000050039,"MEJORAMIENTO DE VÍAS TERCIARIAS MEDIANTE EL USO DE PLACA HUELLA EN LOS MUNICIPIOS DE GUATAVITA, PACHO, SAN JUAN DE RIOSECO, SUBACHOQUE, TENA Y ZIPAQUIRÁ, DEPARTAMENTO DE CUNDINAMARCA","TRANSPORTE",6791102422,6725380622,65721800,43124,"067 DE 2017","CONTRATADO EN EJECUCIÓN",43305,1546,1365]
[92,"SECRETARIA DE PLANEACIÓN","SECRETARIA DE HABITAT Y VIVIENDA","ALEXANDER RIVEROS Y JEIMY FORERO",null,2017000050042,"MEJORAMIENTO DE VIVIENDAS RURALES DE LA PROVINCIA DE UBATÉ - CUNDINAMARCA","AGRICULTURA ",2354318125,2354318125,0,43096,"069 de 2017","CONTRATADO EN EJECUCIÓN",43278,1574,1392]
[96,"CUNDINAMARCA","SECRETARIA DE AGRICULTURA","DIEGO TORRES Y JEIMY FORERO",null,2017000050065,"MEJORAMIENTO DE LA PRODUCTIVIDAD Y RENTABILIDAD DE LOS CAFICULTORES DEL DEPARTAMENTO DE CUNDINAMARCA","AGRICULTURA ",6523880054,4220000000,2303880054,43096,"069 DE 2017","CONTRATADO EN EJECUCIÓN",43278,1574,1392]
[97,"CUNDINAMARCA","SECRETARIA DE CIENCIA, TECNOLOGIA E INNOVACIÓN","DAYANA FERNANDEZ / YAHIR ARCINIEGAS",null,2017000100016,"IMPLEMENTACIÓN PROGRAMA DE INNOVACIÓN PARA LA VALIDACIÓN Y GENERACIÓN DE PRODUCTOS DERIVADOS DE LA BIODIVERSIDAD EN EL DEPARTAMENTO DE CUNDINAMARCA","CTEL",4486653319,4343608212,143045107,42941,"058 DE 2017","CONTRATADO EN EJECUCIÓN",43125,1729,1545]
[98,"CUNDINAMARCA","SECRETARIA DE CIENCIA, TECNOLOGIA E INNOVACIÓN","DAYANA FERNANDEZ / YAHIR ARCINIEGAS",null,2017000100034,"IMPLEMENTACIÓN DE UN SISTEMA DE GESTIÓN DE INNOVACIÓN PARA LA INDUSTRIA DE CUNDINAMARCA","CTEL",3925471448,3714407118,211064330,42941,"058 DE 2017","CONTRATADO EN EJECUCIÓN",43125,1729,1545]
[99,"CUNDINAMARCA","SECRETARIA DE CIENCIA, TECNOLOGIA E INNOVACIÓN","DAYANA FERNANDEZ / YAHIR ARCINIEGAS",null,2017000100074,"IMPLEMENTACIÓN DE ESTRATEGIAS DE FOMENTO A LA CULTURA Y SERVICIOS DE INNOVACIÓN EN LAS PROVINCIAS SABANA OCCIDENTE, SABANA CENTRAL, SOACHA Y SUMAPAZ CUNDINAMARCA","CTEL",6183633276,5533633276,650000000,43098,"063 DE 2017","CONTRATADO EN EJECUCIÓN",43280,1572,1390]
[100,"CUNDINAMARCA","SECRETARIA DE CIENCIA, TECNOLOGIA E INNOVACIÓN","DAYANA FERNANDEZ / YAHIR ARCINIEGAS",null,2017000100076,"FORTALECIMIENTO DE CAPACIDADES DE GESTIÓN DEL RIESGO A TRAVÉS DE APROPIACIÓN SOCIAL DE LA CIENCIA, LA TECNOLOGÍA Y LA INNOVACIÓN EN EL DEPARTAMENTO DE CUNDINAMARCA","CTEL",4404970720,4000000000,404970720,43322,"068 DE 2018","CONTRATADO EN EJECUCIÓN",43506,1348,1164]
[101,"CUNDINAMARCA","SECRETARIA DE CIENCIA, TECNOLOGIA E INNOVACIÓN","DAYANA FERNANDEZ / YAHIR ARCINIEGAS",null,2017000100087,"FORMACIÓN DE TALENTO HUMANO DE ALTO NIVEL EN MAESTRÍAS EN EL DEPARTAMENTO DE CUNDINAMARCA","CTEL",5148022960,5048022960,100000000,43698,"078 DE 2019","CONTRATADO EN EJECUCIÓN",43882,972,788]
[102,"CUNDINAMARCA","SECRETARIA DE CIENCIA, TECNOLOGIA E INNOVACIÓN","DAYANA FERNANDEZ / YAHIR ARCINIEGAS",null,2017000100104,"FORTALECIMIENTO DE LA CULTURA DE LA GESTIÓN Y UTILIZACIÓN DEL CONOCIMIENTO EN CTEI EN NIÑOS, JÓVENES Y COMUNIDADES DEL DEPARTAMENTO DE CUNDINAMARCA","CTEL",9498967749,7498967749,2000000000,43565,"074 DE 2019","CONTRATADO EN EJECUCIÓN",43748,1105,922]
[103,"CUNDINAMARCA","UNIDAD ADMINISTRATIVA DE GESTIÓN DEL RIESGO.","DIEGO TORRES Y YAHIR ARCINIEGAS",null,20172401060022,"ESTUDIOS DETALLADOS PARA LA INCORPORACIÓN DE LA GESTIÓN DEL RIESGO PARA LOS MUNICIPIOS DE GIRARDOT, RICAURTE","AMBIENTE Y DESARROLLO SOSTENIBLE",3084907873,3084907873,0,43802,"033 DE 2019","CONTRATADO SIN ACTA DE INICIO",43985,868,685]
[104,"CUNDINAMARCA","SECRETARIA DE CIENCIA, TECNOLOGIA E INNOVACIÓN","DAYANA FERNANDEZ / YAHIR ARCINIEGAS",null,20170000100012,"CONFORMACIÓN DE UNA CONVOCATORIA REGIONAL DE PROYECTOS I+D EN FOCOS PRIORIZADOS CTEI PARA EL FORTALECIMIENTO DE LOS GRUPOS DE INVESTIGACIÓN CUNDINAMARCA","CTEL",7321934035,7128998177,192935858,42941,"058 DE 2017","CONTRATADO EN EJECUCIÓN",43125,1729,1545]
[105,"CAR","CAR","YESID CASTAÑO",null,2017000050063,"RECUPERACIÓN HIDRÁULICA Y AMBIENTAL DEL COMPLEJO LAGUNAR  FÚQUENE","AMBIENTE Y DESARROLLO SOSTENIBLE",18000000000,18000000000,0,43364,"081 DE 2018","CONTRATADO EN EJECUCIÓN",43545,1306,1125]
[107,"MUNICIPIO DE UTICA","MUNICIPIO DE UTICA","JUAN CARLOS TORRES",null,2017000050087,"MEJORAMIENTO DEL SENDERO TURÍSTICO DE LA PROVINCIA DEL GUALIVÁ  – ÚTICA  CUNDINAMARCA","COMERCIO, INDUSTRIA Y TURISMO ",2347004868,2123058880,223945988,43211,"075 de 2018","CONTRATADO EN EJECUCIÓN",43394,1459,1276]
[108,"CUNDINAMARCA","SECRETARIA DE EDUCACIÓN","YAHIR ARCINIEGAS Y ALEXANDER RIVEROS",null,2018000050019,"FORTALECIMIENTO DE LA PERMANENCIA DE LOS ESTUDIANTES EN LOS MUNICIPIOS DEL DEPARTAMENTO DE CUNDINAMARCA, CENTRO ORIENTE 2018 CUNDINAMARCA","EDUCACIÓN",19395559645,19395559645,0,43336,"080 DE 2018","PARA CIERRE",43520,1334,1150]
[109,"CUNDINAMARCA","ICCU - GESPROY GB","YESID CASTAÑO / JEIMY FORERO",null,2018000050022,"MEJORAMIENTO Y REHABILITACIÓN DE VÍAS SECUNDARIAS EN LA PROVINCIA DE UBATÉ, DEPARTAMENTO DE CUNDINAMARCA","TRANSPORTE",7524876363,7441105086,83771277,43320,"078 de 2018","TERMINADO",43504,1350,1166]
[110,"CUNDINAMARCA","ICCU - GESPROY GB","YESID CASTAÑO / JEIMY FORERO",null,2018000050024,"MEJORAMIENTO Y REHABILITACIÓN DE LA VÍA LA MARÍA – TOBIA - PASO EL REJO - LA PEÑA, DEPARTAMENTO DE CUNDINAMARCA","TRANSPORTE",9149162991,8983328881,165834110,43417,"082 de 2018","TERMINADO",43598,1253,1072]
[111,"CUNDINAMARCA","ICCU - GESPROY GB","YESID CASTAÑO / JEIMY FORERO",null,2018000050026,"MEJORAMIENTO DE VÍAS EN LA PROVINCIA DE SUMAPAZ PARA LA CONSOLIDACIÓN DE UNA PAZ ESTABLE Y DURADERA EN EL DEPARTAMENTO DE CUNDINAMARCA","TRANSPORTE",11457047617,11457047617,0,43462,"011 de 2018 - OCAD PAZ","CONTRATADO EN EJECUCIÓN",43644,1208,1026]
[113,"CUNDINAMARCA","SECRETARIA DE HABITAT Y VIVIENDA","ALEXANDER RIVEROS Y JEIMY FORERO",null,2018000050039,"MEJORAMIENTO DE VIVIENDA RURAL EN LOS MUNICIPIOS DE CUCUNUBÁ, JERUSALEN, QUEBRADANEGRA Y VIOTÁ - DEPARTAMENTO DE CUNDINAMARCA","AGRICULTURA ",4024793625,4024793625,0,43571,"009 DE 2019","CONTRATADO EN EJECUCIÓN",43754,1099,916]
[114,"CUNDINAMARCA","ICCU - GESPROY GB","YESID CASTAÑO / JEIMY FORERO",null,2018000050049,"MEJORAMIENTO DE LA VÍA SESQUILÉ – GUATAVITA - GACHETÁ, DEPARTAMENTO DE CUNDINAMARCA","TRANSPORTE",3997714045,3935792642,61921403,43455,"084 de 2018","TERMINADO",43637,1215,1033]
[115,"CUNDINAMARCA","ICCU - GESPROY GB","YESID CASTAÑO / JEIMY FORERO",null,2018000050055,"MEJORAMIENTO DE LA TRONCAL DE RIONEGRO, SECTOR LA PALMA CHARCO LARGO PARA LA CONSOLIDACIÓN DE UNA PAZ ESTABLE Y DURADERA EN EL DEPARTAMENTO DE CUNDINAMARCA","TRANSPORTE",17928531277,17928531277,0,43532,"086 de 2019","TERMINADO",43716,1138,954]
[116,"CUNDINAMARCA","ICCU - GESPROY GB","YESID CASTAÑO / JEIMY FORERO",null,2018000050059,"MEJORAMIENTO DE LA VÍA GUSBITA - TIBIRITA DEL DEPARTAMENTO DE CUNDINAMARCA","TRANSPORTE",5500531740,4870657724,629874016,43532,"086 de 2019","CONTRATADO EN EJECUCIÓN",43716,1138,954]
[118,"CUNDINAMARCA","SECRETARIA DE CIENCIA, TECNOLOGIA E INNOVACIÓN","DAYANA FERNANDEZ / YAHIR ARCINIEGAS",null,2018000100160,"FORMACIÓN DE CAPITAL HUMANO DE ALTO NIVEL PARA LA INVESTIGACIÓN, EL DESARROLLO TECNOLÓGICO Y LA INNOVACIÓN MAESTRÍAS DE INVESTIGACIÓN PARA DOCENTES DEL DEPARTAMENTO DE CUNDINAMARCA","CTEL",5217415747,3519725709,1697690038,43731,"080 DE 2019","CONTRATADO SIN ACTA DE INICIO",43913,939,757]
[119,"CUNDINAMARCA","EMPRESAS PUBLICAS DE CUNDINAMARCA -EPC","DIEGO TORRES / YEIMY FORERO",null,20181301010555,"CONSTRUCCIÓN DE UNIDADES SANITARIAS EN EL ÁREA RURAL DEL DEPARTAMENTO DE CUNDINAMARCA","VIVIENDA, CIUDAD Y TERRITORIO ",4999900475,4999900475,0,43378,"010 DE 2018 - OCAD PAZ","CONTRATADO EN EJECUCIÓN",43560,1292,1110]
[121,"CUNDINAMARCA","ICCU - GESPROY GB","YESID CASTAÑO / JEIMY FORERO",null,2019000050003,"MEJORAMIENTO DE LA VÍA CÁQUEZA FOSCA, DEPARTAMENTO DE CUNDINAMARCA","TRANSPORTE",4049029755,4049029755,0,43585,"088 de 2019","TERMINADO",43768,1085,902]
[122,"CUNDINAMARCA","ICCU - GESPROY GB","YESID CASTAÑO / JEIMY FORERO",null,2019000050005,"MEJORAMIENTO DE LA VÍA FÓMEQUE UBAQUE, DEPARTAMENTO DE CUNDINAMARCA","TRANSPORTE",16514204213,14057373703,2456830510,43629,"089 DE 2019","TERMINADO",43812,1041,858]
[123,"CUNDINAMARCA","ICCU - GESPROY GB","YESID CASTAÑO / JEIMY FORERO",null,2019000050011,"MEJORAMIENTO DE LA VÍA SUPATÁ - PACHO, DEPARTAMENTO DE CUNDINAMARCA","TRANSPORTE",7339441010,7339441010,0,43585,"088 DE 2019","CONTRATADO EN EJECUCIÓN",43768,1085,902]
[124,"CUNDINAMARCA","ICCU - GESPROY GB","YESID CASTAÑO / JEIMY FORERO",null,2019000050013,"CONSTRUCCIÓN DE LA PLAZA DE MERCADO DEL MUNICIPIO DE CHOACHÍ CUNDINAMARCA","AGRICULTURA ",3152125044,3152125044,0,43687,"090 DE 2019","CONTRATADO EN EJECUCIÓN",43871,983,799]
[125,"CUNDINAMARCA","ICCU - GESPROY GB","YESID CASTAÑO / JEIMY FORERO",null,2019000050016,"MEJORAMIENTO DE LA VÍA ANOLAIMA CORRALEJAS (INSPECCIÓN DE CORRALEJAS), DEPARTAMENTO DE CUNDINAMARCA","TRANSPORTE",6898362469,5718724028,1179638441,43629,"089 DE 2019","TERMINADO",43812,1041,858]
[126,"CUNDINAMARCA","SECRETARIA DE EDUCACIÓN","YAHIR ARCINIEGAS Y ALEXANDER RIVEROS",null,2019000050020,"FORTALECIMIENTO DE LA PERMANENCIA DE LOS ESTUDIANTES PARA EL AÑO 2019 EN LOS MUNICIPIOS DEL DEPARTAMENTO DE CUNDINAMARCA","EDUCACIÓN",20536293937,20536293937,0,43629,"089 DE 2019","TERMINADO",43812,1041,858]
[127,"CUNDINAMARCA","ICCU - GESPROY GB","YESID CASTAÑO / JEIMY FORERO",null,2019000050023,"MEJORAMIENTO DE LA VÍA LENGUAZAQUE - VILLAPINZÓN, DEPARTAMENTO DE CUNDINAMARCA","TRANSPORTE",8636278689,7310087087,1326191602,43629,"089 DE 2019","TERMINADO",43812,1041,858]
[128,"CUNDINAMARCA","SECRETARIA DE AGRICULTURA","DIEGO TORRES Y JEIMY FORERO",null,2019000050027," MEJORAMIENTO DE LA COMPETITIVIDAD  DE LA CADENA PRODUCTIVA DE CACAO EN EL DEPARTAMENTO DE CUNDINAMARCA","AGRICULTURA ",5862983962,4397237971,1465745991,43819,"098 DE 2019","CONTRATADO EN EJECUCIÓN",44002,851,668]
[129,"CUNDINAMARCA","ICCU - GESPROY GB","YESID CASTAÑO / JEIMY FORERO",null,2019000050029,"MEJORAMIENTO DE LA VÍA GACHETÁ - GAMA, DEPARTAMENTO DE CUNDINAMARCA","TRANSPORTE","$ 5.477.582.208",5322582208,155000000,43629,"089 DE 2019","CONTRATADO EN EJECUCIÓN",43812,1041,858]
[132,"CUNDINAMARCA","MEDICINA LEGAL Y CIENCIAS FORENSES","ALEXANDER RIVEROS",null,2019000050025,"ESTUDIOS Y DISEÑOS PARA LA CONSTRUCCIÓN DE LA SEDE DE MEDICINA LEGAL EN EL DEPARTAMENTO DE CUNDINAMARCA","FISCALIA",904521100,904521100,0,43677,"091 DE 2019","CONTRATADO EN EJECUCIÓN",43861,993,809]
[135,"CUNDINAMARCA","ICCU - GESPROY GB","YESID CASTAÑO / JEIMY FORERO",null,2019000050047,"MEJORAMIENTO DE LA VÍA SUSA - CARMEN DE CARUPA, DEPARTAMENTO DE CUNDINAMARCA","TRANSPORTE",4131178258,4131178258,0,43677,"091 DE 2019","TERMINADO",43861,993,809]
[136,"CUNDINAMARCA","ICCU - GESPROY GB","YESID CASTAÑO / JEIMY FORERO",null,2019000050056,"MEJORAMIENTO DE LA VÍA QUE CONDUCE DEL MUNICIPIO DE NIMAIMA AL MUNICIPIO DE NOCAIMA, DEPARTAMENTO DE CUNDINAMARCA","TRANSPORTE",5082491569.8000002,4614214508,468277061.80000019,43748,"094 DE 2019","CONTRATADO EN EJECUCIÓN",43931,922,739]
[137,"IDECUT","IDECUT","DIEGO TORRES Y YAHIR ARCINIEGAS",null,2019000050059,"FORTALECIMIENTO A LAS ESCUELAS MUNICIPALES DE MÚSICA, DANZA, TEATRO Y ARTES PLÁSTICAS Y VISUALES EN EL DEPARTAMENTO DE CUNDINAMARCA","CULTURA ",1972606058,1972606058,0,43748,"094 DE 2019","CONTRATADO EN EJECUCIÓN",43931,922,739]
[138,"CUNDINAMARCA","ICCU - GESPROY GB","YESID CASTAÑO / JEIMY FORERO",null,2019000050060,"ESTUDIOS Y DISEÑOS DE VÍAS PARA MEJORAR LA COMPETITIVIDAD DEL DEPARTAMENTO DE CUNDINAMARCA","TRANSPORTE",7089369627,7089369627,0,43714,"092 DE 2019","TERMINADO",43896,956,774]
[139,"CUNDINAMARCA","SECRETARIA DE MINAS, ENERGIA Y GAS","DIEGO TORRES",null,2019000050073,"AMPLIACIÓN DE LA COBERTURA DEL SERVICIO DE GAS COMBUSTIBLE DOMICILIARIO A TRAVÉS DE LA FINANCIACIÓN DE LA CONEXIÓN Y LA RED INTERNA PARA USUARIOS DE BARRIOS PERIFÉRICOS, VEREDAS Y CENTROS POBLADOS DEL DEPARTAMENTO DE CUNDINAMARCA","MINAS Y ENERGÍA",12461377100,6651376060,5810001040,43805,"097 DE 2019","CONTRATADO EN EJECUCIÓN",43988,865,682]
[140,"CUNDINAMARCA","ICCU - GESPROY GB","YESID CASTAÑO / JEIMY FORERO",null,2019000050075,"MEJORAMIENTO DE LA VÍA QUE CONDUCE DEL MUNICIPIO DE VIANI AL MUNICIPIO DE CHAGUANI, (DE LA Y DE SAN VICENTE A CHAGUANI), DEPARTAMENTO DE CUNDINAMARCA","TRANSPORTE",7504443091,7504443091,0,43819,"098 DE 2019","CONTRATADO EN EJECUCIÓN",44002,851,668]
[141,"CUNDINAMARCA","ICCU - GESPROY GB","YESID CASTAÑO / JEIMY FORERO",null,2019000050079,"MEJORAMIENTO DE LA VÍA SERREZUELA - EL TRIUNFO, MUNICIPIO DE LA CALERA, DEPARTAMENTO DE CUNDINAMARCA","TRANSPORTE",7614258187,7614258187,0,43748,"094 DE 2019","TERMINADO",43931,922,739]
[142,"CUNDINAMARCA","ICCU - GESPROY GB","YESID CASTAÑO / JEIMY FORERO",null,2019000050085,"MEJORAMIENTO DE LA VÍA QUE CONDUCE DEL MUNICIPIO DE LA MESA AL MUNICIPIO DE CACHIPAY, (DE LA INSPECCIÓN DE PEÑA NEGRA AL MUNICIPIO DE CACHIPAY), DEPARTAMENTO DE CUNDINAMARCA","TRANSPORTE",7019896083,7019896083,0,43852,"96 DE 2019","CONTRATADO EN EJECUCIÓN",44034,818,636]
[143,"TV ANDINA","TV ANDINA","ALEXANDER RIVEROS",null,2019000050064,"PROTECCIÓN Y PRESERVACIÓN DEL PATRIMONIO AUDIOVISUAL COLOMBIANO QUE SE ENCUENTRA EN EL CANAL PÚBLICO TEVEANDINA LOCALIZADO EN EL DEPARTAMENTO DE  CUNDINAMARCA","CULTURA ",5923285198,"$ 5.597.840.098",325445100,43774,"095 DE 2019","TERMINADO",43956,896,714]
[144,"UNAD","UNAD","ALEXANDER RIVEROS",null,2019000050069,"MEJORAMIENTO DE INFRAESTRUCTURA FÍSICA, DOTACIÓN DE MOBILIARIO Y EQUIPAMIENTO TECNOLÓGICO DE LA UNIVERSIDAD NACIONAL ABIERTA Y A DISTANCIA EN MUNICIPIOS DEL DEPARTAMENTO DE CUNDINAMARCA","EDUCACIÓN",16011115461,16011115461,0,43774,"095 DE 2019","TERMINADO",43956,896,714]
[145,"U TECNOLOGICA DE PEREIRA","U TECNOLOGICA DE PEREIRA","YAHIR ARCINIEGAS",null,2019000100009,"FORMACIÓN DE CAPITAL HUMANO DE ALTO NIVEL UNIVERSIDAD TECNOLÓGICA DE PEREIRA  NACIONAL","CTEL",4360028215,3950208215,409820000,43781,"083 DE 2019","CONTRATADO EN EJECUCIÓN",43963,889,707]
[146,"U EAN","U EAN","YAHIR ARCINIEGAS",null,2019000100015,"FORMACIÓN DE CAPITAL HUMANO DE ALTO NIVEL - UNIVERSIDAD EAN -  NACIONAL","CTEL",1294375000,1250000000,44375000,43830,"087 DE 2019","CONTRATADO EN EJECUCIÓN",44012,840,658]
[147,"U CATOLICA","U CATOLICA","YAHIR ARCINIEGAS",null,2019000100022,"FORMACIÓN DE CAPITAL HUMANO DE ALTO NIVEL - UNIVERSIDAD CATÓLICA DE COLOMBIA -  NACIONAL","CTEL",343595000,299220000,44375000,43812,"086 DE 2019","CONTRATADO EN EJECUCIÓN",43995,858,675]
[148,"UNIVERSIDAD MILITAR NUEVA GRANADA","UNIVERSIDAD MILITAR NUEVA GRANADA","YAHIR ARCINIEGAS",null,2019000100025,"FORMACIÓN DE CAPITAL HUMANO DE ALTO NIVEL UNIVERSIDAD MILITAR NUEVA GRANADA  NACIONAL","CTEL",294375000,250000000,44375000,43812,"086 DE 2019","CONTRATADO EN EJECUCIÓN",43995,858,675]
[149,"UNIVERSIDAD NACIONAL DE COLOMBIA","UNIVERSIDAD NACIONAL DE COLOMBIA","YAHIR ARCINIEGAS",null,2019000100026,"FORMACIÓN DE CAPITAL HUMANO DE ALTO NIVEL UNIVERSIDAD NACIONAL DE COLOMBIA   NACIONAL","CTEL",21162064500,20233937500,{"$f":"I67-J67","v":928127000},43781,"083 DE 2019","CONTRATADO EN EJECUCIÓN",{"$f":"IF(L67=0,\"-\",EDATE(L67,6))","v":43963},{"$f":"IF(L67=0,\"-\",_xlfn.DAYS(TODAY(),L67))","v":889},707]
[150,"U DISTRITAL","U DISTRITAL","YAHIR ARCINIEGAS",null,2019000100027,"FORMACIÓN DE CAPITAL HUMANO DE ALTO NIVEL EN DOCTORADO PARA EL DESARROLLO REGIONAL, UNIVERSIDAD DISTRITAL FRANCISCO JOSÉ DE CALDAS, A NIVEL  NACIONAL","CTEL",1218668841,1113595753,105073088,43798,"085 DE 2019","CONTRATADO EN EJECUCIÓN",43980,872,{"$f":"IF(O68=\"-\",\"-\",_xlfn.DAYS(TODAY(),O68))","v":690}]
[151,"U JAVERIANA","U JAVERIANA","YAHIR ARCINIEGAS",null,2019000100028,"FORMACIÓN DE CAPITAL HUMANO DE ALTO NIVEL PONTIFICIA UNIVERSIDAD JAVERIANA SEDE CENTRAL  NACIONAL","CTEL",6524500000,6524500000,0,43781,"083 DE 2019","CONTRATADO EN EJECUCIÓN",43963,889,707]
[152,"U DE LOS ANDES","U DE LOS ANDES","YAHIR ARCINIEGAS",null,2019000100036,"FORMACIÓN  DE CAPITAL HUMANO DE ALTO NIVEL UNIVERSIDAD DE LOS ANDES   NACIONAL","CTEL",2814671307,2748000000,66671307,43798,"085 DE 2019","CONTRATADO EN EJECUCIÓN",43980,872,690]
[153,"UNIVERSIDAD NACIONAL DE COLOMBIA","UNIVERSIDAD NACIONAL DE COLOMBIA","YAHIR ARCINIEGAS",null,2019000100061,"FORTALECIMIENTO DE LA CAPACIDAD TECNOLÓGICA INSTALADA EN EL CENTRO AGROPECUARIO MARENGO PARA LA INVESTIGACIÓN EN LOS SISTEMAS AGROPRODUCTIVOS DEL TRÓPICO ALTO, BAJO EL EFECTO DE LA VARIABILIDAD Y CAMBIO CLIMÁTICO -  CUNDINAMARCA","CTEL",2386591598.0999999,1994146760,392444838.0999999,43830,"087 DE 2019","CONTRATADO EN EJECUCIÓN",44012,840,658]
[154,"CUNDINAMARCA","SECRETARIA DE CIENCIA, TECNOLOGIA E INNOVACIÓN","DAYANA FERNANDEZ / YAHIR ARCINIEGAS",null,2020000100137,"FORTALECIMIENTO DE LAS CAPACIDADES DE INVESTIGACIÓN Y DESARROLLO PARA ATENDER PROBLEMÁTICAS ASOCIADAS CON AGENTES BIOLÓGICOS PARA LA SALUD PÚBLICA, A TRAVÉS DEL MEJORAMIENTO DEL LABORATORIO DE SALUD PÚBLICA DE CUNDINAMARCA","CTEL",4506359274,4048003426,458355848,43966,"093 DE 2020","CONTRATADO EN EJECUCIÓN",44150,704,520]
[155,"CUNDINAMARCA","SECRETARIA DE SALUD","DAYANA FERNANDEZ",null,2020000050003,"ADQUISICIÓN DE AMBULANCIAS,EQUIPOS BIOMÉDICOS, ELEMENTOS DE PROTECCIÓN PERSONAL, ASEO Y DESINFECCIÓN PARA LA ATENCIÓN DE LA CALAMIDAD SANITARIA POR COVID-19 EN LAS E.S.E DEL DEPARTAMENTO DE   CUNDINAMARCA","SALUD Y PROTECCIÓN SOCIAL",43433295564,43433295564,0,43986,"102 de 2020","CONTRATADO EN EJECUCIÓN",44169,684,501]
[157,"CUNDINAMARCA","SECRETARIA DE EDUCACIÓN","YAHIR ARCINIEGAS Y ALEXANDER RIVEROS",null,2020000050019,"FORTALECIMIENTO A LA ESTRATEGIA DE ALIMENTACIÓN ESCOLAR PARA EL AÑO 2020, EN LOS MUNICIPIOS DEL DEPARTAMENTO DE CUNDINAMARCA ","EDUCACIÓN",26240955000,26240955000,0,44040,"105 DE 2020","TERMINADO",44224,630,446]
[158,"CUNDINAMARCA","SECRETARIA DE CIENCIA, TECNOLOGIA E INNOVACIÓN","YAHIR ARCINIEGAS",null,2020000100266,"GENERACIÓN DE ESPACIOS DE ENCUENTRO DE LA SOCIEDAD CON LA CIENCIA Y LA TECNOLOGÍA - UN VIAJE CON LA CIENCIA EN EL DEPARTAMENTO DE CUNDINAMARCA","CTEL",2241429590,2218862102,22567488,44111,"098 DE 2020","CONTRATADO EN EJECUCIÓN",44293,559,377]
[159,"CUNDINAMARCA","SECRETARIA DE CIENCIA, TECNOLOGIA E INNOVACIÓN","YAHIR ARCINIEGAS",null,2020000100246,"FORTALECIMIENTO DE LA COMPETITIVIDAD DE LA CADENA PRODUCTIVA DE LA GUADUA POR MEDIO DEL DESARROLLO E IMPLEMENTACIÓN DE DOS (2) PAQUETES TECNOLÓGICOS PARA LA GENERACIÓN DE PRODUCTOS CON VALOR AGREGADO EN EL DEPARTAMENTO DE CUNDINAMARCA ","CTEL",3144525520,2294345776,850179744,44111,"098 DE 2020","CONTRATADO EN EJECUCIÓN",44293,559,377]
[160,"CUNDINAMARCA","CONNECT BOGOTA REGIÓN","YAHIR ARCINIEGAS",null,2020000100078,"DISEÑO E IMPLEMENTACIÓN DE UN MODELO DE GESTIÓN DE CONOCIMIENTO, INNOVACIÓN Y TRANSFERENCIA DE TECNOLOGÍA CON APLICACIÓN EN EL SECTOR AGROPECUARIO Y AGROINDUSTRIAL EN EL DEPARTAMENTO DE CUNDINAMARCA ","CTEL",3309848753,2972617683,337231070,44111,"098 DE 2020",{"$f":"'[1]Base 1'!W162","v":"EN PROCESO DE CONTRATACIÓN"},{"$f":"IF(L77=0,\"-\",EDATE(L77,6))","v":44293},{"$f":"IF(L77=0,\"-\",_xlfn.DAYS(TODAY(),L77))","v":559},{"$f":"IF(O77=\"-\",\"-\",_xlfn.DAYS(TODAY(),O77))","v":377}]
[161,"CUNDINAMARCA","FEDERACIÓN NACIONAL DE CAFETEROS","YAHIR ARCINIEGAS",null,2020000100205,"TRASLADO DE TECNOLOGÍAS INNOVADORAS A CAFICULTORES CON IMPACTO SOBRE LA CALIDAD DEL CAFÉ Y LA GESTIÓN DEL RECURSO HÍDRICO DURANTE EL PROCESO DE BENEFICIO EN ZONA CAFETERA DEL DEPARTAMENTO DE CUNDINAMARCA ","CTEL",13783557324,12848931736,934625588,44111,"098 DE 2020","CONTRATADO EN EJECUCIÓN",44293,559,377]
[162,"CUNDINAMARCA","AGROSAVIA","YAHIR ARCINIEGAS",null,2020000100197,"DESARROLLO DE BIOPLAGUICIDAS POTENCIADOS DE NUEVA GENERACIÓN PARA EL MEJORAMIENTO DE LA PRODUCTIVIDAD E INOCUIDAD DEL CULTIVO DE TOMATE Y CRUCÍFERAS EN EL DEPARTAMENTO DE CUNDINAMARCA ","CTEL",4583970033,3282745260,1301224773,44111,"098 DE 2020","CONTRATADO EN EJECUCIÓN",44293,559,377]
[163,"CUNDINAMARCA","UNIVERSIDAD NACIONAL DE COLOMBIA","YAHIR ARCINIEGAS",null,2020000100240,"ESTUDIO DE PREFACTIBILIDAD PARA LA CREACIÓN DE UN CENTRO DE INNOVACIÓN Y DE PRODUCTIVIDAD PARA EL SECTOR AGROPECUARIO DE SABANA OCCIDENTE DE CUNDINAMARCA ","CTEL",1896154229,1707430133,188724096,44111,"098 DE 2020","CONTRATADO EN EJECUCIÓN",44293,559,377]
[164,"CUNDINAMARCA","UNIVERSIDAD DE CUNDINAMARCA","YAHIR ARCINIEGAS",null,2020000100158,"FORTALECIMIENTO DE LA INFRAESTRUCTURA FÍSICA Y TECNOLÓGICA DEL CENTRO DE ESTUDIOS AGROAMBIENTALES DE LA UNIVERSIDAD DE CUNDINAMARCA AGROU CUNDINAMARCA ","CTEL",2024433669,1997753509,26680160,44111,"098 DE 2020",{"$f":"'[1]Base 1'!W166","v":"SIN CONTRATAR"},44293,559,377]
[165,"CUNDINAMARCA","ZIPAQUIRA","YESID CASTAÑO / JEIMY FORERO",null,2020000050013,"Mejoramiento de la vía que comunica a los municipios de Zipaquirá y Tocancipá, tramo barandillas - la fuente, departamento de Cundinamarca","TRANSPORTE","6.788.620.869,00",{"$f":"I82","v":"6.788.620.869,00"},0,44152,"107 del 2020","CONTRATADO EN EJECUCIÓN",44333,518,337]
[166,"CUNDINAMARCA","ZIPAQUIRA","YESID CASTAÑO / JEIMY FORERO",null,2020000050015,"MEJORAMIENTO DE LA VÍA ZIPAQUIRÁ - SAN JORGE - TABIO DEPARTAMENTO DE CUNDINAMARCA","TRANSPORTE",7458735075,{"$f":"I83","v":7458735075},0,44152,"107 del 2020","CONTRATADO SIN ACTA DE INICIO",44333,518,337]
[167,"CUNDINAMARCA","SECRETARIA DE CIENCIA, TECNOLOGIA E INNOVACIÓN","YAHIR",null,2020000100695,"DESARROLLO, TRANSFERENCIA DE TECNOLOGÍA Y CONOCIMIENTO PARA LA INNOVACIÓN QUE FORTALEZCAN CAPACIDADES COMUNITARIAS EN LA COMPRENSIÓN Y/O MITIGACIÓN DE LOS PROBLEMAS DE VIOLENCIAS BASADAS EN GÉNERO, DERIVADAS DE LA EMERGENCIA POR COVID 19, EN CUNDINAMARCA","CTEL",3100000000,3000000000,100000000,44183,"103 DE 2020","CONTRATADO SIN ACTA DE INICIO",44365,487,305]
[168,"CUNDINAMARCA","SECRETARIA DE CIENCIA, TECNOLOGIA E INNOVACIÓN","YAHIR",null,2020000100650,"FORTALECIMIENTO DE CAPACIDADES DE CTEI PARALA INNOVACION EDUCATIVA EN LOS NIVELES DE BÁSICA Y\nMEDIA, MEDIANTE USO DE TICS EN INSTITUCIONES EDUCATIVAS OFICIALES DE LOS MUNICIPIOS NO\nCERTIFICADOS DEL DEPARTAMENTO DE CUNDINAMARCA","CTEL",10804663122,9999728696,804934426,44183,"103 DE 2020","CONTRATADO EN EJECUCIÓN",44365,487,305]
[169,"CUNDINAMARCA","SECRETARIA DE CIENCIA, TECNOLOGIA E INNOVACIÓN","YAHIR",null,2020000100696,"FORTALECIMIENTO DE CAPACIDADES DE CTEI PARA LA REACTIVACIÓN ECONÓMICA Y LA TRANSFORMACIÓN\nPRODUCTIVA EN CUNDINAMARCA","CTEL",7370634083,6974290175,396343908,44183,"103 DE 2020","CONTRATADO EN EJECUCIÓN",44365,487,305]
[170,"CUNDINAMARCA","SECRETARIA DE CIENCIA, TECNOLOGIA E INNOVACIÓN","YAHIR",null,2020000100649,"FORTALECIMIENTO DE CAPACIDADES DE CTeI PARA EL RELACIONAMIENTO ESCUELA - CONTEXTO RURAL MEDIANTE LA APROPIACIÓN Y USO DE LAS TIC EN EL MUNICIPIO DE SIBATÉ, DEPARTAMENTO DE CUNDINAMARCA","CTEL",4292464018,2645464018,1647000000,44183,"103 DE 2020","CONTRATADO SIN ACTA DE INICIO",44365,487,305]
[171,"CUNDINAMARCA","FUNDACION UNIVERSIDAD DEL VALLE","YAHIR",null,2020000050044,"FORTALECIMIENTO DE LAS COMPETENCIAS COMUNICATIVAS EN INGLÉS DE LOS ESTUDIANTES DE LOS ESTABLECIMIENTOS EDUCATIVOS NO OFICIALES DE CUNDINAMARCA","EDUCACIÓN","$ 10.468.961.978",10411761978,57200000,44195,"110 DE 2020","CONTRATADO EN EJECUCIÓN",44377,475,293]
[172,"CUNDINAMARCA","UNAD",null,null,2020000100433,"Investigación de los compuestos volátiles orgánicos e inducidos para el manejo de moscas plagas en gulupa y granadilla en el departamento de  Cundinamarca","CTEL",3412874201,1999985660,1412888541,44159,"100 DE 2020","CONTRATADO EN EJECUCIÓN",44340,511,330]
[173,"CUNDINAMARCA","UNIVERSIDAD INDUSTRIAL DE SANTANDER",null,null,2020000100415,"Desarrollo de un sistema óptico  computacional para estimar el contenido de carbono orgánico de suelos agrícolas a través de imágenes espectrales e inteligencia artificial en cultivos de cítricos de   Santander","CTEL",2184125885.29,1972224989,211900896.28999996,44160,"100 DE 2020","CONTRATADO EN EJECUCIÓN",44341,510,329]
[174,"CUNDINAMARCA","UNIVERSIDAD INDUSTRIAL DE SANTANDER",null,null,2020000100375,"Conformación de una plataforma para estudios celulares avanzados in vivo en tiempo real para el análisis de la respuesta inmunometabólica ante la reexpresión de interferón tipo I kappa en esferoides de células tumorales de cuello uterino en  Santander","CTEL",3123997801,1998887911,1125109890,44159,"100 DE 2020","CONTRATADO EN EJECUCIÓN",44340,511,330]
[175,"CUNDINAMARCA","UNIVERSIDAD INDUSTRIAL DE SANTANDER",null,null,2020000100351,"Desarrollo de un prototipo selectivo y sensible para monitorear contenido de cadmio in situ en diversas matrices asociadas a la producción de granos de cacao en el departamento de  Santander","CTEL",2585800000,2000000000,585800000,44159,"100 DE 2020","CONTRATADO EN EJECUCIÓN",44340,511,330]
[176,"CUNDINAMARCA","INSTITUTO SUPERIOR DE EDUCACION RURAL DE PAMPLONA",null,null,2020000100343,"Implementación laboratorio de calidad fisicoquímica de alimentos para el fortalecimiento competitivo y sostenible de lascadenas agroalimentarias del departamento de  Norte de Santander","CTEL",1097306327,999999999,97306328,44159,"100 DE 2020",{"$f":"'[1]Base 1'!W178","v":"EN PROCESO DE CONTRATACIÓN\n\n"},44340,511,330]
[177,"CUNDINAMARCA","UNIVERSIDAD NACIONAL DE COLOMBIA",null,null,2020000100342,"Estudio de potenciales insecticidas en matrices poliméricas para el control de plagas de granos almacenados basados en aceites esenciales provenientes de la biodiversidadflorística del departamento de  Cundinamarca","CTEL",2748237104,2000000000,748237104,44159,"100 DE 2020","CONTRATADO EN EJECUCIÓN",44340,511,330]
[178,"CUNDINAMARCA","UNIVERSIDAD MILITAR NUEVA GRANADA",null,null,2020000100728,"Generación y transferencia de conocimientos y tecnologías para elevar capacidades de CTel de pequeños productores de tomate para afrontar problemas derivados del COVID-19 asociadas a la Seg. Alimentaria en las Sab. Centro y Oriente  Cundinamarca","CTEL",4162541452,2123613452,2038928000,44183,"103 DE 2020","CONTRATADO EN EJECUCIÓN",44365,487,305]
[179,"CUNDINAMARCA","UNIVERSIDAD NACIONAL DE COLOMBIA",null,null,2020000100339,"Desarrollo de Nuevos Métodos No Destructivos para Monitoreo In Situ de Probabilidad de Ocurrencia de Falla en Tuberías en el Sector de Hidrocarburos en los Departamentos de  Bogotá Boyacá Santander","CTEL",2412084140,1999876300,412207840,44159,"100 DE 2020","CONTRATADO EN EJECUCIÓN",44340,511,330]
[180,"CUNDINAMARCA","UNIVERSIDAD MILITAR NUEVA GRANADA",null,null,2020000100216,"Innovación y transferencia tecnológica de UMNGBIO a productores de flores para el control biológico de Tetranychus urticae (Acari: Tetranychiidae) en cultivos de invernadero con el ácaro benéfico Neoseiulus californicus (Acari: Phytoseiidae)  Cundinamarca","CTEL",2431580000,1241580000,1190000000,44159,"100 DE 2020","CONTRATADO EN EJECUCIÓN",44340,511,330]
[181,"CUNDINAMARCA","SECRETARIA DE AGRICULTURA",null,null,2019000050026,"Desarrollo de un programa productivo, amigable con el medio ambiente del sector ganadero en el Departamento de Cundinamarca Cundinamarca","AGRICULTURA ",9757143522,6804242915,2952900607,44187,"109 DE 2020","CONTRATADO SIN ACTA DE INICIO",44369,483,301]
[182,"CUNDINAMARCA","UNIVERSIDAD NACIONAL DE COLOMBIA",null,null,2020000100169,"Investigación Desarrollo, innovación y transferencia de conocimiento para el procesamiento de la semilla de Sacha Inchi en productos de valor agregado, como estrategia para mejorar la productividad del sector agroindustrial de la Región  Cundinamarca","CTEL",2757697312,456319666.11000001,2301377645.8899999,44078,"97 DE 2020","CONTRATADO EN EJECUCIÓN",44259,592,411]
[183,"CUNDINAMARCA","UPTC",null,null,2020000100114,"Fortalecimiento del ecosistema de investigación científica para CTeI en la universidad pedagógica y tecnológica de Colombia UPTC, I-SPACIO  Sogamoso","CTEL",2310634882,196703104,2113931778,44078,null,"CONTRATADO EN EJECUCIÓN",44259,592,411]
[184,"CUNDINAMARCA","UNIVERSIDAD DE ANTIOQUIA",null,null,2020000100079,"Fortalecimiento de la infraestructura tecnológica y equipamiento del ambiente de formación industrial para el aumento de las capacidades institucionales en CTeI de la ETITC  Bogotá","CTEL",1090608306,998808306,91800000,44078,"97 DE 2020","CONTRATADO EN EJECUCIÓN",44259,592,411]
[185,"CUNDINAMARCA","UNIVERSIDAD NACIONAL DE COLOMBIA",null,null,2020000100075,"Aprovechamiento de la biodiversidad en agraz y papa para el desarrollo de cultivos promisorios en el departamento de   Santander","CTEL",3177259696,2000000000,1177259696,44078,"97 DE 2020","CONTRATADO EN EJECUCIÓN",44259,592,411]
[186,"CUNDINAMARCA","UNIVERSIDAD NACIONAL DE COLOMBIA",null,null,2020000100019,"Fortalecimiento de capacidades de investigación y desarrollo tecnológico de la Universidad Colegio Mayor de Cundinamarca a partir de tecnologías industria 4.0 para el diseño y construcción en   Bogotá","CTEL",2077571214,1930000000,147571214,44078,"97 DE 2020",{"$f":"'[1]Base 1'!W188","v":"CONTRATADO SIN ACTA DE INICIO\n\n"},44259,592,411]
[187,"UNIVERSIDAD INDUSTRIAL DE SANTANDER","UNIVERSIDAD INDUSTRIAL DE SANTANDER",null,null,2020000100017,"Fortalecimiento DE LA CAPACIDAD INSTITUCIONAL DE INVESTIGACIÓN DE LA UNIVERSIDAD INDUSTRIAL DESANTANDER  Nacional","CTEL",2808520000,456845037.89999998,2351674962.0999999,44078,null,"CONTRATADO EN EJECUCIÓN",44259,592,411]
[188,"CUNDINAMARCA","UNIVERSIDAD MILITAR NUEVA GRANADA",null,null,2020000100103,"Fortalecimiento de capacidades instaladas de Ciencia y Tecnología del Laboratorio de Diagnóstico en el Campus de la Univ Militar Nueva Granada, para atender problemáticas asociadas con agentes biológicos de alto riesgo para la salud humana,  Cundinamarca","CTEL",5162742977,4168513565,994229412,43966,"93 DE 2020","CONTRATADO EN EJECUCIÓN",44150,704,520]
[189,"CUNDINAMARCA","INSTITUTO UNIVERSITARIO DE LA PAZ – UNIPAZ",null,null,2020000100042,"Fortalecimiento de los procesos académicos en los programas ofrecidos por el Instituto Universitario de la Paz, UNIPAZ,   Barrancabermeja","CTEL",1178749590,996109590,182640000,43998,"94 DE 2020","CONTRATADO EN EJECUCIÓN",44181,672,489]
[190,"CUNDINAMARCA","INSTITUTO UNIVERSITARIO DE LA PAZ – UNIPAZ",null,null,2020000100016,"Adecuación , DOTACIÓN E IMPLEMENTACIÓN DE UN LABORATORIO DE FABRICACIÓN DIGITAL PARA PROMOVER EL DESARROLLO DE LA CIENCIA, LAINNOVACIÓN Y EL EMPRENDIMIENTO EN LA UNIVERSIDAD FRANCISCO DE PAULA SANTANDER.  Cúcuta","CTEL",2921057589,1946843702,974213887,43950,"92 DE 2020","CONTRATADO EN EJECUCIÓN",44133,720,537]
[191,"CUNDINAMARCA","UNIVERSIDAD TECNOLOGICA DE SANTANDER",null,null,2020000100004,"Fortalecimiento y adecuación de equipos e infraestructura del Laboratorio de física del Departamento de Ciencias Básicas, para el mejoramiento de las capacidades institucionales y la investigación en las Unidades Tecnológicas de Santander -  Bucaramanga","CTEL",1016752702,980000000,36752702,43950,"92 DE 2020","CONTRATADO EN EJECUCIÓN",44133,720,537]
[192,"CUNDINAMARCA","SECRETARIA DE EDUCACIÓN",null,null,2020000050037,"Dotación del mobiliario escolar para las instituciones educativas de los municipios no certificados del Departamento de Cundinamarca","EDUCACIÓN",10093038848,10093038848,0,44195,"110 DE 2020","CONTRATADO EN EJECUCIÓN",44377,475,293]
[193,"CUNDINAMARCA","UNIVERSIDAD DEL NORTE",null,null,2020000100287,"Formación de Capital Humano de Alto Nivel Universidad del Norte 2do Corte Nacional","CTEL",6920233499,6750000000,170233499,44330,"004 DE 2021","CONTRATADO EN EJECUCIÓN",44514,340,156]
[194,"CUNDINAMARCA","UNIVERSIDAD DEL VALLE",null,null,2020000100345,"Formación de capital humano de alto Nivel segundo Corte Universidad del Valle Nacional","CTEL",5913070114,5335769261,577300853,44348,"05 DE 2021","CONTRATADO EN EJECUCIÓN",44531,322,139]
[195,"CUNDINAMARCA","UNIVERSIDAD NACIONAL DE COLOMBIA",null,null,2021000100003,"Formación de Capital Humano de Alto Nivel Universidad  Nacional de Colombia Corte II Nacionl","CTEL",18418143500,17635937500,782206000,44330,"04 DE 2021","CONTRATADO EN EJECUCIÓN",44514,340,156]
[196,"CUNDINAMARCA","UNIVERSIDAD DE LA SABANA",null,null,2021000100004,"Formación de Capital Humano de Alto Nivel Universidad de La Sabana Core 2 Nacional","CTEL",1519950000,1309600000,210350000,44348,"05 DE 2021","CONTRATADO SIN ACTA DE INICIO",44531,322,139]
[197,"CUNDINAMARCA","UNIVERSIDAD ANTONIO NARIÑO",null,null,2021000100014,"Formación de Capital Humano de Alto Nivel Universidad Antonio Nariño Core 2 Nacional","CTEL",4526652200,4250000000,276652200,44348,"06 DE 2021","CONTRATADO SIN ACTA DE INICIO",44531,322,139]
[199,"CUNDINAMARCA","UNIVERSIDAD EAN",null,null,2021000100025,"Formación DE CAPITAL HUMANO DE ALTO NIVEL UNIVERSIDAD EAN NACIONAL COHORTE II Nacional","CTEL",2044506416,1750000000,294506416,44368,"06 DE 2021","EN PROCESO DE CONTRATACIÓN",44551,302,119]
[200,"CUNDINAMARCA","UNIVERSIDAD MILITAR NUEVA GRANADA",null,null,2021000100026,"Formación de Capital Humano de Alto Nivel Universidad Militar Nueva Granada Segundo Corte Nacional","CTEL",751632481,650602304,101030177,44348,"05 DE 2021","EN PROCESO DE CONTRATACIÓN",44531,322,139]
[201,"CUNDINAMARCA","PONIFICA UNIVERSIDAD JAVERIANA",null,null,2021000100027,"Formación de Capital Humano de Alto Nivel Pontificia Universidad Javeriana Sede Bogotá Corte II Nacional","CTEL",8577491761,7246312500,1331179261,44348,"05 DE 2021","CONTRATADO SIN ACTA DE INICIO",44531,322,139]
[202,"CUNDINAMARCA","UNIVERSIDAD DE CALDAS",null,null,2021000100028,"Formación de capital humano de alto nivel Corte 2 Universidad de Caldas - Nacional","CTEL",63580000000,6000000000,57580000000,44348,"05 DE 2021","CONTRATADO EN EJECUCIÓN",44531,322,139]
[203,"CUNDINAMARCA","SECRETARIA DE EDUCACIÓN",null,null,2021004250258,"Fortalecimiento a la Estrategia de Alimentación Escolar para el año 2021 en los municipios del Departamento de Cundinamarca","EDUCACIÓN",16289941201,16289941201,0,44432,"248 DE 2021","CONTRATADO EN EJECUCIÓN",44616,238,54]
[204,"CUNDINAMARCA","SECRETARIA DE HABITAT Y VIVIENDA",null,null,2018000050050,"Mejoramiento vivienda rural mediante construcción de cocinas habitaciones y pisos en los municipios de Cundinamarca","AGRICULTURA ",5616585397,5616585397,0,44525,"03 DE 2021",{"$f":"'[1]Base 1'!W205","v":"SIN CONTRATAR"},44706,145,-36]
[205,"CUNDINAMARCA","SECRETARIA DE COMPETITIVIDAD",null,null,2020000050035,"Fortalecimiento de los sistemas productivos a través de la reactivación del sector agrícola en el Departamento de Cundinamarca","AGRICULTURA ",8993872200.5599995,8993872200.5599995,0,44529,"454 DE 2021",{"$f":"'[1]Base 1'!W206","v":"SIN CONTRATAR"},44710,141,-40]
[]
[null,null,null,null,null,null,null,null,{"$f":"SUM(I77:I121)","v":270286862623.85001},{"$f":"SUM(J77:J121)","v":192491671671.57001},88264152930.279999]

{"sheet":"Base 1","index":1,"n_rows":218,"n_cols":14,"rows_kept":218,"cut":false,"hidden":false,"merged":[[6,0,6,13],[0,0,5,13]]}
["GOBERNACIÓN DE CUNDINAMARCA"]
[]
[]
[]
[]
[]
[" SISTEMAS GENERAL DEL REGALÍAS-BASE DE PROYECTOS APROBADOS"]
["N°","EJECUTOR (Dpto / Entidad)","EJECUTOR INTERNO","BPIN ","PROYECTO","SECTOR","VALOR PROYECTO","VALOR SGR","OTRAS FUENTES","FECHA DE APROBACIÓN OCAD","ACUERDO DE APROBACIÓN","ESTADO","\tAVANCE FÍSICO","\tAVANCE FINANCIERO"]
[1,"CUNDINAMARCA","SECRETARIA DE AMBIENTE",2012000050005,"ESTUDIOS Y DISEÑOS DE DETALLE EMBALSE CALANDAIMA MUNICIPIO DE EL COLEGIO DEPARTAMENTO DE CUNDINAMARCA","AMBIENTE Y DESARROLLO SOSTENIBLE",4000000000,1000000000,{"$f":"G9-H9","v":3000000000},41271,"004 DE 2012","CERRADO",1,1]
[2,"CUNDINAMARCA","ICCU - GESPROY GB",2012000050006,"CONSTRUCCIÓN CUBIERTA COLISEO DEL CENTRO AGROTECNOLOGICO DE EXPOSICIONES Y COMERCIALIZACION DE LA REGION DEL SUMAPAZ EN EL MUNICIPIO DE FUSAGASUGA - CUNDINAMARCA","AGRICULTURA ",6352617736,3581530801,2771086935,41271,"004 DE 2012","CERRADO",1,0.99539999999999995]
[3,"CUNDINAMARCA","SECRETARIA DE AGRICULTURA",2012000050007,"FORTALECIMIENTO DE LAS CADENAS HORTIFRUTICOLA Y AROMATICAS EN CUNDINAMARCA","AGRICULTURA ",2490400000,1300000000,1190400000,41271,"004 DE 2012","CERRADO",1,1]
[4,"CUNDINAMARCA","SECRETARIA DE AGRICULTURA",2012000050009,"FORTALECIMIENTO DE LA PRODUCTIVIDAD Y COMPETITIVIDAD DEL SECTOR CACAOTERO EN EL DEPARTAMENTO DE CUNDINAMARCA ","AGRICULTURA ",2334689275,1200000000,1134689275,41271,"004 DE 2012","CERRADO",1,0.96340000000000003]
[5,"CUNDINAMARCA","SECRETARIA GENERAL",2012000050010,"ESTUDIOS Y DISEÑOS PARA LA RECUPERACIÓN Y ADECUACION DEL PATRIMONIO HISTORICO CULTURAL PALACIO DE SAN FRANCISCO EN BOGOTA D.C. DEPARTAMENTO DE CUNDINAMARCA ","CULTURA ",1000000000,1000000000,0,41271,"004 DE 2012","TERMINADO",1,0.94640000000000002]
[6,"CUNDINAMARCA","SECRETARIA DE EDUCACIÓN",2012000050011,"FORTALECIMIENTO DE LA PERMANENCIA DE LOS ESTUDIANTES EN LOS MUNICIPIOS DEL DEPARTAMENTO DE CUNDINAMARCA DEPARTAMENTO DE CUNDINAMARCA\n","EDUCACIÓN",6000000000,6000000000,0,41187,"003 DE 2012","CERRADO",1,0.58189999999999997]
[7,"CUNDINAMARCA","SECRETARIA DE DESARROLLO E INCLUSIÓN SOCIAL",2012000050012,"IMPLEMENTACIÓN DEL PROGRAMA DE COMPLEMENTACION ALIMENTARIA Y NUTRICIONAL EN MENORES DE 5 AÑOS, MUJERES GESTANTES Y LACTANTES EN TODO EL DEPARTAMENTO DE CUNDINAMARCA","SALUD Y PROTECCIÓN SOCIAL",4531022720,3000000000,1531022720,41187,"003 DE 2012","CERRADO",0.99039999999999995,0.99719999999999998]
[8,"CUNDINAMARCA","SECRETARIA DE TRANSPORTE Y MOVILIDAD",2012000050013,"ACTUALIZACION Y FORMULACION DE LOS ESTUDIOS Y DISEÑOS FASE II Y III DE LA EXTENCION NORTE - QUITO - SUR DEL SISTEMA TRANSMILENIO AL MUNICIPIO DE SOACHA DEPARTAMENTO DE CUNDINAMARCA ","SALUD Y PROTECCIÓN SOCIAL",4026917304,3130787355,896129949,41187,"003 DE 2012","CERRADO",0.96220000000000006,0.97030000000000005]
[9,"CUNDINAMARCA","SECRETARIA DE AGRICULTURA",2012000050014,"MEJORAMIENTO DE LA COMPETITIVIDAD Y SOSTENIBILIDAD DEL SUB SECTOR PANELERO DE CUNDINAMARCA","AGRICULTURA ",1559272190,1300000000,259272190,41271,"004 DE 2012","CERRADO",1,1]
[10,"CUNDINAMARCA","SECRETARIA DE AGRICULTURA",2012000050023,"FORTALECIMIENTO DE LA ACTIVIDAD CAFETERA COMO ALTERNATIVA SOSTENIBLE DE DESARROLLO REGIONAL EN EL DEPARTAMENTO DE CUNDINAMARCA ","AGRICULTURA ",77168795512,1300000000,{"$f":"G18-H18","v":75868795512},"G","004 DE 2012","CERRADO",1,0.99990000000000001]
[11,"CUNDINAMARCA","SECRETARIA DE AGRICULTURA",2012000050024,"IMPLEMENTACION DE UN MODELO DE PRODUCCION EN SISTEMAS DE DOBLE PROPOSITO EN PEQUEÑOS PRODUCTORES DEL DEPARTAMENTO DE CUNDINAMARCA","AGRICULTURA ",3371686373,1823985000,1547701373,41271,"004 DE 2012","CERRADO",1,0.99439999999999995]
[12,"CUNDINAMARCA","SECRETARIA DE GOBIERNO",2012000050025,"ESTUDIOS Y DISEÑOS PARA LA CONSTRUCCIÓN DE UN CENTRO ESPECIALIZADO AL SERVICIO DE ADOLESCENTES INFRACTORES DE LA LEY EN EL DEPARTAMENTO DE CUNDINAMARCA","DEFENSA",200000000,200000000,0,41271,"004 DE 2012","CERRADO",1,1]
[13,"ENTIDAD APORTANTE RECURSOS","MUNICIPIO DE COGUA",2012000050026,"MEJORAMIENTO DE LA VA COGUA-SAN CAYETANO (SECTOR LAS MARGARITAS K8+300 SECTOR LAS MARGARITAS HASTA K10+300) CON K0+00 EN COGUA DEPARTAMENTO DE CUNDINAMARCA","TRANSPORTE",2000000000,2000000000,0,41271,"005 DE 2012","CERRADO",1,1]
[14,"ENTIDAD APORTANTE RECURSOS","ICCU - GESPROY GB",2012000050027,"MEJORAMIENTO DE LA VA UBALA-PALOMAS-MAMBITA (K0+00 UBICADO EN EL SITIO PROFESIONALES MUNICIPIO DE UBALA), DEPARTAMENTO DE CUNDINAMARCA ","TRANSPORTE",3359160462,3000000000,359160462,41271,"04 DE 2012","CERRADO",1,0.98660000000000003]
[15,"ENTIDAD APORTANTE RECURSOS","ICCU - GESPROY GB",2012000050028,"MEJORAMIENTO Y MANTENIMIENTO DE LA RED VIAL SECUNDARIA Y TERCIARIA MEDIANTE LA DOTACIÓN DE MAQUINARIA A LOS MUNICIPIOS DEL DEPARTAMENTO DE CUNDINAMARCA ","TRANSPORTE",19769772343,8103535586,11666236757,41271,"004 DE 2012","CERRADO",1,0.93179999999999996]
[16,"ENTIDAD APORTANTE RECURSOS","SECRETARIA DE MINAS, ENERGIA Y GAS",2012000050029,"IMPLEMENTACIÓN Y MASIFICACION DEL SERVICIO DE GAS COMBUSTIBLE POR REDES PARA MUNICIPIOS DE ANOLAIMA, CACHIPAY, CHOACHI, FOMEQUE, UBAQUE Y VIOTA CUNDINAMARCA","MINAS Y ENERGÍA",15253036000,2199142000,13053894000,41271,"004 DE 2012","CERRADO",1,0.94499999999999995]
[17,"CUNDINAMARCA","SECRETARIA DE COMPETITIVIDAD",2012000050030,"DESARROLLO CREACION Y FORTALECIMIENTO DE NUEVE (9) CENTROS DE EMPREDIMIENTO Y FORTALECIMIENTO EMPRESARIAL EN EL DEPARTAMENTO DE CUNDINAMARCA ","COMERCIO, INDUSTRIA Y TURISMO ",1752501814,1708104361,44397453,41271,"004 DE 2012","PARA CIERRE",1,0.95069999999999999]
[18,"ENTIDAD APORTANTE RECURSOS","MUNICIPIO DE MOSQUERA",2012000050039,"MEJORAMIENTO DE LA VIA CALLE 23 ENTRE CRA 3 Y 9B EN MOSQUERA CLL 7 ENTRE CRA 13 Y 24 EN FUNZA DEPARTAMENTO DE CUNDINAMARCA","TRANSPORTE",2816415712,1000000000,1816415712,41271,"004 DE 2012","CERRADO",1,1]
[19,"ENTIDAD APORTANTE DE RECURSOS","MUNICIPIO DE SOACHA",2012000050044,"REHABILITACIÓN Y MEJORAMIENTO DE LA VIA PARALELA ( TRANSVERSAL 8 Y CARRERA 7) ENTRE CARRERA 13 CON AUTOPISTA SUR BARRIO LA DESPENSA, HASTA LA CALLE 27 DEL CENTRO DEL MUNICIPIO DE SOACHA CUNDINAMARCA (TRAMO N 1 - K0+000 HASTA K0+262)","TRANSPORTE",1000000000,1000000000,0,41271,"004 DE 2012","CERRADO",1,1]
[20,"CUNDINAMARCA","ICCU - GESPROY GB",2012000050051,"MEJORAMIENTO DEL PUENTE GUATIMBOL SOBRE EL RIO SUMAPAZ EN LA VA VENECIA - ICONONZO DEPARTAMENTO DE CUNDINAMARCA","TRANSPORTE",827195639,620304130,206891509,41271,"004 DE 2012","CERRADO",1,0.98089999999999999]
[21,"CUNDINAMARCA","ICCU - GESPROY GB",2012000050052,"FORMULACIÓN Y ACTUALIZACION DE LOS ESTUDIOS Y DISEÑOS DE LA VIA UBAQUE - LOS CEREZOS - CHIPAQUE DEPARTAMENTO DE CUNDINAMARCA","TRANSPORTE",257457261,250000000,7457261,41271,"004 DE 2012","CERRADO",1,0.99960000000000004]
[22,"CUNDINAMARCA","ICCU - GESPROY GB",2012000050054,"FORMULACIÓN Y ACTUALIZACION DE LOS ESTUDIOS Y DISEÑOS PARA EL MEJORAMIENTO DE LA TRONCAL DEL CARBON EN LONGITUD DE 43 KMS (K0+00 LOCALIZADO EN TIERRA NEGRA) DEPARTAMENTO DE CUNDINAMARCA","TRANSPORTE",777429075,755000000,22429075,41271,"004 DE 2012","CERRADO",1,0.99839999999999995]
[23,"CUNDINAMARCA","SECRETARIA DE CIENCIA, TECNOLOGIA E INNOVACIÓN",2012000100010,"FORTALECIMIENTO DE LAS REGIONES COLOMBIANAS EN SUS CAPACIDADES DE CTI - CUNDINAMARCA","CTEL",8721806744,8721806744,0,41263,"001 DE 2012","CONTRATADO EN EJECUCIÓN",0.83260000000000001,0.97289999999999999]
[24,"CUNDINAMARCA","SECRETARIA DE CIENCIA, TECNOLOGIA E INNOVACIÓN",2012000100056,"INVESTIGACIÓN ESTRATEGIAS DE VALORACION Y APROPIACION DE LOS RECURSOS NATURALES MECANISMOS DE ADAPTACION A CAMBIO CLIMATICO. REGION DEL BAJO MAGDALENA","CTEL",7184175232,4100000000,3084175232,41263,"001 DE 2012","CERRADO",1,0.99970000000000003]
[25,"CUNDINAMARCA","SECRETARIA DE CIENCIA, TECNOLOGIA E INNOVACIÓN",2012000100063,"FORTALECIMIENTO DE LAS CAPACIDADES DE INNOVACIÓN SOCIAL POR MEDIO DEL PARQUE CIENTIFICO EN BOGOTA - CUNDINAMARCA","CTEL",16942704000,8250704000,8692000000,41263,"001 DE 2012","CERRADO",1,0.94730000000000003]
[26,"CAR","SECRETARIA DE CIENCIA, TECNOLOGIA E INNOVACIÓN",2012000100118,"FORMACION EN CIENCIA, TECNOLOGIA E INNOVACION EN LA COMUNIDAD EDUCATIVA DE LAS INSTITUCIONES EDUCATIVAS OFICIALES DE LOS MUNICIPIOS NO CERTIFICADOS DEL DEPARTAMENTO","CTEL",22788739251,17739839251,5048900000,41295,"001 DE 2012","CERRADO",0.98180000000000001,0.94810000000000005]
[27,"CUNDINAMARCA","SECRETARIA DE CIENCIA, TECNOLOGIA E INNOVACIÓN",2012000100144,"INVESTIGACIÓN INVESTIGACION, DESARROLLO Y TRANSFERENCIA TECNOLOGICA EN EL SECTOR AGROPECUARIO Y AGROINDUSTRIAL CON EL FIN DE MEJORAR L TODO EL DEPARTAMENTO, CUNDINAMARCA, CENTRO ORIENTE","CTEL",50514736439,34707000000,15807736439,41263,"001 DE 2012","CONTRATADO EN EJECUCIÓN",0.82650000000000001,0.97289999999999999]
[28,"CUNDINAMARCA","SECRETARIA DE CIENCIA, TECNOLOGIA E INNOVACIÓN",2012000100156,"CONSTRUCCIÓN DEL ECOSISTEMA DE INNOVACION TIC PARA EL DEPTO DE CUNDINAMARCA","CTEL",7088000000,5000000000,2088000000,41263,"001 DE 2012","CERRADO",0.98980000000000001,0.93179999999999996]
[29,"ENTIDAD APORTANTE RECURSOS","ICCU - GESPROY GB",2013000050003,"ESTUDIOS Y DISEÑOS PARA EL MEJORAMIENTO DE LA VA VILLAPINZON-TURMEQUE EN LONGITUD DE 11 KMS (K0+00 LOCALIZADO EN VILLAPINZON DEPARTAMENTO DE CUNDINAMARCA","TRANSPORTE",245000000,245000000,0,41400,"006 DE 2013","CERRADO",1,0.73470000000000002]
[30,"ENTIDAD APORTANTE RECURSOS","ICCU - GESPROY GB",2013000050004,"ESTUDIOS Y DISEÑOS PARA EL MEJORAMIENTO DE LA VA YACOPI - LA VICTORIA CON K0+00 EN YACOPI DEPARTAMENTO DE CUNDINAMARCA","TRANSPORTE",250000000,250000000,0,41400,"006 DE 2013","CERRADO",1,0.74909999999999999]
[31,"CUNDINAMARCA","SECRETARIA DE DESARROLLO E INCLUSIÓN SOCIAL",2013000050005,"IMPLEMENTACIÓN DEL PROGRAMA DE COMPLEMENTACION ALIMENTARIA Y NUTRICIONAL PARA MENORES DE CINCO AÑOS Y MUJERES GESTANTES Y LACTANTES EN TODO EL DEPARTAMENTO DE CUNDINAMARCA","EDUCACIÓN",6189832118,6000000000,189832118,41400,"006 DE 2013","CERRADO",0.99819999999999998,0.9899]
[32,"CUNDINAMARCA","SECRETARIA DE EDUCACIÓN",2013000050011,"FORTALECIMIENTO DE LA PERMANENCIA DE LOS ESTUDIANTES EN LOS MUNICIPIOS DEL DEPARTAMENTO DE CUNDINAMARCA 2013-2014 CUNDINAMARCA, CENTRO ORIENTE","EDUCACIÓN",13360387595,13360387595,0,41400,"006 DE 2013","CERRADO",0.998,0.9234]
[33,"CUNDINAMARCA","SECRETARIA DE MINAS, ENERGIA Y GAS",2013000050026,"CONSTRUCCIÓN REDES ELECTRICAS EN LA ZONA RURAL DE LOS MUNICIPIOS DE PARATEBUENO Y GUTIERREZ EN EL DEPARTAMENTO DE CUNDINAMARCA","MINAS Y ENERGÍA",1068319227,1045119227,23200000,41502,"007 DE 2013","TERMINADO",0.44929999999999998,0.97909999999999997]
[34,"U CATOLICA","SECRETARIA DE AGRICULTURA",2013000050027,"FORTALECIMIENTO DE LA ACTIVIDAD CAFETERA COMO ESTRATEGIA DE MEJORAMIENTO DE LA PRODUCTIVIDAD Y LA COMPETITIVIDAD EN EL DEPARTAMENTO DE CUNDINAMARCA, CENTRO ORIENTE","AGRICULTURA ",18756930869,3000000000,15756930869,41502,"025 DE 2014","CERRADO",1,0.99490000000000001]
[35,"UNIVERSIDAD MILITAR NUEVA GRANADA","SECRETARIA DE AGRICULTURA",2013000050028,"FORTALECIMIENTO DEL SUBSECTOR PANELERO EN EL DEPARTAMENTO DE CUNDINAMARCA","AGRICULTURA ",3427279826,2599564478,827715348,41502,"007 DE 2013","CERRADO",1,0.99960000000000004]
[36,"CUNDINAMARCA","ICCU - GESPROY GB",2013000050043,"MEJORAMIENTO Y REHABILITACION DE LA VIA GUACHETA - CAPELLANIA (SECTOR K0+780 AL K2+240) K0+000 LOCALIZADO EN EL RIO UBATE GUACHET, CUNDINAMARCA, CENTRO ORIENTE","TRANSPORTE",1019047619,1000000000,19047619,41639,"015 DE 2013","CERRADO",1,0.98060000000000003]
[37,"ENTIDAD APORTANTE RECURSOS","BANCO AGRARIO DE COLOMBIA",2013000050044,"CONSTRUCCIÓN CUNDINAMARCA VISR 2013 TODO EL DEPARTAMENTO, CUNDINAMARCA, CENTRO ORIENTE","AGRICULTURA ",60041780218,15888838218,44152942000,41569,"005 DE 2015","CONTRATADO EN EJECUCIÓN",0.81020000000000003,0.85289999999999999]
[38,"ENTIDAD APORTANTE DE RECURSOS","ICCU - GESPROY GB",2013000050045,"MEJORAMIENTO Y PAVIMENTACIÓN DE LA VIA FOSCA - GUTIERREZ, DESDE EL KM 2+000 AL KM 3+000 (K0+000 LOCALIZADO EN FOSCA), DEPARTAMENTO DE CUNDINAMARCA","TRANSPORTE",2534999997,2000000000,534999997,41579,"012 DE 2013","CERRADO",1,0.97450000000000003]
[39,"CUNDINAMARCA","SECRETARIA DE MINAS, ENERGIA Y GAS",2013000050046,"IMPLEMENTACIÓN Y MASIFICACION DEL SERVICIO DE GAS COMBUSTIBLE POR REDES PARA LOS MUNICIPIOS DE CAPARRAPI, EL PEÑON, LA PALMA, PAIME, TOPAIPI Y VILLAGOMEZ CUNDINAMARCA","MINAS Y ENERGÍA",6609136508,2118963154,4490173354,41579,"012 DE 2013","CERRADO",1,1]
[40,"ENTIDAD APORTANTE RECURSOS","ICCU - GESPROY GB",2013000050047,"MEJORAMIENTO Y PAVIMENTACIÓN VIA GUANACAS - EL PEÑON DESDE EL K0+000 AL K2+000 (K0+000 UBICADO EN GUANACAS) MUNICIPIO EL PEÑON, CUNDINAMARCA","TRANSPORTE",3000000000,3000000000,0,41808,"022 DE 2014","CERRADO",1,0.99639999999999995]
[41,"ENTIDAD APORTANTE RECURSOS","ICCU - GESPROY GB",2013000050049,"MEJORAMIENTO Y MANTENIMIENTO DE LA RE VIAL MEDIANTE LA ADQUISICION DE MAQUINARIA AÑO 2013-2014 PARA LOS MUNICIPIOS DEL DEPARTAMENTO DE CUNDINAMARCA","TRANSPORTE",14330854376,12431431552,1899422824,41609,"012 DE 2013","CERRADO",1,0.99960000000000004]
[42,"ENTIDAD APORTANTE RECURSOS","ICCU - GESPROY GB",2013000050050,"MEJORAMIENTO Y PAVIMENTACIÓN DE LA VIA SANAME - PUENTE QUETAME DESDE K0+000 AL K1+500 (K0+000 LOCALIZADO EN PUENTE QUEMADO) MUNICIPIO FOSCA, CUNDINAMARCA","TRANSPORTE",6000000000,6000000000,0,41639,"015 DE 2013","CERRADO",1,0.49209999999999998]
[43,"CUNDINAMARCA","SECRETARIA DE AMBIENTE",2013000050051,"FORTALECIMIENTO DE LA GESTION INTEGRAL DE RESIDUOS SOLIDOS, A TRAVES DE SISTEMAS RECIONALES EN LAS PROVINCIAS DE UBATE Y RIONEGRO EN EL DEPARTAMENTO DE CUNDINAMARCA","VIVIENDA, CIUDAD Y TERRITORIO ",3000000000,3000000000,0,41579,"012 DE 2013","CERRADO",0.48280000000000001,0.47399999999999998]
[44,"CUNDINAMARCA","SECRETARIA DE AGRICULTURA",2013000050054,"MEJORAMIENTO DE LA PRODUCTIVIDAD Y COMPETITIVIDAD DEL SECTOR CAUCHERO EN EL DEPARTAMENTO DE CUNDINAMARCA","AGRICULTURA ",3765860000,2459000000,1306860000,41639,"015 DE 2013","CERRADO",1,1]
[45,"CUNDINAMARCA","SECRETARIA DE GOBIERNO",2013000050056,"PREVENCIN DE INCENDIOS FORESTALES CON LA ADQUISICION DE VEHICULOS 4X4 ACCION RAPIDA TIPO FORESTAL PARA EL DEPARTAMENTO DE CUNDINAMARCA","AMBIENTE Y DESARROLLO SOSTENIBLE",4000000000,4000000000,0,41579,"012 DE 2013","CERRADO",1,0.99990000000000001]
[46,"CUNDINAMARCA","SECRETARIA DE AGRICULTURA",2013000050081,"MEJORAMIENTO DE LA PRODUCTIVIDAD, CALIDAD, POSCOSECHA Y MERCADEO DE LAS CADENAS HORTIFRUTCOLA Y AROMATICAS DE CUNDINAMARCA","AGRICULTURA ",4900400000,2600000000,2300400000,41808,"022 DE 2014","CERRADO",1,1]
[47,"CUNDINAMARCA","SECRETARIA DE AGRICULTURA",2013000050083,"IMPLEMENTACIÓN Y PUESTA EN MARCHA DE UNA PLANTA HOMOGENIZADORA DE MIELES PARA LA PRODUCCION DE PANELA EN CAPARRAPI CUNDINAMARCA, CENTRO ORIENTE","AGRICULTURA ",3322683076.3200002,3126242524.3200002,196440552,41808,"022 DE 2014","CERRADO",1,1]
[48,"ENTIDAD APORTANTE RECURSOS","ICCU - GESPROY GB",2013000050094,"MEJORAMIENTO Y REHABILITACION DE LA VIA TABIO - CHIA DEL K1+100 AL K3+200","TRANSPORTE",2000000000,2000000000,0,41639,"015 DE 2013","DESAPROBADO",0,0]
[49,"CUNDINAMARCA","SECRETARIA DE CIENCIA, TECNOLOGIA E INNOVACIÓN",2013000100129,"INCREMENTO EN LAS ESTRATEGIAS SUSTENTABLES EN EL USO DEL RECURSO DE ENERGA ELECTRICA PARA LA POBLACION VULNERABLE EN EL DPTO. DE CUNDINAMARCA","CTEL",5170002961,4097083299,1072919662,41789,"025 DE 2014","CONTRATADO EN EJECUCIÓN",0.76449999999999996,0.6976]
[50,"CUNDINAMARCA","SECRETARIA DE CIENCIA, TECNOLOGIA E INNOVACIÓN",2013000100131,"INVESTIGACIÓN ESTIMAR VULNERABILIDAD AL CAMBIO CLIMATICO DE SISTEMAS CAFETEROS Y DISEÑO DE ARREGLOS AGROFORESTALES CON BIOTECNOLOGIA PACHO, TIBACUY, SAN JUAN DE RIO SECO, CUNDINAMARCA","AGRICULTURA ",3287867000,2622860000,665007000,41474,"005 DE 2013","CERRADO",0.98450000000000004,0.89039999999999997]
[51,"CUNDINAMARCA","SECRETARIA DE CIENCIA, TECNOLOGIA E INNOVACIÓN",2013000100149,"INNOVACIÓN EN EL MODELO DE GESTION DE MEDICAMENTO EN EL DEPARTAMENTO DE CUNDINAMARCA FASE II","CTEL",3079583047,2490946916,588636131,41474,"005 DE 2013","CERRADO",1,1]
[52,"CUNDINAMARCA","SECRETARIA DE CIENCIA, TECNOLOGIA E INNOVACIÓN",2013000100176,"INNOVACIÓN SISTEMA DE PRODUCCION DE FRUTAS/HORTALIZAS FRESCAS/PROCESADAS TIPO EXPORTACION CON TECNOLOGIA BIOLOGICA /INTEGRAL INOCUA SUBACHOQUE, CUNDINAMARCA, CENTRO ORIENTE","CTEL",9285096292,6556945302,2728150990,41474,"005 DE 2013","CONTRATADO EN EJECUCIÓN",0.91379999999999995,0.67279999999999995]
[53,"CUNDINAMARCA","SECRETARIA DE CIENCIA, TECNOLOGIA E INNOVACIÓN",2013000100180,"DISEÑO SMART TON: TALENTO E INNOVACION APLICADA AL TERRITORIO","CTEL",3089954000,2497510000,592444000,41509,"008 DE 2013","CERRADO",1,0.86539999999999995]
[54,"CUNDINAMARCA","SECRETARIA DE CIENCIA, TECNOLOGIA E INNOVACIÓN",2013000100215,"FORTALECIMIENTO DE LA GESTIN COMUNITARIA DEL RECURSO HIDRICO, POR MEDIO DE LA DISMINUCION DEL CONSUMO DE ESTE, UTILIZANDO TP Y TICS , CUNDINAMARCA, CENTRO ORIENTE","CTEL",1811292700,1608461700,202831000,41565,"011 DE 2013","CERRADO",1,0.90739999999999998]
[55,"CUNDINAMARCA","SECRETARIA DE CIENCIA, TECNOLOGIA E INNOVACIÓN",2013000100217,"FORTALECIMIENTO DE LA COMPETITIVIDAD DEL SECTOR FLORICULTOR COLOMBIANO MEDIANTE EL USO DE CIENCIA, TECNOLOGA E INNOVACION APLICADAS EN EL DEPARTAMENTO DE CUNDINAMARCA","CTEL",7204002875,4618409839,2585593036,41789,"025 DE 2014","CERRADO",1,0.9859]
[56,"CUNDINAMARCA","SECRETARIA DE CIENCIA, TECNOLOGIA E INNOVACIÓN",2013000100247,"INVESTIGACIÓN E INNOVACIÓN TECNOLÓGICA Y APROPIACIÓN SOCIAL DE CONOCIMIENTO CIENTÍFICO DE ORQUÍDEAS NATIVAS DE CUNDINAMARCA","CTEL",3400306874,2551931927,848374947,41856,"027 DE 2014","CERRADO",0.96699999999999997,0.9526]
[57,"CUNDINAMARCA","SECRETARIA DE CIENCIA, TECNOLOGIA E INNOVACIÓN",2013000100248,"INNOVACIÓN , CIENCIA Y TECNOLOGIA PARA PRODUCTORES DE LECHE EN LA PROVINCIA DE UBATE, CUNDINAMARCA.","CTEL",11619725567,9380319099,2239406468,41565,"011 DE 2013","CONTRATADO EN EJECUCIÓN",1,0.81969999999999998]
[58,"ENTIDAD APORTANTE RECURSOS","MUNICIPIO DE MADRID",2013000050048,"MEJORAMIENTO Y PAVIMENTACIÓN DE LA VIA AJOVER-SANTA CRUZ EN 2 KILOMETROS, MUNICIPIO DE MADRID, CUNDINAMARCA","TRANSPORTE",8946944399,8700000000,246944399,41689,"017 DE 2014","CERRADO",1,1]
[59,"ENTIDAD APORTANTE RECURSOS","CORMAGDALENA",20132401060001,"MANTENIMIENTO Y RECUPERACIÓN DE LA NAVEGABILIDAD DEL RIO MAGDALENA","TRANSPORTE",3527443454052,117000000000,3410443454052,41514,"001 DE 2013","CERRADO",4.4999999999999998E-2,3.8300000000000001E-2]
[60,"ENTIDAD APORTANTE RECURSOS\n","ICCU - GESPROY GB",2014000050033,"MEJORAMIENTO Y REHABILITACIÓN DE LA VIA TABIO - CHIA DEL K0+000 AL K1+800","TRANSPORTE",2570000000,2000000000,570000000,41893,"026 DE 2014","CERRADO",1,1]
[61,"ENTIDAD APORTANTE RECURSOS","ICCU - GESPROY GB",2014257720001,"MEJORAMIENTO Y PAVIMENTACIÓN DE LA VIA SUESCA LA PLAYA - SESQUILE DEPARTAMENTO DE CUNDINAMARCA","TRANSPORTE",4191000000,1391000000,2800000000,41743,"001 DE 2014","CERRADO",1,0.98670000000000002]
[62,"CUNDINAMARCA","SECRETARIA DE GOBIERNO",2014000050010,"CONSTRUCCIÓN DE UN CENTRO DE ATENCION ESPECIALIZADA AL SERVICIO DE ADOLESCENTES INFRACTORES DE LA LEY PENAL EN EL DEPARTAMENTO DE CUNDINAMARCA","JUSTICIA Y DEL DERECHO ",9260000000,8500000000,760000000,41808,"022 DE 2014","PARA CIERRE",1,1]
[63,"ENTIDAD APORTANTE RECURSOS","MUNICIPIO DE VILLETA",2014000050048,"MEJORAMIENTO Y PAVIMENTACIÓN DE LA VIA VILLETA-PANTANILLO-CORREDOR CHUGUACAL -CAMBAO DEL K0+360 AL K1+060 VILLETA, CUNDINAMARCA, CENTRO ORIENTE","TRANSPORTE",1701612797,1489209370.23,212403426.76999998,42089,"033 DE 2015","CERRADO",1,1]
[64,"ENTIDAD APORTANTE RECURSOS","ICCU - GESPROY GB",2015000050010,"MEJORAMIENTO DE LA VA SAN CAYETANO - COGUA SECTOR K6+670 - K8+366 (K0+000 LOCALIZADO EN EL CASCO URBANO DEL MUNICIPIO DE SAN CAYETANO) CUNDINAMARCA","TRANSPORTE",3796247522,3000000000,796247522,42158,"036 DE 2015","CERRADO",1,0.98760000000000003]
[65,"ENTIDAD APORTANTE RECURSOS","ICCU - GESPROY GB",2015000050013,"MEJORAMIENTO DE LA VA UBAQUE - LOS CEREZOS - CHIPAQUE SECTORES DEL K0+000 AL K2+040 Y DEL K16+000 AL K18+260 (K0+000 LOCALIZADO EN UBAQUE) DEPARTAMENTO DE CUNDINAMARCA","TRANSPORTE",8000000000,8000000000,{"$f":"G73-H73","v":0},42159,"036 de 2015","CERRADO",0.99709999999999999,0.98750000000000004]
[66,"CUNDINAMARCA","SECRETARIA DE HABITAT Y VIVIENDA",2015000050014,"CONSTRUCCIÓN DE VIVIENDAS NUEVAS RURALES VISR 2015 EN EL DEPARTAMENTO DE CUNDINAMARCA-SGR","AGRICULTURA ",7588896000,6840269782,748626218,42173,"036 de 2015","CERRADO",1,0.92759999999999998]
[67,"CUNDINAMARCA","SECRETARIA DE EDUCACIÓN",2015000050015,"FORTALECIMIENTO DE LA PERMANENCIA DE LOS ESTUDIANTES EN LOS MUNICIPIOS DEL DEPARTAMENTO DE CUNDINAMARCA, CENTRO ORIENTE - 2015","EDUCACIÓN",8373797030,8373797030,0,42159,"036 de 2015","CERRADO",0.97070000000000001,0.85189999999999999]
[68,"ENTIDAD APORTANTE RECURSOS","ICCU - GESPROY GB",2015000050025,"MEJORAMIENTO Y PAVIMENTACIÓN DE LA TRONCAL DEL CARBON SECTOR K0+000 AL K2+860 (K0+000 LOCALIZADO EN TIERRA NEGRA, MUNICIPIO DE TAUSA), DEPARTAMENTO DE CUNDINAMARCA","TRANSPORTE",7913699780,6000000000,1913699780,42159,"036 DE 2015","CERRADO",1,1]
[69,"CUNDINAMARCA","SECRETARIA DE EDUCACIÓN",2015000050026,"FORTALECIMIENTO A LA ESTRATEGIA DE ALIMENTACIÓN ESCOLAR PARA MUNICIPIOS NO CERTIFICADOS DEL DEPARTAMENTO DE CUNDINAMARCA, CENTRO ORIENTE","EDUCACIÓN",2100000000,2100000000,0,42159,"036 de 2015","CERRADO",1,0.85509999999999997]
[70,"CUNDINAMARCA","SECRETARIA DE AGRICULTURA",2015000050029,"IMPLEMENTACIÓN Y PUESTA EN MARCHA DE UNA PLANTA HOMOGENIZADORA DE MIELES PARA LA PRODUCCION DE PANELA EN EL MUNICIPIO DE QUIPILE, CUNDINAMARCA, CENTRO ORIENTE","AGRICULTURA ",3395531657,3139511657,256020000,42180,"037 de 25 2015","CERRADO",1,1]
[71,"CUNDINAMARCA","SECRETARIA DE AGRICULTURA",2015000050030,"FORTALECIMIENTO A LA CADENA PRODUCTIVA DEL CACAO EN EL DEPARTAMENTO DE CUNDINAMARCA","AGRICULTURA ",2253334400,1200000000,1053334400,42159,"036 de 2015","CERRADO",1,1]
[72,"CUNDINAMARCA","SECRETARIA DE GOBIERNO",2015000050031,"ADQUISICIÓN DE VEHICULOS PARA LOS CUERPOS OPERATIVOS (BOMBEROS) PARA LAS PROVINCIAS DEL DEPARTAMENTO DE CUNDINAMARCA","AMBIENTE Y DESARROLLO SOSTENIBLE",3670000000,3670000000,0,42159,"036 de 2015","CERRADO",1,0.98]
[73,"CUNDINAMARCA","SECRETARIA DE AGRICULTURA",2015000050034,"FORTALECIMIENTO DE LA PRODUCTIVIDAD Y COMPETITIVIDAD DEL SECTOR CAUCHERO EN EL DEPARTAMENTO DE CUNDINAMARCA","AGRICULTURA ",2158800000,1500000000,658800000,42159,"036 de 2015","CERRADO",1,1]
[74,"ENTIDAD APORTANTE RECURSOS","ICCU - GESPROY GB",2015000050041,"MEJORAMIENTO DE LA VA UBALA - PALOMAS - MAMBITA - MEDINA (K0+000 UBICADO EN EL SITIO PROFESIONALES MUNICIPIO DE UBALA, DEPARTAMENTO DE CUNDINAMARCA","TRANSPORTE",13663491451,12663491451,1000000000,42180,"037 DE 2015","CERRADO",1,1]
[75,"CUNDINAMARCA","SECRETARIA DE DESARROLLO E INCLUSIÓN SOCIAL",2015000050048,"IMPLEMENTACIÓN DEL PROGRAMA DE COMPLEMENTACION ALIMENTARIA Y NUTRICIONAL PARA MENORES DE 5 AÑOS, MADRES GESTANTES Y LACTANTES EN TODO EL DEPARTAMENTO DE CUNDINAMARCA 2015","SALUD Y PROTECCIÓN SOCIAL",2900000000,2900000000,0,42348,"044 de 2015","CERRADO",1,1]
[76,"CUNDINAMARCA","SECRETARIA DE EDUCACIÓN",2016000050005,"FORTALECIMIENTO DE LA PERMANENCIA DE LOS ESTUDIANTES EN LOS MUNICIPIOS DEL DEPARTAMENTO DE CUNDINAMARCA, CENTRO ORIENTE - 2016","EDUCACIÓN",14963757156,14963757156,0,42605,"054 DE 2016","CERRADO",0.96699999999999997,0.56169999999999998]
[77,"CUNDINAMARCA","SECRETARIA DE EDUCACIÓN",2016000050014,"FORTALECIMIENTO A LA ESTRATEGIA DE ALIMENTACION ESCOLAR PARA MUNICIPIOS NO CERTIFICADOS DEL DEPARTAMENTO DE CUNDINAMARCA, SGR 2016.","EDUCACIÓN",12339894658,12339894658,0,42625,"055 de 2016","CERRADO",0.76700000000000002,0.74729999999999996]
[78,"ENTIDAD APORTANTE RECURSOS","ICCU - GESPROY GB",2016000050023,"MANTENIMIENTO DE LA RED VIAL EN AFIRMADO A TRAVS DE LA ADQUISICION DE MAQUINARIA PESADA Y EQUIPO DE TRANSPORTE EN EL DEPARTAMENTO DE CUNDINAMARCA","TRANSPORTE",24179817530,24179817530,0,43066,"068 de 2017","CERRADO",0.9133,0.62809999999999999]
[79,"ENTIDAD APORTANTE RECURSOS","ICCU - GESPROY GB",2016000050025,"REHABILITACIÓN DE LA VIA BOQUERON - PANDI DEL DEPARTAMENTO DE CUNDINAMARCA","TRANSPORTE",4991550669,4991550669,0,42825,"061 DE 2017","CERRADO",1,0.98740000000000006]
[80,"ENTIDAD APORTANTE RECURSOS","ICCU - GESPROY GB",2016000050029,"REHABILITACIÓN DE LA VIA LA QUINTA - REPRESA DEL NEUSA, MUNICIPIO DE COGUA, DEPARTAMENTO DE CUNDINAMARCA","TRANSPORTE",6798676732,5625757063,1172919669,42846,"061 de 2017","CERRADO",1,0.99990000000000001]
[81,"ENTIDAD APORTANTE RECURSOS","ICCU - GESPROY GB",2016000050032,"REHABILITACIÓN DE LA VIA CLUB EL BOSQUE - TIBACUY - CUMACA DEL DEPARTAMENTO DE CUNDINAMARCA","TRANSPORTE",4022150134,3022150134,1000000000,42825,"061 DE 2017","CERRADO",1,0.99980000000000002]
[82," ENTIDAD APORTANTE RECURSOS","ALCALDIA MAYOR DE BOGOTA",2016000050033,"ELABORACIÓN DE LA ENCUESTA MULTIPROPOSITO 2017 : BOGOTA - CUNDINAMARCA","VIVIENDA, CIUDAD Y TERRITORIO ",17282722269,16761722269,521000000,42825,"061 DE 2017","CERRADO",1,0.99950000000000006]
[83,"CUNDINAMARCA","SECRETARIA DE HABITAT Y VIVIENDA",2016000050052,"CONSTRUCCIÓN DE VIVIENDAS NUEVAS RURALES EN EL DEPARTAMENTO DE CUNDINAMARCA","AGRICULTURA ",5983779025,5343748805,640030220,43090,"069 de 2017","CONTRATADO EN EJECUCIÓN",0.92730000000000001,0.87939999999999996]
[84,"CUNDINAMARCA","SECRETARIA DE CIENCIA, TECNOLOGIA E INNOVACIÓN",2016000100027,"ANLISIS DE FACTORES GENETICOS, SANITARIOS Y MEDIOAMBIENTALES QUE AFECTAN LAS TASAS DE PREÑEZ A PARTIR DE EMBRIONES IN VITRO EN EL DEPARTAMENTO DE CUNDINAMARCA","CTEL",6401358633,5078774029,1322584604,43098,"063 DE 2017","CONTRATADO EN EJECUCIÓN",0.83979999999999999,0.7167]
[85,"ENTIDAD DESIGNADA PARA LA SUPERVISIÓN DEL PROYECTO O PARA CONTRATAR LA INTERVENTORÍA","RAPE - INTERVENTORIA SECRETARIA DE PLANEACIÓN",2016000050012,"IMPLEMENTACIÓN DE ACCIONES DE CONSERVACION Y RESTAURACION DE LOS COMPLEJOS DE PARAMO, BOSQUE ALTO-ANDINO Y SERVICIOS ECOSISTEMICOS DE LA REGION CENTRAL","AMBIENTE Y DESARROLLO SOSTENIBLE",32499987282,{"$f":"G93","v":32499987282},0,42829," 058 DE 2016","CONTRATADO EN EJECUCIÓN",0.99570000000000003,0.99780000000000002]
[86,"CUNDINAMARCA","SECRETARIA DE DESARROLLO E INCLUSIÓN SOCIAL",2017000050017,"FORTALECIMIENTO DEL PROGRAMA DE COMPLEMENTACIÓN ALIMENTARIA Y NUTRICIONAL PARA NIÑAS, NIÑOS MENORES DE 5 AÑOS Y MADRES GESTANTES Y LACTANTES EN RIESGO DE DESNUTRICIÓN DEL DEPARTAMENTO DE CUNDINAMARCA","INCLUSIÓN SOCIAL Y RECONCILIACIÓN",8199993544,8199993544,0,42915,"062 de 2017","CERRADO",1,0.96909999999999996]
[87,"CUNDINAMARCA","SECRETARIA DE EDUCACIÓN",2017000050027,"FORTALECIMIENTO DE LA PERMANENCIA DE LOS ESTUDIANTES EN LOS MUNICIPIOS DEL DEPARTAMENTO DE CUNDINAMARCA , CENTRO ORIENTE 2017 CUNDINAMARCA","EDUCACIÓN",14995289800,14995289800,0,42961,"064 de 2017","TERMINADO",1,0.84]
[88,"ENTIDAD APORTANTE RECURSOS","MUNICIPIO DE ZIPAQUIRA",2017000050029,"CONSERVACIÓN  Y GESTIÓN INTEGRAL DEL RECURSO HÍDRICO MEDIANTE LA ADQUISICIÓN Y RESTAURACIÓN DE PREDIOS DE INTERÉS ECOSISTÉMICO EN ELDEPARTAMENTO DE   CUNDINAMARCA","AMBIENTE Y DESARROLLO SOSTENIBLE",900000000,467000000,433000000,43340,"077 DE 2018","CONTRATADO EN EJECUCIÓN",0.3327,0.47539999999999999]
[89,"CUNDINAMARCA","SECRETARIA DE EDUCACIÓN",2017000050033,"FORTALECIMIENTO A LA ESTRATEGIA DE ALIMENTACIÓN ESCOLAR PARA MUNICIPIOS NO CERTIFICADOS DEL DEPARTAMENTO DE CUNDINAMARCA","EDUCACIÓN",14000000000,14000000000,0,42977,"065 de 2017","CERRADO",1,0.26939999999999997]
[90,"CUNDINAMARCA","SECRETARIA DE MINAS, ENERGIA Y GAS",2017000050036,"IMPLEMENTACIÓN Y EXPANSIÓN DEL SERVICIO DE GAS COMBUSTIBLE POR REDES PARA VEREDAS Y CENTROS POBLADOS DEL DEPARTAMENTO DE CUNDINAMARCA","MINAS Y ENERGÍA",4751658472,3069656503,1682001969,43356,"077 DE 2018","CONTRATADO EN EJECUCIÓN",0.91510000000000002,0.92069999999999996]
[91,"CUNDINAMARCA","SECRETARIA DE PLANEACIÓN",2017000050039,"MEJORAMIENTO DE VÍAS TERCIARIAS MEDIANTE EL USO DE PLACA HUELLA EN LOS MUNICIPIOS DE GUATAVITA, PACHO, SAN JUAN DE RIOSECO, SUBACHOQUE, TENA Y ZIPAQUIRÁ, DEPARTAMENTO DE CUNDINAMARCA","TRANSPORTE",6791102422,6725380622,65721800,43124,"067 DE 2017","CONTRATADO EN EJECUCIÓN",0.98519999999999996,0.98650000000000004]
[92,"CUNDINAMARCA","SECRETARIA DE HABITAT Y VIVIENDA",2017000050042,"MEJORAMIENTO DE VIVIENDAS RURALES DE LA PROVINCIA DE UBATÉ - CUNDINAMARCA","AGRICULTURA ",2354318125,2354318125,0,43096,"069 de 2017","CONTRATADO EN EJECUCIÓN",1,0.9708]
[93,"CUNDINAMARCA","SECRETARIA DE SALUD",2017000050061,"ADQUISICIÓN AMBULANCIAS DE TRANSPORTE ASISTENCIAL BÁSICO (TAB) Y TRANSPORTE ASISTENCIAL MEDICALIZADA (TAM), PARA EL APOYO DEL SISTEMA DE REFERENCIA Y CONTRA REFERENCIA DE LA RED HOSPITALARIA DEL DEPARTAMENTO DE CUNDINAMARCA","SALUD Y PROTECCIÓN SOCIAL",3764666699,2000553024,1764113675,43081,"069 de 2017","CERRADO",1,0.9708]
[94,"CUNDINAMARCA","SECRETARIA DE AGRICULTURA",2017000050062,"FORTALECIMIENTO DE LAS CADENAS PRODUCTIVAS DE MANGO, AGUACATE Y CÍTRICOS EN EL DEPARTAMENTO DE CUNDINAMARCA","AGRICULTURA ",3000129600,2100129600,900000000,43124,"072 DE 2018","CERRADO",1,1]
[95,"CUNDINAMARCA","SECRETARIA DE MINAS, ENERGIA Y GAS",2017000050064,"CONSTRUCCIÓN DE REDES ELÉCTRICAS EN ZONA RURAL DE 13 MUNICIPIOS, EN EL MARCO DEL PROYECTO ILUMINANDO VIDAS DEL DEPARTAMENTO DE CUNDINAMARCA","MINAS Y ENERGÍA",2972842689,2532327281,440515408,43273,"076 DE 2018","CERRADO",0.82330000000000003,0.81879999999999997]
[96,"CUNDINAMARCA","SECRETARIA DE AGRICULTURA",2017000050065,"MEJORAMIENTO DE LA PRODUCTIVIDAD Y RENTABILIDAD DE LOS CAFICULTORES DEL DEPARTAMENTO DE CUNDINAMARCA","AGRICULTURA ",6523880054,4220000000,2303880054,43096,"069 DE 2017","CONTRATADO EN EJECUCIÓN",0.90580000000000005,0.84630000000000005]
[97,"CUNDINAMARCA","SECRETARIA DE CIENCIA, TECNOLOGIA E INNOVACIÓN",2017000100016,"IMPLEMENTACIÓN PROGRAMA DE INNOVACIÓN PARA LA VALIDACIÓN Y GENERACIÓN DE PRODUCTOS DERIVADOS DE LA BIODIVERSIDAD EN EL DEPARTAMENTO DE CUNDINAMARCA","CTEL",4486653319,4343608212,143045107,42941,"058 DE 2017","CONTRATADO EN EJECUCIÓN",0.74419999999999997,0.92359999999999998]
[98,"CUNDINAMARCA","SECRETARIA DE CIENCIA, TECNOLOGIA E INNOVACIÓN",2017000100034,"IMPLEMENTACIÓN DE UN SISTEMA DE GESTIÓN DE INNOVACIÓN PARA LA INDUSTRIA DE CUNDINAMARCA","CTEL",3925471448,3714407118,211064330,42941,"058 DE 2017","CONTRATADO EN EJECUCIÓN",0.98719999999999997,0.94179999999999997]
[99,"CUNDINAMARCA","SECRETARIA DE CIENCIA, TECNOLOGIA E INNOVACIÓN",2017000100074,"IMPLEMENTACIÓN DE ESTRATEGIAS DE FOMENTO A LA CULTURA Y SERVICIOS DE INNOVACIÓN EN LAS PROVINCIAS SABANA OCCIDENTE, SABANA CENTRAL, SOACHA Y SUMAPAZ CUNDINAMARCA","CTEL",6183633276,5533633276,650000000,43098,"063 DE 2017","CONTRATADO EN EJECUCIÓN",0.99639999999999995,0.995]
[100,"CUNDINAMARCA","SECRETARIA DE CIENCIA, TECNOLOGIA E INNOVACIÓN",2017000100076,"FORTALECIMIENTO DE CAPACIDADES DE GESTIÓN DEL RIESGO A TRAVÉS DE APROPIACIÓN SOCIAL DE LA CIENCIA, LA TECNOLOGÍA Y LA INNOVACIÓN EN EL DEPARTAMENTO DE CUNDINAMARCA","CTEL",4404970720,4000000000,404970720,43322,"068 DE 2018","CONTRATADO EN EJECUCIÓN",0.41660000000000003,0.58360000000000001]
[101,"CUNDINAMARCA","SECRETARIA DE CIENCIA, TECNOLOGIA E INNOVACIÓN",2017000100087,"FORMACIÓN DE TALENTO HUMANO DE ALTO NIVEL EN MAESTRÍAS EN EL DEPARTAMENTO DE CUNDINAMARCA","CTEL",5148022960,5048022960,100000000,43698,"078 DE 2019","CONTRATADO EN EJECUCIÓN",0.27429999999999999,0.45519999999999999]
[102,"CUNDINAMARCA","SECRETARIA DE CIENCIA, TECNOLOGIA E INNOVACIÓN",2017000100104,"FORTALECIMIENTO DE LA CULTURA DE LA GESTIÓN Y UTILIZACIÓN DEL CONOCIMIENTO EN CTEI EN NIÑOS, JÓVENES Y COMUNIDADES DEL DEPARTAMENTO DE CUNDINAMARCA","CTEL",9498967749,7498967749,2000000000,43565,"074 DE 2019","CONTRATADO EN EJECUCIÓN",0.47710000000000002,0.4768]
[103,"CUNDINAMARCA","UNIDAD ADMINISTRATIVA DE GESTIÓN DEL RIESGO.",20172401060022,"ESTUDIOS DETALLADOS PARA LA INCORPORACIÓN DE LA GESTIÓN DEL RIESGO PARA LOS MUNICIPIOS DE GIRARDOT, RICAURTE","AMBIENTE Y DESARROLLO SOSTENIBLE",3084907873,3084907873,0,43802,"033 DE 2019","CONTRATADO EN EJECUCIÓN",0,0]
[104,"CUNDINAMARCA","SECRETARIA DE CIENCIA, TECNOLOGIA E INNOVACIÓN",20170000100012,"CONFORMACIÓN DE UNA CONVOCATORIA REGIONAL DE PROYECTOS I+D EN FOCOS PRIORIZADOS CTEI PARA EL FORTALECIMIENTO DE LOS GRUPOS DE INVESTIGACIÓN CUNDINAMARCA","CTEL",7321934035,7128998177,192935858,42941,"058 DE 2017","CONTRATADO EN EJECUCIÓN",0.81479999999999997,0.9496]
[105,"ENTIDAD APORTANTE RECURSOS","CAR",2017000050063,"RECUPERACIÓN HIDRÁULICA Y AMBIENTAL DEL COMPLEJO LAGUNAR  FÚQUENE","AMBIENTE Y DESARROLLO SOSTENIBLE",18000000000,18000000000,0,43364,"081 DE 2018","CONTRATADO EN EJECUCIÓN",0.43509999999999999,0.33500000000000002]
[106,"ENTIDAD APORTANTE RECURSOS","CAR",2017000050070,"CONSTRUCCIÓN DE OBRAS DE MITIGACIÓN DEL RIESGO POR EVENTOS CLIMÁTICOS EN LA CUENCA DE LA QUEBRADA LA PARROQUIA EN EL CERRO DE FUSACATÁN DEL MUNICIPIO DE  FUSAGASUGÁ, CUNDINAMARCA","AMBIENTE Y DESARROLLO SOSTENIBLE",1976558725,1376558725,600000000,43417,"082 DE 2018","DESAPROBADO",0,0]
[107,"ENTIDAD APORTANTE RECURSOS","MUNICIPIO DE UTICA",2017000050087,"MEJORAMIENTO DEL SENDERO TURÍSTICO DE LA PROVINCIA DEL GUALIVÁ  – ÚTICA  CUNDINAMARCA","COMERCIO, INDUSTRIA Y TURISMO ",2347004868,2123058880,223945988,43211,"075 de 2018","CONTRATADO EN EJECUCIÓN",0.57599999999999996,0.88849999999999996]
[108,"CUNDINAMARCA","SECRETARIA DE EDUCACIÓN",2018000050019,"FORTALECIMIENTO DE LA PERMANENCIA DE LOS ESTUDIANTES EN LOS MUNICIPIOS DEL DEPARTAMENTO DE CUNDINAMARCA, CENTRO ORIENTE 2018 CUNDINAMARCA","EDUCACIÓN",19395559645,19395559645,0,43336,"080 DE 2018","CERRADO",1,0.66120000000000001]
[109,"\tENTIDAD APORTANTE RECURSOS","ICCU - GESPROY GB",2018000050022,"MEJORAMIENTO Y REHABILITACIÓN DE VÍAS SECUNDARIAS EN LA PROVINCIA DE UBATÉ, DEPARTAMENTO DE CUNDINAMARCA","TRANSPORTE",7524876363,7441105086,83771277,43320,"078 de 2018","TERMINADO",0.98829999999999996,0.96440000000000003]
[110,"ENTIDAD APORTANTE RECURSOS","ICCU - GESPROY GB",2018000050024,"MEJORAMIENTO Y REHABILITACIÓN DE LA VÍA LA MARÍA – TOBIA - PASO EL REJO - LA PEÑA, DEPARTAMENTO DE CUNDINAMARCA","TRANSPORTE",9149162991,8983328881,165834110,43417,"082 de 2018","TERMINADO",0.96450000000000002,0.93269999999999997]
[111,"ENTIDAD APORTANTE RECURSOS","ICCU - GESPROY GB",2018000050026,"MEJORAMIENTO DE VÍAS EN LA PROVINCIA DE SUMAPAZ PARA LA CONSOLIDACIÓN DE UNA PAZ ESTABLE Y DURADERA EN EL DEPARTAMENTO DE CUNDINAMARCA","TRANSPORTE",11457047617,11457047617,0,43462,"011 de 2018 - OCAD PAZ","CONTRATADO EN EJECUCIÓN",0.3659,0.60660000000000003]
[112,"CUNDINAMARCA","UNIDAD ADMINISTRATIVA DE GESTIÓN DEL RIESGO.",2018000050036,"CONSTRUCCIÓN DE OBRAS PARA LA MITIGACIÓN DEL RIESGO EN EL MUNICIPIO DE SAN BERNARDO, BENEFICIANDO A COMUNIDADES DE LOS MUNICIPIOS DE ARBELAEZ, PANDI Y VENECIA CUNDINAMARCA","AMBIENTE Y DESARROLLO SOSTENIBLE",2305788182,2305788182,0,43629,"089 de 2019","DESAPROBADO",0,0]
[113,"CUNDINAMARCA","SECRETARIA DE HABITAT Y VIVIENDA",2018000050039,"MEJORAMIENTO DE VIVIENDA RURAL EN LOS MUNICIPIOS DE CUCUNUBÁ, JERUSALEN, QUEBRADANEGRA Y VIOTÁ - DEPARTAMENTO DE CUNDINAMARCA","AGRICULTURA ",4024793625,4024793625,0,43571,"009 DE 2019","CONTRATADO EN EJECUCIÓN",0.93020000000000003,0.98619999999999997]
[114,"ENTIDAD APORTANTE RECURSOS","ICCU - GESPROY GB",2018000050049,"MEJORAMIENTO DE LA VÍA SESQUILÉ – GUATAVITA - GACHETÁ, DEPARTAMENTO DE CUNDINAMARCA","TRANSPORTE",3997714045,3935792642,61921403,43455,"084 de 2018","TERMINADO",0.80930000000000002,0.79320000000000002]
[115,"\tENTIDAD APORTANTE RECURSOS","ICCU - GESPROY GB",2018000050055,"MEJORAMIENTO DE LA TRONCAL DE RIONEGRO, SECTOR LA PALMA CHARCO LARGO PARA LA CONSOLIDACIÓN DE UNA PAZ ESTABLE Y DURADERA EN EL DEPARTAMENTO DE CUNDINAMARCA","TRANSPORTE",17928531277,17928531277,0,43532,"086 de 2019","TERMINADO",0.95509999999999995,0.92210000000000003]
[116,"ENTIDAD APORTANTE RECURSOS","ICCU - GESPROY GB",2018000050059,"MEJORAMIENTO DE LA VÍA GUSBITA - TIBIRITA DEL DEPARTAMENTO DE CUNDINAMARCA","TRANSPORTE",5500531740,4870657724,629874016,43532,"086 de 2019","TERMINADO",0.99580000000000002,0.85209999999999997]
[117,"CUNDINAMARCA","SECRETARIA DE CIENCIA, TECNOLOGIA E INNOVACIÓN",2018000100106,"INNOVACIÓN EN EL MODELO DE GESTIÓN DEL MEDICAMENTO FASE III EN EL DEPARTAMENTO DE  CUNDINAMARCA","CTEL",3452890062,3071356262,381533800,43830,"087 DE 2019","NO HA MIGRADO A GESPROY",0,0]
[118,"CUNDINAMARCA","SECRETARIA DE CIENCIA, TECNOLOGIA E INNOVACIÓN",2018000100160,"FORMACIÓN DE CAPITAL HUMANO DE ALTO NIVEL PARA LA INVESTIGACIÓN, EL DESARROLLO TECNOLÓGICO Y LA INNOVACIÓN MAESTRÍAS DE INVESTIGACIÓN PARA DOCENTES DEL DEPARTAMENTO DE CUNDINAMARCA","CTEL",5217415747,3519725709,1697690038,43731,"080 DE 2019","CONTRATADO EN EJECUCIÓN",0,0]
[119,"ENTIDAD DESIGNADA PARA LA SUPERVISIÓN DEL PROYECTO O PARA CONTRATAR LA INTERVENTORÍA","EMPRESAS PUBLICAS DE CUNDINAMARCA -EPC",20181301010555,"CONSTRUCCIÓN DE UNIDADES SANITARIAS EN EL ÁREA RURAL DEL DEPARTAMENTO DE CUNDINAMARCA","VIVIENDA, CIUDAD Y TERRITORIO ",4999900475,4999900475,0,43378,"010 DE 2018 - OCAD PAZ","CONTRATADO EN EJECUCIÓN",0.70689999999999997,0.69489999999999996]
[120,"\tENTIDAD APORTANTE RECURSOS","ICCU - GESPROY GB",2019000050002,"MEJORAMIENTO DE LA VÍA DEPARTAMENTAL LA VICTORIA (EL COLEGIO) SAN GABRIEL (VIOTÁ), TRAMO LA VICTORIA ALTO DE LA MULA, DEPARTAMENTO DE CUNDINAMARCA","TRANSPORTE",5745879373,5745879373,0,43532,"086 de 2019","CERRADO",0.97219999999999995,0.98519999999999996]
[121,"ENTIDAD APORTANTE RECURSOS","ICCU - GESPROY GB",2019000050003,"MEJORAMIENTO DE LA VÍA CÁQUEZA FOSCA, DEPARTAMENTO DE CUNDINAMARCA","TRANSPORTE",4049029755,4049029755,0,43585,"088 de 2019","TERMINADO",0.93269999999999997,0.98540000000000005]
[122,"ENTIDAD APORTANTE RECURSOS","ICCU - GESPROY GB",2019000050005,"MEJORAMIENTO DE LA VÍA FÓMEQUE UBAQUE, DEPARTAMENTO DE CUNDINAMARCA","TRANSPORTE",16514204213,14057373703,2456830510,43629,"089 DE 2019","TERMINADO",0.99919999999999998,0.99919999999999998]
[123,"ENTIDAD APORTANTE RECURSOS","ICCU - GESPROY GB",2019000050011,"MEJORAMIENTO DE LA VÍA SUPATÁ - PACHO, DEPARTAMENTO DE CUNDINAMARCA","TRANSPORTE",7339441010,7339441010,0,43585,"088 DE 2019","CONTRATADO EN EJECUCIÓN",0.71309999999999996,0.71899999999999997]
[124,"ENTIDAD APORTANTE RECURSOS","ICCU - GESPROY GB",2019000050013,"CONSTRUCCIÓN DE LA PLAZA DE MERCADO DEL MUNICIPIO DE CHOACHÍ CUNDINAMARCA","AGRICULTURA ",3152125044,3152125044,0,43687,"090 DE 2019","CONTRATADO EN EJECUCIÓN",0.47010000000000002,0.54379999999999995]
[125,"ENTIDAD APORTANTE RECURSOS","ICCU - GESPROY GB",2019000050016,"MEJORAMIENTO DE LA VÍA ANOLAIMA CORRALEJAS (INSPECCIÓN DE CORRALEJAS), DEPARTAMENTO DE CUNDINAMARCA","TRANSPORTE",6898362469,5718724028,1179638441,43629,"089 DE 2019","TERMINADO",0.99850000000000005,0.82799999999999996]
[126,"CUNDINAMARCA","SECRETARIA DE EDUCACIÓN",2019000050020,"FORTALECIMIENTO DE LA PERMANENCIA DE LOS ESTUDIANTES PARA EL AÑO 2019 EN LOS MUNICIPIOS DEL DEPARTAMENTO DE CUNDINAMARCA","EDUCACIÓN",20536293937,20536293937,0,43629,"089 DE 2019","TERMINADO",1,0.91459999999999997]
[127,"ENTIDAD APORTANTE RECURSOS","ICCU - GESPROY GB",2019000050023,"MEJORAMIENTO DE LA VÍA LENGUAZAQUE - VILLAPINZÓN, DEPARTAMENTO DE CUNDINAMARCA","TRANSPORTE",8636278689,7310087087,1326191602,43629,"089 DE 2019","TERMINADO",1,0.83830000000000005]
[128,"CUNDINAMARCA","SECRETARIA DE AGRICULTURA",2019000050027," MEJORAMIENTO DE LA COMPETITIVIDAD  DE LA CADENA PRODUCTIVA DE CACAO EN EL DEPARTAMENTO DE CUNDINAMARCA","AGRICULTURA ",5862983962,4397237971,1465745991,43819,"098 DE 2019","CONTRATADO EN EJECUCIÓN",0.98699999999999999,0.95099999999999996]
[129,"ENTIDAD APORTANTE RECURSOS","ICCU - GESPROY GB",2019000050029,"MEJORAMIENTO DE LA VÍA GACHETÁ - GAMA, DEPARTAMENTO DE CUNDINAMARCA","TRANSPORTE","$ 5.477.582.208",5322582208,{"$f":"G137-H137","v":155000000},43629,"089 DE 2019","CONTRATADO EN EJECUCIÓN",0.95509999999999995,0.84179999999999999]
[130,"CUNDINAMARCA","SECRETARIA DE SALUD",2019000050036,"ADQUISICIÓN DE AMBULANCIAS PARA EL FORTALECIMIENTO DE LA RED HOSPITALARIA DEL DEPARTAMENTO CUNDINAMARCA","SALUD Y PROTECCIÓN SOCIAL",2385000000,2385000000,0,43656,"090 DE 2019","CERRADO",1,0.82809999999999995]
[131,"CUNDINAMARCA","UNIDAD ADMINISTRATIVA DE GESTIÓN DEL RIESGO.",2019000050037," FORTALECIMIENTO DEL SISTEMA DEPARTAMENTAL PARA LA GESTIÓN DEL RIESGO DE DESASTRES DEL DEPARTAMENTO DE CUNDINAMARCA","PRESIDENCIA DE LA REPÚBLICA",4936307506,4936307506,0,43748,"094 DE 2019","DESAPROBADO",0,0]
[132,"ENTIDAD APORTANTE RECURSOS","MEDICINA LEGAL Y CIENCIAS FORENSES",2019000050025,"ESTUDIOS Y DISEÑOS PARA LA CONSTRUCCIÓN DE LA SEDE DE MEDICINA LEGAL EN EL DEPARTAMENTO DE CUNDINAMARCA","FISCALIA",904521100,904521100,0,43677,"091 DE 2019","CONTRATADO EN EJECUCIÓN",0.16600000000000001,0.36780000000000002]
[133,"CUNDINAMARCA","SECRETARIA DE MINAS, ENERGIA Y GAS",2019000050039," ESTUDIO Y DISEÑO PARA LA CONSTRUCCIÓN DE REDES ELÉCTRICAS AÉREAS EN ZONAS RURALES DEL DEPARTAMENTO DE CUNDINAMARCA","MINAS Y ENERGÍA",1616407501,1616407501,0,43714,"092 DE 2019","DESAPROBADO",0,0]
[134,"CUNDINAMARCA","SECRETARIA DE EDUCACIÓN",2019000050044,"FORTALECIMIENTO A LA ESTRATEGIA DE ALIMENTACIÓN ESCOLAR PARA MUNICIPIOS NO CERTIFICADOS, VIGENCIA 2019 DEL DEPARTAMENTO DE CUNDINAMARCA","EDUCACIÓN",18301749135,18301749135,0,43656,"090 DE 2019","CERRADO",0.2152,0.53269999999999995]
[135,"ENTIDAD APORTANTE DE RECURSOS","ICCU - GESPROY GB",2019000050047,"MEJORAMIENTO DE LA VÍA SUSA - CARMEN DE CARUPA, DEPARTAMENTO DE CUNDINAMARCA","TRANSPORTE",4131178258,4131178258,0,43677,"091 DE 2019","TERMINADO",1,0.79390000000000005]
[136,"ENTIDAD APORTANTE RECURSOS","ICCU - GESPROY GB",2019000050056,"MEJORAMIENTO DE LA VÍA QUE CONDUCE DEL MUNICIPIO DE NIMAIMA AL MUNICIPIO DE NOCAIMA, DEPARTAMENTO DE CUNDINAMARCA","TRANSPORTE",5082491569.8000002,4614214508,468277061.80000019,43748,"094 DE 2019","CONTRATADO EN EJECUCIÓN",1,0.87219999999999998]
[137,"ENTIDAD APORTANTE RECURSOS","IDECUT",2019000050059,"FORTALECIMIENTO A LAS ESCUELAS MUNICIPALES DE MÚSICA, DANZA, TEATRO Y ARTES PLÁSTICAS Y VISUALES EN EL DEPARTAMENTO DE CUNDINAMARCA","CULTURA ",1972606058,1972606058,0,43748,"094 DE 2019","CONTRATADO EN EJECUCIÓN",0,0]
[138,"\tENTIDAD APORTANTE RECURSOS","ICCU - GESPROY GB",2019000050060,"ESTUDIOS Y DISEÑOS DE VÍAS PARA MEJORAR LA COMPETITIVIDAD DEL DEPARTAMENTO DE CUNDINAMARCA","TRANSPORTE",7089369627,7089369627,0,43714,"092 DE 2019","TERMINADO",0.98650000000000004,0.61699999999999999]
[139,"CUNDINAMARCA","SECRETARIA DE MINAS, ENERGIA Y GAS",2019000050073,"AMPLIACIÓN DE LA COBERTURA DEL SERVICIO DE GAS COMBUSTIBLE DOMICILIARIO A TRAVÉS DE LA FINANCIACIÓN DE LA CONEXIÓN Y LA RED INTERNA PARA USUARIOS DE BARRIOS PERIFÉRICOS, VEREDAS Y CENTROS POBLADOS DEL DEPARTAMENTO DE CUNDINAMARCA","MINAS Y ENERGÍA",12461377100,6651376060,5810001040,43805,"097 DE 2019","CONTRATADO EN EJECUCIÓN",0.89249999999999996,0.95340000000000003]
[140,"ENTIDAD APORTANTE RECURSOS","ICCU - GESPROY GB",2019000050075,"MEJORAMIENTO DE LA VÍA QUE CONDUCE DEL MUNICIPIO DE VIANI AL MUNICIPIO DE CHAGUANI, (DE LA Y DE SAN VICENTE A CHAGUANI), DEPARTAMENTO DE CUNDINAMARCA","TRANSPORTE",7504443091,7504443091,0,43819,"098 DE 2019","CONTRATADO EN EJECUCIÓN",0.73899999999999999,0.86450000000000005]
[141,"\tENTIDAD APORTANTE RECURSOS","ICCU - GESPROY GB",2019000050079,"MEJORAMIENTO DE LA VÍA SERREZUELA - EL TRIUNFO, MUNICIPIO DE LA CALERA, DEPARTAMENTO DE CUNDINAMARCA","TRANSPORTE",7614258187,7614258187,0,43748,"094 DE 2019","TERMINADO",0.94289999999999996,0.8629]
[142,"ENTIDAD APORTANTE RECURSOS","ICCU - GESPROY GB",2019000050085,"MEJORAMIENTO DE LA VÍA QUE CONDUCE DEL MUNICIPIO DE LA MESA AL MUNICIPIO DE CACHIPAY, (DE LA INSPECCIÓN DE PEÑA NEGRA AL MUNICIPIO DE CACHIPAY), DEPARTAMENTO DE CUNDINAMARCA","TRANSPORTE",7019896083,7019896083,0,43852,"96 DE 2019","CONTRATADO EN EJECUCIÓN",0.59450000000000003,0.66890000000000005]
[143,"ENTIDAD APORTANTE RECURSOS","TV ANDINA",2019000050064,"PROTECCIÓN Y PRESERVACIÓN DEL PATRIMONIO AUDIOVISUAL COLOMBIANO QUE SE ENCUENTRA EN EL CANAL PÚBLICO TEVEANDINA LOCALIZADO EN EL DEPARTAMENTO DE  CUNDINAMARCA","CULTURA ",5923285198,"$ 5.597.840.098",325445100,43774,"095 DE 2019","TERMINADO",1,0.99350000000000005]
[144,"ENTIDAD APORTANTE RECURSOS","UNAD",2019000050069,"MEJORAMIENTO DE INFRAESTRUCTURA FÍSICA, DOTACIÓN DE MOBILIARIO Y EQUIPAMIENTO TECNOLÓGICO DE LA UNIVERSIDAD NACIONAL ABIERTA Y A DISTANCIA EN MUNICIPIOS DEL DEPARTAMENTO DE CUNDINAMARCA","EDUCACIÓN",16011115461,16011115461,0,43774,"095 DE 2019","TERMINADO",1,0.90449999999999997]
[145,"ENTIDAD APORTANTE RECURSOS","U TECNOLOGICA DE PEREIRA",2019000100009,"FORMACIÓN DE CAPITAL HUMANO DE ALTO NIVEL UNIVERSIDAD TECNOLÓGICA DE PEREIRA  NACIONAL","CTEL",4360028215,3950208215,409820000,43781,"083 DE 2019","CONTRATADO EN EJECUCIÓN",0.40410000000000001,0.4083]
[146,"ENTIDAD APORTANTE RECURSOS","U EAN",2019000100015,"FORMACIÓN DE CAPITAL HUMANO DE ALTO NIVEL - UNIVERSIDAD EAN -  NACIONAL","CTEL",1294375000,1250000000,44375000,43830,"087 DE 2019","CONTRATADO EN EJECUCIÓN",0.47439999999999999,0.48220000000000002]
[147,"ENTIDAD APORTANTE RECURSOS","U CATOLICA",2019000100022,"FORMACIÓN DE CAPITAL HUMANO DE ALTO NIVEL - UNIVERSIDAD CATÓLICA DE COLOMBIA -  NACIONAL","CTEL",343595000,299220000,44375000,43812,"086 DE 2019","CONTRATADO EN EJECUCIÓN",0.64070000000000005,0.64270000000000005]
[148,"ENTIDAD APORTANTE RECURSOS","UNIVERSIDAD MILITAR NUEVA GRANADA",2019000100025,"FORMACIÓN DE CAPITAL HUMANO DE ALTO NIVEL UNIVERSIDAD MILITAR NUEVA GRANADA  NACIONAL","CTEL",294375000,250000000,44375000,43812,"086 DE 2019","CONTRATADO EN EJECUCIÓN",0.4471,0.45729999999999998]
[149,"ENTIDAD APORTANTE RECURSOS","UNIVERSIDAD NACIONAL DE COLOMBIA",2019000100026,"FORMACIÓN DE CAPITAL HUMANO DE ALTO NIVEL UNIVERSIDAD NACIONAL DE COLOMBIA   NACIONAL","CTEL",21162064500,20233937500,928127000,43781,"083 DE 2019","CONTRATADO EN EJECUCIÓN",0.44579999999999997,0.47910000000000003]
[150,"ENTIDAD APORTANTE RECURSOS","U DISTRITAL",2019000100027,"FORMACIÓN DE CAPITAL HUMANO DE ALTO NIVEL EN DOCTORADO PARA EL DESARROLLO REGIONAL, UNIVERSIDAD DISTRITAL FRANCISCO JOSÉ DE CALDAS, A NIVEL  NACIONAL","CTEL",1218668841,1113595753,105073088,43798,"085 DE 2019","CONTRATADO EN EJECUCIÓN",0.23680000000000001,0.33750000000000002]
[151,"ENTIDAD APORTANTE RECURSOS","U JAVERIANA",2019000100028,"FORMACIÓN DE CAPITAL HUMANO DE ALTO NIVEL PONTIFICIA UNIVERSIDAD JAVERIANA SEDE CENTRAL  NACIONAL","CTEL",6524500000,6524500000,0,43781,"083 DE 2019","CONTRATADO EN EJECUCIÓN",0.35110000000000002,0.4541]
[152,"ENTIDAD APORTANTE RECURSOS","U DE LOS ANDES",2019000100036,"FORMACIÓN  DE CAPITAL HUMANO DE ALTO NIVEL UNIVERSIDAD DE LOS ANDES   NACIONAL","CTEL",2814671307,2748000000,66671307,43798,"085 DE 2019","CONTRATADO EN EJECUCIÓN",0.50760000000000005,0.50370000000000004]
[153,"ENTIDAD APORTANTE RECURSOS","UNIVERSIDAD NACIONAL DE COLOMBIA",2019000100061,"FORTALECIMIENTO DE LA CAPACIDAD TECNOLÓGICA INSTALADA EN EL CENTRO AGROPECUARIO MARENGO PARA LA INVESTIGACIÓN EN LOS SISTEMAS AGROPRODUCTIVOS DEL TRÓPICO ALTO, BAJO EL EFECTO DE LA VARIABILIDAD Y CAMBIO CLIMÁTICO -  CUNDINAMARCA","CTEL",2386591598.0999999,1994146760,392444838.0999999,43830,"087 DE 2019","CONTRATADO EN EJECUCIÓN",0.29609999999999997,0.23649999999999999]
[154,"CUNDINAMARCA","SECRETARIA DE CIENCIA, TECNOLOGIA E INNOVACIÓN",2020000100137,"FORTALECIMIENTO DE LAS CAPACIDADES DE INVESTIGACIÓN Y DESARROLLO PARA ATENDER PROBLEMÁTICAS ASOCIADAS CON AGENTES BIOLÓGICOS PARA LA SALUD PÚBLICA, A TRAVÉS DEL MEJORAMIENTO DEL LABORATORIO DE SALUD PÚBLICA DE CUNDINAMARCA","CTEL",4506359274,4048003426,458355848,43966,"093 DE 2020","CONTRATADO EN EJECUCIÓN",0.55800000000000005,0.54749999999999999]
[155,"CUNDINAMARCA","SECRETARIA DE SALUD",2020000050003,"ADQUISICIÓN DE AMBULANCIAS,EQUIPOS BIOMÉDICOS, ELEMENTOS DE PROTECCIÓN PERSONAL, ASEO Y DESINFECCIÓN PARA LA ATENCIÓN DE LA CALAMIDAD SANITARIA POR COVID-19 EN LAS E.S.E DEL DEPARTAMENTO DE   CUNDINAMARCA","SALUD Y PROTECCIÓN SOCIAL",43433295564,43433295564,0,43986,"102 de 2020","CONTRATADO EN EJECUCIÓN",0.54379999999999995,0.54410000000000003]
[156,"CUNDINAMARCA","UNIDAD ADMINISTRATIVA DE GESTIÓN DEL RIESGO.",2020000050012,"ADQUISICIÓN DE ELEMENTOS DE PROTECCIÓN DE CONTAGIO DEL VIRUS COVID-19 PARA LOS CUERPOS OPERATIVOS DE EMERGENCIA, EN ATENCIÓN DE LA CALAMIDAD SANITARIA EN EL DEPARTAMENTO DE   CUNDINAMARCA","GOBIERNO TERRITORIAL",5419592232,5419592232,0,43986,"102 DE 2020","CERRADO",0.67,0.67]
[157,"CUNDINAMARCA","SECRETARIA DE EDUCACIÓN",2020000050019,"FORTALECIMIENTO A LA ESTRATEGIA DE ALIMENTACIÓN ESCOLAR PARA EL AÑO 2020, EN LOS MUNICIPIOS DEL DEPARTAMENTO DE CUNDINAMARCA ","EDUCACIÓN",26240955000,26240955000,0,44040,"105 DE 2020","TERMINADO",1,0.66359999999999997]
[158,"CUNDINAMARCA","SECRETARIA DE CIENCIA, TECNOLOGIA E INNOVACIÓN",2020000100266,"GENERACIÓN DE ESPACIOS DE ENCUENTRO DE LA SOCIEDAD CON LA CIENCIA Y LA TECNOLOGÍA - UN VIAJE CON LA CIENCIA EN EL DEPARTAMENTO DE CUNDINAMARCA","CTEL",2241429590,2218862102,22567488,44111,"098 DE 2020","CONTRATADO EN EJECUCIÓN",1.06E-2,8.43E-2]
[159,"CUNDINAMARCA","SECRETARIA DE CIENCIA, TECNOLOGIA E INNOVACIÓN",2020000100246,"FORTALECIMIENTO DE LA COMPETITIVIDAD DE LA CADENA PRODUCTIVA DE LA GUADUA POR MEDIO DEL DESARROLLO E IMPLEMENTACIÓN DE DOS (2) PAQUETES TECNOLÓGICOS PARA LA GENERACIÓN DE PRODUCTOS CON VALOR AGREGADO EN EL DEPARTAMENTO DE CUNDINAMARCA ","CTEL",3144525520,2294345776,850179744,44111,"098 DE 2020","CONTRATADO EN EJECUCIÓN",9.64E-2,0.26419999999999999]
[160,"ENTIDAD APORTANTE RECURSOS","CONNECT BOGOTA REGIÓN",2020000100078,"DISEÑO E IMPLEMENTACIÓN DE UN MODELO DE GESTIÓN DE CONOCIMIENTO, INNOVACIÓN Y TRANSFERENCIA DE TECNOLOGÍA CON APLICACIÓN EN EL SECTOR AGROPECUARIO Y AGROINDUSTRIAL EN EL DEPARTAMENTO DE CUNDINAMARCA ","CTEL",3309848753,2972617683,337231070,44111,"098 DE 2020","CONTRATADO EN EJECUCION ",6.0000000000000001E-3,1.5E-3]
[161,"ENTIDAD APORTANTE RECURSOS","FEDERACIÓN NACIONAL DE CAFETEROS",2020000100205,"TRASLADO DE TECNOLOGÍAS INNOVADORAS A CAFICULTORES CON IMPACTO SOBRE LA CALIDAD DEL CAFÉ Y LA GESTIÓN DEL RECURSO HÍDRICO DURANTE EL PROCESO DE BENEFICIO EN ZONA CAFETERA DEL DEPARTAMENTO DE CUNDINAMARCA ","CTEL",13783557324,12848931736,934625588,44111,"098 DE 2020","CONTRATADO EN EJECUCIÓN",5.0000000000000001E-4,0]
[162,"ENTIDAD APORTANTE RECURSOS","AGROSAVIA",2020000100197,"DESARROLLO DE BIOPLAGUICIDAS POTENCIADOS DE NUEVA GENERACIÓN PARA EL MEJORAMIENTO DE LA PRODUCTIVIDAD E INOCUIDAD DEL CULTIVO DE TOMATE Y CRUCÍFERAS EN EL DEPARTAMENTO DE CUNDINAMARCA ","CTEL",4583970033,3282745260,1301224773,44111,"098 DE 2020","CONTRATADO EN EJECUCIÓN",0.11459999999999999,0.12889999999999999]
[163,"ENTIDAD APORTANTE RECURSOS","UNIVERSIDAD NACIONAL DE COLOMBIA",2020000100240,"ESTUDIO DE PREFACTIBILIDAD PARA LA CREACIÓN DE UN CENTRO DE INNOVACIÓN Y DE PRODUCTIVIDAD PARA EL SECTOR AGROPECUARIO DE SABANA OCCIDENTE DE CUNDINAMARCA ","CTEL",1896154229,1707430133,188724096,44111,"098 DE 2020","CONTRATADO EN EJECUCIÓN",6.8099999999999994E-2,0.17430000000000001]
[164,"ENTIDAD APORTANTE RECURSOS","UNIVERSIDAD DE CUNDINAMARCA",2020000100158,"FORTALECIMIENTO DE LA INFRAESTRUCTURA FÍSICA Y TECNOLÓGICA DEL CENTRO DE ESTUDIOS AGROAMBIENTALES DE LA UNIVERSIDAD DE CUNDINAMARCA AGROU CUNDINAMARCA ","CTEL",2024433669,1997753509,26680160,44111,"098 DE 2020","SIN CONTRATAR",0,0]
[165,"ENTIDAD APORTANTE RECURSOS","ZIPAQUIRA",2020000050013,"Mejoramiento de la vía que comunica a los municipios de Zipaquirá y Tocancipá, tramo barandillas - la fuente, departamento de Cundinamarca","TRANSPORTE","6.788.620.869,00",{"$f":"G173","v":"6.788.620.869,00"},0,44152,"107 del 2020","CONTRATADO EN EJECUCIÓN",0.40089999999999998,0.55589999999999995]
[166,"ENTIDAD APORTANTE RECURSOS","ZIPAQUIRA",2020000050015,"MEJORAMIENTO DE LA VÍA ZIPAQUIRÁ - SAN JORGE - TABIO DEPARTAMENTO DE CUNDINAMARCA","TRANSPORTE",7458735075,{"$f":"G174","v":7458735075},0,44152,"107 del 2020","CONTRATADO SIN ACTA DE INICIO",0,0]
[167,"CUNDINAMARCA","SECRETARIA DE CIENCIA, TECNOLOGIA E INNOVACIÓN",2020000100695,"DESARROLLO, TRANSFERENCIA DE TECNOLOGÍA Y CONOCIMIENTO PARA LA INNOVACIÓN QUE FORTALEZCAN CAPACIDADES COMUNITARIAS EN LA COMPRENSIÓN Y/O MITIGACIÓN DE LOS PROBLEMAS DE VIOLENCIAS BASADAS EN GÉNERO, DERIVADAS DE LA EMERGENCIA POR COVID 19, EN CUNDINAMARCA","CTEL",3100000000,3000000000,100000000,44183,"103 DE 2020","CONTRATADO EN EJECUCIÓN","2,18%",0.30449999999999999]
[168,"CUNDINAMARCA","SECRETARIA DE CIENCIA, TECNOLOGIA E INNOVACIÓN",2020000100650,"FORTALECIMIENTO DE CAPACIDADES DE CTEI PARALA INNOVACION EDUCATIVA EN LOS NIVELES DE BÁSICA Y\nMEDIA, MEDIANTE USO DE TICS EN INSTITUCIONES EDUCATIVAS OFICIALES DE LOS MUNICIPIOS NO\nCERTIFICADOS DEL DEPARTAMENTO DE CUNDINAMARCA","CTEL",10804663122,9999728696,804934426,44183,"103 DE 2020","CONTRATADO EN EJECUCIÓN",7.0000000000000007E-2,9.7000000000000003E-3]
[169,"CUNDINAMARCA","SECRETARIA DE CIENCIA, TECNOLOGIA E INNOVACIÓN",2020000100696,"FORTALECIMIENTO DE CAPACIDADES DE CTEI PARA LA REACTIVACIÓN ECONÓMICA Y LA TRANSFORMACIÓN\nPRODUCTIVA EN CUNDINAMARCA","CTEL",7370634083,6974290175,396343908,44183,"103 DE 2020","CONTRATADO EN EJECUCIÓN","793289750,58%",0.25519999999999998]
[170,"CUNDINAMARCA","SECRETARIA DE CIENCIA, TECNOLOGIA E INNOVACIÓN",2020000100649,"FORTALECIMIENTO DE CAPACIDADES DE CTeI PARA EL RELACIONAMIENTO ESCUELA - CONTEXTO RURAL MEDIANTE LA APROPIACIÓN Y USO DE LAS TIC EN EL MUNICIPIO DE SIBATÉ, DEPARTAMENTO DE CUNDINAMARCA","CTEL",4292464018,2645464018,1647000000,44183,"103 DE 2020","CONTRATADO EN EJECUCIÓN","5,64%",0.1085]
[171,"ENTIDAD APORTANTE RECURSOS","FUNDACION UNIVERSIDAD DEL VALLE",2020000050044,"FORTALECIMIENTO DE LAS COMPETENCIAS COMUNICATIVAS EN INGLÉS DE LOS ESTUDIANTES DE LOS ESTABLECIMIENTOS EDUCATIVOS NO OFICIALES DE CUNDINAMARCA","EDUCACIÓN","$ 10.468.961.978",10411761978,57200000,44195,"110 DE 2020","CONTRATADO EN EJECUCIÓN",0.37640000000000001,0.3992]
[172,"ENTIDAD APORTANTE RECURSOS","UNAD",2020000100433,"Investigación de los compuestos volátiles orgánicos e inducidos para el manejo de moscas plagas en gulupa y granadilla en el departamento de  Cundinamarca","CTEL",3412874201,1999985660,1412888541,44159,"100 DE 2020","CONTRATADO EN EJECUCIÓN",0.13869999999999999,6.3299999999999995E-2]
[173,"ENTIDAD APORTANTE RECURSOS","UNIVERSIDAD INDUSTRIAL DE SANTANDER",2020000100415,"Desarrollo de un sistema óptico  computacional para estimar el contenido de carbono orgánico de suelos agrícolas a través de imágenes espectrales e inteligencia artificial en cultivos de cítricos de   Santander","CTEL",2184125885.29,1972224989,211900896.28999996,44160,"100 DE 2020","CONTRATADO EN EJECUCIÓN",0.2109,0.21379999999999999]
[174,"ENTIDAD APORTANTE RECURSOS","UNIVERSIDAD INDUSTRIAL DE SANTANDER",2020000100375,"Conformación de una plataforma para estudios celulares avanzados in vivo en tiempo real para el análisis de la respuesta inmunometabólica ante la reexpresión de interferón tipo I kappa en esferoides de células tumorales de cuello uterino en  Santander","CTEL",3123997801,1998887911,1125109890,44159,"100 DE 2020","CONTRATADO EN EJECUCIÓN",0.54630000000000001,0.50109999999999999]
[175,"ENTIDAD APORTANTE RECURSOS","UNIVERSIDAD INDUSTRIAL DE SANTANDER",2020000100351,"Desarrollo de un prototipo selectivo y sensible para monitorear contenido de cadmio in situ en diversas matrices asociadas a la producción de granos de cacao en el departamento de  Santander","CTEL",2585800000,2000000000,585800000,44159,"100 DE 2020","CONTRATADO EN EJECUCIÓN",0.31230000000000002,0.38]
[176,"ENTIDAD APORTANTE RECURSOS","INSTITUTO SUPERIOR DE EDUCACION RURAL DE PAMPLONA",2020000100343,"Implementación laboratorio de calidad fisicoquímica de alimentos para el fortalecimiento competitivo y sostenible de lascadenas agroalimentarias del departamento de  Norte de Santander","CTEL",1097306327,999999999,97306328,44159,"100 DE 2020","SIN CONTRATAR"]
[177,"ENTIDAD APORTANTE RECURSOS","UNIVERSIDAD NACIONAL DE COLOMBIA",2020000100342,"Estudio de potenciales insecticidas en matrices poliméricas para el control de plagas de granos almacenados basados en aceites esenciales provenientes de la biodiversidadflorística del departamento de  Cundinamarca","CTEL",2748237104,2000000000,748237104,44159,"100 DE 2020","CONTRATADO EN EJECUCIÓN",5.8500000000000003E-2,0.29880000000000001]
[178,"ENTIDAD APORTANTE RECURSOS","UNIVERSIDAD MILITAR NUEVA GRANADA",2020000100728,"Generación y transferencia de conocimientos y tecnologías para elevar capacidades de CTel de pequeños productores de tomate para afrontar problemas derivados del COVID-19 asociadas a la Seg. Alimentaria en las Sab. Centro y Oriente  Cundinamarca","CTEL",4162541452,2123613452,2038928000,44183,"103 DE 2020","CONTRATADO EN EJECUCIÓN",0.23769999999999999,0.2923]
[179,"ENTIDAD APORTANTE RECURSOS","UNIVERSIDAD NACIONAL DE COLOMBIA",2020000100339,"Desarrollo de Nuevos Métodos No Destructivos para Monitoreo In Situ de Probabilidad de Ocurrencia de Falla en Tuberías en el Sector de Hidrocarburos en los Departamentos de  Bogotá Boyacá Santander","CTEL",2412084140,1999876300,412207840,44159,"100 DE 2020","CONTRATADO EN EJECUCIÓN",4.8999999999999998E-3,0.20319999999999999]
[180,"ENTIDAD APORTANTE RECURSOS","UNIVERSIDAD MILITAR NUEVA GRANADA",2020000100216,"Innovación y transferencia tecnológica de UMNGBIO a productores de flores para el control biológico de Tetranychus urticae (Acari: Tetranychiidae) en cultivos de invernadero con el ácaro benéfico Neoseiulus californicus (Acari: Phytoseiidae)  Cundinamarca","CTEL",2431580000,1241580000,1190000000,44159,"100 DE 2020","CONTRATADO EN EJECUCIÓN",0.50590000000000002,0.51139999999999997]
[181,"CUNDINAMARCA","SECRETARIA DE COMPETITIVIDAD",2019000050026,"Desarrollo de un programa productivo, amigable con el medio ambiente del sector ganadero en el Departamento de Cundinamarca Cundinamarca","AGRICULTURA ",9757143522,6804242915,2952900607,44187,"109 DE 2020","CONTRATADO SIN ACTA DE INICIO",0,"20,22%"]
[182,"ENTIDAD APORTANTE RECURSOS","UNIVERSIDAD NACIONAL DE COLOMBIA",2020000100169,"Investigación Desarrollo, innovación y transferencia de conocimiento para el procesamiento de la semilla de Sacha Inchi en productos de valor agregado, como estrategia para mejorar la productividad del sector agroindustrial de la Región  Cundinamarca","CTEL",2757697312,456319666.11000001,2301377645.8899999,44078,"97 DE 2020","CONTRATADO EN EJECUCIÓN",0.2545,0.2515]
[183,"ENTIDAD APORTANTE RECURSOS","UPTC",2020000100114,"Fortalecimiento del ecosistema de investigación científica para CTeI en la universidad pedagógica y tecnológica de Colombia UPTC, I-SPACIO  Sogamoso","CTEL",2310634882,196703104,2113931778,44078,"97 DE 2020","CONTRATADO EN EJECUCIÓN",0.1242,0.14560000000000001]
[184,"ENTIDAD APORTANTE RECURSOS","UNIVERSIDAD DE ANTIOQUIA",2020000100079,"Fortalecimiento de la infraestructura tecnológica y equipamiento del ambiente de formación industrial para el aumento de las capacidades institucionales en CTeI de la ETITC  Bogotá","CTEL",1090608306,998808306,91800000,44078,"97 DE 2020","CONTRATADO EN EJECUCIÓN",4.07E-2,4.3099999999999999E-2]
[185,"ENTIDAD APORTANTE RECURSOS","UNIVERSIDAD NACIONAL DE COLOMBIA",2020000100075,"Aprovechamiento de la biodiversidad en agraz y papa para el desarrollo de cultivos promisorios en el departamento de   Santander","CTEL",3177259696,2000000000,1177259696,44078,"97 DE 2020","CONTRATADO EN EJECUCIÓN",4.1399999999999999E-2,2.63E-2]
[186,"ENTIDAD APORTANTE RECURSOS","UNIVERSIDAD NACIONAL DE COLOMBIA",2020000100019,"Fortalecimiento de capacidades de investigación y desarrollo tecnológico de la Universidad Colegio Mayor de Cundinamarca a partir de tecnologías industria 4.0 para el diseño y construcción en   Bogotá","CTEL",2077571214,1930000000,147571214,44078,"97 DE 2020","CONTRATADO EN EJECUCIÓN",7.6E-3,3.7000000000000002E-3]
[187,"ENTIDAD APORTANTE RECURSOS","UNIVERSIDAD INDUSTRIAL DE SANTANDER",2020000100017,"Fortalecimiento DE LA CAPACIDAD INSTITUCIONAL DE INVESTIGACIÓN DE LA UNIVERSIDAD INDUSTRIAL DESANTANDER  Nacional","CTEL",2808520000,456845037.89999998,2351674962.0999999,44078,null,"CONTRATADO EN EJECUCIÓN",0,0]
[188,"ENTIDAD APORTANTE RECURSOS","UNIVERSIDAD MILITAR NUEVA GRANADA",2020000100103,"Fortalecimiento de capacidades instaladas de Ciencia y Tecnología del Laboratorio de Diagnóstico en el Campus de la Univ Militar Nueva Granada, para atender problemáticas asociadas con agentes biológicos de alto riesgo para la salud humana,  Cundinamarca","CTEL",5162742977,4168513565,994229412,43966,"93 DE 2020","CONTRATADO EN EJECUCIÓN",0.29199999999999998,0.187]
[189,"ENTIDAD APORTANTE RECURSOS","INSTITUTO UNIVERSITARIO DE LA PAZ – UNIPAZ",2020000100042,"Fortalecimiento de los procesos académicos en los programas ofrecidos por el Instituto Universitario de la Paz, UNIPAZ,   Barrancabermeja","CTEL",1178749590,996109590,182640000,43998,"94 DE 2020","CONTRATADO EN EJECUCIÓN",0.94550000000000001,0.93610000000000004]
[190,"ENTIDAD APORTANTE RECURSOS","INSTITUTO UNIVERSITARIO DE LA PAZ – UNIPAZ",2020000100016,"Adecuación , DOTACIÓN E IMPLEMENTACIÓN DE UN LABORATORIO DE FABRICACIÓN DIGITAL PARA PROMOVER EL DESARROLLO DE LA CIENCIA, LAINNOVACIÓN Y EL EMPRENDIMIENTO EN LA UNIVERSIDAD FRANCISCO DE PAULA SANTANDER.  Cúcuta","CTEL",2921057589,1946843702,974213887,43950,"92 DE 2020","CONTRATADO EN EJECUCIÓN",0.81569999999999998,0.84379999999999999]
[191,"ENTIDAD APORTANTE RECURSOS","UNIVERSIDAD TECNOLOGICA DE SANTANDER",2020000100004,"Fortalecimiento y adecuación de equipos e infraestructura del Laboratorio de física del Departamento de Ciencias Básicas, para el mejoramiento de las capacidades institucionales y la investigación en las Unidades Tecnológicas de Santander -  Bucaramanga","CTEL",1016752702,980000000,36752702,43950,"92 DE 2020","CONTRATADO EN EJECUCIÓN",1.7299999999999999E-2,2.6800000000000001E-2]
[192,"CUNDINAMARCA","SECRETARIA DE EDUCACIÓN",2020000050037,"Dotación del mobiliario escolar para las instituciones educativas de los municipios no certificados del Departamento de Cundinamarca","EDUCACIÓN",10093038848,10093038848,0,44195,"110 DE 2020","CONTRATADO EN EJECUCIÓN","94,04%","51,78%"]
[193,"ENTIDAD APORTANTE RECURSOS","UNIVERSIDAD DEL NORTE",2020000100287,"Formación de Capital Humano de Alto Nivel Universidad del Norte 2do Corte Nacional","CTEL",6920233499,6750000000,{"$f":"G201-H201","v":170233499},44330,"004 DE 2021","CONTRATADO EN EJECUCIÓN",0.1008,0.19550000000000001]
[194,"ENTIDAD APORTANTE RECURSOS","UNIVERSIDAD DEL VALLE",2020000100345,"Formación de capital humano de alto Nivel segundo Corte Universidad del Valle Nacional","CTEL",5913070114,5335769261,577300853,44348,"05 DE 2021","CONTRATADO EN EJECUCIÓN",0.1142,0.19400000000000001]
[195,"ENTIDAD APORTANTE RECURSOS","UNIVERSIDAD NACIONAL DE COLOMBIA",2021000100003,"Formación de Capital Humano de Alto Nivel Universidad  Nacional de Colombia Corte II Nacionl","CTEL",18418143500,17635937500,782206000,44330,"04 DE 2021","CONTRATADO EN EJECUCIÓN",9.1800000000000007E-2,0.1573]
[196,"ENTIDAD APORTANTE RECURSOS","UNIVERSIDAD DE LA SABANA",2021000100004,"Formación de Capital Humano de Alto Nivel Universidad de La Sabana Core 2 Nacional","CTEL",1519950000,1309600000,210350000,44348,"05 DE 2021","CONTRATADO EN EJECUCIÓN",9.6600000000000005E-2,0.2112]
[197,"ENTIDAD APORTANTE RECURSOS","UNIVERSIDAD ANTONIO NARIÑO",2021000100014,"Formación de Capital Humano de Alto Nivel Universidad Antonio Nariño Core 2 Nacional","CTEL",4526652200,4250000000,276652200,44348,"06 DE 2021","CONTRATADO EN EJECUCIÓN",6.7799999999999999E-2,0.11899999999999999]
[198,"ENTIDAD APORTANTE RECURSOS","UNIVERSIDAD EAN",2021000100025,"Formación DE CAPITAL HUMANO DE ALTO NIVEL UNIVERSIDAD EAN NACIONAL COHORTE II Nacional","CTEL",2044506416,1750000000,294506416,44368,"06 DE 2021","CONTRATADO EN EJECUCIÓN",0.223,0.10150000000000001]
[199,"ENTIDAD APORTANTE RECURSOS","UNIVERSIDAD MILITAR NUEVA GRANADA",2021000100026,"Formación de Capital Humano de Alto Nivel Universidad Militar Nueva Granada Segundo Corte Nacional","CTEL",751632481,650602304,101030177,44348,"05 DE 2021","CONTRATADO EN EJECUCIÓN",0,0]
[200,"ENTIDAD APORTANTE RECURSOS","PONIFICA UNIVERSIDAD JAVERIANA",2021000100027,"Formación de Capital Humano de Alto Nivel Pontificia Universidad Javeriana Sede Bogotá Corte II Nacional","CTEL",8577491761,7246312500,1331179261,44348,"05 DE 2021","CONTRATADO EN EJECUCIÓN",0,0.15079999999999999]
[201,"ENTIDAD APORTANTE RECURSOS","UNIVERSIDAD DE CALDAS",2021000100028,"Formación de capital humano de alto nivel Corte 2 Universidad de Caldas - Nacional","CTEL",63580000000,6000000000,57580000000,44348,"05 DE 2021","CONTRATADO EN EJECUCIÓN",0.22409999999999999,0.17749999999999999]
[202,"CUNDINAMARCA","SECRETARIA DE EDUCACIÓN",2021004250258,"Fortalecimiento a la Estrategia de Alimentación Escolar para el año 2021 en los municipios del Departamento de Cundinamarca","EDUCACIÓN",16289941201,16289941201,0,44432,"248 DE 2021","CONTRATADO EN EJECUCIÓN",0.1125,0.28149999999999997]
[203,"CUNDINAMARCA","SECRETARIA DE HABITAT Y VIVIENDA",2018000050050,"Mejoramiento vivienda rural mediante construcción de cocinas habitaciones y pisos en los municipios de Cundinamarca","AGRICULTURA ",5616585397,5616585397,0,44525,"03 DE 2021","SIN CONTRATAR",0,0]
[204,"CUNDINAMARCA","SECRETARIA DE COMPETITIVIDAD",2020000050035,"Fortalecimiento de los sistemas productivos a través de la reactivación del sector agrícola en el Departamento de Cundinamarca","AGRICULTURA ",8993872200.5599995,8993872200.5599995,0,44529,"454 DE 2021","SIN CONTRATAR",0,0]
["205","CUNDINAMARCA","MINAS Y ENERGIA","2021004250686","Construcción Del Centro De Formación E Innovación Minero Energético De Cundinamarca","GOBIERNO TERRITORIAL","$ 13.770.893.382,00","$ 6.928.967.103,00",null,null,"546 DE 2021","SIN CONTRATAR","0,00%","0,00%"]
[206,"CUNDINAMARCA","UNIDAD ADMINISTRATIVA DE GESTIÓN DEL RIESGO.",2021004250690,"Fortalecimiento del sistema automotor para la gestión del riesgo de desastres del departamento de Cundinamarca","GOBIERNO TERRITORIAL",7299514100,7299514100,{"$f":"SUM(I9:I213)","v":3779387650601.9502},null,"496 DE 2021","SIN CONTRATAR","0,00%","0,00%"]
[207,"CUNDINAMARCA","SECRETARIA DE COMPETITIVIDAD",2020000050038,"Optimización de los sistemas Ganaderos bovinos de carne leche y doble propósito a partir de la implementación de mejoramiento genético productivo y entrega de maquinaria y equipos en municipios del Departamento de Cundinamarca","AGRICULTURA ",8732449919,8732449919,null,null,"547 DE 2021","SIN CONTRATAR","0,00%","0,00%"]
[]
[null,"Fuente:  Dirección de Gestión de la Inversión - Secretaría de Planeación "]
[null,"Fecha de Corte: 31/03/2022"]

{"sheet":"Tablas","index":2,"n_rows":102,"n_cols":4,"rows_kept":102,"cut":false,"hidden":true,"merged":[]}
[]
[]
["Etiquetas de fila","Cuenta de BPIN "]
["CONTRATADO EN EJECUCIÓN",33]
["CONTRATADO SIN ACTA DE INICIO",1]
["NO HA MIGRADO A GESPROY",1]
["PARA CIERRE",2]
["SIN CONTRATAR",5]
["TERMINADO",5]
["Total general",47]
[]
[]
[]
[]
[]
["ESTADO","(Varios elementos)"]
[]
["Etiquetas de fila","Cuenta de BPIN ","Suma de VALOR PROYECTO","Suma de VALOR SGR"]
["CTEL",22,176812761559,143581342129]
["AGRICULTURA ",9,57849805829.559998,50487248957.559998]
["EDUCACIÓN",5,88155518786,88155518786]
["MINAS Y ENERGÍA",3,18281354799,10766151790]
["GOBIERNO TERRITORIAL",2,7299514100,7299514100]
["CULTURA ",1,1000000000,1000000000]
["TRANSPORTE",1,6791102422,6725380622]
["SALUD Y PROTECCIÓN SOCIAL",1,43433295564,43433295564]
["AMBIENTE Y DESARROLLO SOSTENIBLE",1,3084907873,3084907873]
["COMERCIO, INDUSTRIA Y TURISMO ",1,1752501814,1708104361]
["JUSTICIA Y DEL DERECHO ",1,9260000000,8500000000]
["Total general",47,413720762746.56,364741464182.56]
[]
[]
[]
[]
[]
[]
[]
[]
[]
[]
[]
[]
[]
[]
[]
[]
[]
["Etiquetas de fila","Cuenta de BPIN "]
["SECRETARIA DE GOBIERNO",1]
["MINAS Y ENERGIA",1]
["SECRETARIA GENERAL",1]
["SECRETARIA DE SALUD",1]
["SECRETARIA DE PLANEACIÓN",1]
["SECRETARIA DE AGRICULTURA",2]
["UNIDAD ADMINISTRATIVA DE GESTIÓN DEL RIESGO.",2]
["SECRETARIA DE MINAS, ENERGIA Y GAS",3]
["SECRETARIA DE HABITAT Y VIVIENDA",4]
["SECRETARIA DE COMPETITIVIDAD",4]
["SECRETARIA DE EDUCACIÓN",5]
["SECRETARIA DE CIENCIA, TECNOLOGIA E INNOVACIÓN",22]
["Total general",47]
[]
[]
[]
[]
[]
[]
[]
[]
[]
[]
[]
[]
[]
[]
[]
[]
[]
[]
[]
[]
[]
[]
[]
[]
[]
[]
[]
["Etiquetas de fila","Promedio de \tAVANCE FINANCIERO","Promedio de \tAVANCE FÍSICO","Cuenta de BPIN "]
["MINAS Y ENERGIA",{"$error":"#DIV/0!"},{"$error":"#DIV/0!"},1]
["SECRETARIA DE AGRICULTURA",0.89864999999999995,0.94640000000000002,2]
["SECRETARIA DE CIENCIA, TECNOLOGIA E INNOVACIÓN",0.53418636363636363,0.55909473684210531,22]
["SECRETARIA DE COMPETITIVIDAD",0.47534999999999999,0.33333333333333331,4]
["SECRETARIA DE EDUCACIÓN",0.674925,0.77812499999999996,5]
["SECRETARIA DE GOBIERNO",1,1,1]
["SECRETARIA DE HABITAT Y VIVIENDA",0.70909999999999995,0.71437499999999998,4]
["SECRETARIA DE MINAS, ENERGIA Y GAS",0.95106666666666673,0.75229999999999997,3]
["SECRETARIA DE PLANEACIÓN",0.98650000000000004,0.98519999999999996,1]
["SECRETARIA DE SALUD",0.54410000000000003,0.54379999999999995,1]
["SECRETARIA GENERAL",0.94640000000000002,1,1]
["UNIDAD ADMINISTRATIVA DE GESTIÓN DEL RIESGO.",0,0,2]
["Total general",0.62777142857142842,0.63178749999999995,47]

{"sheet":"Vencimiento días","index":3,"n_rows":106,"n_cols":13,"rows_kept":106,"cut":false,"hidden":true,"merged":[]}
["EJECUTOR (Dpto / Entidad)","EJECUTOR INTERNO","ENCARGADO DE LA ENTIDAD ","ENLACE EMTIDAD EJECUTORA","BPIN ","PROYECTO","SECTOR","VALOR PROYECTO","VALOR SGR","ESTADO","FECHA DE TERMINACIÓN","Columna2","VENCIMIENTO N° DÍAS "]
["CUNDINAMARCA","SECRETARIA GENERAL","YAHIR ARCINIEGAS","JIMENA TAFUR",2012000050010,"ESTUDIOS Y DISEÑOS PARA LA RECUPERACIÓN Y ADECUACION DEL PATRIMONIO HISTORICO CULTURAL PALACIO DE SAN FRANCISCO EN BOGOTA D.C. DEPARTAMENTO DE CUNDINAMARCA ","CULTURA ",1000000000,1000000000,"TERMINADO",43465,{"$f":"+TODAY()","v":44670},{"$f":"K2-L2","v":-1205}]
["CUNDINAMARCA","SECRETARIA DE COMPETITIVIDAD","YAHIR ARCINIEGAS","FABIAN CUESTA",2012000050030,"DESARROLLO CREACION Y FORTALECIMIENTO DE NUEVE (9) CENTROS DE EMPREDIMIENTO Y FORTALECIMIENTO EMPRESARIAL EN EL DEPARTAMENTO DE CUNDINAMARCA ","COMERCIO, INDUSTRIA Y TURISMO ",1752501814,1708104361,"PARA CIERRE",42369,44670,-2301]
["CUNDINAMARCA","SECRETARIA DE CIENCIA, TECNOLOGIA E INNOVACIÓN","DAYANA FERNANDEZ / YAHIR ARCINIEGAS","LUIS MANUEL GONZALEZ",2012000100010,"FORTALECIMIENTO DE LAS REGIONES COLOMBIANAS EN SUS CAPACIDADES DE CTI - CUNDINAMARCA","CTEL",8721806744,8721806744,"CONTRATADO EN EJECUCIÓN",44926,44670,256]
["CUNDINAMARCA","SECRETARIA DE CIENCIA, TECNOLOGIA E INNOVACIÓN","DAYANA FERNANDEZ / YAHIR ARCINIEGAS","LUIS MANUEL GONZALEZ",2012000100144,"INVESTIGACIÓN INVESTIGACION, DESARROLLO Y TRANSFERENCIA TECNOLOGICA EN EL SECTOR AGROPECUARIO Y AGROINDUSTRIAL CON EL FIN DE MEJORAR L TODO EL DEPARTAMENTO, CUNDINAMARCA, CENTRO ORIENTE","CTEL",50514736439,34707000000,"CONTRATADO EN EJECUCIÓN",45716,44670,1046]
["U EAN","SECRETARIA DE MINAS, ENERGIA Y GAS","DIEGO TORRES","ALVARO CHACON",2013000050026,"CONSTRUCCIÓN REDES ELECTRICAS EN LA ZONA RURAL DE LOS MUNICIPIOS DE PARATEBUENO Y GUTIERREZ EN EL DEPARTAMENTO DE CUNDINAMARCA","MINAS Y ENERGÍA",1068319227,1045119227,"TERMINADO",42369,44670,-2301]
["ENTIDAD APORTANTE RECURSOS","BANCO AGRARIO DE COLOMBIA","DIEGO TORRES / JEIMY FORERO",null,2013000050044,"CONSTRUCCIÓN CUNDINAMARCA VISR 2013 TODO EL DEPARTAMENTO, CUNDINAMARCA, CENTRO ORIENTE","AGRICULTURA ",60041780218,15888838218,"CONTRATADO EN EJECUCIÓN",45260,44670,590]
["CUNDINAMARCA","SECRETARIA DE CIENCIA, TECNOLOGIA E INNOVACIÓN","DAYANA FERNANDEZ / YAHIR ARCINIEGAS","LUIS MANUEL GONZALEZ",2013000100129,"INCREMENTO EN LAS ESTRATEGIAS SUSTENTABLES EN EL USO DEL RECURSO DE ENERGA ELECTRICA PARA LA POBLACION VULNERABLE EN EL DPTO. DE CUNDINAMARCA","CTEL",5170002961,4097083299,"CONTRATADO EN EJECUCIÓN",44865,44670,195]
["CUNDINAMARCA","SECRETARIA DE CIENCIA, TECNOLOGIA E INNOVACIÓN","DAYANA FERNANDEZ / YAHIR ARCINIEGAS","LUIS MANUEL GONZALEZ",2013000100176,"INNOVACIÓN SISTEMA DE PRODUCCION DE FRUTAS/HORTALIZAS FRESCAS/PROCESADAS TIPO EXPORTACION CON TECNOLOGIA BIOLOGICA /INTEGRAL INOCUA SUBACHOQUE, CUNDINAMARCA, CENTRO ORIENTE","CTEL",9285096292,6556945302,"CONTRATADO EN EJECUCIÓN",44377,44670,-293]
["CUNDINAMARCA","SECRETARIA DE CIENCIA, TECNOLOGIA E INNOVACIÓN","DAYANA FERNANDEZ / YAHIR ARCINIEGAS","LUIS MANUEL GONZALEZ",2013000100248,"INNOVACIÓN , CIENCIA Y TECNOLOGIA PARA PRODUCTORES DE LECHE EN LA PROVINCIA DE UBATE, CUNDINAMARCA.","CTEL",11619725567,9380319099,"CONTRATADO EN EJECUCIÓN",43496,44670,-1174]
["CUNDINAMARCA","SECRETARIA DE GOBIERNO","DAYANA FERNANDEZ ","EDUARDO ",2014000050010,"CONSTRUCCIÓN DE UN CENTRO DE ATENCION ESPECIALIZADA AL SERVICIO DE ADOLESCENTES INFRACTORES DE LA LEY PENAL EN EL DEPARTAMENTO DE CUNDINAMARCA","JUSTICIA Y DEL DERECHO ",9260000000,8500000000,"PARA CIERRE",43190,44670,-1480]
["CUNDINAMARCA","SECRETARIA DE HABITAT Y VIVIENDA","DIEGO TORRES Y JEIMY FORERO","BEATRIZ GAMEZ",2016000050052,"CONSTRUCCIÓN DE VIVIENDAS NUEVAS RURALES EN EL DEPARTAMENTO DE CUNDINAMARCA","AGRICULTURA ",5983779025,5343748805,"CONTRATADO EN EJECUCIÓN",44561,44670,-109]
["CUNDINAMARCA","SECRETARIA DE CIENCIA, TECNOLOGIA E INNOVACIÓN","DAYANA FERNANDEZ / YAHIR ARCINIEGAS","LUIS MANUEL GONZALEZ",2016000100027,"ANLISIS DE FACTORES GENETICOS, SANITARIOS Y MEDIOAMBIENTALES QUE AFECTAN LAS TASAS DE PREÑEZ A PARTIR DE EMBRIONES IN VITRO EN EL DEPARTAMENTO DE CUNDINAMARCA","CTEL",6401358633,5078774029,"CONTRATADO EN EJECUCIÓN",44742,44670,72]
["ENTIDAD DESIGNADA PARA LA SUPERVISIÓN DEL PROYECTO O PARA CONTRATAR LA INTERVENTORÍA","RAPE - INTERVENTORIA SECRETARIA DE PLANEACIÓN","YAHIR ARCINIEGAS","ANGELA MARTINEZ",2016000050012,"IMPLEMENTACIÓN DE ACCIONES DE CONSERVACION Y RESTAURACION DE LOS COMPLEJOS DE PARAMO, BOSQUE ALTO-ANDINO Y SERVICIOS ECOSISTEMICOS DE LA REGION CENTRAL","AMBIENTE Y DESARROLLO SOSTENIBLE",32499987282,{"$f":"H14","v":32499987282},"CONTRATADO EN EJECUCIÓN",44530,44670,-140]
["CUNDINAMARCA","SECRETARIA DE EDUCACIÓN","YAHIR ARCINIEGAS Y ALEXANDER RIVEROS","PABLO CAJAMARCA",2017000050027,"FORTALECIMIENTO DE LA PERMANENCIA DE LOS ESTUDIANTES EN LOS MUNICIPIOS DEL DEPARTAMENTO DE CUNDINAMARCA , CENTRO ORIENTE 2017 CUNDINAMARCA","EDUCACIÓN",14995289800,14995289800,"TERMINADO",43100,44670,-1570]
["ENTIDAD APORTANTE RECURSOS","MUNICIPIO DE ZIPAQUIRA","ALEXANDER RIVEROS","JAIRO JARA",2017000050029,"CONSERVACIÓN  Y GESTIÓN INTEGRAL DEL RECURSO HÍDRICO MEDIANTE LA ADQUISICIÓN Y RESTAURACIÓN DE PREDIOS DE INTERÉS ECOSISTÉMICO EN ELDEPARTAMENTO DE   CUNDINAMARCA","AMBIENTE Y DESARROLLO SOSTENIBLE",900000000,467000000,"CONTRATADO EN EJECUCIÓN",44865,44670,195]
["CUNDINAMARCA","SECRETARIA DE MINAS, ENERGIA Y GAS","DIEGO TORRES","JAHIR HERNANDEZ",2017000050036,"IMPLEMENTACIÓN Y EXPANSIÓN DEL SERVICIO DE GAS COMBUSTIBLE POR REDES PARA VEREDAS Y CENTROS POBLADOS DEL DEPARTAMENTO DE CUNDINAMARCA","MINAS Y ENERGÍA",4751658472,3069656503,"CONTRATADO EN EJECUCIÓN",44196,44670,-474]
["CUNDINAMARCA","SECRETARIA DE PLANEACIÓN","YESID CASTAÑO Y JEIMY FORERO","RUSVEL NIETO",2017000050039,"MEJORAMIENTO DE VÍAS TERCIARIAS MEDIANTE EL USO DE PLACA HUELLA EN LOS MUNICIPIOS DE GUATAVITA, PACHO, SAN JUAN DE RIOSECO, SUBACHOQUE, TENA Y ZIPAQUIRÁ, DEPARTAMENTO DE CUNDINAMARCA","TRANSPORTE",6791102422,6725380622,"CONTRATADO EN EJECUCIÓN",43830,44670,-840]
["CUNDINAMARCA","SECRETARIA DE HABITAT Y VIVIENDA","ALEXANDER RIVEROS Y JEIMY FORERO","BEATRIZ GAMEZ",2017000050042,"MEJORAMIENTO DE VIVIENDAS RURALES DE LA PROVINCIA DE UBATÉ - CUNDINAMARCA","AGRICULTURA ",2354318125,2354318125,"CONTRATADO EN EJECUCIÓN",44561,44670,-109]
["CUNDINAMARCA","SECRETARIA DE AGRICULTURA","DIEGO TORRES Y JEIMY FORERO","JAVIER HERREDIA",2017000050065,"MEJORAMIENTO DE LA PRODUCTIVIDAD Y RENTABILIDAD DE LOS CAFICULTORES DEL DEPARTAMENTO DE CUNDINAMARCA","AGRICULTURA ",6523880054,4220000000,"CONTRATADO EN EJECUCIÓN",44196,44670,-474]
["CUNDINAMARCA","SECRETARIA DE CIENCIA, TECNOLOGIA E INNOVACIÓN","DAYANA FERNANDEZ / YAHIR ARCINIEGAS","LUIS MANUEL GONZALEZ",2017000100016,"IMPLEMENTACIÓN PROGRAMA DE INNOVACIÓN PARA LA VALIDACIÓN Y GENERACIÓN DE PRODUCTOS DERIVADOS DE LA BIODIVERSIDAD EN EL DEPARTAMENTO DE CUNDINAMARCA","CTEL",4486653319,4343608212,"CONTRATADO EN EJECUCIÓN",44926,44670,256]
["CUNDINAMARCA","SECRETARIA DE CIENCIA, TECNOLOGIA E INNOVACIÓN","DAYANA FERNANDEZ / YAHIR ARCINIEGAS","LUIS MANUEL GONZALEZ",2017000100034,"IMPLEMENTACIÓN DE UN SISTEMA DE GESTIÓN DE INNOVACIÓN PARA LA INDUSTRIA DE CUNDINAMARCA","CTEL",3925471448,3714407118,"CONTRATADO EN EJECUCIÓN",44530,44670,-140]
["CUNDINAMARCA","SECRETARIA DE CIENCIA, TECNOLOGIA E INNOVACIÓN","DAYANA FERNANDEZ / YAHIR ARCINIEGAS","LUIS MANUEL GONZALEZ",2017000100074,"IMPLEMENTACIÓN DE ESTRATEGIAS DE FOMENTO A LA CULTURA Y SERVICIOS DE INNOVACIÓN EN LAS PROVINCIAS SABANA OCCIDENTE, SABANA CENTRAL, SOACHA Y SUMAPAZ CUNDINAMARCA","CTEL",6183633276,5533633276,"CONTRATADO EN EJECUCIÓN",44592,44670,-78]
["CUNDINAMARCA","SECRETARIA DE CIENCIA, TECNOLOGIA E INNOVACIÓN","DAYANA FERNANDEZ / YAHIR ARCINIEGAS","LUIS MANUEL GONZALEZ",2017000100076,"FORTALECIMIENTO DE CAPACIDADES DE GESTIÓN DEL RIESGO A TRAVÉS DE APROPIACIÓN SOCIAL DE LA CIENCIA, LA TECNOLOGÍA Y LA INNOVACIÓN EN EL DEPARTAMENTO DE CUNDINAMARCA","CTEL",4404970720,4000000000,"CONTRATADO EN EJECUCIÓN",44895,44670,225]
["CUNDINAMARCA","SECRETARIA DE CIENCIA, TECNOLOGIA E INNOVACIÓN","DAYANA FERNANDEZ / YAHIR ARCINIEGAS","LUIS MANUEL GONZALEZ",2017000100087,"FORMACIÓN DE TALENTO HUMANO DE ALTO NIVEL EN MAESTRÍAS EN EL DEPARTAMENTO DE CUNDINAMARCA","CTEL",5148022960,5048022960,"CONTRATADO EN EJECUCIÓN",45747,44670,1077]
["CUNDINAMARCA","SECRETARIA DE CIENCIA, TECNOLOGIA E INNOVACIÓN","DAYANA FERNANDEZ / YAHIR ARCINIEGAS","LUIS MANUEL GONZALEZ",2017000100104,"FORTALECIMIENTO DE LA CULTURA DE LA GESTIÓN Y UTILIZACIÓN DEL CONOCIMIENTO EN CTEI EN NIÑOS, JÓVENES Y COMUNIDADES DEL DEPARTAMENTO DE CUNDINAMARCA","CTEL",9498967749,7498967749,"CONTRATADO EN EJECUCIÓN",44926,44670,256]
["CUNDINAMARCA","SECRETARIA DE CIENCIA, TECNOLOGIA E INNOVACIÓN","DAYANA FERNANDEZ / YAHIR ARCINIEGAS","LUIS MANUEL GONZALEZ",20170000100012,"CONFORMACIÓN DE UNA CONVOCATORIA REGIONAL DE PROYECTOS I+D EN FOCOS PRIORIZADOS CTEI PARA EL FORTALECIMIENTO DE LOS GRUPOS DE INVESTIGACIÓN CUNDINAMARCA","CTEL",7321934035,7128998177,"CONTRATADO EN EJECUCIÓN",44926,44670,256]
["ENTIDAD APORTANTE RECURSOS","CAR","YESID CASTAÑO","CARLOS MURCIA",2017000050063,"RECUPERACIÓN HIDRÁULICA Y AMBIENTAL DEL COMPLEJO LAGUNAR  FÚQUENE","AMBIENTE Y DESARROLLO SOSTENIBLE",18000000000,18000000000,"CONTRATADO EN EJECUCIÓN",45199,44670,529]
["ENTIDAD APORTANTE RECURSOS","MUNICIPIO DE UTICA","JUAN CARLOS TORRES","CESAR SIMANCAS",2017000050087,"MEJORAMIENTO DEL SENDERO TURÍSTICO DE LA PROVINCIA DEL GUALIVÁ  – ÚTICA  CUNDINAMARCA","COMERCIO, INDUSTRIA Y TURISMO ",2347004868,2123058880,"CONTRATADO EN EJECUCIÓN",44530,44670,-140]
["CUNDINAMARCA","SECRETARIA DE EDUCACIÓN","YAHIR ARCINIEGAS Y ALEXANDER RIVEROS","PABLO CAJAMARCA",2018000050019,"FORTALECIMIENTO DE LA PERMANENCIA DE LOS ESTUDIANTES EN LOS MUNICIPIOS DEL DEPARTAMENTO DE CUNDINAMARCA, CENTRO ORIENTE 2018 CUNDINAMARCA","EDUCACIÓN",19395559645,19395559645,"PARA CIERRE",43830,44670,-840]
["\tENTIDAD APORTANTE RECURSOS","ICCU - GESPROY GB","YESID CASTAÑO / JEIMY FORERO","GIOVANY QUEVEDO",2018000050022,"MEJORAMIENTO Y REHABILITACIÓN DE VÍAS SECUNDARIAS EN LA PROVINCIA DE UBATÉ, DEPARTAMENTO DE CUNDINAMARCA","TRANSPORTE",7524876363,7441105086,"TERMINADO",44196,44670,-474]
["ENTIDAD APORTANTE RECURSOS","ICCU - GESPROY GB","YESID CASTAÑO / JEIMY FORERO","GIOVANY QUEVEDO",2018000050024,"MEJORAMIENTO Y REHABILITACIÓN DE LA VÍA LA MARÍA – TOBIA - PASO EL REJO - LA PEÑA, DEPARTAMENTO DE CUNDINAMARCA","TRANSPORTE",9149162991,8983328881,"TERMINADO",44316,44670,-354]
["CUNDINAMARCA","ICCU - GESPROY GB","YESID CASTAÑO / JEIMY FORERO","GIOVANY QUEVEDO",2018000050026,"MEJORAMIENTO DE VÍAS EN LA PROVINCIA DE SUMAPAZ PARA LA CONSOLIDACIÓN DE UNA PAZ ESTABLE Y DURADERA EN EL DEPARTAMENTO DE CUNDINAMARCA","TRANSPORTE",11457047617,11457047617,"CONTRATADO EN EJECUCIÓN",44317,44670,-353]
["CUNDINAMARCA","SECRETARIA DE HABITAT Y VIVIENDA","ALEXANDER RIVEROS Y JEIMY FORERO","BEATRIZ GAMEZ",2018000050039,"MEJORAMIENTO DE VIVIENDA RURAL EN LOS MUNICIPIOS DE CUCUNUBÁ, JERUSALEN, QUEBRADANEGRA Y VIOTÁ - DEPARTAMENTO DE CUNDINAMARCA","AGRICULTURA ",4024793625,4024793625,"CONTRATADO EN EJECUCIÓN",44561,44670,-109]
["ENTIDAD APORTANTE RECURSOS","ICCU - GESPROY GB","YESID CASTAÑO / JEIMY FORERO","GIOVANY QUEVEDO",2018000050049,"MEJORAMIENTO DE LA VÍA SESQUILÉ – GUATAVITA - GACHETÁ, DEPARTAMENTO DE CUNDINAMARCA","TRANSPORTE",3997714045,3935792642,"TERMINADO",44165,44670,-505]
["\tENTIDAD APORTANTE RECURSOS","ICCU - GESPROY GB","YESID CASTAÑO / JEIMY FORERO","GIOVANY QUEVEDO",2018000050055,"MEJORAMIENTO DE LA TRONCAL DE RIONEGRO, SECTOR LA PALMA CHARCO LARGO PARA LA CONSOLIDACIÓN DE UNA PAZ ESTABLE Y DURADERA EN EL DEPARTAMENTO DE CUNDINAMARCA","TRANSPORTE",17928531277,17928531277,"TERMINADO",44227,44670,-443]
["ENTIDAD APORTANTE RECURSOS","ICCU - GESPROY GB","YESID CASTAÑO / JEIMY FORERO","GIOVANY QUEVEDO",2018000050059,"MEJORAMIENTO DE LA VÍA GUSBITA - TIBIRITA DEL DEPARTAMENTO DE CUNDINAMARCA","TRANSPORTE",5500531740,4870657724,"CONTRATADO EN EJECUCIÓN","30/09/2021\n",44670,{"$error":"#VALUE!"}]
["CUNDINAMARCA","SECRETARIA DE CIENCIA, TECNOLOGIA E INNOVACIÓN","DAYANA FERNANDEZ / YAHIR ARCINIEGAS","LUIS MANUEL GONZALEZ",2018000100160,"FORMACIÓN DE CAPITAL HUMANO DE ALTO NIVEL PARA LA INVESTIGACIÓN, EL DESARROLLO TECNOLÓGICO Y LA INNOVACIÓN MAESTRÍAS DE INVESTIGACIÓN PARA DOCENTES DEL DEPARTAMENTO DE CUNDINAMARCA","CTEL",5217415747,3519725709,"CONTRATADO EN EJECUCIÓN","30/11/2027\n",44670,{"$error":"#VALUE!"}]
["ENTIDAD DESIGNADA PARA LA SUPERVISIÓN DEL PROYECTO O PARA CONTRATAR LA INTERVENTORÍA","EMPRESAS PUBLICAS DE CUNDINAMARCA -EPC","DIEGO TORRES / YEIMY FORERO","PAULA ACUÑA",20181301010555,"CONSTRUCCIÓN DE UNIDADES SANITARIAS EN EL ÁREA RURAL DEL DEPARTAMENTO DE CUNDINAMARCA","VIVIENDA, CIUDAD Y TERRITORIO ",4999900475,4999900475,"CONTRATADO EN EJECUCIÓN","31/05/2022\n",44670,{"$error":"#VALUE!"}]
["ENTIDAD APORTANTE RECURSOS","ICCU - GESPROY GB","YESID CASTAÑO / JEIMY FORERO","GIOVANY QUEVEDO",2019000050003,"MEJORAMIENTO DE LA VÍA CÁQUEZA FOSCA, DEPARTAMENTO DE CUNDINAMARCA","TRANSPORTE",4049029755,4049029755,"TERMINADO","31/10/2020\n",44670,{"$error":"#VALUE!"}]
["ENTIDAD APORTANTE RECURSOS","ICCU - GESPROY GB","YESID CASTAÑO / JEIMY FORERO","GIOVANY QUEVEDO",2019000050005,"MEJORAMIENTO DE LA VÍA FÓMEQUE UBAQUE, DEPARTAMENTO DE CUNDINAMARCA","TRANSPORTE",16514204213,14057373703,"TERMINADO","28/02/2021\n",44670,{"$error":"#VALUE!"}]
["ENTIDAD APORTANTE RECURSOS","ICCU - GESPROY GB","YESID CASTAÑO / JEIMY FORERO","GIOVANY QUEVEDO",2019000050011,"MEJORAMIENTO DE LA VÍA SUPATÁ - PACHO, DEPARTAMENTO DE CUNDINAMARCA","TRANSPORTE",7339441010,7339441010,"CONTRATADO EN EJECUCIÓN","31/05/2022\n",44670,{"$error":"#VALUE!"}]
["ENTIDAD APORTANTE RECURSOS","ICCU - GESPROY GB","YESID CASTAÑO / JEIMY FORERO","GIOVANY QUEVEDO",2019000050013,"CONSTRUCCIÓN DE LA PLAZA DE MERCADO DEL MUNICIPIO DE CHOACHÍ CUNDINAMARCA","AGRICULTURA ",3152125044,3152125044,"CONTRATADO EN EJECUCIÓN","31/03/2022\n",44670,{"$error":"#VALUE!"}]
["ENTIDAD APORTANTE RECURSOS","ICCU - GESPROY GB","YESID CASTAÑO / JEIMY FORERO","GIOVANY QUEVEDO",2019000050016,"MEJORAMIENTO DE LA VÍA ANOLAIMA CORRALEJAS (INSPECCIÓN DE CORRALEJAS), DEPARTAMENTO DE CUNDINAMARCA","TRANSPORTE",6898362469,5718724028,"TERMINADO","30/09/2021\n",44670,{"$error":"#VALUE!"}]
["CUNDINAMARCA","SECRETARIA DE EDUCACIÓN","YAHIR ARCINIEGAS Y ALEXANDER RIVEROS","PABLO CAJAMARCA",2019000050020,"FORTALECIMIENTO DE LA PERMANENCIA DE LOS ESTUDIANTES PARA EL AÑO 2019 EN LOS MUNICIPIOS DEL DEPARTAMENTO DE CUNDINAMARCA","EDUCACIÓN",20536293937,20536293937,"TERMINADO","31/10/2019\n",44670,{"$error":"#VALUE!"}]
["ENTIDAD APORTANTE RECURSOS","ICCU - GESPROY GB","YESID CASTAÑO / JEIMY FORERO","GIOVANY QUEVEDO",2019000050023,"MEJORAMIENTO DE LA VÍA LENGUAZAQUE - VILLAPINZÓN, DEPARTAMENTO DE CUNDINAMARCA","TRANSPORTE",8636278689,7310087087,"TERMINADO","31/01/2021\n",44670,{"$error":"#VALUE!"}]
["CUNDINAMARCA","SECRETARIA DE AGRICULTURA","DIEGO TORRES Y JEIMY FORERO","JAVIER HERREDIA",2019000050027," MEJORAMIENTO DE LA COMPETITIVIDAD  DE LA CADENA PRODUCTIVA DE CACAO EN EL DEPARTAMENTO DE CUNDINAMARCA","AGRICULTURA ",5862983962,4397237971,"CONTRATADO EN EJECUCIÓN","31/03/2022\n",44670,{"$error":"#VALUE!"}]
["ENTIDAD APORTANTE RECURSOS","ICCU - GESPROY GB","YESID CASTAÑO / JEIMY FORERO","GIOVANY QUEVEDO",2019000050029,"MEJORAMIENTO DE LA VÍA GACHETÁ - GAMA, DEPARTAMENTO DE CUNDINAMARCA","TRANSPORTE","$ 5.477.582.208",5322582208,"CONTRATADO EN EJECUCIÓN","30/09/2021\n",44670,{"$error":"#VALUE!"}]
["CUNDINAMARCA","SECRETARIA DE SALUD","DAYANA FERNANDEZ Y EDGAR YAHIR ARCINIEGAS","OLGA LUCIA GARZON",2019000050036,"ADQUISICIÓN DE AMBULANCIAS PARA EL FORTALECIMIENTO DE LA RED HOSPITALARIA DEL DEPARTAMENTO CUNDINAMARCA","SALUD Y PROTECCIÓN SOCIAL",2385000000,2385000000,"TERMINADO","30/09/2021\n",44670,{"$error":"#VALUE!"}]
["ENTIDAD APORTANTE RECURSOS","MEDICINA LEGAL Y CIENCIAS FORENSES","ALEXANDER RIVEROS","MARTIN SEPULVEDA",2019000050025,"ESTUDIOS Y DISEÑOS PARA LA CONSTRUCCIÓN DE LA SEDE DE MEDICINA LEGAL EN EL DEPARTAMENTO DE CUNDINAMARCA","FISCALIA",904521100,904521100,"CONTRATADO EN EJECUCIÓN","28/02/2022\n",44670,{"$error":"#VALUE!"}]
["ENTIDAD APORTANTE DE RECURSOS","ICCU - GESPROY GB","YESID CASTAÑO / JEIMY FORERO","GIOVANY QUEVEDO",2019000050047,"MEJORAMIENTO DE LA VÍA SUSA - CARMEN DE CARUPA, DEPARTAMENTO DE CUNDINAMARCA","TRANSPORTE",4131178258,4131178258,"TERMINADO","30/09/2021\n",44670,{"$error":"#VALUE!"}]
["ENTIDAD APORTANTE RECURSOS","ICCU - GESPROY GB","YESID CASTAÑO / JEIMY FORERO","GIOVANY QUEVEDO",2019000050056,"MEJORAMIENTO DE LA VÍA QUE CONDUCE DEL MUNICIPIO DE NIMAIMA AL MUNICIPIO DE NOCAIMA, DEPARTAMENTO DE CUNDINAMARCA","TRANSPORTE",5082491569.8000002,4614214508,"CONTRATADO EN EJECUCIÓN","31/12/2021\n",44670,{"$error":"#VALUE!"}]
["ENTIDAD APORTANTE RECURSOS","IDECUT","DIEGO TORRES Y YAHIR ARCINIEGAS","MARTHA VANEGAS",2019000050059,"FORTALECIMIENTO A LAS ESCUELAS MUNICIPALES DE MÚSICA, DANZA, TEATRO Y ARTES PLÁSTICAS Y VISUALES EN EL DEPARTAMENTO DE CUNDINAMARCA","CULTURA ",1972606058,1972606058,"CONTRATADO EN EJECUCIÓN",44530,44670,-140]
["\tENTIDAD APORTANTE RECURSOS","ICCU - GESPROY GB","YESID CASTAÑO / JEIMY FORERO","GIOVANY QUEVEDO",2019000050060,"ESTUDIOS Y DISEÑOS DE VÍAS PARA MEJORAR LA COMPETITIVIDAD DEL DEPARTAMENTO DE CUNDINAMARCA","TRANSPORTE",7089369627,7089369627,"TERMINADO","31/08/2021\n",44670,{"$error":"#VALUE!"}]
["CUNDINAMARCA","SECRETARIA DE MINAS, ENERGIA Y GAS","DIEGO TORRES","JAHIR HERNANDEZ",2019000050073,"AMPLIACIÓN DE LA COBERTURA DEL SERVICIO DE GAS COMBUSTIBLE DOMICILIARIO A TRAVÉS DE LA FINANCIACIÓN DE LA CONEXIÓN Y LA RED INTERNA PARA USUARIOS DE BARRIOS PERIFÉRICOS, VEREDAS Y CENTROS POBLADOS DEL DEPARTAMENTO DE CUNDINAMARCA","MINAS Y ENERGÍA",12461377100,6651376060,"CONTRATADO EN EJECUCIÓN","30/11/2021\n",44670,{"$error":"#VALUE!"}]
["ENTIDAD APORTANTE RECURSOS","ICCU - GESPROY GB","YESID CASTAÑO / JEIMY FORERO","GIOVANY QUEVEDO",2019000050075,"MEJORAMIENTO DE LA VÍA QUE CONDUCE DEL MUNICIPIO DE VIANI AL MUNICIPIO DE CHAGUANI, (DE LA Y DE SAN VICENTE A CHAGUANI), DEPARTAMENTO DE CUNDINAMARCA","TRANSPORTE",7504443091,7504443091,"CONTRATADO EN EJECUCIÓN","31/03/2022\n",44670,{"$error":"#VALUE!"}]
["\tENTIDAD APORTANTE RECURSOS","ICCU - GESPROY GB","YESID CASTAÑO / JEIMY FORERO","GIOVANY QUEVEDO",2019000050079,"MEJORAMIENTO DE LA VÍA SERREZUELA - EL TRIUNFO, MUNICIPIO DE LA CALERA, DEPARTAMENTO DE CUNDINAMARCA","TRANSPORTE",7614258187,7614258187,"TERMINADO","30/04/2021\n",44670,{"$error":"#VALUE!"}]
["ENTIDAD APORTANTE RECURSOS","ICCU - GESPROY GB","YESID CASTAÑO / JEIMY FORERO","GIOVANY QUEVEDO",2019000050085,"MEJORAMIENTO DE LA VÍA QUE CONDUCE DEL MUNICIPIO DE LA MESA AL MUNICIPIO DE CACHIPAY, (DE LA INSPECCIÓN DE PEÑA NEGRA AL MUNICIPIO DE CACHIPAY), DEPARTAMENTO DE CUNDINAMARCA","TRANSPORTE",7019896083,7019896083,"CONTRATADO EN EJECUCIÓN","28/02/2022\n",44670,{"$error":"#VALUE!"}]
["ENTIDAD APORTANTE RECURSOS","TV ANDINA","ALEXANDER RIVEROS","EDWIN",2019000050064,"PROTECCIÓN Y PRESERVACIÓN DEL PATRIMONIO AUDIOVISUAL COLOMBIANO QUE SE ENCUENTRA EN EL CANAL PÚBLICO TEVEANDINA LOCALIZADO EN EL DEPARTAMENTO DE  CUNDINAMARCA","CULTURA ",5923285198,"$ 5.597.840.098","TERMINADO","31/08/2021\n",44670,{"$error":"#VALUE!"}]
["ENTIDAD APORTANTE RECURSOS","UNAD","ALEXANDER RIVEROS","ANDRES ACOSTA",2019000050069,"MEJORAMIENTO DE INFRAESTRUCTURA FÍSICA, DOTACIÓN DE MOBILIARIO Y EQUIPAMIENTO TECNOLÓGICO DE LA UNIVERSIDAD NACIONAL ABIERTA Y A DISTANCIA EN MUNICIPIOS DEL DEPARTAMENTO DE CUNDINAMARCA","EDUCACIÓN",16011115461,16011115461,"TERMINADO","30/11/2020\n",44670,{"$error":"#VALUE!"}]
["ENTIDAD APORTANTE RECURSOS","U TECNOLOGICA DE PEREIRA","YAHIR ARCINIEGAS","LUIS MANUEL GONZALEZ",2019000100009,"FORMACIÓN DE CAPITAL HUMANO DE ALTO NIVEL UNIVERSIDAD TECNOLÓGICA DE PEREIRA  NACIONAL","CTEL",4360028215,3950208215,"CONTRATADO EN EJECUCIÓN","31/12/2027\n",44670,{"$error":"#VALUE!"}]
["ENTIDAD APORTANTE RECURSOS","U EAN","YAHIR ARCINIEGAS","LUIS MANUEL GONZALEZ",2019000100015,"FORMACIÓN DE CAPITAL HUMANO DE ALTO NIVEL - UNIVERSIDAD EAN -  NACIONAL","CTEL",1294375000,1250000000,"CONTRATADO EN EJECUCIÓN","29/02/2024\n",44670,{"$error":"#VALUE!"}]
["ENTIDAD APORTANTE RECURSOS","U CATOLICA","YAHIR ARCINIEGAS","LUIS MANUEL GONZALEZ",2019000100022,"FORMACIÓN DE CAPITAL HUMANO DE ALTO NIVEL - UNIVERSIDAD CATÓLICA DE COLOMBIA -  NACIONAL","CTEL",343595000,299220000,"CONTRATADO EN EJECUCIÓN","31/01/2028\n",44670,{"$error":"#VALUE!"}]
["ENTIDAD APORTANTE RECURSOS","UNIVERSIDAD MILITAR NUEVA GRANADA","YAHIR ARCINIEGAS","LUIS MANUEL GONZALEZ",2019000100025,"FORMACIÓN DE CAPITAL HUMANO DE ALTO NIVEL UNIVERSIDAD MILITAR NUEVA GRANADA  NACIONAL","CTEL",294375000,250000000,"CONTRATADO EN EJECUCIÓN","31/12/2027\n",44670,{"$error":"#VALUE!"}]
["ENTIDAD APORTANTE RECURSOS","UNIVERSIDAD NACIONAL DE COLOMBIA","YAHIR ARCINIEGAS","LUIS MANUEL GONZALEZ",2019000100026,"FORMACIÓN DE CAPITAL HUMANO DE ALTO NIVEL UNIVERSIDAD NACIONAL DE COLOMBIA   NACIONAL","CTEL",21162064500,20233937500,"CONTRATADO EN EJECUCIÓN","31/05/2028\n",44670,{"$error":"#VALUE!"}]
["ENTIDAD APORTANTE RECURSOS","U DISTRITAL","YAHIR ARCINIEGAS","LUIS MANUEL GONZALEZ",2019000100027,"FORMACIÓN DE CAPITAL HUMANO DE ALTO NIVEL EN DOCTORADO PARA EL DESARROLLO REGIONAL, UNIVERSIDAD DISTRITAL FRANCISCO JOSÉ DE CALDAS, A NIVEL  NACIONAL","CTEL",1218668841,1113595753,"CONTRATADO EN EJECUCIÓN","30/04/2028\n",{"$f":"+TODAY()","v":44670},{"$f":"K66-L66","v":{"$error":"#VALUE!"}}]
["ENTIDAD APORTANTE RECURSOS","U JAVERIANA","YAHIR ARCINIEGAS","LUIS MANUEL GONZALEZ",2019000100028,"FORMACIÓN DE CAPITAL HUMANO DE ALTO NIVEL PONTIFICIA UNIVERSIDAD JAVERIANA SEDE CENTRAL  NACIONAL","CTEL",6524500000,6524500000,"CONTRATADO EN EJECUCIÓN","29/02/2028\n",44670,{"$error":"#VALUE!"}]
["ENTIDAD APORTANTE RECURSOS","U DE LOS ANDES","YAHIR ARCINIEGAS","LUIS MANUEL GONZALEZ",2019000100036,"FORMACIÓN  DE CAPITAL HUMANO DE ALTO NIVEL UNIVERSIDAD DE LOS ANDES   NACIONAL","CTEL",2814671307,2748000000,"CONTRATADO EN EJECUCIÓN","30/06/2027\n",44670,{"$error":"#VALUE!"}]
["ENTIDAD APORTANTE RECURSOS","UNIVERSIDAD NACIONAL DE COLOMBIA","YAHIR ARCINIEGAS","LUIS MANUEL GONZALEZ",2019000100061,"FORTALECIMIENTO DE LA CAPACIDAD TECNOLÓGICA INSTALADA EN EL CENTRO AGROPECUARIO MARENGO PARA LA INVESTIGACIÓN EN LOS SISTEMAS AGROPRODUCTIVOS DEL TRÓPICO ALTO, BAJO EL EFECTO DE LA VARIABILIDAD Y CAMBIO CLIMÁTICO -  CUNDINAMARCA","CTEL",2386591598.0999999,1994146760,"CONTRATADO EN EJECUCIÓN","30/06/2027\n",44670,{"$error":"#VALUE!"}]
["CUNDINAMARCA","SECRETARIA DE CIENCIA, TECNOLOGIA E INNOVACIÓN","DAYANA FERNANDEZ / YAHIR ARCINIEGAS","LUIS MANUEL GONZALEZ",2020000100137,"FORTALECIMIENTO DE LAS CAPACIDADES DE INVESTIGACIÓN Y DESARROLLO PARA ATENDER PROBLEMÁTICAS ASOCIADAS CON AGENTES BIOLÓGICOS PARA LA SALUD PÚBLICA, A TRAVÉS DEL MEJORAMIENTO DEL LABORATORIO DE SALUD PÚBLICA DE CUNDINAMARCA","CTEL",4506359274,4048003426,"CONTRATADO EN EJECUCIÓN","30/04/2022\n",44670,{"$error":"#VALUE!"}]
["CUNDINAMARCA","SECRETARIA DE SALUD","DAYANA FERNANDEZ","OLGA LUCIA GARZON",2020000050003,"ADQUISICIÓN DE AMBULANCIAS,EQUIPOS BIOMÉDICOS, ELEMENTOS DE PROTECCIÓN PERSONAL, ASEO Y DESINFECCIÓN PARA LA ATENCIÓN DE LA CALAMIDAD SANITARIA POR COVID-19 EN LAS E.S.E DEL DEPARTAMENTO DE   CUNDINAMARCA","SALUD Y PROTECCIÓN SOCIAL",43433295564,43433295564,"CONTRATADO EN EJECUCIÓN","30/06/2022\n",44670,{"$error":"#VALUE!"}]
["CUNDINAMARCA","SECRETARIA DE EDUCACIÓN","YAHIR ARCINIEGAS Y ALEXANDER RIVEROS","GENNY PADILLA",2020000050019,"FORTALECIMIENTO A LA ESTRATEGIA DE ALIMENTACIÓN ESCOLAR PARA EL AÑO 2020, EN LOS MUNICIPIOS DEL DEPARTAMENTO DE CUNDINAMARCA ","EDUCACIÓN",26240955000,26240955000,"TERMINADO","30/11/2020\n",44670,{"$error":"#VALUE!"}]
["CUNDINAMARCA","SECRETARIA DE CIENCIA, TECNOLOGIA E INNOVACIÓN","YAHIR ARCINIEGAS","LUIS MANUEL GONZALEZ",2020000100266,"GENERACIÓN DE ESPACIOS DE ENCUENTRO DE LA SOCIEDAD CON LA CIENCIA Y LA TECNOLOGÍA - UN VIAJE CON LA CIENCIA EN EL DEPARTAMENTO DE CUNDINAMARCA","CTEL",2241429590,2218862102,"CONTRATADO EN EJECUCIÓN","31/12/2022\n",44670,{"$error":"#VALUE!"}]
["CUNDINAMARCA","SECRETARIA DE CIENCIA, TECNOLOGIA E INNOVACIÓN","YAHIR ARCINIEGAS","LUIS MANUEL GONZALEZ",2020000100246,"FORTALECIMIENTO DE LA COMPETITIVIDAD DE LA CADENA PRODUCTIVA DE LA GUADUA POR MEDIO DEL DESARROLLO E IMPLEMENTACIÓN DE DOS (2) PAQUETES TECNOLÓGICOS PARA LA GENERACIÓN DE PRODUCTOS CON VALOR AGREGADO EN EL DEPARTAMENTO DE CUNDINAMARCA ","CTEL",3144525520,2294345776,"CONTRATADO EN EJECUCIÓN","30/06/2023\n",44670,{"$error":"#VALUE!"}]
["ENTIDAD APORTANTE RECURSOS","FEDERACIÓN NACIONAL DE CAFETEROS","YAHIR ARCINIEGAS","LUIS MANUEL GONZALEZ",2020000100205,"TRASLADO DE TECNOLOGÍAS INNOVADORAS A CAFICULTORES CON IMPACTO SOBRE LA CALIDAD DEL CAFÉ Y LA GESTIÓN DEL RECURSO HÍDRICO DURANTE EL PROCESO DE BENEFICIO EN ZONA CAFETERA DEL DEPARTAMENTO DE CUNDINAMARCA ","CTEL",13783557324,12848931736,"CONTRATADO EN EJECUCIÓN","31/10/2024\n",44670,{"$error":"#VALUE!"}]
["ENTIDAD APORTANTE RECURSOS","AGROSAVIA","YAHIR ARCINIEGAS","LUIS MANUEL GONZALEZ",2020000100197,"DESARROLLO DE BIOPLAGUICIDAS POTENCIADOS DE NUEVA GENERACIÓN PARA EL MEJORAMIENTO DE LA PRODUCTIVIDAD E INOCUIDAD DEL CULTIVO DE TOMATE Y CRUCÍFERAS EN EL DEPARTAMENTO DE CUNDINAMARCA ","CTEL",4583970033,3282745260,"CONTRATADO EN EJECUCIÓN","31/03/2026\n",44670,{"$error":"#VALUE!"}]
["ENTIDAD APORTANTE RECURSOS","UNIVERSIDAD NACIONAL DE COLOMBIA","YAHIR ARCINIEGAS","LUIS MANUEL GONZALEZ",2020000100240,"ESTUDIO DE PREFACTIBILIDAD PARA LA CREACIÓN DE UN CENTRO DE INNOVACIÓN Y DE PRODUCTIVIDAD PARA EL SECTOR AGROPECUARIO DE SABANA OCCIDENTE DE CUNDINAMARCA ","CTEL",1896154229,1707430133,"CONTRATADO EN EJECUCIÓN","31/12/2022\n",44670,{"$error":"#VALUE!"}]
["ENTIDAD APORTANTE RECURSOS","ZIPAQUIRA","YESID CASTAÑO / JEIMY FORERO",null,2020000050013,"Mejoramiento de la vía que comunica a los municipios de Zipaquirá y Tocancipá, tramo barandillas - la fuente, departamento de Cundinamarca","TRANSPORTE","6.788.620.869,00",{"$f":"H78","v":"6.788.620.869,00"},"CONTRATADO EN EJECUCIÓN","30/04/2022\n",44670,{"$error":"#VALUE!"}]
["CUNDINAMARCA","SECRETARIA DE CIENCIA, TECNOLOGIA E INNOVACIÓN","YAHIR","LUIS MANUEL GONZALEZ",2020000100695,"DESARROLLO, TRANSFERENCIA DE TECNOLOGÍA Y CONOCIMIENTO PARA LA INNOVACIÓN QUE FORTALEZCAN CAPACIDADES COMUNITARIAS EN LA COMPRENSIÓN Y/O MITIGACIÓN DE LOS PROBLEMAS DE VIOLENCIAS BASADAS EN GÉNERO, DERIVADAS DE LA EMERGENCIA POR COVID 19, EN CUNDINAMARCA","CTEL",3100000000,3000000000,"CONTRATADO EN EJECUCIÓN","31/03/2023\n",44670,{"$error":"#VALUE!"}]
["CUNDINAMARCA","SECRETARIA DE CIENCIA, TECNOLOGIA E INNOVACIÓN","YAHIR","LUIS MANUEL GONZALEZ",2020000100650,"FORTALECIMIENTO DE CAPACIDADES DE CTEI PARALA INNOVACION EDUCATIVA EN LOS NIVELES DE BÁSICA Y\nMEDIA, MEDIANTE USO DE TICS EN INSTITUCIONES EDUCATIVAS OFICIALES DE LOS MUNICIPIOS NO\nCERTIFICADOS DEL DEPARTAMENTO DE CUNDINAMARCA","CTEL",10804663122,9999728696,"CONTRATADO EN EJECUCIÓN","31/10/2023\n",44670,{"$error":"#VALUE!"}]
["CUNDINAMARCA","SECRETARIA DE CIENCIA, TECNOLOGIA E INNOVACIÓN","YAHIR","LUIS MANUEL GONZALEZ",2020000100696,"FORTALECIMIENTO DE CAPACIDADES DE CTEI PARA LA REACTIVACIÓN ECONÓMICA Y LA TRANSFORMACIÓN\nPRODUCTIVA EN CUNDINAMARCA","CTEL",7370634083,6974290175,"CONTRATADO EN EJECUCIÓN","30/09/2023\n",44670,{"$error":"#VALUE!"}]
["CUNDINAMARCA","SECRETARIA DE CIENCIA, TECNOLOGIA E INNOVACIÓN","YAHIR","LUIS MANUEL GONZALEZ",2020000100649,"FORTALECIMIENTO DE CAPACIDADES DE CTeI PARA EL RELACIONAMIENTO ESCUELA - CONTEXTO RURAL MEDIANTE LA APROPIACIÓN Y USO DE LAS TIC EN EL MUNICIPIO DE SIBATÉ, DEPARTAMENTO DE CUNDINAMARCA","CTEL",4292464018,2645464018,"CONTRATADO EN EJECUCIÓN\n\n","30/11/2023\n",44670,{"$error":"#VALUE!"}]
["CUNDINAMARCA","FUNDACION UNIVERSIDAD DEL VALLE","YAHIR","JOSE MARIA LEITON",2020000050044,"FORTALECIMIENTO DE LAS COMPETENCIAS COMUNICATIVAS EN INGLÉS DE LOS ESTUDIANTES DE LOS ESTABLECIMIENTOS EDUCATIVOS NO OFICIALES DE CUNDINAMARCA","EDUCACIÓN","$ 10.468.961.978",10411761978,"CONTRATADO EN EJECUCIÓN","31/07/2023\n",44670,{"$error":"#VALUE!"}]
["ENTIDAD APORTANTE RECURSOS","UNAD",null,"LUIS MANUEL GONZALEZ",2020000100433,"Investigación de los compuestos volátiles orgánicos e inducidos para el manejo de moscas plagas en gulupa y granadilla en el departamento de  Cundinamarca","CTEL",3412874201,1999985660,"CONTRATADO EN EJECUCIÓN","31/08/2024\n",44670,{"$error":"#VALUE!"}]
["ENTIDAD APORTANTE RECURSOS","UNIVERSIDAD INDUSTRIAL DE SANTANDER",null,"LUIS MANUEL GONZALEZ",2020000100415,"Desarrollo de un sistema óptico  computacional para estimar el contenido de carbono orgánico de suelos agrícolas a través de imágenes espectrales e inteligencia artificial en cultivos de cítricos de   Santander","CTEL",2184125885.29,1972224989,"CONTRATADO EN EJECUCIÓN","31/03/2024\n",44670,{"$error":"#VALUE!"}]
["ENTIDAD APORTANTE RECURSOS","UNIVERSIDAD INDUSTRIAL DE SANTANDER",null,"LUIS MANUEL GONZALEZ",2020000100375,"Conformación de una plataforma para estudios celulares avanzados in vivo en tiempo real para el análisis de la respuesta inmunometabólica ante la reexpresión de interferón tipo I kappa en esferoides de células tumorales de cuello uterino en  Santander","CTEL",3123997801,1998887911,"CONTRATADO EN EJECUCIÓN","31/05/2024\n",44670,{"$error":"#VALUE!"}]
["ENTIDAD APORTANTE RECURSOS","UNIVERSIDAD INDUSTRIAL DE SANTANDER",null,"LUIS MANUEL GONZALEZ",2020000100351,"Desarrollo de un prototipo selectivo y sensible para monitorear contenido de cadmio in situ en diversas matrices asociadas a la producción de granos de cacao en el departamento de  Santander","CTEL",2585800000,2000000000,"CONTRATADO EN EJECUCIÓN","31/10/2022\n",44670,{"$error":"#VALUE!"}]
["ENTIDAD APORTANTE RECURSOS","UNIVERSIDAD NACIONAL DE COLOMBIA",null,"LUIS MANUEL GONZALEZ",2020000100342,"Estudio de potenciales insecticidas en matrices poliméricas para el control de plagas de granos almacenados basados en aceites esenciales provenientes de la biodiversidadflorística del departamento de  Cundinamarca","CTEL",2748237104,2000000000,"CONTRATADO EN EJECUCIÓN","31/07/2024\n",44670,{"$error":"#VALUE!"}]
["ENTIDAD APORTANTE RECURSOS","UNIVERSIDAD MILITAR NUEVA GRANADA",null,"LUIS MANUEL GONZALEZ",2020000100728,"Generación y transferencia de conocimientos y tecnologías para elevar capacidades de CTel de pequeños productores de tomate para afrontar problemas derivados del COVID-19 asociadas a la Seg. Alimentaria en las Sab. Centro y Oriente  Cundinamarca","CTEL",4162541452,2123613452,"CONTRATADO EN EJECUCIÓN","31/07/2023\n",44670,{"$error":"#VALUE!"}]
["ENTIDAD APORTANTE RECURSOS","UNIVERSIDAD NACIONAL DE COLOMBIA",null,"LUIS MANUEL GONZALEZ",2020000100339,"Desarrollo de Nuevos Métodos No Destructivos para Monitoreo In Situ de Probabilidad de Ocurrencia de Falla en Tuberías en el Sector de Hidrocarburos en los Departamentos de  Bogotá Boyacá Santander","CTEL",2412084140,1999876300,"CONTRATADO EN EJECUCIÓN","31/05/2023\n",44670,{"$error":"#VALUE!"}]
["ENTIDAD APORTANTE RECURSOS","UNIVERSIDAD MILITAR NUEVA GRANADA",null,"LUIS MANUEL GONZALEZ",2020000100216,"Innovación y transferencia tecnológica de UMNGBIO a productores de flores para el control biológico de Tetranychus urticae (Acari: Tetranychiidae) en cultivos de invernadero con el ácaro benéfico Neoseiulus californicus (Acari: Phytoseiidae)  Cundinamarca","CTEL",2431580000,1241580000,"CONTRATADO EN EJECUCIÓN","30/06/2024\n",44670,{"$error":"#VALUE!"}]
["ENTIDAD APORTANTE RECURSOS","UNIVERSIDAD NACIONAL DE COLOMBIA",null,"LUIS MANUEL GONZALEZ",2020000100169,"Investigación Desarrollo, innovación y transferencia de conocimiento para el procesamiento de la semilla de Sacha Inchi en productos de valor agregado, como estrategia para mejorar la productividad del sector agroindustrial de la Región  Cundinamarca","CTEL",2757697312,456319666.11000001,"CONTRATADO EN EJECUCIÓN","30/06/2024\n",44670,{"$error":"#VALUE!"}]
["ENTIDAD APORTANTE RECURSOS","UPTC",null,"LUIS MANUEL GONZALEZ",2020000100114,"Fortalecimiento del ecosistema de investigación científica para CTeI en la universidad pedagógica y tecnológica de Colombia UPTC, I-SPACIO  Sogamoso","CTEL",2310634882,196703104,"CONTRATADO EN EJECUCIÓN","31/05/2023\n",44670,{"$error":"#VALUE!"}]
["ENTIDAD APORTANTE RECURSOS","UNIVERSIDAD DE ANTIOQUIA",null,"LUIS MANUEL GONZALEZ",2020000100079,"Fortalecimiento de la infraestructura tecnológica y equipamiento del ambiente de formación industrial para el aumento de las capacidades institucionales en CTeI de la ETITC  Bogotá","CTEL",1090608306,998808306,"CONTRATADO EN EJECUCIÓN","30/04/2023\n",44670,{"$error":"#VALUE!"}]
["ENTIDAD APORTANTE RECURSOS","UNIVERSIDAD NACIONAL DE COLOMBIA",null,"LUIS MANUEL GONZALEZ",2020000100075,"Aprovechamiento de la biodiversidad en agraz y papa para el desarrollo de cultivos promisorios en el departamento de   Santander","CTEL",3177259696,2000000000,"CONTRATADO EN EJECUCIÓN","30/09/2024\n",44670,{"$error":"#VALUE!"}]
["ENTIDAD APORTANTE RECURSOS","UNIVERSIDAD INDUSTRIAL DE SANTANDER",null,"LUIS MANUEL GONZALEZ",2020000100017,"Fortalecimiento DE LA CAPACIDAD INSTITUCIONAL DE INVESTIGACIÓN DE LA UNIVERSIDAD INDUSTRIAL DESANTANDER  Nacional","CTEL",2808520000,456845037.89999998,"CONTRATADO EN EJECUCIÓN","30/11/2023\n",44670,{"$error":"#VALUE!"}]
["ENTIDAD APORTANTE RECURSOS","UNIVERSIDAD MILITAR NUEVA GRANADA",null,"LUIS MANUEL GONZALEZ",2020000100103,"Fortalecimiento de capacidades instaladas de Ciencia y Tecnología del Laboratorio de Diagnóstico en el Campus de la Univ Militar Nueva Granada, para atender problemáticas asociadas con agentes biológicos de alto riesgo para la salud humana,  Cundinamarca","CTEL",5162742977,4168513565,"CONTRATADO EN EJECUCIÓN","30/09/2022\n",44670,{"$error":"#VALUE!"}]
["ENTIDAD APORTANTE RECURSOS","INSTITUTO UNIVERSITARIO DE LA PAZ – UNIPAZ",null,"LUIS MANUEL GONZALEZ",2020000100042,"Fortalecimiento de los procesos académicos en los programas ofrecidos por el Instituto Universitario de la Paz, UNIPAZ,   Barrancabermeja","CTEL",1178749590,996109590,"CONTRATADO EN EJECUCIÓN","31/05/2022\n",44670,{"$error":"#VALUE!"}]
["ENTIDAD APORTANTE RECURSOS","INSTITUTO UNIVERSITARIO DE LA PAZ – UNIPAZ",null,"LUIS MANUEL GONZALEZ",2020000100016,"Adecuación , DOTACIÓN E IMPLEMENTACIÓN DE UN LABORATORIO DE FABRICACIÓN DIGITAL PARA PROMOVER EL DESARROLLO DE LA CIENCIA, LAINNOVACIÓN Y EL EMPRENDIMIENTO EN LA UNIVERSIDAD FRANCISCO DE PAULA SANTANDER.  Cúcuta","CTEL",2921057589,1946843702,"CONTRATADO EN EJECUCIÓN","31/10/2022\n",44670,{"$error":"#VALUE!"}]
["ENTIDAD APORTANTE RECURSOS","UNIVERSIDAD TECNOLOGICA DE SANTANDER",null,"LUIS MANUEL GONZALEZ",2020000100004,"Fortalecimiento y adecuación de equipos e infraestructura del Laboratorio de física del Departamento de Ciencias Básicas, para el mejoramiento de las capacidades institucionales y la investigación en las Unidades Tecnológicas de Santander -  Bucaramanga","CTEL",1016752702,980000000,"CONTRATADO EN EJECUCIÓN","31/07/2022\n",44670,{"$error":"#VALUE!"}]
["CUNDINAMARCA","SECRETARIA DE EDUCACIÓN",null,"GENNY PADILLA",2020000050037,"Dotación del mobiliario escolar para las instituciones educativas de los municipios no certificados del Departamento de Cundinamarca","EDUCACIÓN",10093038848,10093038848,"CONTRATADO EN EJECUCIÓN","31/05/2022\n",44670,{"$error":"#VALUE!"}]
["ENTIDAD APORTANTE RECURSOS","UNIVERSIDAD DEL NORTE",null,"LUIS MANUEL GONZALEZ",2020000100287,"Formación de Capital Humano de Alto Nivel Universidad del Norte 2do Corte Nacional","CTEL",6920233499,6750000000,"CONTRATADO EN EJECUCIÓN","30/04/2029\n",44670,{"$error":"#VALUE!"}]
["ENTIDAD APORTANTE RECURSOS","UNIVERSIDAD DEL VALLE",null,"LUIS MANUEL GONZALEZ",2020000100345,"Formación de capital humano de alto Nivel segundo Corte Universidad del Valle Nacional","CTEL",5913070114,5335769261,"CONTRATADO EN EJECUCIÓN","31/07/2029\n",44670,{"$error":"#VALUE!"}]
["ENTIDAD APORTANTE RECURSOS","UNIVERSIDAD NACIONAL DE COLOMBIA",null,"LUIS MANUEL GONZALEZ",2021000100003,"Formación de Capital Humano de Alto Nivel Universidad  Nacional de Colombia Corte II Nacionl","CTEL",18418143500,17635937500,"CONTRATADO EN EJECUCIÓN","31/07/2029\n",44670,{"$error":"#VALUE!"}]
["ENTIDAD APORTANTE RECURSOS","UNIVERSIDAD DE CALDAS",null,"LUIS MANUEL GONZALEZ",2021000100028,"Formación de capital humano de alto nivel Corte 2 Universidad de Caldas - Nacional","CTEL",63580000000,6000000000,"CONTRATADO EN EJECUCIÓN","31/08/2029\n",44670,{"$error":"#VALUE!"}]
["CUNDINAMARCA","SECRETARIA DE EDUCACIÓN",null,"GENNY PADILLA",2021004250258,"Fortalecimiento a la Estrategia de Alimentación Escolar para el año 2021 en los municipios del Departamento de Cundinamarca","EDUCACIÓN",16289941201,16289941201,"CONTRATADO EN EJECUCIÓN","31/12/2021\n",44670,{"$error":"#VALUE!"}]

{"sheet":"Graficas","index":4,"n_rows":1,"n_cols":1,"rows_kept":1,"cut":false,"hidden":false,"merged":[[0,0,0,28]]}
[" SISTEMAS GENERAL DEL REGALÍAS-BASE DE PROYECTOS APROBADOS"]

{"sheet":"Control de avances","index":5,"n_rows":1651,"n_cols":31,"rows_kept":1651,"cut":false,"hidden":true,"merged":[[202,14,202,16],[0,13,0,14],[0,16,0,17],[199,14,199,16],[200,14,200,16],[201,14,201,16]]}
[null,null,null,null,null,null,null,null,null,null,null,null,null,"\tAVANCE FÍSICO Y FINANCIERO",null,null,"ESTADO",null,null,null,null,null,null,null,null,44605,null,44669]
["EJECUTOR (Dpto / Entidad)","EJECUTOR INTERNO","ENCARGADO DE LA ENTIDAD ","BPIN ","PROYECTO","OBJETIVO","SECTOR","VALOR PROYECTO","\tAVANCE FINANCIERO",null,null,"COMENTARIO",null,"presento avance en el mes vigente ",null,null,"presento avance en el mes vigente ",null,null,null,null,null,null,null,null,44605,44605,44620]
["CUNDINAMARCA","SECRETARIA DE AMBIENTE","ALEXANDER RIVEROS Y YAHIR ARCINIEGAS",2012000050005,"ESTUDIOS Y DISEÑOS DE DETALLE EMBALSE CALANDAIMA MUNICIPIO DE EL COLEGIO DEPARTAMENTO DE CUNDINAMARCA","MEJORAR EL SUMINISTRO DEL RECURSO HIDRICO EN LOS MUNICIPIOS DE EL COLEGIO VIOTA APULO TOCAIMA Y ANAPOIMA","AMBIENTE Y DESARROLLO SOSTENIBLE",4000000000,1,null,null,null,null,"lleva 1 mes sin reportar avance",null,null,"lleva 3 mes sin reportar avance",null,null,null,null,null,null,null,null,44620,44620,44620,{"$f":"IF(AA3=0,0,_xlfn.DAYS(AA3,TODAY()))","v":-50},{"$f":"IF(AB3=0,0,_xlfn.DAYS(AB3,TODAY()))","v":-50},{"$f":"IF(Z3=0,0,_xlfn.DAYS(Z3,TODAY()))","v":-50}]
["CUNDINAMARCA","ICCU - GESPROY GB","DIEGO TORRES / JEIMY FORERO",2012000050006,"CONSTRUCCIÓN CUBIERTA COLISEO DEL CENTRO AGROTECNOLOGICO DE EXPOSICIONES Y COMERCIALIZACION DE LA REGION DEL SUMAPAZ EN EL MUNICIPIO DE FUSAGASUGA - CUNDINAMARCA","FOMENTAR EL CRECIMIENTO Y DESARROLLO ECONÓMICO DEL SECTOR AGROINDUSTRIAL EN LA REGIÓN DEL SUMAPAZ","AGRICULTURA ",6352617736,0.99539999999999995,null,null,null,null,"lleva 3 mes sin reportar avance",null,null,"lleva 6 mes sin reportar avance",null,null,null,null,null,null,null,null,44620,44609,44620,{"$f":"IF(AA4=0,0,_xlfn.DAYS(AA4,TODAY()))","v":-61},{"$f":"IF(AB4=0,0,_xlfn.DAYS(AB4,TODAY()))","v":-50},{"$f":"IF(Z4=0,0,_xlfn.DAYS(Z4,TODAY()))","v":-50}]
["CUNDINAMARCA","SECRETARIA DE AGRICULTURA","DIEGO TORRES/VALENTINA PORTILLO",2012000050007,"FORTALECIMIENTO DE LAS CADENAS HORTIFRUTICOLA Y AROMATICAS EN CUNDINAMARCA","MEJORAR LA COMPETITIVIDAD ECONÓMICA, SOCIAL Y AMBIENTAL DE PRODUCTORES DE LAS CADENAS DE MANGO, MORA Y AROMÁTICAS, DEL DEPARTAMENTO DE CUNDINAMARCA, ACOMPAÑADO DE PRODUCCIÓN DE ABONOS ORGANICOS E IMPLEMENTACIÓN DE POSCOSECHA Y VALOR AGREGADO.","AGRICULTURA ",2490400000,1,null,null,null,null,"lleva 4 mes sin reportar avance",null,null,"lleva 9 mes sin reportar avance",null,null,null,null,null,null,null,null,44609,44609,44609,{"$f":"IF(AA5=0,0,_xlfn.DAYS(AA5,TODAY()))","v":-61},-61,-61]
["CUNDINAMARCA","SECRETARIA DE AGRICULTURA","DIEGO TORRES/VALENTINA PORTILLO",2012000050009,"FORTALECIMIENTO DE LA PRODUCTIVIDAD Y COMPETITIVIDAD DEL SECTOR CACAOTERO EN EL DEPARTAMENTO DE CUNDINAMARCA ","AUMENTO DE LA PRODUCTIVIDAD DE LAS ÁREAS CACAOTERAS DEL DEPARTAMENTO DE CUNDINAMARCA ","AGRICULTURA ",2334689275,0.96340000000000003,null,null,null,null,"lleva 6 mes sin reportar avance",null,null,"lleva 1 año sin reportar avance",null,null,null,null,null,null,null,null,44609,44609,44609,-61,-61,-61]
["CUNDINAMARCA","SECRETARIA GENERAL","YAHIR ARCINIEGAS",2012000050010,"ESTUDIOS Y DISEÑOS PARA LA RECUPERACIÓN Y ADECUACION DEL PATRIMONIO HISTORICO CULTURAL PALACIO DE SAN FRANCISCO EN BOGOTA D.C. DEPARTAMENTO DE CUNDINAMARCA ","GESTIONAR INTEGRALMENTE EL DESARROLLO DE LA RESTAURACION Y ADECUACION CON LA FORMULACION DE ESTUDIOS Y DISEÑOS DEL MONUMENTO HISTORICO PALACIO DE SAN FRANCISCO","CULTURA ",1000000000,0.94640000000000002,null,null,null,null,null,null,null,null,null,null,null,null,null,null,null,null,44609,44609,44609,-61,-61,-61]
["CUNDINAMARCA","SECRETARIA DE EDUCACIÓN","YAHIR ARCINIEGAS Y ALEXANDER RIVEROS",2012000050011,"FORTALECIMIENTO DE LA PERMANENCIA DE LOS ESTUDIANTES EN LOS MUNICIPIOS DEL DEPARTAMENTO DE CUNDINAMARCA DEPARTAMENTO DE CUNDINAMARCA\n","\nDISMINUIR LA DESERCIÓN EN LOS MUNICIPIOS DEL DEPARTAMENTO DE CUNDINAMARCA","EDUCACIÓN",6000000000,0.58189999999999997,null,null,"Posibles Retrasos en los Pagos",null,null,null,null,null,null,null,null,null,null,null,null,null,44609,44609,44609,-61,-61,-61]
["CUNDINAMARCA","SECRETARIA DE DESARROLLO E INCLUSIÓN SOCIAL","ALEXANDER RIVEROS Y JEIMY FORERO",2012000050012,"IMPLEMENTACIÓN DEL PROGRAMA DE COMPLEMENTACION ALIMENTARIA Y NUTRICIONAL EN MENORES DE 5 AÑOS, MUJERES GESTANTES Y LACTANTES EN TODO EL DEPARTAMENTO DE CUNDINAMARCA","MEJORAR Y FORTALECER LA SEGURIDAD ALIMENTARIA Y NUTRICIONAL EN EL DEPARTAMENTO FACILITANDO EL ACCESO A LOS ALIMENTOS Y NUTRIENTES CRÍTICOS A LOS GRUPOS POBLACIONALES MÁS VULNERABLES.","SALUD Y PROTECCIÓN SOCIAL",4531022720,0.99719999999999998,null,null,null,null,null,null,null,null,null,null,null,null,null,null,null,null,44609,44609,44609,-61,-61,-61]
["CUNDINAMARCA","SECRETARIA DE TRANSPORTE Y MOVILIDAD","DAYANA FERNANDEZ Y EDGAR YAHIR ARCINIEGAS",2012000050013,"ACTUALIZACION Y FORMULACION DE LOS ESTUDIOS Y DISEÑOS FASE II Y III DE LA EXTENCION NORTE - QUITO - SUR DEL SISTEMA TRANSMILENIO AL MUNICIPIO DE SOACHA DEPARTAMENTO DE CUNDINAMARCA ","INTRANSITABILIDAD VEHICULAR DE LA VIA LIMITE DEL DISTRITO AL MUNICIPIO DE SOACHA","SALUD Y PROTECCIÓN SOCIAL",4026917304,0.97030000000000005,null,null,null,null,null,null,null,null,null,null,null,null,null,null,null,null,44609,44609,44609,-61,-61,-61]
["CUNDINAMARCA","SECRETARIA DE AGRICULTURA","DIEGO TORRES/VALENTINA PORTILLO",2012000050014,"MEJORAMIENTO DE LA COMPETITIVIDAD Y SOSTENIBILIDAD DEL SUB SECTOR PANELERO DE CUNDINAMARCA","FORTALECER LA COMPETITIVIDAD DEL SUBSECTOR PANELERO A TRAVÉS DE LA IMPLEMENTACIÓN DEL PLAN DEPARTAMENTAL DE RECONVERSIÓN TECNOLÓGICA EN 8\nMUNCIPIOS DEL DEPARTAMENTO DE CUNDINAMARCA","AGRICULTURA ",1559272190,1,null,null,null,null,null,null,null,null,null,null,null,null,null,null,null,null,44609,44609,44609,-61,-61,-61]
["CUNDINAMARCA","SECRETARIA DE AGRICULTURA","DIEGO TORRES/VALENTINA PORTILLO",2012000050023,"FORTALECIMIENTO DE LA ACTIVIDAD CAFETERA COMO ALTERNATIVA SOSTENIBLE DE DESARROLLO REGIONAL EN EL DEPARTAMENTO DE CUNDINAMARCA ","CONTRIBUIR EN LA GENERACIÓN DE INGRESOS ESTABLES Y AL MEJORAMIENTO DE LAS CONDICIONES DE VIDA DE LAS FAMILIAS CAFETERAS DE CUNDINAMARCA, ATRAVÉS DE LA INSTALACIÓN DE CULTIVOS RENOVADOS Y TECNIFICADOS, Y LA IMPLEMENTACIÓN DE ESQUEMAS AGROFORESTALES.","AGRICULTURA ",77168795512,0.99990000000000001,null,null,null,null,null,null,null,null,null,null,null,null,null,null,null,null,44609,44609,44609,-61,-61,-61]
["CUNDINAMARCA","SECRETARIA DE AGRICULTURA","DIEGO TORRES/VALENTINA PORTILLO",2012000050024,"IMPLEMENTACION DE UN MODELO DE PRODUCCION EN SISTEMAS DE DOBLE PROPOSITO EN PEQUEÑOS PRODUCTORES DEL DEPARTAMENTO DE CUNDINAMARCA","DESARROLLAR UN MODELO ALTERNATIVO DE PRODUCCIÓN DE CARNE Y LECHE PARA SISTEMAS DE DOBLE PROPOSITO ORIENTADO A MEJORAR LOS NIVELES DE PRODUCCIÓN Y RENTABILIDAD DE PEQUEÑOS PRODUCTORES LOCALIZADOS EN CUATRO MUNICIPIOS DEL DEPARTAMENTO DE CUNDINAMARCA","AGRICULTURA ",3371686373,0.99439999999999995,null,null,null,null,null,null,null,null,null,null,null,null,null,null,null,null,44609,44609,44609,-61,-61,-61]
["CUNDINAMARCA","SECRETARIA DE GOBIERNO","YESID CASTAÑO",2012000050025,"ESTUDIOS Y DISEÑOS PARA LA CONSTRUCCIÓN DE UN CENTRO ESPECIALIZADO AL SERVICIO DE ADOLESCENTES INFRACTORES DE LA LEY EN EL DEPARTAMENTO DE CUNDINAMARCA","DESARROLLAR DESDE LA ETAPA DE PREINVERSION UN CENTRO DE ATENCION ESPECIALIZADO PARA ATENDER, ORIENTAR Y RESOCIALIZAR A MENORES INFRACTORES DE\nLA LEY EN EL DEPARTAMENTO DE CUNDINAMARCA","DEFENSA",200000000,1,null,null,null,null,null,null,null,null,null,null,null,null,null,null,null,null,44609,44609,44609,-61,-61,-61]
["ENTIDAD APORTANTE RECURSOS","MUNICIPIO DE COGUA","ALEXANDER RIVEROS",2012000050026,"MEJORAMIENTO DE LA VA COGUA-SAN CAYETANO (SECTOR LAS MARGARITAS K8+300 SECTOR LAS MARGARITAS HASTA K10+300) CON K0+00 EN COGUA DEPARTAMENTO DE CUNDINAMARCA","AUMENTAR LA TRANSITABILIDAD VEHICULAR EN LA VÌA COGUA - SAN CAYETANO DEL DEPARTAMENTO DE CUNDINAMARCA","TRANSPORTE",2000000000,1,null,null,null,null,null,null,null,null,null,null,null,null,null,null,null,null,44609,44609,44609,-61,-61,-61]
["ENTIDAD APORTANTE RECURSOS","ICCU - GESPROY GB","DIEGO TORRES / JEIMY FORERO",2012000050027,"MEJORAMIENTO DE LA VA UBALA-PALOMAS-MAMBITA (K0+00 UBICADO EN EL SITIO PROFESIONALES MUNICIPIO DE UBALA), DEPARTAMENTO DE CUNDINAMARCA ","AUMENTAR LA TRANSITABILIDAD VEHICULAR EN LA VIA UBALA - PALOMAS - MAMBITA","TRANSPORTE",3359160462,0.98660000000000003,null,null,null,null,null,null,null,null,null,null,null,null,null,null,null,null,44609,44609,44609,-61,-61,-61]
["ENTIDAD APORTANTE RECURSOS","ICCU - GESPROY GB","DIEGO TORRES / JEIMY FORERO",2012000050028,"MEJORAMIENTO Y MANTENIMIENTO DE LA RED VIAL SECUNDARIA Y TERCIARIA MEDIANTE LA DOTACIÓN DE MAQUINARIA A LOS MUNICIPIOS DEL DEPARTAMENTO DE CUNDINAMARCA ","MEJORAR LA TRANSITABILIDAD DE LAS VIAS SECUNDARIAS Y TERCIARIAS DE 41 MUNICIPIOS DEL DEPARTAMENTO DE CUNDINAMARCA","TRANSPORTE",19769772343,0.93179999999999996,null,null,null,null,null,null,null,null,null,null,null,null,null,null,null,null,44609,44609,44609,-61,-61,-61]
["ENTIDAD APORTANTE RECURSOS","SECRETARIA DE MINAS, ENERGIA Y GAS","DIEGO TORRES",2012000050029,"IMPLEMENTACIÓN Y MASIFICACION DEL SERVICIO DE GAS COMBUSTIBLE POR REDES PARA MUNICIPIOS DE ANOLAIMA, CACHIPAY, CHOACHI, FOMEQUE, UBAQUE Y VIOTA CUNDINAMARCA","AMPLIAR LA COBERTURA DEL SERVICIO DE GAS NATURAL COMBUSTIBLE EN LOS MUNICIPIOS DE ANOLAIMA, CACHIPAY, CHOACHI, FOMEQUE Y UBAQUE CUNDINAMARCA,","MINAS Y ENERGÍA",15253036000,0.94499999999999995,null,null,null,null,null,null,null,null,null,null,null,null,null,null,null,null,44609,44609,44609,-61,-61,-61]
["CUNDINAMARCA","SECRETARIA DE COMPETITIVIDAD","ALEXANDER RIVEROS/JEIMY FORERO",2012000050030,"DESARROLLO CREACION Y FORTALECIMIENTO DE NUEVE (9) CENTROS DE EMPREDIMIENTO Y FORTALECIMIENTO EMPRESARIAL EN EL DEPARTAMENTO DE CUNDINAMARCA ","CREACION Y FUNCIONAMIENTO DE CENTRO DE EMPRENDIMIENTO A NIVEL REGIONAL ENVARGADOS DE GENERAR CULTURA EMPRENDEDORA Y APOYAR LAS INICIATIVAS POR OPORTUNIDAD O NECESIDAD PARA LA CREACION DE NUEVAS EMPRESAS","COMERCIO, INDUSTRIA Y TURISMO ",1752501814,0.95069999999999999,null,null,null,null,null,null,null,null,null,null,null,null,null,null,null,null,44609,44609,44609,-61,-61,-61]
["ENTIDAD APORTANTE RECURSOS","MUNICIPIO DE MOSQUERA","DAYANA FERNANDEZ",2012000050039,"MEJORAMIENTO DE LA VIA CALLE 23 ENTRE CRA 3 Y 9B EN MOSQUERA CLL 7 ENTRE CRA 13 Y 24 EN FUNZA DEPARTAMENTO DE CUNDINAMARCA","AUMENTAR LA TRANSITABILIDAD EN LA VÍA URBANA DE LA CALLE 23 ENTRE CARRERAS 3 Y 9B DEL MUNICIPIO DE MOSQUERA CUNDINAMARCA Y/O CALLE 7 ENTRE CARRRERAS 13 Y 24 MUNICIPIO DE FUNZA CUNDINAMARCA","TRANSPORTE",2816415712,1,null,null,null,null,null,null,null,null,null,null,null,null,null,null,null,null,44609,44609,44609,-61,-61,-61]
["ENTIDAD APORTANTE DE RECURSOS","MUNICIPIO DE SOACHA","ALEXANDER RIVEROS",2012000050044,"REHABILITACIÓN Y MEJORAMIENTO DE LA VIA PARALELA ( TRANSVERSAL 8 Y CARRERA 7) ENTRE CARRERA 13 CON AUTOPISTA SUR BARRIO LA DESPENSA, HASTA LA CALLE 27 DEL CENTRO DEL MUNICIPIO DE SOACHA CUNDINAMARCA (TRAMO N 1 - K0+000 HASTA K0+262)","MEJORAMIENTO DE LA MOVILIDAD EN LA VIA PARALELA UBICADA EN LA TRANSVERSAL 8 Y CALLE 7 ENTRE CARRERAS 13 CON AUTOPISTA SUR BARRIO LA DESPENSA HASTA LA CALLE 27 DEL CENTRO DEL MUNICIPIO DE SOACHA CUNDINAMARCA (TRAMO N° 1 - K0+000 HASTA EL K0+262)","TRANSPORTE",1000000000,1,null,null,null,null,null,null,null,null,null,null,null,null,null,null,null,null,44609,44609,44609,-61,-61,-61]
["CUNDINAMARCA","ICCU - GESPROY GB","DIEGO TORRES / JEIMY FORERO",2012000050051,"MEJORAMIENTO DEL PUENTE GUATIMBOL SOBRE EL RIO SUMAPAZ EN LA VA VENECIA - ICONONZO DEPARTAMENTO DE CUNDINAMARCA","MEJORAR LA TRANSITABILIDAD VEHICULAR EN LA VÌA VENECIA - ICONONZO SOBRE EL RIO SUMAPAZ","TRANSPORTE",827195639,0.98089999999999999,null,null,null,null,null,null,null,null,null,null,null,null,null,null,null,null,44609,44609,44609,-61,-61,-61]
["CUNDINAMARCA","ICCU - GESPROY GB","DIEGO TORRES / JEIMY FORERO",2012000050052,"FORMULACIÓN Y ACTUALIZACION DE LOS ESTUDIOS Y DISEÑOS DE LA VIA UBAQUE - LOS CEREZOS - CHIPAQUE DEPARTAMENTO DE CUNDINAMARCA","ELABORAR Y ACTULIZAR LOS ESTUDIOS Y DISEÑOS PARA EL MEJORAMEINTO DE LA VÍA UBAQUE - LOS CEREZOS - CHIPAQUE","TRANSPORTE",257457261,0.99960000000000004,null,null,null,null,null,null,null,null,null,null,null,null,null,null,null,null,44609,44609,44609,-61,-61,-61]
["CUNDINAMARCA","ICCU - GESPROY GB","DIEGO TORRES / JEIMY FORERO",2012000050054,"FORMULACIÓN Y ACTUALIZACION DE LOS ESTUDIOS Y DISEÑOS PARA EL MEJORAMIENTO DE LA TRONCAL DEL CARBON EN LONGITUD DE 43 KMS (K0+00 LOCALIZADO EN TIERRA NEGRA) DEPARTAMENTO DE CUNDINAMARCA","ELABORAR Y ACTUALIZAR LOS ESTUDIOS Y DISEÑOS PARA EL MEJORAMIENTO DE LA TRONCAL DEL CARBÓN VÍA TAUSA-CUCUNUBA-GUACHETA\nY LENGUAZAQUE.","TRANSPORTE",777429075,0.99839999999999995,null,null,null,null,null,null,null,null,null,null,null,null,null,null,null,null,44609,44609,44609,-61,-61,-61]
["CUNDINAMARCA","SECRETARIA DE CIENCIA, TECNOLOGIA E INNOVACIÓN","ALEXANDER RIVEROS Y YAHIR ARCINIEGAS",2012000100010,"FORTALECIMIENTO DE LAS REGIONES COLOMBIANAS EN SUS CAPACIDADES DE CTI - CUNDINAMARCA",":FORTALECIMIENTO DE LAS REGIONES COLOMBIANA EN SUS CAPACIDADES DE INVESTIGACIÓN Y USO DE CIENCIA,\nTECNOLOGÍA E INNOVACIÓN ESTÁ BASADA EN CINCO FASES","CTEL",8721806744,0.97289999999999999,null,null,null,null,null,null,null,null,null,null,null,null,null,null,null,null,44609,44609,44609,-61,-61,-61]
["CUNDINAMARCA","SECRETARIA DE CIENCIA, TECNOLOGIA E INNOVACIÓN","ALEXANDER RIVEROS Y YAHIR ARCINIEGAS",2012000100056,"INVESTIGACIÓN ESTRATEGIAS DE VALORACION Y APROPIACION DE LOS RECURSOS NATURALES MECANISMOS DE ADAPTACION A CAMBIO CLIMATICO. REGION DEL BAJO MAGDALENA","DISEÑAR E IMPLEMENTAR ALTERNATIVAS PARA AUMENTAR LA SOSTENIBILIDAD AMBIENTAL Y ECOLÓGICA DE LOS SECTORES GANADERO, PANELERO, CAFETERO, ENERGÉTICO Y DE INFRAESTRUCTURA DE TRANSPORTE COMO\nMECANISMO DE ADAPTACION A CAMBIO CLIMÁTICO.","CTEL",7184175232,0.99970000000000003,null,null,null,null,null,null,null,null,null,null,null,null,null,null,null,null,44609,44609,44609,-61,-61,-61]
["CUNDINAMARCA","SECRETARIA DE CIENCIA, TECNOLOGIA E INNOVACIÓN","ALEXANDER RIVEROS Y YAHIR ARCINIEGAS",2012000100063,"FORTALECIMIENTO DE LAS CAPACIDADES DE INNOVACIÓN SOCIAL POR MEDIO DEL PARQUE CIENTIFICO EN BOGOTA - CUNDINAMARCA","FORTALECER LAS CAPACIDADES DE INNOVACIÓN SOCIAL DE LA REGIÓN DE BOGOTÁ-CUNDINAMARCA POTENCIANDO EL MODELO DEL PARQUE CIENTÍFICO DE INNOVACIÓN SOCIAL EN EL QUE SE INTEGRAN Y ARTICULAN\nINICIATIVAS Y RECURSOS DESTINADOS A ATENDER PROBLEMÁTICAS SOCIALES.","CTEL",16942704000,0.94730000000000003,null,null,null,null,null,null,null,null,null,null,null,null,null,null,null,null,44609,44609,44609,-61,-61,-61]
["CAR","SECRETARIA DE CIENCIA, TECNOLOGIA E INNOVACIÓN","ALEXANDER RIVEROS Y YAHIR ARCINIEGAS",2012000100118,"FORMACION EN CIENCIA, TECNOLOGIA E INNOVACION EN LA COMUNIDAD EDUCATIVA DE LAS INSTITUCIONES EDUCATIVAS OFICIALES DE LOS MUNICIPIOS NO CERTIFICADOS DEL DEPARTAMENTO","LIMITADAS CONDICIONES REGIONALES PARA LA FORMACION EN CIENCIA, TECNOLOGIA E INNOVACION EN LA POBLACION EN EDAD ESCOLAR Y LOS DIRECTIVOS DOCENTES Y DOCENTES DEL DEPARTAMENTO","CTEL",22788739251,0.94810000000000005,null,null,null,null,null,null,null,null,null,null,null,null,null,null,null,null,44615,44615,44615,-55,-55,-55]
["CUNDINAMARCA","SECRETARIA DE CIENCIA, TECNOLOGIA E INNOVACIÓN","ALEXANDER RIVEROS Y YAHIR ARCINIEGAS",2012000100144,"INVESTIGACIÓN INVESTIGACION, DESARROLLO Y TRANSFERENCIA TECNOLOGICA EN EL SECTOR AGROPECUARIO Y AGROINDUSTRIAL CON EL FIN DE MEJORAR L TODO EL DEPARTAMENTO, CUNDINAMARCA, CENTRO ORIENTE","DESARROLLAR ACTIVIDADES DE INVESTIGACIÓN, DESARROLLO TECNOLÓGICO E INNOVACIÓN RURAL EN EL SECTOR AGROPECUARIO Y AGROINDUSTRIAL QUE PERMITA MEJORAR LAS CONDICIONES DE SEGURIDAD ALIMENTARIA Y\nNUTRICIONAL, INCREMENTAR LOS NIVELES DE PRODUCTIVIDAD Y COMPETITIVIDAD","CTEL",50514736439,0.97289999999999999,null,null,null,null,null,null,null,null,null,null,null,null,null,null,null,null,44615,44615,44615,-55,-55,-55]
["CUNDINAMARCA","SECRETARIA DE CIENCIA, TECNOLOGIA E INNOVACIÓN","ALEXANDER RIVEROS Y YAHIR ARCINIEGAS",2012000100156,"CONSTRUCCIÓN DEL ECOSISTEMA DE INNOVACION TIC PARA EL DEPTO DE CUNDINAMARCA","ARTICULAR Y PONER EN MARCHA EL ECOSISTEMA DE INNOVACIÓN TIC EN EL DEPARTAMENTO DE CUNDINAMARCA , INTEGRADO POR ACTORES PÚBLICOS Y PRIVADOS DEL SISTEMA NACIONAL DE CIENCIA, TECNOLOGÍA E\nINNOVACIÓN, VER ANEXO INFORMACION IMPORTANTE","CTEL",7088000000,0.93179999999999996,null,null,null,null,null,null,null,null,null,null,null,null,null,null,null,null,44615,44615,44615,-55,-55,-55]
["ENTIDAD APORTANTE RECURSOS","ICCU - GESPROY GB","DIEGO TORRES / JEIMY FORERO",2013000050003,"ESTUDIOS Y DISEÑOS PARA EL MEJORAMIENTO DE LA VA VILLAPINZON-TURMEQUE EN LONGITUD DE 11 KMS (K0+00 LOCALIZADO EN VILLAPINZON DEPARTAMENTO DE CUNDINAMARCA","MEJORAR LA COMUNICACIÓN VEHICULAR ENTRE LOS MUNICIPIOS DE VILLAPINZÓN Y TURMEQUE CON LA REGIÓN","TRANSPORTE",245000000,0.73470000000000002,null,null,null,null,null,null,null,null,null,null,null,null,null,null,null,null,44615,44615,44615,-55,-55,-55]
["ENTIDAD APORTANTE RECURSOS","ICCU - GESPROY GB","DIEGO TORRES / JEIMY FORERO",2013000050004,"ESTUDIOS Y DISEÑOS PARA EL MEJORAMIENTO DE LA VA YACOPI - LA VICTORIA CON K0+00 EN YACOPI DEPARTAMENTO DE CUNDINAMARCA","MEJORAR LA COMUNICACIÓN VEHICULAR ENTRE LOS MUNICIPIOS DE YACOPI Y LA VICTORIA Y LA REGIÓN","TRANSPORTE",250000000,0.74909999999999999,null,null,null,null,null,null,null,null,null,null,null,null,null,null,null,null,44615,44615,44615,-55,-55,-55]
["CUNDINAMARCA","SECRETARIA DE DESARROLLO E INCLUSIÓN SOCIAL","YAHIR ARCINIEGAS Y ALEXANDER RIVEROS",2013000050005,"IMPLEMENTACIÓN DEL PROGRAMA DE COMPLEMENTACION ALIMENTARIA Y NUTRICIONAL PARA MENORES DE CINCO AÑOS Y MUJERES GESTANTES Y LACTANTES EN TODO EL DEPARTAMENTO DE CUNDINAMARCA","MEJORAR Y FORTALECER LA SEGURIDAD ALIMENTARIA Y NUTRICIONAL EN EL DEPARTAMENTO FACILITANDO EL ACCESO A LOS ALIMENTOS Y NUTRIENTES CRÍTICOS A LOS GRUPOS POBLACIONALES MÁS VULNERABLES.","EDUCACIÓN",6189832118,0.9899,null,null,null,null,null,null,null,null,null,null,null,null,null,null,null,null,44615,44615,44615,-55,-55,-55]
["CUNDINAMARCA","SECRETARIA DE EDUCACIÓN","YAHIR ARCINIEGAS Y ALEXANDER RIVEROS",2013000050011,"FORTALECIMIENTO DE LA PERMANENCIA DE LOS ESTUDIANTES EN LOS MUNICIPIOS DEL DEPARTAMENTO DE CUNDINAMARCA 2013-2014 CUNDINAMARCA, CENTRO ORIENTE","LOGRAR LA PERMANENCIA DE LOS ESTUDIANTES BENEFICIADOS CON LA ESTRATEGIA DE TRANSPORTE ESCOLAR EN LOS MUNICIPIOS DE CUNDINAMARCA","EDUCACIÓN",13360387595,0.9234,null,null,null,null,null,null,null,null,null,null,null,null,null,null,null,null,44615,44615,44615,-55,-55,-55]
["CUNDINAMARCA","SECRETARIA DE MINAS, ENERGIA Y GAS","DIEGO TORRES",2013000050026,"CONSTRUCCIÓN REDES ELECTRICAS EN LA ZONA RURAL DE LOS MUNICIPIOS DE PARATEBUENO Y GUTIERREZ EN EL DEPARTAMENTO DE CUNDINAMARCA","AUMENTAR LA COBERTURA Y SUMINISTRO EN LA PRESTACIÓN DEL SERVICIO DE ENERGÍA ELECTRICA PARA FAMILIAS DE BAJOS RECURSOS UBICADAS EN LAS ZONAS RURALES DE LOS MUNICIPIOS DE PARATEBUENO Y GUTIERREZ.","MINAS Y ENERGÍA",1068319227,0.97909999999999997,null,null,"Revisar en terreno las obras y cambios de las mismas que dieron origen al PACS",null,null,null,null,null,null,null,null,null,null,null,null,null,44616,44616,44616,-54,-54,-54]
["U CATOLICA","SECRETARIA DE AGRICULTURA","DIEGO TORRES/VALENTINA PORTILLO",2013000050027,"FORTALECIMIENTO DE LA ACTIVIDAD CAFETERA COMO ESTRATEGIA DE MEJORAMIENTO DE LA PRODUCTIVIDAD Y LA COMPETITIVIDAD EN EL DEPARTAMENTO DE CUNDINAMARCA, CENTRO ORIENTE","MEJORAR LA PRODUCTIVIDAD, COMPETITIVIDAD Y RENTABILIDAD DEL CULTIVO DE CAFE EN EL DEPARTAMENTO DE CUNDINAMARCA","AGRICULTURA ",18756930869,0.99490000000000001,null,null,null,null,null,null,null,null,null,null,null,null,null,null,null,null,44616,44616,44616,-54,-54,-54]
["UNIVERSIDAD MILITAR NUEVA GRANADA","SECRETARIA DE AGRICULTURA","DIEGO TORRES/VALENTINA PORTILLO",2013000050028,"FORTALECIMIENTO DEL SUBSECTOR PANELERO EN EL DEPARTAMENTO DE CUNDINAMARCA","DETRIMENTO EN LA CALIDAD DE VIDA DE LA POBLACION RURAL PANELERA, DEBIDO A FALTA DE COMPETITIVIDAD EN LA IMPLEMENTACION DE LOS DIFERENTES PROCESOS TECNOLOGICOS, AMBIENTALES, PRODUCTIVOS, COMERCIALES Y AGROEMPRESARIALES DEL SUBSECTOR PANELERO EN EL DEPARTAMENTO","AGRICULTURA ",3427279826,0.99960000000000004,null,null,null,null,null,null,null,null,null,null,null,null,null,null,null,null,44616,44616,44616,-54,-54,-54]
["CUNDINAMARCA","ICCU - GESPROY GB","DIEGO TORRES / JEIMY FORERO",2013000050043,"MEJORAMIENTO Y REHABILITACION DE LA VIA GUACHETA - CAPELLANIA (SECTOR K0+780 AL K2+240) K0+000 LOCALIZADO EN EL RIO UBATE GUACHET, CUNDINAMARCA, CENTRO ORIENTE","MEJORAR Y REHABILITAR LA VÍA CAPELLANÍA - FUQUENE QUE CONDUCE AL MUNICIPIO DE GUACHETA EN EL SECTOR DE LA VEREDA TICHA","TRANSPORTE",1019047619,0.98060000000000003,null,null,null,null,null,null,null,null,null,null,null,null,null,null,null,null,44616,44616,44616,-54,-54,-54]
["ENTIDAD APORTANTE RECURSOS","BANCO AGRARIO DE COLOMBIA","DIEGO TORRES / JEIMY FORERO",2013000050044,"CONSTRUCCIÓN CUNDINAMARCA VISR 2013 TODO EL DEPARTAMENTO, CUNDINAMARCA, CENTRO ORIENTE","AUMENTAR LA VIVIENDA NUEVA RURAL EN CUNDINAMARCA","AGRICULTURA ",60041780218,0.85289999999999999,null,null,null,null,null,null,null,null,null,null,null,null,null,null,null,null,44616,44616,44616,-54,-54,-54]
["ENTIDAD APORTANTE DE RECURSOS","ICCU - GESPROY GB","DIEGO TORRES / JEIMY FORERO",2013000050045,"MEJORAMIENTO Y PAVIMENTACIÓN DE LA VIA FOSCA - GUTIERREZ, DESDE EL KM 2+000 AL KM 3+000 (K0+000 LOCALIZADO EN FOSCA), DEPARTAMENTO DE CUNDINAMARCA","REALIZAR EL MEJORAMIENTO Y LA PAVIMENTACIÓN DE LA VÍA FOSCA - GUTIÉRREZ, DESDE EL KM 2+00 AL KM 3+00 (K0+000 LOCALIZADO EN FOSCA) DEPARTAMENTO DE CUNDINAMARCA.","TRANSPORTE",2534999997,0.97450000000000003,null,null,null,null,null,null,null,null,null,null,null,null,null,null,null,null,44616,44616,44616,-54,-54,-54]
["CUNDINAMARCA","SECRETARIA DE MINAS, ENERGIA Y GAS","DIEGO TORRES",2013000050046,"IMPLEMENTACIÓN Y MASIFICACION DEL SERVICIO DE GAS COMBUSTIBLE POR REDES PARA LOS MUNICIPIOS DE CAPARRAPI, EL PEÑON, LA PALMA, PAIME, TOPAIPI Y VILLAGOMEZ CUNDINAMARCA","AMPLIAR LA COBERTURA DEL SERVICIO DE GAS NATURAL COMBUSTIBLE POR REDES EN LOS MUNICIPIOS DE CAPARRAPI, EL PEÑON, LA PALMA, PAIME, TOPAIME Y\nVILLAGOMEZ CUNDINAMARCA.","MINAS Y ENERGÍA",6609136508,1,null,null,null,null,null,null,null,null,null,null,null,null,null,null,null,null,44616,44616,44616,-54,-54,-54]
["ENTIDAD APORTANTE RECURSOS","ICCU - GESPROY GB","DIEGO TORRES / JEIMY FORERO",2013000050047,"MEJORAMIENTO Y PAVIMENTACIÓN VIA GUANACAS - EL PEÑON DESDE EL K0+000 AL K2+000 (K0+000 UBICADO EN GUANACAS) MUNICIPIO EL PEÑON, CUNDINAMARCA","MEJORAR Y PAVIMENTAR LA VIA GUANACAS - EL PEÑON","TRANSPORTE",3000000000,0.99639999999999995,null,null,null,null,null,null,null,null,null,null,null,null,null,null,null,null,44616,44616,44616,-54,-54,-54]
["ENTIDAD APORTANTE RECURSOS","ICCU - GESPROY GB","DIEGO TORRES / JEIMY FORERO",2013000050049,"MEJORAMIENTO Y MANTENIMIENTO DE LA RE VIAL MEDIANTE LA ADQUISICION DE MAQUINARIA AÑO 2013-2014 PARA LOS MUNICIPIOS DEL DEPARTAMENTO DE CUNDINAMARCA","MEJORAR LA TRANSITABILIDAD VEHICULAR Y LA COMUNICACIÓN DE LA RED VIAL SECUNDARIA Y TERCIARIA CON EL MANTENIMIENTO PREVENTIVO Y OPORTUNO CON LA ADQUISICIÓN DE MAQUINARIA.","TRANSPORTE",14330854376,0.99960000000000004,null,null,null,null,null,null,null,null,null,null,null,null,null,null,null,null,44616,44616,44616,-54,-54,-54]
["ENTIDAD APORTANTE RECURSOS","ICCU - GESPROY GB","DIEGO TORRES / JEIMY FORERO",2013000050050,"MEJORAMIENTO Y PAVIMENTACIÓN DE LA VIA SANAME - PUENTE QUETAME DESDE K0+000 AL K1+500 (K0+000 LOCALIZADO EN PUENTE QUEMADO) MUNICIPIO FOSCA, CUNDINAMARCA","MEJORAR Y PAVIMENTAR LA VÍA SANAME -PUENTE QUETAME- Y EL MUNICIPIO DE FOSCA, CUNDINAMARCA ","TRANSPORTE",6000000000,0.49209999999999998,null,null,"Revisar los % de ejecución financiera",null,null,null,null,null,null,null,null,null,null,null,null,null,44616,44616,44616,-54,-54,-54]
["CUNDINAMARCA","SECRETARIA DE AMBIENTE","ALEXANDER RIVEROS Y YAHIR ARCINIEGAS",2013000050051,"FORTALECIMIENTO DE LA GESTION INTEGRAL DE RESIDUOS SOLIDOS, A TRAVES DE SISTEMAS RECIONALES EN LAS PROVINCIAS DE UBATE Y RIONEGRO EN EL DEPARTAMENTO DE CUNDINAMARCA","\nIMPLEMENTAR ALTERNATIVAS VIABLES DE MANEJO Y APROVECHAMIENTO DE RESIDUOS SOLIDOS, PARA GENERAR UNA GESTION INTEGRAL DE RESIDUOS SOLIDOS EN CUNDINAMARCA","VIVIENDA, CIUDAD Y TERRITORIO ",3000000000,0.47399999999999998,null,null,"Está para cierre pero los % de ejecución muy bajos, porqué?",null,null,null,null,null,null,null,null,null,null,null,null,null,44616,44616,44616,-54,-54,-54]
["CUNDINAMARCA","SECRETARIA DE AGRICULTURA","DIEGO TORRES/VALENTINA PORTILLO",2013000050054,"MEJORAMIENTO DE LA PRODUCTIVIDAD Y COMPETITIVIDAD DEL SECTOR CAUCHERO EN EL DEPARTAMENTO DE CUNDINAMARCA","MEJORARA LA PRODUCTIVIDAD Y COMPETITIVIDAD DEL SECTOR CAUCHERO EN EL DEPARTAMENTO DE CUNDINAMARCA, CON EL FIN DE MEJORAR EL NIVEL DE INGRESOS DE LOS CAUCHEROS DEL DEPARTAMENTO","AGRICULTURA ",3765860000,1,null,null,null,null,null,null,null,null,null,null,null,null,null,null,null,null,44616,44616,44616,-54,-54,-54]
["CUNDINAMARCA","SECRETARIA DE GOBIERNO","YESID CASTAÑO",2013000050056,"PREVENCIN DE INCENDIOS FORESTALES CON LA ADQUISICION DE VEHICULOS 4X4 ACCION RAPIDA TIPO FORESTAL PARA EL DEPARTAMENTO DE CUNDINAMARCA","FORTALECIMIENTO DE LAS INSTITUCIONES BOMBERILES EN CUNDINAMARCA","AMBIENTE Y DESARROLLO SOSTENIBLE",4000000000,0.99990000000000001,null,null,null,null,null,null,null,null,null,null,null,null,null,null,null,null,44616,44616,44616,-54,-54,-54]
["CUNDINAMARCA","SECRETARIA DE AGRICULTURA","DIEGO TORRES/VALENTINA PORTILLO",2013000050081,"MEJORAMIENTO DE LA PRODUCTIVIDAD, CALIDAD, POSCOSECHA Y MERCADEO DE LAS CADENAS HORTIFRUTCOLA Y AROMATICAS DE CUNDINAMARCA","MEJORAR LA PRODUCTIVIDAD, COMPETITIVIDAD, CALIDAD Y COMERCIALIZACIÓN DE LAS CADENAS PRODUCTIVAS HORTIFRUTÍCOLA Y AROMÁTICAS EN EL DEPARTAMENTO DE CUNDINAMARCA.","AGRICULTURA ",4900400000,1,null,null,null,null,null,null,null,null,null,null,null,null,null,null,null,null,44616,44616,44616,-54,-54,-54]
["CUNDINAMARCA","SECRETARIA DE AGRICULTURA","DIEGO TORRES/VALENTINA PORTILLO",2013000050083,"IMPLEMENTACIÓN Y PUESTA EN MARCHA DE UNA PLANTA HOMOGENIZADORA DE MIELES PARA LA PRODUCCION DE PANELA EN CAPARRAPI CUNDINAMARCA, CENTRO ORIENTE","FORTALECER LA COMPETITIVIDAD DEL SUBSECTOR PANELERO A TRAVÉS DE LA IMPLEMENTACIÓN Y PUESTA EN MARCHA DE UNA PLANTA HOMOGENIZADORA DE MIELES PARA LA ELABORACIÓN DE PANELA PARA MEJORAR LA\nCALIDAD DE VIDA DE LOS PRODUCTORES PANELEROS DE CAPARRAPI","AGRICULTURA ",3322683076.3200002,1,null,null,null,null,null,null,null,null,null,null,null,null,null,null,null,null,44616,44616,44616,-54,-54,-54]
["ENTIDAD APORTANTE RECURSOS","ICCU - GESPROY GB","DIEGO TORRES / JEIMY FORERO",2013000050094,"MEJORAMIENTO Y REHABILITACION DE LA VIA TABIO - CHIA DEL K1+100 AL K3+200","MEJORAR LA MOVILIDAD PARA LA POBLACIÓN DEL MUNICIPIO EN LA VÍA QUE CONDUCE DE TABIO A CHIA","TRANSPORTE",2000000000,0,null,null,null,null,null,null,null,null,null,null,null,null,null,null,null,null,44616,44616,44616,-54,-54,-54]
["CUNDINAMARCA","SECRETARIA DE CIENCIA, TECNOLOGIA E INNOVACIÓN","ALEXANDER RIVEROS Y YAHIR ARCINIEGAS",2013000100129,"INCREMENTO EN LAS ESTRATEGIAS SUSTENTABLES EN EL USO DEL RECURSO DE ENERGA ELECTRICA PARA LA POBLACION VULNERABLE EN EL DPTO. DE CUNDINAMARCA","INCREMENTAR EL CONSUMO EFICIENTE DE ENERGÍA, ELECTRIFICACIÓN RURAL Y SENSIBILIZACIÓN EN EL PAGO DEL SERVICIO ALUMBRADO PÚBLICO, A TRAVÉS DE LA METODOLOGÍA DIAGNÓSTICO SOCIAL PARTICIPATIVO\nGENERANDO HERRAMIENTAS DE ASOCIATIVIDAD EN DEPTO. CUNDINAMARCA","CTEL",5170002961,0.6976,null,null,null,null,null,null,null,null,null,null,null,null,null,null,null,null,44617,44617,44617,-53,-53,-53]
["CUNDINAMARCA","SECRETARIA DE CIENCIA, TECNOLOGIA E INNOVACIÓN","ALEXANDER RIVEROS Y YAHIR ARCINIEGAS",2013000100131,"INVESTIGACIÓN ESTIMAR VULNERABILIDAD AL CAMBIO CLIMATICO DE SISTEMAS CAFETEROS Y DISEÑO DE ARREGLOS AGROFORESTALES CON BIOTECNOLOGIA PACHO, TIBACUY, SAN JUAN DE RIO SECO, CUNDINAMARCA","ESTIMAR LA VULNERABILIDAD FRENTE AL CAMBIO CLIMÁTICO DE LOS SISTEMAS DE PRODUCCIÓN CON CAFÉ Y PROPONER MEDIDAS DE ADAPTACIÓN BASADAS EN EL DISEÑO DE SISTEMAS AGROFORESTALES Y BIOTECNOLOGÍA","AGRICULTURA ",3287867000,0.89039999999999997,null,null,null,null,null,null,null,null,null,null,null,null,null,null,null,null,44617,44617,44617,-53,-53,-53]
["CUNDINAMARCA","SECRETARIA DE CIENCIA, TECNOLOGIA E INNOVACIÓN","ALEXANDER RIVEROS Y YAHIR ARCINIEGAS",2013000100149,"INNOVACIÓN EN EL MODELO DE GESTION DE MEDICAMENTO EN EL DEPARTAMENTO DE CUNDINAMARCA FASE II","REALIZAR INVESTIGACIÓN SOBRE UTILIZACIÓN Y GESTIÓN DE MEDICAMENTOS EN CUNDINAMARCA Y REUNIR EXPERIENCIAS INTERNACIONALES PARA DISEÑAR MODELO INNOVADOR EN LA GESTIÓN DEL MEDICAMENTO.","CTEL",3079583047,1,null,null,null,null,null,null,null,null,null,null,null,null,null,null,null,null,44617,44617,44617,-53,-53,-53]
["CUNDINAMARCA","SECRETARIA DE CIENCIA, TECNOLOGIA E INNOVACIÓN","ALEXANDER RIVEROS Y YAHIR ARCINIEGAS",2013000100176,"INNOVACIÓN SISTEMA DE PRODUCCION DE FRUTAS/HORTALIZAS FRESCAS/PROCESADAS TIPO EXPORTACION CON TECNOLOGIA BIOLOGICA /INTEGRAL INOCUA SUBACHOQUE, CUNDINAMARCA, CENTRO ORIENTE","DDESARROLLAR, IMPLEMENTAR Y VALIDAR SISTEMAS DE PRODUCCIÓN DE FRUTAS Y HORTALIZAS FRESCAS O PROCESADAS TIPO EXPORTACIÓN PRODUCIDAS POR BIOAGRICULTURA O AGRICULTURA INTEGRAL INÓCUA QUE FORTALEZCAN\nLA COMPETITIVIDAD DE LAS CADENAS DE VALOR DEL SECTOR.","CTEL",9285096292,0.67279999999999995,null,null,"Proyecto con diferencias significativas entre % fisicos y financieros de ejecución",null,null,null,null,null,null,null,null,null,null,null,null,null,44617,44617,44617,-53,-53,-53]
["CUNDINAMARCA","SECRETARIA DE CIENCIA, TECNOLOGIA E INNOVACIÓN","ALEXANDER RIVEROS Y YAHIR ARCINIEGAS",2013000100180,"DISEÑO SMART TON: TALENTO E INNOVACION APLICADA AL TERRITORIO","GENERAR UN MODELO DE ESPACIOS DE APRENDIZAJE PARA DESARROLLO DEL TALENTO EN JÓVENES SOPORTADO EN TECNOLOGÍA Y ORIENTADO A COMPETENCIAS PARA IMPACTO EN SU TERRITORIO","CTEL",3089954000,0.86539999999999995,null,null,null,null,null,null,null,null,null,null,null,null,null,null,null,null,44617,44617,44617,-53,-53,-53]
["CUNDINAMARCA","SECRETARIA DE CIENCIA, TECNOLOGIA E INNOVACIÓN","ALEXANDER RIVEROS Y YAHIR ARCINIEGAS",2013000100215,"FORTALECIMIENTO DE LA GESTIN COMUNITARIA DEL RECURSO HIDRICO, POR MEDIO DE LA DISMINUCION DEL CONSUMO DE ESTE, UTILIZANDO TP Y TICS , CUNDINAMARCA, CENTRO ORIENTE","FORTALECER LAS CAPACIDADES EN LA GESTIÓN DE RECURSO HÍDRICO EN ALGUNOS MUNICIPIOS DE LAS PROVINCIAS DEL GUAVIO Y SABANA CENTRO, BAJO UN ENFOQUE DE APROPIACIÓN SOCIAL DE LA INNOVACIÓN.","CTEL",1811292700,0.90739999999999998,null,null,null,null,null,null,null,null,null,null,null,null,null,null,null,null,44617,44617,44617,-53,-53,-53]
["CUNDINAMARCA","SECRETARIA DE CIENCIA, TECNOLOGIA E INNOVACIÓN","ALEXANDER RIVEROS Y YAHIR ARCINIEGAS",2013000100217,"FORTALECIMIENTO DE LA COMPETITIVIDAD DEL SECTOR FLORICULTOR COLOMBIANO MEDIANTE EL USO DE CIENCIA, TECNOLOGA E INNOVACION APLICADAS EN EL DEPARTAMENTO DE CUNDINAMARCA","FORTALECER LA COMPETITIVIDAD DEL SECTOR FLORICULTOR COLOMBIANO EN LOS MERCADOS INTERNACIONALES A TRAVÉS DE LA GENERACIÓN, EVALUACIÓN Y TRANSFERENCIA DE SOLUCIONES TECNOLÓGICAS.","CTEL",7204002875,0.9859,null,null,null,null,null,null,null,null,null,null,null,null,null,null,null,null,44617,44617,44617,-53,-53,-53]
["CUNDINAMARCA","SECRETARIA DE CIENCIA, TECNOLOGIA E INNOVACIÓN","ALEXANDER RIVEROS Y YAHIR ARCINIEGAS",2013000100247,"INVESTIGACIÓN E INNOVACIÓN TECNOLÓGICA Y APROPIACIÓN SOCIAL DE CONOCIMIENTO CIENTÍFICO DE ORQUÍDEAS NATIVAS DE CUNDINAMARCA","INCREMENTAR EL CONOCIMIENTO SOBRE LAS ORQUÍDEAS NATIVAS DE CUNDINAMARCA PARA ORIENTAR ESTRATEGIAS DE USO SOSTENIBLE Y CONSERVACIÓN POR PARTE DE LOS PRODUCTORES LOCALES EN LAS PROVINCIAS DE\nTEQUENDAMA Y SUMAPAZ","CTEL",3400306874,0.9526,null,null,null,null,null,null,null,null,null,null,null,null,null,null,null,null,44617,44617,44617,-53,-53,-53]
["CUNDINAMARCA","SECRETARIA DE CIENCIA, TECNOLOGIA E INNOVACIÓN","ALEXANDER RIVEROS Y YAHIR ARCINIEGAS",2013000100248,"INNOVACIÓN , CIENCIA Y TECNOLOGIA PARA PRODUCTORES DE LECHE EN LA PROVINCIA DE UBATE, CUNDINAMARCA.","MEJORAR LA PRODUCTIVIDAD Y COMPETITIVIDAD DE LOS PRODUCTORES DE LECHE DE LA PROVINCIA DE UBATÉ DESARROLLANDO SISTEMAS PRODUCTIVOS EFICIENTES, QUE MEJOREN EL ACCESO A LOS MERCADOS A TRAVÉS DE\nLA GENERACIÓN DE TECNOLOGÍA Y ASISTENCIA TÉCNICA.","CTEL",11619725567,0.81969999999999998,null,null,"Preguntar porque no ha avanzado",null,null,null,null,null,null,null,null,null,null,null,null,null,44617,44617,44617,-53,-53,-53]
["ENTIDAD APORTANTE RECURSOS","MUNICIPIO DE MADRID","ALEXANDER RIVEROS",2013000050048,"MEJORAMIENTO Y PAVIMENTACIÓN DE LA VIA AJOVER-SANTA CRUZ EN 2 KILOMETROS, MUNICIPIO DE MADRID, CUNDINAMARCA","MEJORAR LA TRANSITABILIDAD DE LOS\nHABITANTES DEL MUNICIPIO DE MADRID","TRANSPORTE",8946944399,1,null,null,null,null,null,null,null,null,null,null,null,null,null,null,null,null,44617,44617,44617,-53,-53,-53]
["ENTIDAD APORTANTE RECURSOS","CORMAGDALENA","ALEXANDER RIVEROS",20132401060001,"MANTENIMIENTO Y RECUPERACIÓN DE LA NAVEGABILIDAD DEL RIO MAGDALENA","MEJORAR LAS CONDICIONES TÉCNICAS DEL CANAL NAVEGABLE","TRANSPORTE",3527443454052,3.8300000000000001E-2,null,null,"Está para cierre pero los % de ejecución muy bajos, porqué?",null,null,null,null,null,null,null,null,null,null,null,null,null,44617,44617,44617,-53,-53,-53]
["ENTIDAD APORTANTE RECURSOS\n","ICCU - GESPROY GB","DIEGO TORRES / JEIMY FORERO",2014000050033,"MEJORAMIENTO Y REHABILITACIÓN DE LA VIA TABIO - CHIA DEL K0+000 AL K1+800","MEJORAR LA MOVILIDAD PARA LA POBLACIÓN DEL MUNICIPIO EN LA VÍA QUE CONDUCE DE TABIO A CHIA\n","TRANSPORTE",2570000000,1,null,null,null,null,null,null,null,null,null,null,null,null,null,null,null,null,44617,44617,44617,-53,-53,-53]
["ENTIDAD APORTANTE RECURSOS","ICCU - GESPROY GB","DIEGO TORRES / JEIMY FORERO",2014257720001,"MEJORAMIENTO Y PAVIMENTACIÓN DE LA VIA SUESCA LA PLAYA - SESQUILE DEPARTAMENTO DE CUNDINAMARCA","MEJORAR LA MOVILIDAD DE LA COMUNIDAD DE LOS MUNICIPIOS DE SUESCA Y SESQUILE.","TRANSPORTE",4191000000,0.98670000000000002,null,null,null,null,null,null,null,null,null,null,null,null,null,null,null,null,44617,44617,44617,-53,-53,-53]
["CUNDINAMARCA","SECRETARIA DE GOBIERNO","DAYANA FERNANDEZ ",2014000050010,"CONSTRUCCIÓN DE UN CENTRO DE ATENCION ESPECIALIZADA AL SERVICIO DE ADOLESCENTES INFRACTORES DE LA LEY PENAL EN EL DEPARTAMENTO DE CUNDINAMARCA","CONSTRUCCION DE UN CENTRO ESPECIALIZADO PARA LA ATENCION DE LOS MENORES INFRACTORES DE LA LEY PENAL ADOLESCENTE, YA QUE EN EL DEPARTAMENTO DE CUNDINAMARCA NO EXISTE UNO CON LA CAPACIDAD NECESARIA PARA SUPLIR LAS NECESIDADES DE ESTE PROBLEMA","JUSTICIA Y DEL DERECHO ",9260000000,1,null,null,null,null,null,null,null,null,null,null,null,null,null,null,null,null,44617,44617,44617,-53,-53,-53]
["ENTIDAD APORTANTE RECURSOS","MUNICIPIO DE VILLETA","ALEXANDER RIVEROS",2014000050048,"MEJORAMIENTO Y PAVIMENTACIÓN DE LA VIA VILLETA-PANTANILLO-CORREDOR CHUGUACAL -CAMBAO DEL K0+360 AL K1+060 VILLETA, CUNDINAMARCA, CENTRO ORIENTE","MEJORAR LA ESTRUCTURA DE LA SUPERFICIE DE VIA","TRANSPORTE",1701612797,1,null,null,null,null,null,null,null,null,null,null,null,null,null,null,null,null,44617,44617,44617,-53,-53,-53]
["ENTIDAD APORTANTE RECURSOS","ICCU - GESPROY GB","DIEGO TORRES / JEIMY FORERO",2015000050010,"MEJORAMIENTO DE LA VA SAN CAYETANO - COGUA SECTOR K6+670 - K8+366 (K0+000 LOCALIZADO EN EL CASCO URBANO DEL MUNICIPIO DE SAN CAYETANO) CUNDINAMARCA","MEJORAR LA MOVILIDAD Y DISMNUIR EL TIEMPO DE DESPLAZAMIENTO EN LAVÍA QUE CONDUCE DEL MUNICIPIO DE SAN CAYETANO AL MUNICIPIO DE COGUA.\n","TRANSPORTE",3796247522,0.98760000000000003,null,null,null,null,null,null,null,null,null,null,null,null,null,null,null,null,44617,44617,44617,-53,-53,-53]
["ENTIDAD APORTANTE RECURSOS","ICCU - GESPROY GB","DIEGO TORRES / JEIMY FORERO",2015000050013,"MEJORAMIENTO DE LA VA UBAQUE - LOS CEREZOS - CHIPAQUE SECTORES DEL K0+000 AL K2+040 Y DEL K16+000 AL K18+260 (K0+000 LOCALIZADO EN UBAQUE) DEPARTAMENTO DE CUNDINAMARCA","MEJORAR LA CONECTIVIDAD Y LA TRANSITABILIDAD EN LA REGIÓN","TRANSPORTE",8000000000,0.98750000000000004,null,null,null,null,null,null,null,null,null,null,null,null,null,null,null,null,44617,44617,44617,{"$f":"IF(AA67=0,0,_xlfn.DAYS(AA67,TODAY()))","v":-53},-53,-53]
["CUNDINAMARCA","SECRETARIA DE HABITAT Y VIVIENDA","ALEXANDER RIVEROS/JEIMY FORERO",2015000050014,"CONSTRUCCIÓN DE VIVIENDAS NUEVAS RURALES VISR 2015 EN EL DEPARTAMENTO DE CUNDINAMARCA-SGR","MEJORAR LAS CONDICIONES HABITACIONALES DE LAS 322 FAMILIAS EN LAS DIFERENTES VEREDAS DE LOS 15 MUNICIPIOS, CONSTRUYENDO 322 VIVIENDAS NUEVAS RURALES Y MEJORANDO LAS CONDICIONES DE SANEAMIENTO BÁSICO.","AGRICULTURA ",7588896000,0.92759999999999998,null,null,null,null,null,null,null,null,null,null,null,null,null,null,null,null,44617,44617,44617,-53,-53,{"$f":"IF(Z68=0,0,_xlfn.DAYS(Z68,TODAY()))","v":-53}]
["CUNDINAMARCA","SECRETARIA DE EDUCACIÓN","DAYANA FERNANDEZ",2015000050015,"FORTALECIMIENTO DE LA PERMANENCIA DE LOS ESTUDIANTES EN LOS MUNICIPIOS DEL DEPARTAMENTO DE CUNDINAMARCA, CENTRO ORIENTE - 2015","GARANTIZAR LA PERMANENCIA DE LOS ESTUDIANTES EN LAS INSTITUCIONES EDUCATIVAS EXISTENTES EN EL DEPARTAMENTO DE CUNDINAMARCA","EDUCACIÓN",8373797030,0.85189999999999999,null,null,null,null,null,null,null,null,null,null,null,null,null,null,null,null,44617,44617,44617,-53,-53,-53]
["ENTIDAD APORTANTE RECURSOS","ICCU - GESPROY GB","DIEGO TORRES / JEIMY FORERO",2015000050025,"MEJORAMIENTO Y PAVIMENTACIÓN DE LA TRONCAL DEL CARBON SECTOR K0+000 AL K2+860 (K0+000 LOCALIZADO EN TIERRA NEGRA, MUNICIPIO DE TAUSA), DEPARTAMENTO DE CUNDINAMARCA","MEJORAR LA CONECTIVIDAD Y LA TRANSITABILIDAD DE LA REGIÓN\n","TRANSPORTE",7913699780,1,null,null,null,null,null,null,null,null,null,null,null,null,null,null,null,null,44617,44617,44617,-53,-53,-53]
["CUNDINAMARCA","SECRETARIA DE EDUCACIÓN","DAYANA FERNANDEZ",2015000050026,"FORTALECIMIENTO A LA ESTRATEGIA DE ALIMENTACIÓN ESCOLAR PARA MUNICIPIOS NO CERTIFICADOS DEL DEPARTAMENTO DE CUNDINAMARCA, CENTRO ORIENTE","DISMINUIR LOS ALTOS INDICES DE DESERCIN ESCOLAR EN MUNICIPIOS NO CERTIFICADOS DEL DEPARTAMENTO DE CUNDINAMARCA.","EDUCACIÓN",2100000000,0.85509999999999997,null,null,null,null,null,null,null,null,null,null,null,null,null,null,null,null,44617,44617,44617,-53,-53,-53]
["CUNDINAMARCA","SECRETARIA DE AGRICULTURA","DIEGO TORRES/VALENTINA PORTILLO",2015000050029,"IMPLEMENTACIÓN Y PUESTA EN MARCHA DE UNA PLANTA HOMOGENIZADORA DE MIELES PARA LA PRODUCCION DE PANELA EN EL MUNICIPIO DE QUIPILE, CUNDINAMARCA, CENTRO ORIENTE","FORTALECER LA COMPETITIVIDAD DEL SUBSECTOR PANELERO A TRAVS DE LA IMPLEMENTACION Y PUESTA EN MARCHA DE UNA PLANTA HOMOGENIZADORA DE MIELES PARA ELABORACION DE PANELA PARA MEJORAR LA CALIDAD DE VIDA DE LOS PRODUCTORES PANELEROS DE QUIPILE.","AGRICULTURA ",3395531657,1,null,null,null,null,null,null,null,null,null,null,null,null,null,null,null,null,44617,44617,44617,-53,-53,-53]
["CUNDINAMARCA","SECRETARIA DE AGRICULTURA","DIEGO TORRES/VALENTINA PORTILLO",2015000050030,"FORTALECIMIENTO A LA CADENA PRODUCTIVA DEL CACAO EN EL DEPARTAMENTO DE CUNDINAMARCA","MEJORAR LA COMPETITIVIDAD Y PRODUCTIVIDAD DE LA CADENA DEL CACAO EN EL DEPARTAMENTO DE CUNDINAMARCA","AGRICULTURA ",2253334400,1,null,null,null,null,null,null,null,null,null,null,null,null,null,null,null,null,44617,44617,44617,-53,-53,-53]
["CUNDINAMARCA","SECRETARIA DE GOBIERNO","DAYANA FERNANDEZ",2015000050031,"ADQUISICIÓN DE VEHICULOS PARA LOS CUERPOS OPERATIVOS (BOMBEROS) PARA LAS PROVINCIAS DEL DEPARTAMENTO DE CUNDINAMARCA","AUMENTAR LA CAPACIDAD DE RESPUESTA DE LOS CUERPOS OPERATIVOS DE CUNDINAMARCA PARA ATENDER LOS INCENDIOS FORESTALES","AMBIENTE Y DESARROLLO SOSTENIBLE",3670000000,0.98,null,null,null,null,null,null,null,null,null,null,null,null,null,null,null,null,44617,44617,44617,-53,-53,-53]
["CUNDINAMARCA","SECRETARIA DE AGRICULTURA","DIEGO TORRES/VALENTINA PORTILLO",2015000050034,"FORTALECIMIENTO DE LA PRODUCTIVIDAD Y COMPETITIVIDAD DEL SECTOR CAUCHERO EN EL DEPARTAMENTO DE CUNDINAMARCA","FORTALECER LA PRODUCTIVIDAD Y COMPETITIVIDAD DEL SECTOR CAUCHERO EN EL DEPARTAMENTO DE CUNDINAMARCA.","AGRICULTURA ",2158800000,1,null,null,null,null,null,null,null,null,null,null,null,null,null,null,null,null,44617,44617,44617,-53,-53,-53]
["ENTIDAD APORTANTE RECURSOS","ICCU - GESPROY GB","DIEGO TORRES / JEIMY FORERO",2015000050041,"MEJORAMIENTO DE LA VA UBALA - PALOMAS - MAMBITA - MEDINA (K0+000 UBICADO EN EL SITIO PROFESIONALES MUNICIPIO DE UBALA, DEPARTAMENTO DE CUNDINAMARCA","MEJORAR LA CONECTIVIDAD Y LA TRANSITABILIDAD EN LA REGIÓN\n","TRANSPORTE",13663491451,1,null,null,null,null,null,null,null,null,null,null,null,null,null,null,null,null,44617,44617,44617,-53,-53,-53]
["CUNDINAMARCA","SECRETARIA DE DESARROLLO E INCLUSIÓN SOCIAL","DAYANA FERNANDEZ",2015000050048,"IMPLEMENTACIÓN DEL PROGRAMA DE COMPLEMENTACION ALIMENTARIA Y NUTRICIONAL PARA MENORES DE 5 AÑOS, MADRES GESTANTES Y LACTANTES EN TODO EL DEPARTAMENTO DE CUNDINAMARCA 2015","MEJORAR Y FORTALECER LA SEGURIDAD ALIMENTARIA Y NUTRICIONAL EN EL DEPARTAMENTO DE CUNDINAMARCA.","SALUD Y PROTECCIÓN SOCIAL",2900000000,1,null,null,null,null,null,null,null,null,null,null,null,null,null,null,null,null,44617,44617,44617,-53,-53,-53]
["CUNDINAMARCA","SECRETARIA DE EDUCACIÓN","YAHIR ARCINIEGAS Y ALEXANDER RIVEROS",2016000050005,"FORTALECIMIENTO DE LA PERMANENCIA DE LOS ESTUDIANTES EN LOS MUNICIPIOS DEL DEPARTAMENTO DE CUNDINAMARCA, CENTRO ORIENTE - 2016","DISMINUIR LA TASA DE DESERCIÓN ESCOLAR EN EL DEPARTAMENTO DE CUNDINAMARCA. ","EDUCACIÓN",14963757156,0.56169999999999998,null,null,null,null,null,null,null,null,null,null,null,null,null,null,null,null,44617,44617,44617,-53,-53,-53]
["CUNDINAMARCA","SECRETARIA DE EDUCACIÓN","DAYANA FERNANDEZ",2016000050014,"FORTALECIMIENTO A LA ESTRATEGIA DE ALIMENTACION ESCOLAR PARA MUNICIPIOS NO CERTIFICADOS DEL DEPARTAMENTO DE CUNDINAMARCA, SGR 2016.","DISMINUIR LOS ALTOS INDICES DE DESERCIÓN ESCOLAR EN MUNICIPIOS NO CERTIFICADOS DEL DEPARTAMENTO DE CUNDINAMARCA.","EDUCACIÓN",12339894658,0.74729999999999996,null,null,null,null,null,null,null,null,null,null,null,null,null,null,null,null,44617,44617,44617,-53,-53,-53]
["ENTIDAD APORTANTE RECURSOS","ICCU - GESPROY GB","DIEGO TORRES / JEIMY FORERO",2016000050023,"MANTENIMIENTO DE LA RED VIAL EN AFIRMADO A TRAVS DE LA ADQUISICION DE MAQUINARIA PESADA Y EQUIPO DE TRANSPORTE EN EL DEPARTAMENTO DE CUNDINAMARCA","MEJORAR LA MOVILIDAD EN LA RED VIAL SECUNDARIA EN AFIRMADO EN EL DEPARTAMENTO","TRANSPORTE",24179817530,0.62809999999999999,null,null,null,null,null,null,null,null,null,null,null,null,null,null,null,null,44617,44617,44617,-53,-53,-53]
["ENTIDAD APORTANTE RECURSOS","ICCU - GESPROY GB","DIEGO TORRES / JEIMY FORERO",2016000050025,"REHABILITACIÓN DE LA VIA BOQUERON - PANDI DEL DEPARTAMENTO DE CUNDINAMARCA","MEJORAR LA MOVILIDAD DE LA VÍA BOQUERÓN-PANDI","TRANSPORTE",4991550669,0.98740000000000006,null,null,null,null,null,null,null,null,null,null,null,null,null,null,null,null,44617,44617,44617,-53,-53,-53]
["ENTIDAD APORTANTE RECURSOS","ICCU - GESPROY GB","DIEGO TORRES / JEIMY FORERO",2016000050029,"REHABILITACIÓN DE LA VIA LA QUINTA - REPRESA DEL NEUSA, MUNICIPIO DE COGUA, DEPARTAMENTO DE CUNDINAMARCA","MEJORAR LA MOVILIDAD DE LA VÍA LA QUINTA - NEUSA","TRANSPORTE",6798676732,0.99990000000000001,null,null,null,null,null,null,null,null,null,null,null,null,null,null,null,null,44617,44617,44617,-53,-53,-53]
["ENTIDAD APORTANTE RECURSOS","ICCU - GESPROY GB","DIEGO TORRES / JEIMY FORERO",2016000050032,"REHABILITACIÓN DE LA VIA CLUB EL BOSQUE - TIBACUY - CUMACA DEL DEPARTAMENTO DE CUNDINAMARCA","MEJORAR LA MOVILIDAD DE LA VÍA CLUB EL BOSQUE-TIBACUY-CUMACA.","TRANSPORTE",4022150134,0.99980000000000002,null,null,null,null,null,null,null,null,null,null,null,null,null,null,null,null,44617,44617,44617,-53,-53,-53]
[" ENTIDAD APORTANTE RECURSOS","ALCALDIA MAYOR DE BOGOTA","ALEXANDER RIVEROS",2016000050033,"ELABORACIÓN DE LA ENCUESTA MULTIPROPOSITO 2017 : BOGOTA - CUNDINAMARCA","REALIZAR LA ENCUESTA MULTIPROPÓSITO\n2017 BOGOTÁ - CUNDINAMARCA SOBRE\nTEMAS SOCIALES Y ECONÓMICOS DE LOS\nHOGARES QUE HABITAN EN EL TERRITORIO URBANO DE BOGOTÁ D.C. Y LA REGIÓN Y LA ZONA RURAL DEL DISTRITO CAPITAL.","VIVIENDA, CIUDAD Y TERRITORIO ",17282722269,0.99950000000000006,null,null,null,null,null,null,null,null,null,null,null,null,null,null,null,null,44617,44617,44617,-53,-53,-53]
["CUNDINAMARCA","SECRETARIA DE HABITAT Y VIVIENDA","ALEXANDER RIVEROS/JEIMY FORERO",2016000050052,"CONSTRUCCIÓN DE VIVIENDAS NUEVAS RURALES EN EL DEPARTAMENTO DE CUNDINAMARCA","DISMINUIR EL DËFICIT DE VIVIENDA RURAL EN EL DEPARTAMENTO DE CUNDINAMARCA ","AGRICULTURA ",5983779025,0.87939999999999996,null,null,"Proyecto de Obra que ha sido objeto de seguimiento por parte del DNP",null,null,null,null,null,null,null,null,null,null,null,null,null,44617,44617,44617,-53,-53,-53]
["CUNDINAMARCA","SECRETARIA DE CIENCIA, TECNOLOGIA E INNOVACIÓN","ALEXANDER RIVEROS Y YAHIR ARCINIEGAS",2016000100027,"ANLISIS DE FACTORES GENETICOS, SANITARIOS Y MEDIOAMBIENTALES QUE AFECTAN LAS TASAS DE PREÑEZ A PARTIR DE EMBRIONES IN VITRO EN EL DEPARTAMENTO DE CUNDINAMARCA","ANALIZAR LOS FACTORES QUE AFECTAN LA PRODUCCIÓN DE EMBRIONES, LAS TASAS DE PREÑEZ Y LA SUPERVIVENCIA EMBRIONARIA, EN UN PROGRAMA DE PRODUCCIÓN DE EMBRIONES IN VITRO EN EL DEPARTAMENTO DE\nCUNDINAMARCA ","CTEL",6401358633,0.7167,null,null,null,null,null,null,null,null,null,null,null,null,null,null,null,null,44617,44617,44617,-53,-53,-53]
["ENTIDAD DESIGNADA PARA LA SUPERVISIÓN DEL PROYECTO O PARA CONTRATAR LA INTERVENTORÍA","RAPE - INTERVENTORIA SECRETARIA DE PLANEACIÓN","YAHIR ARCINIEGAS",2016000050012,"IMPLEMENTACIÓN DE ACCIONES DE CONSERVACION Y RESTAURACION DE LOS COMPLEJOS DE PARAMO, BOSQUE ALTO-ANDINO Y SERVICIOS ECOSISTEMICOS DE LA REGION CENTRAL","CONSERVAR Y RESTAURAR LOS SERVICIOS ECOSISTÉMICOS Y LA BIODIVERSIDAD ASOCIADA A LOS COMPLEJOS DE PÁRAMOS Y BOSQUE ALTO ANDINO, UBICADOS EN LA JURISDICCIÓN DE LA REGIÓN CENTRAL DE COLOMBIA. ","AMBIENTE Y DESARROLLO SOSTENIBLE",32499987282,0.99780000000000002,null,null,null,null,null,null,null,null,null,null,null,null,null,null,null,null,44617,44617,44617,-53,-53,-53]
["CUNDINAMARCA","SECRETARIA DE DESARROLLO E INCLUSIÓN SOCIAL","ALEXANDER RIVEROS Y JEIMY FORERO",2017000050017,"FORTALECIMIENTO DEL PROGRAMA DE COMPLEMENTACIÓN ALIMENTARIA Y NUTRICIONAL PARA NIÑAS, NIÑOS MENORES DE 5 AÑOS Y MADRES GESTANTES Y LACTANTES EN RIESGO DE DESNUTRICIÓN DEL DEPARTAMENTO DE CUNDINAMARCA","CONTRIBUIR AL FORTALECIMIENTO DE LA SEGURIDAD ALIMENTARIA DE LA POBLACIÓN Y DEL ESTADO NUTRICIONAL DE LOS NIÑOS Y NIÑAS MENORES DE CINCO AÑOS Y MUJERES GESTANTES MÁS POBRES DEL DEPARTAMENTO DE CUNDINAMARCA, CON EL FIN DE REDUCIR LOS NIVELES DE DES... ","INCLUSIÓN SOCIAL Y RECONCILIACIÓN",8199993544,0.96909999999999996,null,null,null,null,null,null,null,null,null,null,null,null,null,null,null,null,44617,44617,44617,-53,-53,-53]
["CUNDINAMARCA","SECRETARIA DE EDUCACIÓN","YAHIR ARCINIEGAS Y ALEXANDER RIVEROS",2017000050027,"FORTALECIMIENTO DE LA PERMANENCIA DE LOS ESTUDIANTES EN LOS MUNICIPIOS DEL DEPARTAMENTO DE CUNDINAMARCA , CENTRO ORIENTE 2017 CUNDINAMARCA","DISMINUIR LA TASA DE DESERCIN ESCOLAR EN EL DEPARTAMENTO DE CUNDINAMARCA.\n","EDUCACIÓN",14995289800,0.84,null,null,null,null,null,null,null,null,null,null,null,null,null,null,null,null,44617,44617,44617,-53,-53,-53]
["ENTIDAD APORTANTE RECURSOS","MUNICIPIO DE ZIPAQUIRA","ALEXANDER RIVEROS",2017000050029,"CONSERVACIÓN  Y GESTIÓN INTEGRAL DEL RECURSO HÍDRICO MEDIANTE LA ADQUISICIÓN Y RESTAURACIÓN DE PREDIOS DE INTERÉS ECOSISTÉMICO EN ELDEPARTAMENTO DE   CUNDINAMARCA","MITIGAR LA DEGRADACIÓN  Y LA DESFORESTACIÓN DE  ÁREAS DE IMPORTANCIA HÍDRICA, MEDIANTE LA CONSERVACIÓN Y RESTAURACIÓN  DE 58 HAS DEL PÁRAMO DE GUERRERO EN ZONAS AFERENTES DE LA SUBCUENCA DEL RIO FRIO.","AMBIENTE Y DESARROLLO SOSTENIBLE",900000000,0.47539999999999999,null,null,null,null,null,null,null,null,null,null,null,null,null,null,null,null,44617,44617,44617,-53,-53,-53]
["CUNDINAMARCA","SECRETARIA DE EDUCACIÓN","YAHIR ARCINIEGAS Y ALEXANDER RIVEROS",2017000050033,"FORTALECIMIENTO A LA ESTRATEGIA DE ALIMENTACIÓN ESCOLAR PARA MUNICIPIOS NO CERTIFICADOS DEL DEPARTAMENTO DE CUNDINAMARCA","DISMINUIR LOS ALTOS INDICES DE DESERCIÓN ESCOLAR EN MUNICIPIOS NO CERTIFICADOS DEL DEPARTAMENTO DE CUNDINAMARCA. ","EDUCACIÓN",14000000000,0.26939999999999997,null,null,"Porqué, si está cerrado ha tenido cambios en el ultimo mes",null,null,null,null,null,null,null,null,null,null,null,null,null,44617,44617,44617,-53,-53,-53]
["CUNDINAMARCA","SECRETARIA DE MINAS, ENERGIA Y GAS","DIEGO TORRES / LIYUGETH ALFONSO",2017000050036,"IMPLEMENTACIÓN Y EXPANSIÓN DEL SERVICIO DE GAS COMBUSTIBLE POR REDES PARA VEREDAS Y CENTROS POBLADOS DEL DEPARTAMENTO DE CUNDINAMARCA","DISMINUIR LOS ÍNDICES DE POBREZA EN VEREDAS Y CENTROS POBLADOS DEL DEPARTAMENTO DE CUNDINAMARCA. ","MINAS Y ENERGÍA",4751658472,0.92069999999999996,null,null,"Revisar los % de ejecución financiera",null,null,null,null,null,null,null,null,null,null,null,null,null,44617,44617,44617,-53,-53,-53]
["CUNDINAMARCA","SECRETARIA DE PLANEACIÓN","YESID CASTAÑO Y JEIMY FORERO",2017000050039,"MEJORAMIENTO DE VÍAS TERCIARIAS MEDIANTE EL USO DE PLACA HUELLA EN LOS MUNICIPIOS DE GUATAVITA, PACHO, SAN JUAN DE RIOSECO, SUBACHOQUE, TENA Y ZIPAQUIRÁ, DEPARTAMENTO DE CUNDINAMARCA","MEJORAR LA INTERCOMUNICACIÓN TERRESTRE DE UNA PARTE DE LA POBLACIÓN RURAL DE LOS MUNICIPIOS DE GUATAVITA, PACHO, SAN JUAN DE RIOSECO, SUBACHOQUE, TENA Y ZIPAQUIRÁ, DEPARTAMENTO DE CUNDINAMARCA. ","TRANSPORTE",6791102422,0.98650000000000004,null,null,null,null,null,null,null,null,null,null,null,null,null,null,null,null,44617,44617,44617,-53,-53,-53]
["CUNDINAMARCA","SECRETARIA DE HABITAT Y VIVIENDA","ALEXANDER RIVEROS/JEIMY FORERO",2017000050042,"MEJORAMIENTO DE VIVIENDAS RURALES DE LA PROVINCIA DE UBATÉ - CUNDINAMARCA","DISMINUIR EL NÚMERO DE FAMILIAS CON DEFICIENTES CONDICIONES HABITACIONALES UBICADAS EN LA ZONA RURAL DE LOS MUNICIPIOS\n","AGRICULTURA ",2354318125,0.9708,null,null,null,null,null,null,null,null,null,null,null,null,null,null,null,null,44617,44617,44617,-53,-53,-53]
["CUNDINAMARCA","SECRETARIA DE SALUD","DAYANA FERNANDEZ Y EDGAR YAHIR ARCINIEGAS",2017000050061,"ADQUISICIÓN AMBULANCIAS DE TRANSPORTE ASISTENCIAL BÁSICO (TAB) Y TRANSPORTE ASISTENCIAL MEDICALIZADA (TAM), PARA EL APOYO DEL SISTEMA DE REFERENCIA Y CONTRA REFERENCIA DE LA RED HOSPITALARIA DEL DEPARTAMENTO DE CUNDINAMARCA","MEJORAR LA PRESTACIÓN DEL SERVICIO DE TRANSPORTE ASISTENCIAL DE URGENCIAS DE SALUD ","SALUD Y PROTECCIÓN SOCIAL",3764666699,0.9708,null,null,null,null,null,null,null,null,null,null,null,null,null,null,null,null,44617,44617,44617,-53,-53,-53]
["CUNDINAMARCA","SECRETARIA DE AGRICULTURA","DIEGO TORRES/VALENTINA PORTILLO",2017000050062,"FORTALECIMIENTO DE LAS CADENAS PRODUCTIVAS DE MANGO, AGUACATE Y CÍTRICOS EN EL DEPARTAMENTO DE CUNDINAMARCA","MEJORAR LA PRODUCTIVIDAD Y COMPETITIVIDAD DE CULTIVOS FRUTÍCOLAS PRIORIZADOS PARA EL DEPARTAMENTO DE CUNDINAMARCA, MEDIANTE EL ESTABLECIMIENTO DE ÁREAS NUEVAS CON ÉNFASIS EN BUENAS PRÁCTICAS AGRÍCOLAS (BPA).\n","AGRICULTURA ",3000129600,1,null,null,null,null,null,null,null,null,null,null,null,null,null,null,null,null,44617,44617,44617,-53,-53,-53]
["CUNDINAMARCA","SECRETARIA DE MINAS, ENERGIA Y GAS","DIEGO TORRES / LIYUGETH ALFONSO",2017000050064,"CONSTRUCCIÓN DE REDES ELÉCTRICAS EN ZONA RURAL DE 13 MUNICIPIOS, EN EL MARCO DEL PROYECTO ILUMINANDO VIDAS DEL DEPARTAMENTO DE CUNDINAMARCA","\nAMPLIAR LA COBERTURA DEL SERVICIO DE ENERGÍA ELÉCTRICA EN LA ZONA RURAL DE 13 MUNICIPIOS DE CUNDINAMARCA.\n","MINAS Y ENERGÍA",2972842689,0.81879999999999997,null,null,null,null,null,null,null,null,null,null,null,null,null,null,null,null,44617,44617,44617,-53,-53,-53]
["CUNDINAMARCA","SECRETARIA DE AGRICULTURA","DIEGO TORRES/VALENTINA PORTILLO",2017000050065,"MEJORAMIENTO DE LA PRODUCTIVIDAD Y RENTABILIDAD DE LOS CAFICULTORES DEL DEPARTAMENTO DE CUNDINAMARCA","AUMENTAR LA PRODUCTIVIDAD Y RENTABILIDAD DE LA CAFICULTURA EN EL DEPARTAMENTO.","AGRICULTURA ",6523880054,0.84630000000000005,null,null,null,null,null,null,null,null,null,null,null,null,null,null,null,null,44617,44617,44617,-53,-53,-53]
["CUNDINAMARCA","SECRETARIA DE CIENCIA, TECNOLOGIA E INNOVACIÓN","ALEXANDER RIVEROS Y YAHIR ARCINIEGAS",2017000100016,"IMPLEMENTACIÓN PROGRAMA DE INNOVACIÓN PARA LA VALIDACIÓN Y GENERACIÓN DE PRODUCTOS DERIVADOS DE LA BIODIVERSIDAD EN EL DEPARTAMENTO DE CUNDINAMARCA","FORTALECER LAS CAPACIDADES DE INNOVACIÓN DE BASE TECNOLÓGICA PARA EL APROVECHAMIENTO SOSTENIBLE DE LA BIODIVERSIDAD EN EL DEPARTAMENTO\nDE CUNDINAMARCA.\n","CTEL",4486653319,0.92359999999999998,null,null,null,null,null,null,null,null,null,null,null,null,null,null,null,null,44617,44617,44617,-53,-53,-53]
["CUNDINAMARCA","SECRETARIA DE CIENCIA, TECNOLOGIA E INNOVACIÓN","ALEXANDER RIVEROS Y YAHIR ARCINIEGAS",2017000100034,"IMPLEMENTACIÓN DE UN SISTEMA DE GESTIÓN DE INNOVACIÓN PARA LA INDUSTRIA DE CUNDINAMARCA","DESARROLLAR CAPACIDADES DE INNOVACIÓN EN LAS EMPRESAS PARA AUMENTAR LA COMPETITIVIDAD Y PRODUCTIVIDAD DEL DEPARTAMENTO DE\nCUNDINAMARCA","CTEL",3925471448,0.94179999999999997,null,null,null,null,null,null,null,null,null,null,null,null,null,null,null,null,44617,44617,44617,-53,-53,-53]
["CUNDINAMARCA","SECRETARIA DE CIENCIA, TECNOLOGIA E INNOVACIÓN","ALEXANDER RIVEROS Y YAHIR ARCINIEGAS",2017000100074,"IMPLEMENTACIÓN DE ESTRATEGIAS DE FOMENTO A LA CULTURA Y SERVICIOS DE INNOVACIÓN EN LAS PROVINCIAS SABANA OCCIDENTE, SABANA CENTRAL, SOACHA Y SUMAPAZ CUNDINAMARCA","AUMENTAR LOS NIVELES DE INNOVACIÓN EN LAS MICROS, PEQUEÑAS Y MEDIANAS EMPRESAS DE LA ENTIDAD TERRITORIAL","CTEL",6183633276,0.995,null,null,null,null,null,null,null,null,null,null,null,null,null,null,null,null,44617,44617,44617,-53,-53,-53]
["CUNDINAMARCA","SECRETARIA DE CIENCIA, TECNOLOGIA E INNOVACIÓN","ALEXANDER RIVEROS Y YAHIR ARCINIEGAS",2017000100076,"FORTALECIMIENTO DE CAPACIDADES DE GESTIÓN DEL RIESGO A TRAVÉS DE APROPIACIÓN SOCIAL DE LA CIENCIA, LA TECNOLOGÍA Y LA INNOVACIÓN EN EL DEPARTAMENTO DE CUNDINAMARCA","IINCREMENTAR LOS NIVELES DE INTERCAMBIO DE CONOCIMIENTOS CIENTÍFICOS Y TECNOLÓGICOS EN TORNO A LA GESTIÓN DEL RIESGO ENTRE LAS COMUNIDADES, EL\nGOBIERNO Y EXPERTOS EN EL DEPARTAMENTO DE CUNDINAMARCA ","CTEL",4404970720,0.58360000000000001,null,null,"Revisar los % de ejecución financiera, respecto al % de avance fisico",null,null,null,null,null,null,null,null,null,null,null,null,null,44617,44617,44617,-53,-53,-53]
["CUNDINAMARCA","SECRETARIA DE CIENCIA, TECNOLOGIA E INNOVACIÓN","ALEXANDER RIVEROS Y YAHIR ARCINIEGAS",2017000100087,"FORMACIÓN DE TALENTO HUMANO DE ALTO NIVEL EN MAESTRÍAS EN EL DEPARTAMENTO DE CUNDINAMARCA","INCREMENTAR EL ACCESO A LA FORMACIÓN DE ALTO NIVEL PARA LA INVESTIGACIÓN, EL DESARROLLO TECNOLÓGICO Y LA INNOVACIÓN EN EL DEPARTAMENTO DE\nCUNDINAMARCA","CTEL",5148022960,0.45519999999999999,null,null,null,null,null,null,null,null,null,null,null,null,null,null,null,null,44619,44619,44619,-51,-51,-51]
["CUNDINAMARCA","SECRETARIA DE CIENCIA, TECNOLOGIA E INNOVACIÓN","ALEXANDER RIVEROS Y YAHIR ARCINIEGAS",2017000100104,"FORTALECIMIENTO DE LA CULTURA DE LA GESTIÓN Y UTILIZACIÓN DEL CONOCIMIENTO EN CTEI EN NIÑOS, JÓVENES Y COMUNIDADES DEL DEPARTAMENTO DE CUNDINAMARCA","FORTALECER LA CULTURA DE LA GESTIÓN Y UTILIZACIÓN DEL CONOCIMIENTO EN CTEI EN NIÑOS, JÓVENES Y COMUNIDADES DE CUNDINAMARCA.","CTEL",9498967749,0.4768,null,null,null,null,null,null,null,null,null,null,null,null,null,null,null,null,44619,44619,44619,-51,-51,-51]
["CUNDINAMARCA","UNIDAD ADMINISTRATIVA DE GESTIÓN DEL RIESGO.","DIEGO TORRES/VALENTINA PORTILLO",20172401060022,"ESTUDIOS DETALLADOS PARA LA INCORPORACIÓN DE LA GESTIÓN DEL RIESGO PARA LOS MUNICIPIOS DE GIRARDOT, RICAURTE","INCORPORAR DE MANERA GRADUAL LA GESTIÓN DEL RIESGO EN LA REVISIÓN DE LOS PLANES DE ORDENAMIENTO TERRITORIAL DE LOS MUNICIPIOS DE GIRARDOT Y RICAURTE.","AMBIENTE Y DESARROLLO SOSTENIBLE",3084907873,0,null,null,"Acá los % de ejecución es 0, porqué no ha iniciado",null,null,null,null,null,null,null,null,null,null,null,null,null,44619,44619,44619,-51,-51,-51]
["CUNDINAMARCA","SECRETARIA DE CIENCIA, TECNOLOGIA E INNOVACIÓN","ALEXANDER RIVEROS Y YAHIR ARCINIEGAS",20170000100012,"CONFORMACIÓN DE UNA CONVOCATORIA REGIONAL DE PROYECTOS I+D EN FOCOS PRIORIZADOS CTEI PARA EL FORTALECIMIENTO DE LOS GRUPOS DE INVESTIGACIÓN CUNDINAMARCA","\nFORTALECER LA PRODUCCIÓN DE CONOCIMIENTO Y DESARROLLO EXPERIMENTAL DE ALTO IMPACTO PARA EL DEPARTAMENTO DE CUNDINAMARCA\n","CTEL",7321934035,0.9496,null,null,null,null,null,null,null,null,null,null,null,null,null,null,null,null,44619,44619,44619,-51,-51,-51]
["ENTIDAD APORTANTE RECURSOS","CAR","YESID CASTAÑO",2017000050063,"RECUPERACIÓN HIDRÁULICA Y AMBIENTAL DEL COMPLEJO LAGUNAR  FÚQUENE","RECUPERAR EL EQUILIBRIO AMBIENTAL DEL COMPLEJO LAGUNAR FÚQUENE\n","AMBIENTE Y DESARROLLO SOSTENIBLE",18000000000,0.33500000000000002,null,null,null,null,null,null,null,null,null,null,null,null,null,null,null,null,44619,44619,44619,-51,-51,-51]
["ENTIDAD APORTANTE RECURSOS","CAR","YESID CASTAÑO",2017000050070,"CONSTRUCCIÓN DE OBRAS DE MITIGACIÓN DEL RIESGO POR EVENTOS CLIMÁTICOS EN LA CUENCA DE LA QUEBRADA LA PARROQUIA EN EL CERRO DE FUSACATÁN DEL MUNICIPIO DE  FUSAGASUGÁ, CUNDINAMARCA","DISMINUIR EL RIESGO DE INUNDACIONES POR CRECIENTE SÚBITA DE LA CUENCA DE LA QUEBRADA LA PARROQUIA EN EL MUNICIPIO DE FUSAGASUGÁ.","AMBIENTE Y DESARROLLO SOSTENIBLE",1976558725,0,null,null,null,null,null,null,null,null,null,null,null,null,null,null,null,null,44619,44619,44619,-51,-51,-51]
["ENTIDAD APORTANTE RECURSOS","MUNICIPIO DE UTICA","JUAN CARLOS TORRES",2017000050087,"MEJORAMIENTO DEL SENDERO TURÍSTICO DE LA PROVINCIA DEL GUALIVÁ  – ÚTICA  CUNDINAMARCA","MEJORAR LA INFRAESTRUCTURA TURÍSTICA  EN LA PROVINCIA DEL GUALIVA","COMERCIO, INDUSTRIA Y TURISMO ",2347004868,0.88849999999999996,null,null,null,null,null,null,null,null,null,null,null,null,null,null,null,null,44619,44619,44619,-51,-51,-51]
["CUNDINAMARCA","SECRETARIA DE EDUCACIÓN","YAHIR ARCINIEGAS Y ALEXANDER RIVEROS",2018000050019,"FORTALECIMIENTO DE LA PERMANENCIA DE LOS ESTUDIANTES EN LOS MUNICIPIOS DEL DEPARTAMENTO DE CUNDINAMARCA, CENTRO ORIENTE 2018 CUNDINAMARCA","INCREMENTAR LOS NIVELES DE PERMANENCIA DE LOS NIÑOS, NIÑAS Y ADOLESCENTES QUE ASISTEN A LOS ESTABLECIMIENTOS EDUCATIVOS OFICIALES DE CUNDINAMARCA","EDUCACIÓN",19395559645,0.66120000000000001,null,null,null,null,null,null,null,null,null,null,null,null,null,null,null,null,44619,44619,44619,-51,-51,-51]
["\tENTIDAD APORTANTE RECURSOS","ICCU - GESPROY GB","DIEGO TORRES / JEIMY FORERO",2018000050022,"MEJORAMIENTO Y REHABILITACIÓN DE VÍAS SECUNDARIAS EN LA PROVINCIA DE UBATÉ, DEPARTAMENTO DE CUNDINAMARCA","MEJORAR LA INTERCOMUNICACIÓN TERRESTRE DE LA POBLACIÓN DE LOS MUNICIPIOS DE LA PROVINCIA DE UBATÉ EN EL DEPARTAMENTO DE CUNDINAMARCA","TRANSPORTE",7524876363,0.96440000000000003,null,null,null,null,null,null,null,null,null,null,null,null,null,null,null,null,44619,44619,44619,-51,-51,-51]
["ENTIDAD APORTANTE RECURSOS","ICCU - GESPROY GB","DIEGO TORRES / JEIMY FORERO",2018000050024,"MEJORAMIENTO Y REHABILITACIÓN DE LA VÍA LA MARÍA – TOBIA - PASO EL REJO - LA PEÑA, DEPARTAMENTO DE CUNDINAMARCA","MEJORAR LA INTERCOMUNICACIÓN TERRESTRE DE LA POBLACIÓN DE LOS MUNICIPIOS DE LA PROVINCIA DE GUALIVÁ EN EL DEPARTAMENTO DE CUNDINAMARCA","TRANSPORTE",9149162991,0.93269999999999997,null,null,null,null,null,null,null,null,null,null,null,null,null,null,null,null,44619,44619,44619,-51,-51,-51]
["ENTIDAD APORTANTE RECURSOS","ICCU - GESPROY GB","DIEGO TORRES / JEIMY FORERO",2018000050026,"MEJORAMIENTO DE VÍAS EN LA PROVINCIA DE SUMAPAZ PARA LA CONSOLIDACIÓN DE UNA PAZ ESTABLE Y DURADERA EN EL DEPARTAMENTO DE CUNDINAMARCA","MEJORAR LA INTERCOMUNICACIÓN TERRESTRE DE LA POBLACIÓN DE LOS MUNICIPIOS DE LA PROVINCIA DEL SUMAPAZ EN EL DEPARTAMENTO DE CUNDINAMARCA","TRANSPORTE",11457047617,0.60660000000000003,null,null,null,null,null,null,null,null,null,null,null,null,null,null,null,null,44619,44619,44619,-51,-51,-51]
["CUNDINAMARCA","UNIDAD ADMINISTRATIVA DE GESTIÓN DEL RIESGO.","DIEGO TORRES/VALENTINA PORTILLO",2018000050036,"CONSTRUCCIÓN DE OBRAS PARA LA MITIGACIÓN DEL RIESGO EN EL MUNICIPIO DE SAN BERNARDO, BENEFICIANDO A COMUNIDADES DE LOS MUNICIPIOS DE ARBELAEZ, PANDI Y VENECIA CUNDINAMARCA","DISMINUIR LA VULNERABILIDAD DE RIESGO DE DESLIZAMIENTO E INUNDACIN EN LA COMUNIDAD DE LOS BARRIOS JUAN XIII Y SAN ANTONIO DEL MUNICIPIO DE SAN BERNARDO, BENEFICIANDO A MUNICIPIOS ALEDAÑOS COMO ARBELAEZ, PANDI Y VENECIA CUNDINAMARCA","AMBIENTE Y DESARROLLO SOSTENIBLE",2305788182,0,null,null,null,null,null,null,null,null,null,null,null,null,null,null,null,null,44619,44619,44619,-51,-51,-51]
["CUNDINAMARCA","SECRETARIA DE HABITAT Y VIVIENDA","ALEXANDER RIVEROS/JEIMY FORERO",2018000050039,"MEJORAMIENTO DE VIVIENDA RURAL EN LOS MUNICIPIOS DE CUCUNUBÁ, JERUSALEN, QUEBRADANEGRA Y VIOTÁ - DEPARTAMENTO DE CUNDINAMARCA","\nDISMINUIR EL NÚMERO DE FAMILIAS CON DEFICIENTES CONDICIONES HABITACIONALES UBICADAS EN LA ZONA RURAL DE LOS MUNICIPIOS \n","AGRICULTURA ",4024793625,0.98619999999999997,null,null,null,null,null,null,null,null,null,null,null,null,null,null,null,null,44619,44619,44619,-51,-51,-51]
["ENTIDAD APORTANTE RECURSOS","ICCU - GESPROY GB","DIEGO TORRES / JEIMY FORERO",2018000050049,"MEJORAMIENTO DE LA VÍA SESQUILÉ – GUATAVITA - GACHETÁ, DEPARTAMENTO DE CUNDINAMARCA","MEJORAR LA INTERCOMUNICACIÓN TERRESTRE DE LA POBLACIÓN DE LOS MUNICIPIOS DE SESQUILÉ, GUATAVITA Y GACHETÁ EN EL DEPARTAMENTO DE CUNDINAMARCA.","TRANSPORTE",3997714045,0.79320000000000002,null,null,null,null,null,null,null,null,null,null,null,null,null,null,null,null,44619,44619,44619,-51,-51,-51]
["\tENTIDAD APORTANTE RECURSOS","ICCU - GESPROY GB","DIEGO TORRES / JEIMY FORERO",2018000050055,"MEJORAMIENTO DE LA TRONCAL DE RIONEGRO, SECTOR LA PALMA CHARCO LARGO PARA LA CONSOLIDACIÓN DE UNA PAZ ESTABLE Y DURADERA EN EL DEPARTAMENTO DE CUNDINAMARCA","MEJORAR LA INTERCOMUNICACIÓN TERRESTRE DE UNA PARTE DE LA POBLACIÓN DE LA PROVINCIA DE RIONEGRO EN EL DEPARTAMENTO DE CUNDINAMARCA","TRANSPORTE",17928531277,0.92210000000000003,null,null,null,null,null,null,null,null,null,null,null,null,null,null,null,null,44619,44619,44619,-51,-51,-51]
["ENTIDAD APORTANTE RECURSOS","ICCU - GESPROY GB","DIEGO TORRES / JEIMY FORERO",2018000050059,"MEJORAMIENTO DE LA VÍA GUSBITA - TIBIRITA DEL DEPARTAMENTO DE CUNDINAMARCA","MEJORAR EN LA INTERCOMUNICACIÓN TERRESTRE DE LA POBLACIÓN DE LOS MUNICIPIOS DE TIBIRITA Y MACHETÁ DEL DEPARTAMENTO DE CUNDINAMARCA","TRANSPORTE",5500531740,0.85209999999999997,null,null,null,null,null,null,null,null,null,null,null,null,null,null,null,null,44619,44619,44619,-51,-51,-51]
["CUNDINAMARCA","SECRETARIA DE CIENCIA, TECNOLOGIA E INNOVACIÓN","ALEXANDER RIVEROS Y YAHIR ARCINIEGAS",2018000100106,"INNOVACIÓN EN EL MODELO DE GESTIÓN DEL MEDICAMENTO FASE III EN EL DEPARTAMENTO DE  CUNDINAMARCA","MEJORAR LAS INEFICIENCIAS EN EL CICLO DE GESTIÓN DEL MEDICAMENTO EN EL DEPARTAMENTO DE CUNDINAMARCA\n","CTEL",3452890062,0,null,null,null,null,null,null,null,null,null,null,null,null,null,null,null,null,44391,44331,44331,-339,-339,-279]
["CUNDINAMARCA","SECRETARIA DE CIENCIA, TECNOLOGIA E INNOVACIÓN","ALEXANDER RIVEROS Y YAHIR ARCINIEGAS",2018000100160,"FORMACIÓN DE CAPITAL HUMANO DE ALTO NIVEL PARA LA INVESTIGACIÓN, EL DESARROLLO TECNOLÓGICO Y LA INNOVACIÓN MAESTRÍAS DE INVESTIGACIÓN PARA DOCENTES DEL DEPARTAMENTO DE CUNDINAMARCA","\nINCREMENTAR LA DISPONIBILIDAD DE CAPITAL HUMANO CON CAPACIDADES DE INVESTIGACIÓN EN PRÁCTICAS PEDAGÓGICAS EN ESTABLECIMIENTOS EDUCATIVOS OFICIALES DEL DEPARTAMENTO DE CUNDINAMARCA.\n","CTEL",5217415747,0,null,null,null,null,null,null,null,null,null,null,null,null,null,null,null,null,44619,44619,44619,-51,-51,-51]
["ENTIDAD DESIGNADA PARA LA SUPERVISIÓN DEL PROYECTO O PARA CONTRATAR LA INTERVENTORÍA","EMPRESAS PUBLICAS DE CUNDINAMARCA -EPC","ALEXANDER RIVEROS/LIYUGETH ALFONSO",20181301010555,"CONSTRUCCIÓN DE UNIDADES SANITARIAS EN EL ÁREA RURAL DEL DEPARTAMENTO DE CUNDINAMARCA","DISMINUIR LOS NIVELES DE DISPOSICIÓN DE AGUAS RESIDUALES EN LAS VIVIENDAS RURALES.","VIVIENDA, CIUDAD Y TERRITORIO ",4999900475,0.69489999999999996,null,null,"Revisar % de avance del proyecto, retrasos ?",null,null,null,null,null,null,null,null,null,null,null,null,null,44619,44619,44619,-51,-51,-51]
["\tENTIDAD APORTANTE RECURSOS","ICCU - GESPROY GB","DIEGO TORRES / JEIMY FORERO",2019000050002,"MEJORAMIENTO DE LA VÍA DEPARTAMENTAL LA VICTORIA (EL COLEGIO) SAN GABRIEL (VIOTÁ), TRAMO LA VICTORIA ALTO DE LA MULA, DEPARTAMENTO DE CUNDINAMARCA","MEJORAR LA INTERCOMUNICACIÓN TERRESTRE DE LA POBLACIÓN DE LOS MUNICIPIOS DE EL COLEGIO Y VIOTÁ EN EL DEPARTAMENTO DE CUNDINAMARCA.","TRANSPORTE",5745879373,0.98519999999999996,null,null,null,null,null,null,null,null,null,null,null,null,null,null,null,null,44619,44619,44619,-51,-51,-51]
["ENTIDAD APORTANTE RECURSOS","ICCU - GESPROY GB","DIEGO TORRES / JEIMY FORERO",2019000050003,"MEJORAMIENTO DE LA VÍA CÁQUEZA FOSCA, DEPARTAMENTO DE CUNDINAMARCA","MEJORAR LA INTERCOMUNICACIÓN TERRESTRE DE LA POBLACIÓN DE LOS MUNICIPIOS DE CÁQUEZA Y FOSCA EN EL DEPARTAMENTO DE CUNDINAMARCA","TRANSPORTE",4049029755,0.98540000000000005,null,null,null,null,null,null,null,null,null,null,null,null,null,null,null,null,44619,44619,44619,-51,-51,-51]
["ENTIDAD APORTANTE RECURSOS","ICCU - GESPROY GB","DIEGO TORRES / JEIMY FORERO",2019000050005,"MEJORAMIENTO DE LA VÍA FÓMEQUE UBAQUE, DEPARTAMENTO DE CUNDINAMARCA","MEJORAR LA INTERCOMUNICACIÓN TERRESTRE DE LA POBLACIÓN DE LOS MUNICIPIOS DE CHOACHÍ, FÓMEQUE Y UBAQUE EN EL DEPARTAMENTO DE CUNDINAMARCA.","TRANSPORTE",16514204213,0.99919999999999998,null,null,null,null,null,null,null,null,null,null,null,null,null,null,null,null,44619,44619,44619,-51,-51,-51]
["ENTIDAD APORTANTE RECURSOS","ICCU - GESPROY GB","DIEGO TORRES / JEIMY FORERO",2019000050011,"MEJORAMIENTO DE LA VÍA SUPATÁ - PACHO, DEPARTAMENTO DE CUNDINAMARCA","MEJORAR LA INTERCOMUNICACIÓN TERRESTRE DE LA POBLACIÓN DE LOS MUNICIPIOS DE PACHO, SUPATÁ Y VERGARA EN EL DEPARTAMENTO DE CUNDINAMARCA.","TRANSPORTE",7339441010,0.71899999999999997,null,null,null,null,null,null,null,null,null,null,null,null,null,null,null,null,44619,44619,44619,-51,-51,-51]
["ENTIDAD APORTANTE RECURSOS","ICCU - GESPROY GB","DIEGO TORRES / JEIMY FORERO",2019000050013,"CONSTRUCCIÓN DE LA PLAZA DE MERCADO DEL MUNICIPIO DE CHOACHÍ CUNDINAMARCA","FORTALECER LOS CANALES DE COMERCIALIZACIÓN DE LOS PRODUCTOS AGROPECUARIOS EN LOS MUNICIPIOS DE CHOACHÍ, UBAQUE Y FÓMEQUE EN EL DEPARTAMENTO DE CUNDINAMARCA.","AGRICULTURA ",3152125044,0.54379999999999995,null,null,null,null,null,null,null,null,null,null,null,null,null,null,null,null,44619,44619,44619,-51,-51,-51]
["ENTIDAD APORTANTE RECURSOS","ICCU - GESPROY GB","DIEGO TORRES / JEIMY FORERO",2019000050016,"MEJORAMIENTO DE LA VÍA ANOLAIMA CORRALEJAS (INSPECCIÓN DE CORRALEJAS), DEPARTAMENTO DE CUNDINAMARCA","MEJORAR LA INTERCOMUNICACION TERRESTRE DE LA POBLACION DE LOS MUNICIPIOS DE ALBAN, ANOLAIMA Y QUIPILE EN EL DEPARTAMENTO DE CUNDINAMARCA","TRANSPORTE",6898362469,0.82799999999999996,null,null,null,null,null,null,null,null,null,null,null,null,null,null,null,null,44619,44619,44619,-51,-51,-51]
["CUNDINAMARCA","SECRETARIA DE EDUCACIÓN","YAHIR ARCINIEGAS Y ALEXANDER RIVEROS",2019000050020,"FORTALECIMIENTO DE LA PERMANENCIA DE LOS ESTUDIANTES PARA EL AÑO 2019 EN LOS MUNICIPIOS DEL DEPARTAMENTO DE CUNDINAMARCA","INCREMENTAR LOS NIVELES DE PERMANENCIA DE LOS NIÑOS, NIÑAS Y ADOLESCENTES QUE ASISTEN A LOS ESTABLECIMIENTOS EDUCATIVOS OFICIALES DECUNDINAMARCA","EDUCACIÓN",20536293937,0.91459999999999997,null,null,null,null,null,null,null,null,null,null,null,null,null,null,null,null,44619,44619,44619,-51,-51,-51]
["ENTIDAD APORTANTE RECURSOS","ICCU - GESPROY GB","DIEGO TORRES / JEIMY FORERO",2019000050023,"MEJORAMIENTO DE LA VÍA LENGUAZAQUE - VILLAPINZÓN, DEPARTAMENTO DE CUNDINAMARCA","MEJORAR LA INTERCOMUNICACIÓN TERRESTRE DE LA POBLACIÓN DE LOS MUNICIPIOS DE LENGUAZAQUE Y VILLAPINZÓNEN EL DEPARTAMENTO DE CUNDINAMARCA","TRANSPORTE",8636278689,0.83830000000000005,null,null,null,null,null,null,null,null,null,null,null,null,null,null,null,null,44619,44619,44619,-51,-51,-51]
["CUNDINAMARCA","SECRETARIA DE AGRICULTURA","DIEGO TORRES/VALENTINA PORTILLO",2019000050027," MEJORAMIENTO DE LA COMPETITIVIDAD  DE LA CADENA PRODUCTIVA DE CACAO EN EL DEPARTAMENTO DE CUNDINAMARCA","MEJORAR EL CULTIVO DE CACAO Y BENEFICIO DEL GRANO, FORTALECIENDO PRODUCTORES AGRÍCOLAS A TRAVÉS DEL ACOMPAÑAMIENTO TÉCNICO Y LA ADOPCIÓN DE TECNOLOGÍA EN LOS PROCESOS DE ESTABLECIMIENTO, SOSTENIMIENTO Y POST- COSECHA DEL CULTIVO.","AGRICULTURA ",5862983962,0.95099999999999996,null,null,null,null,null,null,null,null,null,null,null,null,null,null,null,null,44619,44619,44619,-51,-51,-51]
["ENTIDAD APORTANTE RECURSOS","ICCU - GESPROY GB","DIEGO TORRES / JEIMY FORERO",2019000050029,"MEJORAMIENTO DE LA VÍA GACHETÁ - GAMA, DEPARTAMENTO DE CUNDINAMARCA","MEJORAR LA INTERCOMUNICACIÓN TERRESTRE DE LA POBLACIÓN DE LOS MUNICIPIOS DE GACHETÁ Y GAMA EN EL DEPARTAMENTO DE CUNDINAMARCA","TRANSPORTE","$ 5.477.582.208",0.84179999999999999,null,null,null,null,null,null,null,null,null,null,null,null,null,null,null,null,44619,44619,44619,{"$f":"IF(AA131=0,0,_xlfn.DAYS(AA131,TODAY()))","v":-51},-51,-51]
["CUNDINAMARCA","SECRETARIA DE SALUD","DAYANA FERNANDEZ Y EDGAR YAHIR ARCINIEGAS",2019000050036,"ADQUISICIÓN DE AMBULANCIAS PARA EL FORTALECIMIENTO DE LA RED HOSPITALARIA DEL DEPARTAMENTO CUNDINAMARCA","MEJORAR LA PRESTACIÓN DEL SERVICIO DE TRANSPORTE ASISTENCIAL DE URGENCIAS DE SALUD.","SALUD Y PROTECCIÓN SOCIAL",2385000000,0.82809999999999995,null,null,null,null,null,null,null,null,null,null,null,null,null,null,null,null,44619,44619,44619,-51,-51,{"$f":"IF(Z132=0,0,_xlfn.DAYS(Z132,TODAY()))","v":-51}]
["CUNDINAMARCA","UNIDAD ADMINISTRATIVA DE GESTIÓN DEL RIESGO.","DIEGO TORRES/VALENTINA PORTILLO",2019000050037," FORTALECIMIENTO DEL SISTEMA DEPARTAMENTAL PARA LA GESTIÓN DEL RIESGO DE DESASTRES DEL DEPARTAMENTO DE CUNDINAMARCA","FORTALECER OPERATIVAMENTE LOS ORGANISMOS DE SOCORRO PARA GARANTIZAR LA OPORTUNA ATENCIÓN DE EMERGENCIAS DENTRO DEL DEPARTAMENTO","PRESIDENCIA DE LA REPÚBLICA",4936307506,0,null,null,null,null,null,null,null,null,null,null,null,null,null,null,null,null,null,44269,44270,-401,-400,0]
["ENTIDAD APORTANTE RECURSOS","MEDICINA LEGAL Y CIENCIAS FORENSES","ALEXANDER RIVEROS",2019000050025,"ESTUDIOS Y DISEÑOS PARA LA CONSTRUCCIÓN DE LA SEDE DE MEDICINA LEGAL EN EL DEPARTAMENTO DE CUNDINAMARCA","REALIZAR ESTUDIOS Y DISEÑOS TÉCNICOS PARA LA CONSTRUCCIÓN Y DOTACIÓN DE LA SEDE SERVICIOS FORENSES DEL REGIONAL ORIENTE PARA EL DEPARTAMENTO CUNDINAMARCA","FISCALIA",904521100,0.36780000000000002,null,null,"Proyecto no se escuentra en ese estado, ni los % de avance corresponden",null,null,null,null,null,null,null,null,null,null,null,null,null,44619,44619,44619,-51,-51,-51]
["CUNDINAMARCA","SECRETARIA DE MINAS, ENERGIA Y GAS","DIEGO TORRES / LIYUGETH ALFONSO",2019000050039," ESTUDIO Y DISEÑO PARA LA CONSTRUCCIÓN DE REDES ELÉCTRICAS AÉREAS EN ZONAS RURALES DEL DEPARTAMENTO DE CUNDINAMARCA","\nOBJETIVO PROYECTO\nREALIZAR ESTUDIO Y DISEÑO TÉCNICO PARA LA CONSTRUCCIÓN DE REDES ELÉCTRICAS AÉREAS DE MEDIA Y BAJA TENSIÓN EN ZONA RURAL DE 20 MUNICIPIOS DEL DEPARTAMENTO DE CUNDINAMARCA.","MINAS Y ENERGÍA",1616407501,0,null,null,null,null,null,null,null,null,null,null,null,null,null,null,null,null,44619,44619,44619,-51,-51,-51]
["CUNDINAMARCA","SECRETARIA DE EDUCACIÓN","YAHIR ARCINIEGAS Y ALEXANDER RIVEROS",2019000050044,"FORTALECIMIENTO A LA ESTRATEGIA DE ALIMENTACIÓN ESCOLAR PARA MUNICIPIOS NO CERTIFICADOS, VIGENCIA 2019 DEL DEPARTAMENTO DE CUNDINAMARCA","\nOBJETIVO PROYECTO\nINCREMENTAR LOS NIVELES DE PERMANENCIA DE LOS NIÑOS, NIÑAS, ADOLESCENTES Y JÓVENES EN LA JORNADA ACADÉMICA QUE ASISTEN A LOS ESTABLECIMIENTOS EDUCATIVOS OFICIALES EN LA ENTIDAD TERRITORIAL ETC CUNDINAMARCA","EDUCACIÓN",18301749135,0.53269999999999995,null,null,null,null,null,null,null,null,null,null,null,null,null,null,null,null,44619,44619,44619,-51,-51,-51]
["ENTIDAD APORTANTE DE RECURSOS","ICCU - GESPROY GB","DIEGO TORRES / JEIMY FORERO",2019000050047,"MEJORAMIENTO DE LA VÍA SUSA - CARMEN DE CARUPA, DEPARTAMENTO DE CUNDINAMARCA","MEJORAR LA INTERCOMUNICACIÓN TERRESTRE DE LA POBLACIÓN DE LOS MUNICIPIOS DE SUSA Y CARMEN DE CARUPA EN EL DEPARTAMENTO DE CUNDINAMARCA.","TRANSPORTE",4131178258,0.79390000000000005,null,null,null,null,null,null,null,null,null,null,null,null,null,null,null,null,44619,44619,44619,-51,-51,-51]
["ENTIDAD APORTANTE RECURSOS","ICCU - GESPROY GB","DIEGO TORRES / JEIMY FORERO",2019000050056,"MEJORAMIENTO DE LA VÍA QUE CONDUCE DEL MUNICIPIO DE NIMAIMA AL MUNICIPIO DE NOCAIMA, DEPARTAMENTO DE CUNDINAMARCA","MEJORAR LA INTERCOMUNICACIÓN TERRESTRE DE LA POBLACIÓN ENTRE LOS MUNICIPIOS DE NIMAIMA Y NOCAIMA EN EL DEPARTAMENTO DE CUNDINAMARCA","TRANSPORTE",5082491569.8000002,0.87219999999999998,null,null,null,null,null,null,null,null,null,null,null,null,null,null,null,null,44619,44619,44619,-51,-51,-51]
["ENTIDAD APORTANTE RECURSOS","IDECUT","DIEGO TORRES Y YAHIR ARCINIEGAS",2019000050059,"FORTALECIMIENTO A LAS ESCUELAS MUNICIPALES DE MÚSICA, DANZA, TEATRO Y ARTES PLÁSTICAS Y VISUALES EN EL DEPARTAMENTO DE CUNDINAMARCA","FORTALECER LOS PROCESOS DE FORMACIÓN ARTÍSTICA Y DE GESTIÓN CULTURAL DE LOS MUNICIPIOS DEL DEPARTAMENTO DE CUNDINAMARCA.","CULTURA ",1972606058,0,null,null,null,null,null,null,null,null,null,null,null,null,null,null,null,null,44619,44619,44619,-51,-51,-51]
["\tENTIDAD APORTANTE RECURSOS","ICCU - GESPROY GB","DIEGO TORRES / JEIMY FORERO",2019000050060,"ESTUDIOS Y DISEÑOS DE VÍAS PARA MEJORAR LA COMPETITIVIDAD DEL DEPARTAMENTO DE CUNDINAMARCA","MEJORAR LA PLANIFICACIÓN DE LA INVERSIÓN SOBRE LA MALLA VIAL DE IMPORTANCIA ESTRATÉGICA EN EL DEPARTAMENTO DE CUNDINAMARCA.","TRANSPORTE",7089369627,0.61699999999999999,null,null,null,null,null,null,null,null,null,null,null,null,null,null,null,null,44619,44619,44619,-51,-51,-51]
["CUNDINAMARCA","SECRETARIA DE MINAS, ENERGIA Y GAS","DIEGO TORRES / LIYUGETH ALFONSO",2019000050073,"AMPLIACIÓN DE LA COBERTURA DEL SERVICIO DE GAS COMBUSTIBLE DOMICILIARIO A TRAVÉS DE LA FINANCIACIÓN DE LA CONEXIÓN Y LA RED INTERNA PARA USUARIOS DE BARRIOS PERIFÉRICOS, VEREDAS Y CENTROS POBLADOS DEL DEPARTAMENTO DE CUNDINAMARCA","DISMINUIR LOS ÍNDICES DE POBREZA MEDIANTE LA CONEXIÓN Y LA RED INTERNA DEL SERVICIO DE GAS COMBUSTIBLE DOMICILIARIO A USUARIOS EN LAS BARRIOS PERIFÉRICOS, VEREDAS Y CENTROS POBLADOS DE LOS MUNICIPIOS DEL DEPARTAMENTO DE CUNDINAMARCA.\n","MINAS Y ENERGÍA",12461377100,0.95340000000000003,null,null,null,null,null,null,null,null,null,null,null,null,null,null,null,null,44619,44619,44619,-51,-51,-51]
["ENTIDAD APORTANTE RECURSOS","ICCU - GESPROY GB","DIEGO TORRES / JEIMY FORERO",2019000050075,"MEJORAMIENTO DE LA VÍA QUE CONDUCE DEL MUNICIPIO DE VIANI AL MUNICIPIO DE CHAGUANI, (DE LA Y DE SAN VICENTE A CHAGUANI), DEPARTAMENTO DE CUNDINAMARCA","MEJORAR LA INTERCOMUNICACIÓN TERRESTRE DE LA POBLACIÓN ENTRE LOS MUNICIPIOS DE VIANÍ, SAN JUAN DE RIO SECO Y CHAGUANÍ EN EL DEPARTAMENTO DE CUNDINAMARCA.","TRANSPORTE",7504443091,0.86450000000000005,null,null,null,null,null,null,null,null,null,null,null,null,null,null,null,null,44619,44619,44619,-51,-51,-51]
["\tENTIDAD APORTANTE RECURSOS","ICCU - GESPROY GB","DIEGO TORRES / JEIMY FORERO",2019000050079,"MEJORAMIENTO DE LA VÍA SERREZUELA - EL TRIUNFO, MUNICIPIO DE LA CALERA, DEPARTAMENTO DE CUNDINAMARCA","MEJORAR LA INTERCOMUNICACIÓN TERRESTRE DE LA POBLACIÓN DE LOS MUNICIPIOS DE LA CALERA, CHOACHI Y SOPÓ EN EL DEPARTAMENTO DE CUNDINAMARCA","TRANSPORTE",7614258187,0.8629,null,null,null,null,null,null,null,null,null,null,null,null,null,null,null,null,44619,44619,44619,-51,-51,-51]
["ENTIDAD APORTANTE RECURSOS","ICCU - GESPROY GB","DIEGO TORRES / JEIMY FORERO",2019000050085,"MEJORAMIENTO DE LA VÍA QUE CONDUCE DEL MUNICIPIO DE LA MESA AL MUNICIPIO DE CACHIPAY, (DE LA INSPECCIÓN DE PEÑA NEGRA AL MUNICIPIO DE CACHIPAY), DEPARTAMENTO DE CUNDINAMARCA","MEJORAR LA INTERCOMUNICACIÓN TERRESTRE DE LA POBLACIÓN ENTRE LOS MUNICIPIOS DE LA MESA Y CACHIPAY EN EL DEPARTAMENTODE CUNDINAMARCA.","TRANSPORTE",7019896083,0.66890000000000005,null,null,null,null,null,null,null,null,null,null,null,null,null,null,null,null,44619,44619,44619,-51,-51,-51]
["ENTIDAD APORTANTE RECURSOS","TV ANDINA","ALEXANDER RIVEROS",2019000050064,"PROTECCIÓN Y PRESERVACIÓN DEL PATRIMONIO AUDIOVISUAL COLOMBIANO QUE SE ENCUENTRA EN EL CANAL PÚBLICO TEVEANDINA LOCALIZADO EN EL DEPARTAMENTO DE  CUNDINAMARCA","RECUPERAR EL PATRIMONIO AUDIOVISUAL EN EL CANAL PÚBLICO TEVEANDINA","CULTURA ",5923285198,0.99350000000000005,null,null,null,null,null,null,null,null,null,null,null,null,null,null,null,null,44619,44619,44619,-51,-51,-51]
["ENTIDAD APORTANTE RECURSOS","UNAD","ALEXANDER RIVEROS",2019000050069,"MEJORAMIENTO DE INFRAESTRUCTURA FÍSICA, DOTACIÓN DE MOBILIARIO Y EQUIPAMIENTO TECNOLÓGICO DE LA UNIVERSIDAD NACIONAL ABIERTA Y A DISTANCIA EN MUNICIPIOS DEL DEPARTAMENTO DE CUNDINAMARCA","MEJORAR LAS CONDICIONES EDUCATIVAS PARA LA FORMACIÓN Y EL DESARROLLO DE COMPETENCIAS BÁSICAS DE ESTUDIANTES EN EDUCACIÓN SUPERIOR DE LA UNAD EN EL DEPARTAMENTO DE CUNDINAMARCA.","EDUCACIÓN",16011115461,0.90449999999999997,null,null,null,null,null,null,null,null,null,null,null,null,null,null,null,null,44619,44619,44619,-51,-51,-51]
["ENTIDAD APORTANTE RECURSOS","U TECNOLOGICA DE PEREIRA","YAHIR ARCINIEGAS",2019000100009,"FORMACIÓN DE CAPITAL HUMANO DE ALTO NIVEL UNIVERSIDAD TECNOLÓGICA DE PEREIRA  NACIONAL","INCREMENTAR LAS CAPACIDADES DEL TALENTO HUMANO EN INVESTIGACIÓN DE CALIDAD E IMPACTO, APOYANDO EL PROGRAMA DE FORMACIÓN EN DOCTORADOS\n","CTEL",4360028215,0.4083,null,null,null,null,null,null,null,null,null,null,null,null,null,null,null,null,44619,44619,44619,-51,-51,-51]
["ENTIDAD APORTANTE RECURSOS","U EAN","YAHIR ARCINIEGAS",2019000100015,"FORMACIÓN DE CAPITAL HUMANO DE ALTO NIVEL - UNIVERSIDAD EAN -  NACIONAL","INCREMENTAR LAS CAPACIDADES DEL TALENTO HUMANO EN INVESTIGACIÓN DE CALIDAD E IMPACTO, APOYANDO EL PROGRAMA DE FORMACIÓN EN DOCTORADOS\n","CTEL",1294375000,0.48220000000000002,null,null,null,null,null,null,null,null,null,null,null,null,null,null,null,null,44619,44619,44619,-51,-51,-51]
["ENTIDAD APORTANTE RECURSOS","U CATOLICA","YAHIR ARCINIEGAS",2019000100022,"FORMACIÓN DE CAPITAL HUMANO DE ALTO NIVEL - UNIVERSIDAD CATÓLICA DE COLOMBIA -  NACIONAL","INCREMENTAR LAS CAPACIDADES DEL TALENTO HUMANO EN INVESTIGACIÓN DE CALIDAD E IMPACTO, APOYANDO EL PROGRAMA DE FORMACIÓN EN DOCTORADOS\n","CTEL",343595000,0.64270000000000005,null,null,null,null,null,null,null,null,null,null,null,null,null,null,null,null,44619,44619,44619,-51,-51,-51]
["ENTIDAD APORTANTE RECURSOS","UNIVERSIDAD MILITAR NUEVA GRANADA","YAHIR ARCINIEGAS",2019000100025,"FORMACIÓN DE CAPITAL HUMANO DE ALTO NIVEL UNIVERSIDAD MILITAR NUEVA GRANADA  NACIONAL","INCREMENTAR LAS CAPACIDADES DEL TALENTO HUMANO EN INVESTIGACIÓN DE CALIDAD E IMPACTO, APOYANDO EL PROGRAMA DE FORMACIÓN EN DOCTORADOS\n","CTEL",294375000,0.45729999999999998,null,null,null,null,null,null,null,null,null,null,null,null,null,null,null,null,44619,44619,44619,-51,-51,-51]
["ENTIDAD APORTANTE RECURSOS","UNIVERSIDAD NACIONAL DE COLOMBIA","YAHIR ARCINIEGAS",2019000100026,"FORMACIÓN DE CAPITAL HUMANO DE ALTO NIVEL UNIVERSIDAD NACIONAL DE COLOMBIA   NACIONAL","INCREMENTAR LAS CAPACIDADES DEL TALENTO HUMANO EN INVESTIGACIÓN DE CALIDAD E IMPACTO, APOYANDO EL PROGRAMA DE FORMACIÓN EN DOCTORADOS\n","CTEL",21162064500,0.47910000000000003,null,null,null,null,null,null,null,null,null,null,null,null,null,null,null,null,44619,44619,44619,-51,-51,-51]
["ENTIDAD APORTANTE RECURSOS","U DISTRITAL","YAHIR ARCINIEGAS",2019000100027,"FORMACIÓN DE CAPITAL HUMANO DE ALTO NIVEL EN DOCTORADO PARA EL DESARROLLO REGIONAL, UNIVERSIDAD DISTRITAL FRANCISCO JOSÉ DE CALDAS, A NIVEL  NACIONAL","INCREMENTAR LAS CAPACIDADES DEL TALENTO HUMANO EN INVESTIGACIÓN DE CALIDAD E IMPACTO, APOYANDO EL PROGRAMA DE FORMACIÓN EN DOCTORADOS\n","CTEL",1218668841,0.33750000000000002,null,null,null,null,null,null,null,null,null,null,null,null,null,null,null,null,44619,44619,44619,-51,-51,-51]
["ENTIDAD APORTANTE RECURSOS","U JAVERIANA","YAHIR ARCINIEGAS",2019000100028,"FORMACIÓN DE CAPITAL HUMANO DE ALTO NIVEL PONTIFICIA UNIVERSIDAD JAVERIANA SEDE CENTRAL  NACIONAL","INCREMENTAR LAS CAPACIDADES DEL TALENTO HUMANO EN INVESTIGACIÓN DE CALIDAD E IMPACTO, APOYANDO EL PROGRAMA DE FORMACIÓN EN DOCTORADOS\n","CTEL",6524500000,0.4541,null,null,null,null,null,null,null,null,null,null,null,null,null,null,null,null,44619,44619,44619,-51,-51,-51]
["ENTIDAD APORTANTE RECURSOS","U DE LOS ANDES","YAHIR ARCINIEGAS",2019000100036,"FORMACIÓN  DE CAPITAL HUMANO DE ALTO NIVEL UNIVERSIDAD DE LOS ANDES   NACIONAL","INCREMENTAR LAS CAPACIDADES DEL TALENTO HUMANO EN INVESTIGACIÓN DE CALIDAD E IMPACTO, APOYANDO EL PROGRAMA DE FORMACIÓN EN DOCTORADOS\n","CTEL",2814671307,0.50370000000000004,null,null,null,null,null,null,null,null,null,null,null,null,null,null,null,null,44619,44619,44619,-51,-51,-51]
["ENTIDAD APORTANTE RECURSOS","UNIVERSIDAD NACIONAL DE COLOMBIA","YAHIR ARCINIEGAS",2019000100061,"FORTALECIMIENTO DE LA CAPACIDAD TECNOLÓGICA INSTALADA EN EL CENTRO AGROPECUARIO MARENGO PARA LA INVESTIGACIÓN EN LOS SISTEMAS AGROPRODUCTIVOS DEL TRÓPICO ALTO, BAJO EL EFECTO DE LA VARIABILIDAD Y CAMBIO CLIMÁTICO -  CUNDINAMARCA","SE ESPERA QUE EL MEJORAMIENTO EN LA INFRAESTRUCTURA DEL CENTRO AGROPECUARIO MARENGO (CAM) Y EN\nEQUIPAMIENTO PERMITA FORTALECER LAS COMPETENCIAS DE LOS PROFESIONALES EN FORMACIÓN DE DIFERENTES\nÁREAS (AGRÍCOLA, CIENCIAS BIOLÓGICAS, AGROINDUSTRIAL), ASÍ COMO GENERAR CONOCIMIENTO BÁSICO Y APLICADO\nMEDIANTE TRABAJOS DE INVESTIGACIÓN DE PREGRADO Y POSGRADO (TESIS DE MAESTRÍA Y DOCTORADO), A LA VEZ\nDESARROLLAR JORNADAS DE CAPACITACIÓN (DÍAS DE CAMPO, CHARLAS TÉCNICAS, SEMINARIOS). ","CTEL",2386591598.0999999,0.23649999999999999,null,null,null,null,null,null,null,null,null,null,null,null,null,null,null,null,44619,44619,44619,-51,-51,-51]
["CUNDINAMARCA","SECRETARIA DE CIENCIA, TECNOLOGIA E INNOVACIÓN","ALEXANDER RIVEROS Y YAHIR ARCINIEGAS",2020000100137,"FORTALECIMIENTO DE LAS CAPACIDADES DE INVESTIGACIÓN Y DESARROLLO PARA ATENDER PROBLEMÁTICAS ASOCIADAS CON AGENTES BIOLÓGICOS PARA LA SALUD PÚBLICA, A TRAVÉS DEL MEJORAMIENTO DEL LABORATORIO DE SALUD PÚBLICA DE CUNDINAMARCA","MEJORAR LAS CAPACIDADES EN CTEI PARA ATENDER PROBLEMÁTICAS ASOCIADAS CON AGENTES BIOLÓGICOS DE ALTO RIESGO PARA LA SALUD HUMANA EN EL DEPARTAMENTO DE CUNDINAMARCA","CTEL",4506359274,0.54749999999999999,null,null,"Revisar los % de ejecución",null,null,null,null,null,null,null,null,null,null,null,null,null,44619,44619,44619,-51,-51,-51]
["CUNDINAMARCA","SECRETARIA DE SALUD","DAYANA FERNANDEZ/ LIYUGETH ALFONSO",2020000050003,"ADQUISICIÓN DE AMBULANCIAS,EQUIPOS BIOMÉDICOS, ELEMENTOS DE PROTECCIÓN PERSONAL, ASEO Y DESINFECCIÓN PARA LA ATENCIÓN DE LA CALAMIDAD SANITARIA POR COVID-19 EN LAS E.S.E DEL DEPARTAMENTO DE   CUNDINAMARCA","ADQUIRIR AMBULANCIAS Y EQUIPOS MEDICOS PARA LA CALAMIDAD DEL COVID-19","SALUD Y PROTECCIÓN SOCIAL",43433295564,0.54410000000000003,null,null,null,null,null,null,null,null,null,null,null,null,null,null,null,null,44619,44619,44619,-51,-51,-51]
["CUNDINAMARCA","UNIDAD ADMINISTRATIVA DE GESTIÓN DEL RIESGO.","DIEGO TORRES/VALENTINA PORTILLO",2020000050012,"ADQUISICIÓN DE ELEMENTOS DE PROTECCIÓN DE CONTAGIO DEL VIRUS COVID-19 PARA LOS CUERPOS OPERATIVOS DE EMERGENCIA, EN ATENCIÓN DE LA CALAMIDAD SANITARIA EN EL DEPARTAMENTO DE   CUNDINAMARCA","DISMINUIR EL RIESGO DE MORBILIDAD Y MORTALIDAD POR EXPOSICIÓN A CONTAGIO DEL VIRUS COVID-19 EN EL DEPARTAMENTO DE CUNDINAMARCA","GOBIERNO TERRITORIAL",5419592232,0.67,null,null,null,null,null,null,null,null,null,null,null,null,null,null,null,null,44619,44619,44619,-51,-51,-51]
["CUNDINAMARCA","SECRETARIA DE EDUCACIÓN","YAHIR ARCINIEGAS Y ALEXANDER RIVEROS",2020000050019,"FORTALECIMIENTO A LA ESTRATEGIA DE ALIMENTACIÓN ESCOLAR PARA EL AÑO 2020, EN LOS MUNICIPIOS DEL DEPARTAMENTO DE CUNDINAMARCA ","ALIMENTACIÓN ESCOLAR EN EL DEPARTAMENTO DE CUNDINAMARCA","EDUCACIÓN",26240955000,0.66359999999999997,null,null,"Revisar los % de ejecución",null,null,null,null,null,null,null,null,null,null,null,null,null,44619,44619,44619,-51,-51,-51]
["CUNDINAMARCA","SECRETARIA DE CIENCIA, TECNOLOGIA E INNOVACIÓN","ALEXANDER RIVEROS Y YAHIR ARCINIEGAS",2020000100266,"GENERACIÓN DE ESPACIOS DE ENCUENTRO DE LA SOCIEDAD CON LA CIENCIA Y LA TECNOLOGÍA - UN VIAJE CON LA CIENCIA EN EL DEPARTAMENTO DE CUNDINAMARCA","GENERAR UN MECANISMO DE INNOVACIÓN SOCIAL INCLUYENTE DIRIGIDO A NIÑOS, NIÑAS Y JÓVENES CON EL FIN DE FORTALECER EL DESARROLLO DE PROCESOS DE APROPIACIÓN SOCIAL DE LA CIENCIA Y LA TECNOLOGÍA EN LOS MUNICIPIOS DEL DEPARTAMENTO DE CUNDINAMARCA.","CTEL",2241429590,8.43E-2,null,null,null,null,null,null,null,null,null,null,null,null,null,null,null,null,44619,44619,44619,-51,-51,-51]
["CUNDINAMARCA","SECRETARIA DE CIENCIA, TECNOLOGIA E INNOVACIÓN","ALEXANDER RIVEROS Y YAHIR ARCINIEGAS",2020000100246,"FORTALECIMIENTO DE LA COMPETITIVIDAD DE LA CADENA PRODUCTIVA DE LA GUADUA POR MEDIO DEL DESARROLLO E IMPLEMENTACIÓN DE DOS (2) PAQUETES TECNOLÓGICOS PARA LA GENERACIÓN DE PRODUCTOS CON VALOR AGREGADO EN EL DEPARTAMENTO DE CUNDINAMARCA ","AUMENTAR LA COMPETITIVIDAD DE LOS PRODUCTORES, TRANSFORMADORES Y COMERCIANTES DE LA GUADUA DE CUNDINAMARCA. ","CTEL",3144525520,0.26419999999999999,null,null,null,null,null,null,null,null,null,null,null,null,null,null,null,null,44619,44619,44619,-51,-51,-51]
["ENTIDAD APORTANTE RECURSOS","CONNECT BOGOTA REGIÓN","YAHIR ARCINIEGAS",2020000100078,"DISEÑO E IMPLEMENTACIÓN DE UN MODELO DE GESTIÓN DE CONOCIMIENTO, INNOVACIÓN Y TRANSFERENCIA DE TECNOLOGÍA CON APLICACIÓN EN EL SECTOR AGROPECUARIO Y AGROINDUSTRIAL EN EL DEPARTAMENTO DE CUNDINAMARCA ","MEJORAR LA COMPETITIVIDAD DE LOS SECTORES AGROPECUARIO Y AGROINDUSTRIAL EN CADENAS PRODUCTIVAS DEL DEPARTAMENTO DE CUNDINAMARCA, A TRAVÉS DEL DISEÑO E IMPLEMENTACIÓN DE UN SISTEMA DE TRANSFERENCIA DE CONOCIMIENTO, TECNOLOGÍA E INNOVACIÓN","CTEL",3309848753,1.5E-3,null,null,null,null,null,null,null,null,null,null,null,null,null,null,null,null,44619,44619,44619,-51,-51,-51]
["ENTIDAD APORTANTE RECURSOS","FEDERACIÓN NACIONAL DE CAFETEROS","YAHIR ARCINIEGAS",2020000100205,"TRASLADO DE TECNOLOGÍAS INNOVADORAS A CAFICULTORES CON IMPACTO SOBRE LA CALIDAD DEL CAFÉ Y LA GESTIÓN DEL RECURSO HÍDRICO DURANTE EL PROCESO DE BENEFICIO EN ZONA CAFETERA DEL DEPARTAMENTO DE CUNDINAMARCA ","AUMENTAR LA ADOPCIÓN E IMPLEMENTACIÓN DE TECNOLOGÍAS DURANTE LOS PROCESOS DE COSECHA Y POSCOSECHA DEL CAFÉ PRODUCIDO EN MUNICIPIOS CAFETEROS EN EL DEPARTAMENTO DE CUNDINAMARCA.","CTEL",13783557324,0,null,null,null,null,null,null,null,null,null,null,null,null,null,null,null,null,44619,44619,44619,-51,-51,-51]
["ENTIDAD APORTANTE RECURSOS","AGROSAVIA","YAHIR ARCINIEGAS",2020000100197,"DESARROLLO DE BIOPLAGUICIDAS POTENCIADOS DE NUEVA GENERACIÓN PARA EL MEJORAMIENTO DE LA PRODUCTIVIDAD E INOCUIDAD DEL CULTIVO DE TOMATE Y CRUCÍFERAS EN EL DEPARTAMENTO DE CUNDINAMARCA ","DESARROLLAR Y OPTIMIZAR BIOINSUMOS EFICIENTES PARA EL MANEJO DE PLAGAS DE LAS HORTALIZAS (TOMATE, BRÓCOLI Y REPOLLO) PRODUCIDAS EN EL DEPARTAMENTO DE CUNDINAMARCA","CTEL",4583970033,0.12889999999999999,null,null,null,null,null,null,null,null,null,null,null,null,null,null,null,null,44619,44619,44619,-51,-51,-51]
["ENTIDAD APORTANTE RECURSOS","UNIVERSIDAD NACIONAL DE COLOMBIA","YAHIR ARCINIEGAS",2020000100240,"ESTUDIO DE PREFACTIBILIDAD PARA LA CREACIÓN DE UN CENTRO DE INNOVACIÓN Y DE PRODUCTIVIDAD PARA EL SECTOR AGROPECUARIO DE SABANA OCCIDENTE DE CUNDINAMARCA ","GENERAR ESPACIOS EFICIENTES PARA LA COORDINACIÓN Y DESARROLLO DE ACTIVIDADES DE CTEI EN BENEFICIO DEL SECTOR AGROPECUARIO DE SABANA OCCIDENTE DEL DEPARTAMENTO DE CUNDINAMARCA (FASE: PRE FACTIBILIDAD)","CTEL",1896154229,0.17430000000000001,null,null,null,null,null,null,null,null,null,null,null,null,null,null,null,null,44619,44619,44619,-51,-51,-51]
["ENTIDAD APORTANTE RECURSOS","UNIVERSIDAD DE CUNDINAMARCA","YAHIR ARCINIEGAS",2020000100158,"FORTALECIMIENTO DE LA INFRAESTRUCTURA FÍSICA Y TECNOLÓGICA DEL CENTRO DE ESTUDIOS AGROAMBIENTALES DE LA UNIVERSIDAD DE CUNDINAMARCA AGROU CUNDINAMARCA ","FORTALECER LA INFRAESTRUCTURA FÍSICA Y TECNOLÓGICA DEL CENTRO DE ESTUDIOS AGROAMBIENTALES DE LA UNIVERSIDAD DE CUNDINAMARCA – AGROUCUNDINAMARCA","CTEL",2024433669,0,null,null,null,null,null,null,null,null,null,null,null,null,null,null,null,null,44619,44619,44619,-51,-51,-51]
["ENTIDAD APORTANTE RECURSOS","ZIPAQUIRA","YESID CASTAÑO / JEIMY FORERO",2020000050013,"Mejoramiento de la vía que comunica a los municipios de Zipaquirá y Tocancipá, tramo barandillas - la fuente, departamento de Cundinamarca","MEJORAMIENTO DE LA MOVILIDAD DE LA VÍA QUE COMUNICA A LOS MUNICIPIOS DE ZIPAQUIRA Y TOCANCIPA","TRANSPORTE","6.788.620.869,00",0.55589999999999995,null,null,null,null,null,null,null,null,null,null,null,null,null,null,null,null,44619,44619,44619,-51,-51,-51]
["ENTIDAD APORTANTE RECURSOS","ZIPAQUIRA","YESID CASTAÑO / JEIMY FORERO",2020000050015,"MEJORAMIENTO DE LA VÍA ZIPAQUIRÁ - SAN JORGE - TABIO DEPARTAMENTO DE CUNDINAMARCA","MEJORAMIENTO DE LA MOVILIDAD DE LA VÍA QUE COMUNICA A LOS MUNICIPIOS DE ZIPAQUIRA Y TABIO","TRANSPORTE",7458735075,0,null,null,null,null,null,null,null,null,null,null,null,null,null,null,null,null,44619,44619,44619,-51,-51,-51]
["CUNDINAMARCA","SECRETARIA DE CIENCIA, TECNOLOGIA E INNOVACIÓN","ALEXANDER RIVEROS Y YAHIR ARCINIEGAS",2020000100695,"DESARROLLO, TRANSFERENCIA DE TECNOLOGÍA Y CONOCIMIENTO PARA LA INNOVACIÓN QUE FORTALEZCAN CAPACIDADES COMUNITARIAS EN LA COMPRENSIÓN Y/O MITIGACIÓN DE LOS PROBLEMAS DE VIOLENCIAS BASADAS EN GÉNERO, DERIVADAS DE LA EMERGENCIA POR COVID 19, EN CUNDINAMARCA",null,"CTEL",3100000000,0.30449999999999999,null,null,null,null,null,null,null,null,null,null,null,null,null,null,null,null,44619,44619,44619,-51,-51,-51]
["CUNDINAMARCA","SECRETARIA DE CIENCIA, TECNOLOGIA E INNOVACIÓN","ALEXANDER RIVEROS Y YAHIR ARCINIEGAS",2020000100650,"FORTALECIMIENTO DE CAPACIDADES DE CTEI PARALA INNOVACION EDUCATIVA EN LOS NIVELES DE BÁSICA Y\nMEDIA, MEDIANTE USO DE TICS EN INSTITUCIONES EDUCATIVAS OFICIALES DE LOS MUNICIPIOS NO\nCERTIFICADOS DEL DEPARTAMENTO DE CUNDINAMARCA",null,"CTEL",10804663122,9.7000000000000003E-3,null,null,null,null,null,null,null,null,null,null,null,null,null,null,null,null,44619,44619,44619,-51,-51,-51]
["CUNDINAMARCA","SECRETARIA DE CIENCIA, TECNOLOGIA E INNOVACIÓN","ALEXANDER RIVEROS Y YAHIR ARCINIEGAS",2020000100696,"FORTALECIMIENTO DE CAPACIDADES DE CTEI PARA LA REACTIVACIÓN ECONÓMICA Y LA TRANSFORMACIÓN\nPRODUCTIVA EN CUNDINAMARCA",null,"CTEL",7370634083,0.25519999999999998,null,null,null,null,null,null,null,null,null,null,null,null,null,null,null,null,44619,44619,44619,-51,-51,-51]
["CUNDINAMARCA","SECRETARIA DE CIENCIA, TECNOLOGIA E INNOVACIÓN","ALEXANDER RIVEROS Y YAHIR ARCINIEGAS",2020000100649,"FORTALECIMIENTO DE CAPACIDADES DE CTeI PARA EL RELACIONAMIENTO ESCUELA - CONTEXTO RURAL MEDIANTE LA APROPIACIÓN Y USO DE LAS TIC EN EL MUNICIPIO DE SIBATÉ, DEPARTAMENTO DE CUNDINAMARCA",null,"CTEL",4292464018,0.1085,null,null,null,null,null,null,null,null,null,null,null,null,null,null,null,null,44619,44619,44619,-51,-51,-51]
["ENTIDAD APORTANTE RECURSOS","FUNDACION UNIVERSIDAD DEL VALLE","YAHIR ARCINIEGAS",2020000050044,"FORTALECIMIENTO DE LAS COMPETENCIAS COMUNICATIVAS EN INGLÉS DE LOS ESTUDIANTES DE LOS ESTABLECIMIENTOS EDUCATIVOS NO OFICIALES DE CUNDINAMARCA","Fortalecer las competencias comunicativas en inglés de los niños, niñas adolescentes y jóvenes que asisten a los Establecimientos Educativos Oficiales en la entidad territorial.","EDUCACIÓN","$ 10.468.961.978",0.3992,null,null,null,null,null,null,null,null,null,null,null,null,null,null,null,null,44619,44619,44619,-51,-51,-51]
["ENTIDAD APORTANTE RECURSOS","UNAD","YAHIR ARCINIEGAS",2020000100433,"Investigación de los compuestos volátiles orgánicos e inducidos para el manejo de moscas plagas en gulupa y granadilla en el departamento de  Cundinamarca",null,"CTEL",3412874201,6.3299999999999995E-2,null,null,null,null,null,null,null,null,null,null,null,null,null,null,null,null,44619,44619,44619,-51,-51,-51]
["ENTIDAD APORTANTE RECURSOS","UNIVERSIDAD INDUSTRIAL DE SANTANDER","YAHIR ARCINIEGAS",2020000100415,"Desarrollo de un sistema óptico  computacional para estimar el contenido de carbono orgánico de suelos agrícolas a través de imágenes espectrales e inteligencia artificial en cultivos de cítricos de   Santander",null,"CTEL",2184125885.29,0.21379999999999999,null,null,null,null,null,null,null,null,null,null,null,null,null,null,null,null,44619,44619,44619,-51,-51,-51]
["ENTIDAD APORTANTE RECURSOS","UNIVERSIDAD INDUSTRIAL DE SANTANDER","YAHIR ARCINIEGAS",2020000100375,"Conformación de una plataforma para estudios celulares avanzados in vivo en tiempo real para el análisis de la respuesta inmunometabólica ante la reexpresión de interferón tipo I kappa en esferoides de células tumorales de cuello uterino en  Santander",null,"CTEL",3123997801,0.50109999999999999,null,null,null,null,null,null,null,null,null,null,null,null,null,null,null,null,44619,44619,44619,-51,-51,-51]
["ENTIDAD APORTANTE RECURSOS","UNIVERSIDAD INDUSTRIAL DE SANTANDER","YAHIR ARCINIEGAS",2020000100351,"Desarrollo de un prototipo selectivo y sensible para monitorear contenido de cadmio in situ en diversas matrices asociadas a la producción de granos de cacao en el departamento de  Santander",null,"CTEL",2585800000,0.38,null,null,null,null,null,null,null,null,null,null,null,null,null,null,null,null,44619,44619,44619,-51,-51,-51]
["ENTIDAD APORTANTE RECURSOS","INSTITUTO SUPERIOR DE EDUCACION RURAL DE PAMPLONA","YAHIR ARCINIEGAS",2020000100343,"Implementación laboratorio de calidad fisicoquímica de alimentos para el fortalecimiento competitivo y sostenible de lascadenas agroalimentarias del departamento de  Norte de Santander",null,"CTEL",1097306327,null,null,null,null,null,null,null,null,null,null,null,null,null,null,null,null,null,44619,44619,44619,-51,-51,-51]
["ENTIDAD APORTANTE RECURSOS","UNIVERSIDAD NACIONAL DE COLOMBIA","YAHIR ARCINIEGAS",2020000100342,"Estudio de potenciales insecticidas en matrices poliméricas para el control de plagas de granos almacenados basados en aceites esenciales provenientes de la biodiversidadflorística del departamento de  Cundinamarca",null,"CTEL",2748237104,0.29880000000000001,null,null,null,null,null,null,null,null,null,null,null,null,null,null,null,null,44619,44619,44619,-51,-51,-51]
["ENTIDAD APORTANTE RECURSOS","UNIVERSIDAD MILITAR NUEVA GRANADA","YAHIR ARCINIEGAS",2020000100728,"Generación y transferencia de conocimientos y tecnologías para elevar capacidades de CTel de pequeños productores de tomate para afrontar problemas derivados del COVID-19 asociadas a la Seg. Alimentaria en las Sab. Centro y Oriente  Cundinamarca",null,"CTEL",4162541452,0.2923,null,null,null,null,null,null,null,null,null,null,null,null,null,null,null,null,44619,44619,44619,-51,-51,-51]
["ENTIDAD APORTANTE RECURSOS","UNIVERSIDAD NACIONAL DE COLOMBIA","YAHIR ARCINIEGAS",2020000100339,"Desarrollo de Nuevos Métodos No Destructivos para Monitoreo In Situ de Probabilidad de Ocurrencia de Falla en Tuberías en el Sector de Hidrocarburos en los Departamentos de  Bogotá Boyacá Santander",null,"CTEL",2412084140,0.20319999999999999,null,null,null,null,null,null,null,null,null,null,null,null,null,null,null,null,44620,44620,44620,-50,-50,-50]
["ENTIDAD APORTANTE RECURSOS","UNIVERSIDAD MILITAR NUEVA GRANADA","YAHIR ARCINIEGAS",2020000100216,"Innovación y transferencia tecnológica de UMNGBIO a productores de flores para el control biológico de Tetranychus urticae (Acari: Tetranychiidae) en cultivos de invernadero con el ácaro benéfico Neoseiulus californicus (Acari: Phytoseiidae)  Cundinamarca",null,"CTEL",2431580000,0.51139999999999997,null,null,null,null,null,null,null,null,null,null,null,null,null,null,null,null,44620,44620,44620,-50,-50,-50]
["CUNDINAMARCA","SECRETARIA DE COMPETITIVIDAD","DIEGO TORRES/VALENTINA PORTILLO",2019000050026,"Desarrollo de un programa productivo, amigable con el medio ambiente del sector ganadero en el Departamento de Cundinamarca Cundinamarca","Insuficientes recursos de producción de carne y leche de los pequeños y medianos productores ganaderos en el departamento de Cundinamarca.","AGRICULTURA ",9757143522,"20,22%",null,null,null,null,null,null,null,null,null,null,null,null,null,null,null,null,44620,44620,44620,-50,-50,-50]
["ENTIDAD APORTANTE RECURSOS","UNIVERSIDAD NACIONAL DE COLOMBIA","YAHIR ARCINIEGAS",2020000100169,"Investigación Desarrollo, innovación y transferencia de conocimiento para el procesamiento de la semilla de Sacha Inchi en productos de valor agregado, como estrategia para mejorar la productividad del sector agroindustrial de la Región  Cundinamarca",null,"CTEL",2757697312,0.2515,null,null,null,null,null,null,null,null,null,null,null,null,null,null,null,null,44620,44620,44620,-50,-50,-50]
["ENTIDAD APORTANTE RECURSOS","UPTC","YAHIR ARCINIEGAS",2020000100114,"Fortalecimiento del ecosistema de investigación científica para CTeI en la universidad pedagógica y tecnológica de Colombia UPTC, I-SPACIO  Sogamoso",null,"CTEL",2310634882,0.14560000000000001,null,null,null,null,null,null,null,null,null,null,null,null,null,null,null,null,44620,44620,44620,-50,-50,-50]
["ENTIDAD APORTANTE RECURSOS","UNIVERSIDAD DE ANTIOQUIA","YAHIR ARCINIEGAS",2020000100079,"Fortalecimiento de la infraestructura tecnológica y equipamiento del ambiente de formación industrial para el aumento de las capacidades institucionales en CTeI de la ETITC  Bogotá",null,"CTEL",1090608306,4.3099999999999999E-2,null,null,null,null,null,null,null,null,null,null,null,null,null,null,null,null,44620,44620,44620,-50,-50,-50]
["ENTIDAD APORTANTE RECURSOS","UNIVERSIDAD NACIONAL DE COLOMBIA","YAHIR ARCINIEGAS",2020000100075,"Aprovechamiento de la biodiversidad en agraz y papa para el desarrollo de cultivos promisorios en el departamento de   Santander",null,"CTEL",3177259696,2.63E-2,null,null,null,null,null,null,null,null,null,null,null,null,null,null,null,null,44620,44620,44620,-50,-50,-50]
["ENTIDAD APORTANTE RECURSOS","UNIVERSIDAD NACIONAL DE COLOMBIA","YAHIR ARCINIEGAS",2020000100019,"Fortalecimiento de capacidades de investigación y desarrollo tecnológico de la Universidad Colegio Mayor de Cundinamarca a partir de tecnologías industria 4.0 para el diseño y construcción en   Bogotá",null,"CTEL",2077571214,3.7000000000000002E-3,null,null,null,null,null,null,null,null,null,null,null,null,null,null,null,null,44620,44620,44620,-50,-50,-50]
["ENTIDAD APORTANTE RECURSOS","UNIVERSIDAD INDUSTRIAL DE SANTANDER","YAHIR ARCINIEGAS",2020000100017,"Fortalecimiento DE LA CAPACIDAD INSTITUCIONAL DE INVESTIGACIÓN DE LA UNIVERSIDAD INDUSTRIAL DESANTANDER  Nacional",null,"CTEL",2808520000,0,null,null,null,null,null,null,null,null,null,null,null,null,null,null,null,null,44620,44620,44620,-50,-50,-50]
["ENTIDAD APORTANTE RECURSOS","UNIVERSIDAD MILITAR NUEVA GRANADA","YAHIR ARCINIEGAS",2020000100103,"Fortalecimiento de capacidades instaladas de Ciencia y Tecnología del Laboratorio de Diagnóstico en el Campus de la Univ Militar Nueva Granada, para atender problemáticas asociadas con agentes biológicos de alto riesgo para la salud humana,  Cundinamarca",null,"CTEL",5162742977,0.187,null,null,null,null,null,null,null,null,null,null,null,null,null,null,null,null,44620,44620,44620,-50,-50,-50]
["ENTIDAD APORTANTE RECURSOS","INSTITUTO UNIVERSITARIO DE LA PAZ – UNIPAZ","YAHIR ARCINIEGAS",2020000100042,"Fortalecimiento de los procesos académicos en los programas ofrecidos por el Instituto Universitario de la Paz, UNIPAZ,   Barrancabermeja",null,"CTEL",1178749590,0.93610000000000004,null,null,null,null,null,null,null,null,null,null,null,null,null,null,null,null,44620,44620,44620,-50,-50,-50]
["ENTIDAD APORTANTE RECURSOS","INSTITUTO UNIVERSITARIO DE LA PAZ – UNIPAZ","YAHIR ARCINIEGAS",2020000100016,"Adecuación , DOTACIÓN E IMPLEMENTACIÓN DE UN LABORATORIO DE FABRICACIÓN DIGITAL PARA PROMOVER EL DESARROLLO DE LA CIENCIA, LAINNOVACIÓN Y EL EMPRENDIMIENTO EN LA UNIVERSIDAD FRANCISCO DE PAULA SANTANDER.  Cúcuta",null,"CTEL",2921057589,0.84379999999999999,null,null,null,null,null,null,null,null,null,null,null,null,null,null,null,null,44620,44620,44620,-50,-50,-50]
["ENTIDAD APORTANTE RECURSOS","UNIVERSIDAD TECNOLOGICA DE SANTANDER","YAHIR ARCINIEGAS",2020000100004,"Fortalecimiento y adecuación de equipos e infraestructura del Laboratorio de física del Departamento de Ciencias Básicas, para el mejoramiento de las capacidades institucionales y la investigación en las Unidades Tecnológicas de Santander -  Bucaramanga",null,"CTEL",1016752702,2.6800000000000001E-2,null,null,null,null,null,null,null,null,null,null,null,null,null,null,null,null,44620,44620,44620,-50,-50,-50]
["CUNDINAMARCA","SECRETARIA DE EDUCACIÓN","YAHIR ARCINIEGAS",2020000050037,"Dotación del mobiliario escolar para las instituciones educativas de los municipios no certificados del Departamento de Cundinamarca","Limitadas condiciones para la formación y el desarrollo de competencias escolares básicas de los niños, niñas, adolescentes y jóvenes de los municipios no certificados del departamento de Cundinamarca","EDUCACIÓN",10093038848,"51,78%",null,null,null,null,null,null,null,null,null,null,null,null,null,null,null,null,44620,44620,44620,-50,-50,-50]
["ENTIDAD APORTANTE RECURSOS","UNIVERSIDAD DEL NORTE","YAHIR ARCINIEGAS",2020000100287,"Formación de Capital Humano de Alto Nivel Universidad del Norte 2do Corte Nacional",null,"CTEL",6920233499,0.19550000000000001,null,null,null,null,null,null,null,null,null,null,null,null,null,null,null,null,44620,44620,44620,{"$f":"IF(AA195=0,0,_xlfn.DAYS(AA195,TODAY()))","v":-50},-50,-50]
["ENTIDAD APORTANTE RECURSOS","UNIVERSIDAD DEL VALLE","YAHIR ARCINIEGAS",2020000100345,"Formación de capital humano de alto Nivel segundo Corte Universidad del Valle Nacional",null,"CTEL",5913070114,0.19400000000000001,null,null,null,null,null,null,null,null,null,null,null,null,null,null,null,null,44620,44620,44620,-50,-50,{"$f":"IF(Z196=0,0,_xlfn.DAYS(Z196,TODAY()))","v":-50}]
["ENTIDAD APORTANTE RECURSOS","UNIVERSIDAD NACIONAL DE COLOMBIA","YAHIR ARCINIEGAS",2021000100003,"Formación de Capital Humano de Alto Nivel Universidad  Nacional de Colombia Corte II Nacionl",null,"CTEL",18418143500,0.1573,null,null,null,null,null,null,null,null,null,null,null,null,null,null,null,null,44620,44620,44620,-50,-50,-50]
["ENTIDAD APORTANTE RECURSOS","UNIVERSIDAD DE LA SABANA","YAHIR ARCINIEGAS",2021000100004,"Formación de Capital Humano de Alto Nivel Universidad de La Sabana Core 2 Nacional",null,"CTEL",1519950000,0.2112,null,null,null,null,null,null,null,null,null,null,null,null,null,null,null,null,44620,44620,44620,-50,-50,-50]
["ENTIDAD APORTANTE RECURSOS","UNIVERSIDAD ANTONIO NARIÑO","YAHIR ARCINIEGAS",2021000100014,"Formación de Capital Humano de Alto Nivel Universidad Antonio Nariño Core 2 Nacional",null,"CTEL",4526652200,0.11899999999999999,null,null,null,null,null,null,null,null,null,null,null,null,null,null,null,null,44620,44620,44620,-50,-50,-50]
["ENTIDAD APORTANTE RECURSOS","UNIVERSIDAD EAN","YAHIR ARCINIEGAS",2021000100025,"Formación DE CAPITAL HUMANO DE ALTO NIVEL UNIVERSIDAD EAN NACIONAL COHORTE II Nacional",null,"CTEL",2044506416,0.10150000000000001,null,null,null,null,1,"Hoy o menos de un mes desde que se modifico",null,null,null,null,null,null,null,null,null,null,44620,44620,44620,-50,-50,-50]
["ENTIDAD APORTANTE RECURSOS","UNIVERSIDAD MILITAR NUEVA GRANADA","YAHIR ARCINIEGAS",2021000100026,"Formación de Capital Humano de Alto Nivel Universidad Militar Nueva Granada Segundo Corte Nacional",null,"CTEL",751632481,0,null,null,null,null,1,"1 mes desde que no se modifica",null,null,null,null,null,null,null,null,null,null,44620,44620,44620,-50,-50,-50]
["ENTIDAD APORTANTE RECURSOS","PONIFICA UNIVERSIDAD JAVERIANA","YAHIR ARCINIEGAS",2021000100027,"Formación de Capital Humano de Alto Nivel Pontificia Universidad Javeriana Sede Bogotá Corte II Nacional",null,"CTEL",8577491761,0.15079999999999999,null,null,null,null,null,"2meses desde que no se modifica",null,null,null,null,null,null,null,null,null,null,44620,44620,44620,-50,-50,-50]
["ENTIDAD APORTANTE RECURSOS","UNIVERSIDAD DE CALDAS","YAHIR ARCINIEGAS",2021000100028,"Formación de capital humano de alto nivel Corte 2 Universidad de Caldas - Nacional",null,"CTEL",63580000000,0.17749999999999999,null,null,null,null,0.01,"3 meses desde que no se modifica",null,null,null,null,null,null,null,null,null,null,44620,44620,44620,-50,-50,-50]
["CUNDINAMARCA","SECRETARIA DE EDUCACIÓN","YAHIR ARCINIEGAS",2021004250258,"Fortalecimiento a la Estrategia de Alimentación Escolar para el año 2021 en los municipios del Departamento de Cundinamarca",null,"EDUCACIÓN",16289941201,0.28149999999999997,null,null,null,null,null,null,null,null,null,null,null,null,null,null,null,null,44620,44620,44620,{"$f":"IF(AA204=0,0,_xlfn.DAYS(AA204,TODAY()))","v":-50},-50,-50]
["CUNDINAMARCA","SECRETARIA DE HABITAT Y VIVIENDA","ALEXANDER RIVEROS/JEIMY FORERO",2018000050050,"Mejoramiento vivienda rural mediante construcción de cocinas habitaciones y pisos en los municipios de Cundinamarca",null,"AGRICULTURA ",5616585397,0,null,null,null,null,null,null,null,null,null,null,null,null,null,null,null,null,44605,44544,null,-126,0,-65]
["CUNDINAMARCA","SECRETARIA DE COMPETITIVIDAD","ALEXANDER RIVEROS/JEIMY FORERO",2020000050035,"Fortalecimiento de los sistemas productivos a través de la reactivación del sector agrícola en el Departamento de Cundinamarca",null,"AGRICULTURA ",8993872200.5599995,0,null,null,null,null,null,null,null,null,null,null,null,null,null,null,null,null,44605,null,null,0,0,-65]
["CUNDINAMARCA","MINAS Y ENERGIA","DIEGO TORRES / LIYUGETH ALFONSO","2021004250686","Construcción Del Centro De Formación E Innovación Minero Energético De Cundinamarca",null,"GOBIERNO TERRITORIAL","$ 13.770.893.382,00","0,00%",null,null,null,null,null,null,null,null,null,null,null,null,null,null,null,null,null,null,null,0,0,0]
["CUNDINAMARCA","UNIDAD ADMINISTRATIVA DE GESTIÓN DEL RIESGO.","DIEGO TORRES/VALENTINA PORTILLO",2021004250690,"Fortalecimiento del sistema automotor para la gestión del riesgo de desastres del departamento de Cundinamarca",null,"GOBIERNO TERRITORIAL",7299514100,"0,00%",null,null,null,null,null,null,null,null,null,null,null,null,null,null,null,null,null,null,null,0,0,0]
["CUNDINAMARCA","SECRETARIA DE COMPETITIVIDAD","ALEXANDER RIVEROS/JEIMY FORERO",2020000050038,"Optimización de los sistemas Ganaderos bovinos de carne leche y doble propósito a partir de la implementación de mejoramiento genético productivo y entrega de maquinaria y equipos en municipios del Departamento de Cundinamarca",null,"AGRICULTURA ",8732449919,"0,00%",null,null,null,null,null,null,null,null,null,null,null,null,null,null,null,null,null,null,44619,0,-51,0]
[null,null,null,null,null,null,null,null,null,null,null,null,null,null,null,null,null,null,null,null,null,null,null,null,null,null,null,null,0,0,0]
[null,null,null,null,null,null,null,null,null,null,null,null,null,null,null,null,null,null,null,null,null,null,null,null,null,null,null,null,0,0,0]
[null,null,null,null,null,null,null,null,null,null,null,null,null,null,null,null,null,null,null,null,null,null,null,null,null,null,null,null,0,0,0]
[null,null,null,null,null,null,null,null,null,null,null,null,null,null,null,null,null,null,null,null,null,null,null,null,null,null,null,null,0,0,0]
[null,null,null,null,null,null,null,null,null,null,null,null,null,null,null,null,null,null,null,null,null,null,null,null,null,null,null,null,0,0,0]
[null,null,null,null,null,null,null,null,null,null,null,null,null,null,null,null,null,null,null,null,null,null,null,null,null,null,null,null,0,0,0]
[null,null,null,null,null,null,null,null,null,null,null,null,null,null,null,null,null,null,null,null,null,null,null,null,null,null,null,null,0,0,0]
[null,null,null,null,null,null,null,null,null,null,null,null,null,null,null,null,null,null,null,null,null,null,null,null,null,null,null,null,0,0,0]
[null,null,null,null,null,null,null,null,null,null,null,null,null,null,null,null,null,null,null,null,null,null,null,null,null,null,null,null,0,0,0]
[null,null,null,null,null,null,null,null,null,null,null,null,null,null,null,null,null,null,null,null,null,null,null,null,null,null,null,null,0,0,0]
[null,null,null,null,null,null,null,null,null,null,null,null,null,null,null,null,null,null,null,null,null,null,null,null,null,null,null,null,0,0,0]
[null,null,null,null,null,null,null,null,null,null,null,null,null,null,null,null,null,null,null,null,null,null,null,null,null,null,null,null,0,0,0]
[null,null,null,null,null,null,null,null,null,null,null,null,null,null,null,null,null,null,null,null,null,null,null,null,null,null,null,null,0,0,0]
[null,null,null,null,null,null,null,null,null,null,null,null,null,null,null,null,null,null,null,null,null,null,null,null,null,null,null,null,0,0,0]
[null,null,null,null,null,null,null,null,null,null,null,null,null,null,null,null,null,null,null,null,null,null,null,null,null,null,null,null,0,0,0]
[null,null,null,null,null,null,null,null,null,null,null,null,null,null,null,null,null,null,null,null,null,null,null,null,null,null,null,null,0,0,0]
[null,null,null,null,null,null,null,null,null,null,null,null,null,null,null,null,null,null,null,null,null,null,null,null,null,null,null,null,0,0,0]
[null,null,null,null,null,null,null,null,null,null,null,null,null,null,null,null,null,null,null,null,null,null,null,null,null,null,null,null,0,0,0]
[null,null,null,null,null,null,null,null,null,null,null,null,null,null,null,null,null,null,null,null,null,null,null,null,null,null,null,null,0,0,0]
[null,null,null,null,null,null,null,null,null,null,null,null,null,null,null,null,null,null,null,null,null,null,null,null,null,null,null,null,0,0,0]
[null,null,null,null,null,null,null,null,null,null,null,null,null,null,null,null,null,null,null,null,null,null,null,null,null,null,null,null,0,0,0]
[null,null,null,null,null,null,null,null,null,null,null,null,null,null,null,null,null,null,null,null,null,null,null,null,null,null,null,null,0,0,0]
[null,null,null,null,null,null,null,null,null,null,null,null,null,null,null,null,null,null,null,null,null,null,null,null,null,null,null,null,0,0,0]
[null,null,null,null,null,null,null,null,null,null,null,null,null,null,null,null,null,null,null,null,null,null,null,null,null,null,null,null,0,0,0]
[null,null,null,null,null,null,null,null,null,null,null,null,null,null,null,null,null,null,null,null,null,null,null,null,null,null,null,null,0,0,0]
[null,null,null,null,null,null,null,null,null,null,null,null,null,null,null,null,null,null,null,null,null,null,null,null,null,null,null,null,0,0,0]
[null,null,null,null,null,null,null,null,null,null,null,null,null,null,null,null,null,null,null,null,null,null,null,null,null,null,null,null,0,0,0]
[null,null,null,null,null,null,null,null,null,null,null,null,null,null,null,null,null,null,null,null,null,null,null,null,null,null,null,null,0,0,0]
[null,null,null,null,null,null,null,null,null,null,null,null,null,null,null,null,null,null,null,null,null,null,null,null,null,null,null,null,0,0,0]
[null,null,null,null,null,null,null,null,null,null,null,null,null,null,null,null,null,null,null,null,null,null,null,null,null,null,null,null,0,0,0]
[null,null,null,null,null,null,null,null,null,null,null,null,null,null,null,null,null,null,null,null,null,null,null,null,null,null,null,null,0,0,0]
[null,null,null,null,null,null,null,null,null,null,null,null,null,null,null,null,null,null,null,null,null,null,null,null,null,null,null,null,0,0,0]
[null,null,null,null,null,null,null,null,null,null,null,null,null,null,null,null,null,null,null,null,null,null,null,null,null,null,null,null,0,0,0]
[null,null,null,null,null,null,null,null,null,null,null,null,null,null,null,null,null,null,null,null,null,null,null,null,null,null,null,null,0,0,0]
[null,null,null,null,null,null,null,null,null,null,null,null,null,null,null,null,null,null,null,null,null,null,null,null,null,null,null,null,0,0,0]
[null,null,null,null,null,null,null,null,null,null,null,null,null,null,null,null,null,null,null,null,null,null,null,null,null,null,null,null,0,0,0]
[null,null,null,null,null,null,null,null,null,null,null,null,null,null,null,null,null,null,null,null,null,null,null,null,null,null,null,null,0,0,0]
[null,null,null,null,null,null,null,null,null,null,null,null,null,null,null,null,null,null,null,null,null,null,null,null,null,null,null,null,0,0,0]
[null,null,null,null,null,null,null,null,null,null,null,null,null,null,null,null,null,null,null,null,null,null,null,null,null,null,null,null,0,0,0]
[null,null,null,null,null,null,null,null,null,null,null,null,null,null,null,null,null,null,null,null,null,null,null,null,null,null,null,null,0,0,0]
[null,null,null,null,null,null,null,null,null,null,null,null,null,null,null,null,null,null,null,null,null,null,null,null,null,null,null,null,0,0,0]
[null,null,null,null,null,null,null,null,null,null,null,null,null,null,null,null,null,null,null,null,null,null,null,null,null,null,null,null,0,0,0]
[null,null,null,null,null,null,null,null,null,null,null,null,null,null,null,null,null,null,null,null,null,null,null,null,null,null,null,null,0,0,0]
[null,null,null,null,null,null,null,null,null,null,null,null,null,null,null,null,null,null,null,null,null,null,null,null,null,null,null,null,0,0,0]
[null,null,null,null,null,null,null,null,null,null,null,null,null,null,null,null,null,null,null,null,null,null,null,null,null,null,null,null,0,0,0]
[null,null,null,null,null,null,null,null,null,null,null,null,null,null,null,null,null,null,null,null,null,null,null,null,null,null,null,null,0,0,0]
[null,null,null,null,null,null,null,null,null,null,null,null,null,null,null,null,null,null,null,null,null,null,null,null,null,null,null,null,0,0,0]
[null,null,null,null,null,null,null,null,null,null,null,null,null,null,null,null,null,null,null,null,null,null,null,null,null,null,null,null,0,0,0]
[null,null,null,null,null,null,null,null,null,null,null,null,null,null,null,null,null,null,null,null,null,null,null,null,null,null,null,null,{"$f":"IF(AA258=0,0,_xlfn.DAYS(AA258,TODAY()))","v":0},0,0]
[null,null,null,null,null,null,null,null,null,null,null,null,null,null,null,null,null,null,null,null,null,null,null,null,null,null,null,null,0,0,{"$f":"IF(Z259=0,0,_xlfn.DAYS(Z259,TODAY()))","v":0}]
[null,null,null,null,null,null,null,null,null,null,null,null,null,null,null,null,null,null,null,null,null,null,null,null,null,null,null,null,0,0,0]
[null,null,null,null,null,null,null,null,null,null,null,null,null,null,null,null,null,null,null,null,null,null,null,null,null,null,null,null,0,0,0]
[null,null,null,null,null,null,null,null,null,null,null,null,null,null,null,null,null,null,null,null,null,null,null,null,null,null,null,null,0,0,0]
[null,null,null,null,null,null,null,null,null,null,null,null,null,null,null,null,null,null,null,null,null,null,null,null,null,null,null,null,0,0,0]
[null,null,null,null,null,null,null,null,null,null,null,null,null,null,null,null,null,null,null,null,null,null,null,null,null,null,null,null,0,0,0]
[null,null,null,null,null,null,null,null,null,null,null,null,null,null,null,null,null,null,null,null,null,null,null,null,null,null,null,null,0,0,0]
[null,null,null,null,null,null,null,null,null,null,null,null,null,null,null,null,null,null,null,null,null,null,null,null,null,null,null,null,0,0,0]
[null,null,null,null,null,null,null,null,null,null,null,null,null,null,null,null,null,null,null,null,null,null,null,null,null,null,null,null,0,0,0]
[null,null,null,null,null,null,null,null,null,null,null,null,null,null,null,null,null,null,null,null,null,null,null,null,null,null,null,null,0,0,0]
[null,null,null,null,null,null,null,null,null,null,null,null,null,null,null,null,null,null,null,null,null,null,null,null,null,null,null,null,0,0,0]
[null,null,null,null,null,null,null,null,null,null,null,null,null,null,null,null,null,null,null,null,null,null,null,null,null,null,null,null,0,0,0]
[null,null,null,null,null,null,null,null,null,null,null,null,null,null,null,null,null,null,null,null,null,null,null,null,null,null,null,null,0,0,0]
[null,null,null,null,null,null,null,null,null,null,null,null,null,null,null,null,null,null,null,null,null,null,null,null,null,null,null,null,0,0,0]
[null,null,null,null,null,null,null,null,null,null,null,null,null,null,null,null,null,null,null,null,null,null,null,null,null,null,null,null,0,0,0]
[null,null,null,null,null,null,null,null,null,null,null,null,null,null,null,null,null,null,null,null,null,null,null,null,null,null,null,null,0,0,0]
[null,null,null,null,null,null,null,null,null,null,null,null,null,null,null,null,null,null,null,null,null,null,null,null,null,null,null,null,0,0,0]
[null,null,null,null,null,null,null,null,null,null,null,null,null,null,null,null,null,null,null,null,null,null,null,null,null,null,null,null,0,0,0]
[null,null,null,null,null,null,null,null,null,null,null,null,null,null,null,null,null,null,null,null,null,null,null,null,null,null,null,null,0,0,0]
[null,null,null,null,null,null,null,null,null,null,null,null,null,null,null,null,null,null,null,null,null,null,null,null,null,null,null,null,0,0,0]
[null,null,null,null,null,null,null,null,null,null,null,null,null,null,null,null,null,null,null,null,null,null,null,null,null,null,null,null,0,0,0]
[null,null,null,null,null,null,null,null,null,null,null,null,null,null,null,null,null,null,null,null,null,null,null,null,null,null,null,null,0,0,0]
[null,null,null,null,null,null,null,null,null,null,null,null,null,null,null,null,null,null,null,null,null,null,null,null,null,null,null,null,0,0,0]
[null,null,null,null,null,null,null,null,null,null,null,null,null,null,null,null,null,null,null,null,null,null,null,null,null,null,null,null,0,0,0]
[null,null,null,null,null,null,null,null,null,null,null,null,null,null,null,null,null,null,null,null,null,null,null,null,null,null,null,null,0,0,0]
[null,null,null,null,null,null,null,null,null,null,null,null,null,null,null,null,null,null,null,null,null,null,null,null,null,null,null,null,0,0,0]
[null,null,null,null,null,null,null,null,null,null,null,null,null,null,null,null,null,null,null,null,null,null,null,null,null,null,null,null,0,0,0]
[null,null,null,null,null,null,null,null,null,null,null,null,null,null,null,null,null,null,null,null,null,null,null,null,null,null,null,null,0,0,0]
[null,null,null,null,null,null,null,null,null,null,null,null,null,null,null,null,null,null,null,null,null,null,null,null,null,null,null,null,0,0,0]
[null,null,null,null,null,null,null,null,null,null,null,null,null,null,null,null,null,null,null,null,null,null,null,null,null,null,null,null,0,0,0]
[null,null,null,null,null,null,null,null,null,null,null,null,null,null,null,null,null,null,null,null,null,null,null,null,null,null,null,null,0,0,0]
[null,null,null,null,null,null,null,null,null,null,null,null,null,null,null,null,null,null,null,null,null,null,null,null,null,null,null,null,0,0,0]
[null,null,null,null,null,null,null,null,null,null,null,null,null,null,null,null,null,null,null,null,null,null,null,null,null,null,null,null,0,0,0]
[null,null,null,null,null,null,null,null,null,null,null,null,null,null,null,null,null,null,null,null,null,null,null,null,null,null,null,null,0,0,0]
[null,null,null,null,null,null,null,null,null,null,null,null,null,null,null,null,null,null,null,null,null,null,null,null,null,null,null,null,0,0,0]
[null,null,null,null,null,null,null,null,null,null,null,null,null,null,null,null,null,null,null,null,null,null,null,null,null,null,null,null,0,0,0]
[null,null,null,null,null,null,null,null,null,null,null,null,null,null,null,null,null,null,null,null,null,null,null,null,null,null,null,null,0,0,0]
[null,null,null,null,null,null,null,null,null,null,null,null,null,null,null,null,null,null,null,null,null,null,null,null,null,null,null,null,0,0,0]
[null,null,null,null,null,null,null,null,null,null,null,null,null,null,null,null,null,null,null,null,null,null,null,null,null,null,null,null,0,0,0]
[null,null,null,null,null,null,null,null,null,null,null,null,null,null,null,null,null,null,null,null,null,null,null,null,null,null,null,null,0,0,0]
[null,null,null,null,null,null,null,null,null,null,null,null,null,null,null,null,null,null,null,null,null,null,null,null,null,null,null,null,0,0,0]
[null,null,null,null,null,null,null,null,null,null,null,null,null,null,null,null,null,null,null,null,null,null,null,null,null,null,null,null,0,0,0]
[null,null,null,null,null,null,null,null,null,null,null,null,null,null,null,null,null,null,null,null,null,null,null,null,null,null,null,null,0,0,0]
[null,null,null,null,null,null,null,null,null,null,null,null,null,null,null,null,null,null,null,null,null,null,null,null,null,null,null,null,0,0,0]
[null,null,null,null,null,null,null,null,null,null,null,null,null,null,null,null,null,null,null,null,null,null,null,null,null,null,null,null,0,0,0]
[null,null,null,null,null,null,null,null,null,null,null,null,null,null,null,null,null,null,null,null,null,null,null,null,null,null,null,null,0,0,0]
[null,null,null,null,null,null,null,null,null,null,null,null,null,null,null,null,null,null,null,null,null,null,null,null,null,null,null,null,0,0,0]
[null,null,null,null,null,null,null,null,null,null,null,null,null,null,null,null,null,null,null,null,null,null,null,null,null,null,null,null,0,0,0]
[null,null,null,null,null,null,null,null,null,null,null,null,null,null,null,null,null,null,null,null,null,null,null,null,null,null,null,null,0,0,0]
[null,null,null,null,null,null,null,null,null,null,null,null,null,null,null,null,null,null,null,null,null,null,null,null,null,null,null,null,0,0,0]
[null,null,null,null,null,null,null,null,null,null,null,null,null,null,null,null,null,null,null,null,null,null,null,null,null,null,null,null,0,0,0]
[null,null,null,null,null,null,null,null,null,null,null,null,null,null,null,null,null,null,null,null,null,null,null,null,null,null,null,null,0,0,0]
[null,null,null,null,null,null,null,null,null,null,null,null,null,null,null,null,null,null,null,null,null,null,null,null,null,null,null,null,0,0,0]
[null,null,null,null,null,null,null,null,null,null,null,null,null,null,null,null,null,null,null,null,null,null,null,null,null,null,null,null,0,0,0]
[null,null,null,null,null,null,null,null,null,null,null,null,null,null,null,null,null,null,null,null,null,null,null,null,null,null,null,null,0,0,0]
[null,null,null,null,null,null,null,null,null,null,null,null,null,null,null,null,null,null,null,null,null,null,null,null,null,null,null,null,0,0,0]
[null,null,null,null,null,null,null,null,null,null,null,null,null,null,null,null,null,null,null,null,null,null,null,null,null,null,null,null,0,0,0]
[null,null,null,null,null,null,null,null,null,null,null,null,null,null,null,null,null,null,null,null,null,null,null,null,null,null,null,null,0,0,0]
[null,null,null,null,null,null,null,null,null,null,null,null,null,null,null,null,null,null,null,null,null,null,null,null,null,null,null,null,0,0,0]
[null,null,null,null,null,null,null,null,null,null,null,null,null,null,null,null,null,null,null,null,null,null,null,null,null,null,null,null,0,0,0]
[null,null,null,null,null,null,null,null,null,null,null,null,null,null,null,null,null,null,null,null,null,null,null,null,null,null,null,null,0,0,0]
[null,null,null,null,null,null,null,null,null,null,null,null,null,null,null,null,null,null,null,null,null,null,null,null,null,null,null,null,0,0,0]
[null,null,null,null,null,null,null,null,null,null,null,null,null,null,null,null,null,null,null,null,null,null,null,null,null,null,null,null,0,0,0]
[null,null,null,null,null,null,null,null,null,null,null,null,null,null,null,null,null,null,null,null,null,null,null,null,null,null,null,null,{"$f":"IF(AA322=0,0,_xlfn.DAYS(AA322,TODAY()))","v":0},0,0]
[null,null,null,null,null,null,null,null,null,null,null,null,null,null,null,null,null,null,null,null,null,null,null,null,null,null,null,null,0,0,{"$f":"IF(Z323=0,0,_xlfn.DAYS(Z323,TODAY()))","v":0}]
[null,null,null,null,null,null,null,null,null,null,null,null,null,null,null,null,null,null,null,null,null,null,null,null,null,null,null,null,0,0,0]
[null,null,null,null,null,null,null,null,null,null,null,null,null,null,null,null,null,null,null,null,null,null,null,null,null,null,null,null,0,0,0]
[null,null,null,null,null,null,null,null,null,null,null,null,null,null,null,null,null,null,null,null,null,null,null,null,null,null,null,null,0,0,0]
[null,null,null,null,null,null,null,null,null,null,null,null,null,null,null,null,null,null,null,null,null,null,null,null,null,null,null,null,0,0,0]
[null,null,null,null,null,null,null,null,null,null,null,null,null,null,null,null,null,null,null,null,null,null,null,null,null,null,null,null,0,0,0]
[null,null,null,null,null,null,null,null,null,null,null,null,null,null,null,null,null,null,null,null,null,null,null,null,null,null,null,null,0,0,0]
[null,null,null,null,null,null,null,null,null,null,null,null,null,null,null,null,null,null,null,null,null,null,null,null,null,null,null,null,0,0,0]
[null,null,null,null,null,null,null,null,null,null,null,null,null,null,null,null,null,null,null,null,null,null,null,null,null,null,null,null,0,0,0]
[null,null,null,null,null,null,null,null,null,null,null,null,null,null,null,null,null,null,null,null,null,null,null,null,null,null,null,null,0,0,0]
[null,null,null,null,null,null,null,null,null,null,null,null,null,null,null,null,null,null,null,null,null,null,null,null,null,null,null,null,0,0,0]
[null,null,null,null,null,null,null,null,null,null,null,null,null,null,null,null,null,null,null,null,null,null,null,null,null,null,null,null,0,0,0]
[null,null,null,null,null,null,null,null,null,null,null,null,null,null,null,null,null,null,null,null,null,null,null,null,null,null,null,null,0,0,0]
[null,null,null,null,null,null,null,null,null,null,null,null,null,null,null,null,null,null,null,null,null,null,null,null,null,null,null,null,0,0,0]
[null,null,null,null,null,null,null,null,null,null,null,null,null,null,null,null,null,null,null,null,null,null,null,null,null,null,null,null,0,0,0]
[null,null,null,null,null,null,null,null,null,null,null,null,null,null,null,null,null,null,null,null,null,null,null,null,null,null,null,null,0,0,0]
[null,null,null,null,null,null,null,null,null,null,null,null,null,null,null,null,null,null,null,null,null,null,null,null,null,null,null,null,0,0,0]
[null,null,null,null,null,null,null,null,null,null,null,null,null,null,null,null,null,null,null,null,null,null,null,null,null,null,null,null,0,0,0]
[null,null,null,null,null,null,null,null,null,null,null,null,null,null,null,null,null,null,null,null,null,null,null,null,null,null,null,null,0,0,0]
[null,null,null,null,null,null,null,null,null,null,null,null,null,null,null,null,null,null,null,null,null,null,null,null,null,null,null,null,0,0,0]
[null,null,null,null,null,null,null,null,null,null,null,null,null,null,null,null,null,null,null,null,null,null,null,null,null,null,null,null,0,0,0]
[null,null,null,null,null,null,null,null,null,null,null,null,null,null,null,null,null,null,null,null,null,null,null,null,null,null,null,null,0,0,0]
[null,null,null,null,null,null,null,null,null,null,null,null,null,null,null,null,null,null,null,null,null,null,null,null,null,null,null,null,0,0,0]
[null,null,null,null,null,null,null,null,null,null,null,null,null,null,null,null,null,null,null,null,null,null,null,null,null,null,null,null,0,0,0]
[null,null,null,null,null,null,null,null,null,null,null,null,null,null,null,null,null,null,null,null,null,null,null,null,null,null,null,null,0,0,0]
[null,null,null,null,null,null,null,null,null,null,null,null,null,null,null,null,null,null,null,null,null,null,null,null,null,null,null,null,0,0,0]
[null,null,null,null,null,null,null,null,null,null,null,null,null,null,null,null,null,null,null,null,null,null,null,null,null,null,null,null,0,0,0]
[null,null,null,null,null,null,null,null,null,null,null,null,null,null,null,null,null,null,null,null,null,null,null,null,null,null,null,null,0,0,0]
[null,null,null,null,null,null,null,null,null,null,null,null,null,null,null,null,null,null,null,null,null,null,null,null,null,null,null,null,0,0,0]
[null,null,null,null,null,null,null,null,null,null,null,null,null,null,null,null,null,null,null,null,null,null,null,null,null,null,null,null,0,0,0]
[null,null,null,null,null,null,null,null,null,null,null,null,null,null,null,null,null,null,null,null,null,null,null,null,null,null,null,null,0,0,0]
[null,null,null,null,null,null,null,null,null,null,null,null,null,null,null,null,null,null,null,null,null,null,null,null,null,null,null,null,0,0,0]
[null,null,null,null,null,null,null,null,null,null,null,null,null,null,null,null,null,null,null,null,null,null,null,null,null,null,null,null,0,0,0]
[null,null,null,null,null,null,null,null,null,null,null,null,null,null,null,null,null,null,null,null,null,null,null,null,null,null,null,null,0,0,0]
[null,null,null,null,null,null,null,null,null,null,null,null,null,null,null,null,null,null,null,null,null,null,null,null,null,null,null,null,0,0,0]
[null,null,null,null,null,null,null,null,null,null,null,null,null,null,null,null,null,null,null,null,null,null,null,null,null,null,null,null,0,0,0]
[null,null,null,null,null,null,null,null,null,null,null,null,null,null,null,null,null,null,null,null,null,null,null,null,null,null,null,null,0,0,0]
[null,null,null,null,null,null,null,null,null,null,null,null,null,null,null,null,null,null,null,null,null,null,null,null,null,null,null,null,0,0,0]
[null,null,null,null,null,null,null,null,null,null,null,null,null,null,null,null,null,null,null,null,null,null,null,null,null,null,null,null,0,0,0]
[null,null,null,null,null,null,null,null,null,null,null,null,null,null,null,null,null,null,null,null,null,null,null,null,null,null,null,null,0,0,0]
[null,null,null,null,null,null,null,null,null,null,null,null,null,null,null,null,null,null,null,null,null,null,null,null,null,null,null,null,0,0,0]
[null,null,null,null,null,null,null,null,null,null,null,null,null,null,null,null,null,null,null,null,null,null,null,null,null,null,null,null,0,0,0]
[null,null,null,null,null,null,null,null,null,null,null,null,null,null,null,null,null,null,null,null,null,null,null,null,null,null,null,null,0,0,0]
[null,null,null,null,null,null,null,null,null,null,null,null,null,null,null,null,null,null,null,null,null,null,null,null,null,null,null,null,0,0,0]
[null,null,null,null,null,null,null,null,null,null,null,null,null,null,null,null,null,null,null,null,null,null,null,null,null,null,null,null,0,0,0]
[null,null,null,null,null,null,null,null,null,null,null,null,null,null,null,null,null,null,null,null,null,null,null,null,null,null,null,null,0,0,0]
[null,null,null,null,null,null,null,null,null,null,null,null,null,null,null,null,null,null,null,null,null,null,null,null,null,null,null,null,0,0,0]
[null,null,null,null,null,null,null,null,null,null,null,null,null,null,null,null,null,null,null,null,null,null,null,null,null,null,null,null,0,0,0]
[null,null,null,null,null,null,null,null,null,null,null,null,null,null,null,null,null,null,null,null,null,null,null,null,null,null,null,null,0,0,0]
[null,null,null,null,null,null,null,null,null,null,null,null,null,null,null,null,null,null,null,null,null,null,null,null,null,null,null,null,0,0,0]
[null,null,null,null,null,null,null,null,null,null,null,null,null,null,null,null,null,null,null,null,null,null,null,null,null,null,null,null,0,0,0]
[null,null,null,null,null,null,null,null,null,null,null,null,null,null,null,null,null,null,null,null,null,null,null,null,null,null,null,null,0,0,0]
[null,null,null,null,null,null,null,null,null,null,null,null,null,null,null,null,null,null,null,null,null,null,null,null,null,null,null,null,0,0,0]
[null,null,null,null,null,null,null,null,null,null,null,null,null,null,null,null,null,null,null,null,null,null,null,null,null,null,null,null,0,0,0]
[null,null,null,null,null,null,null,null,null,null,null,null,null,null,null,null,null,null,null,null,null,null,null,null,null,null,null,null,0,0,0]
[null,null,null,null,null,null,null,null,null,null,null,null,null,null,null,null,null,null,null,null,null,null,null,null,null,null,null,null,0,0,0]
[null,null,null,null,null,null,null,null,null,null,null,null,null,null,null,null,null,null,null,null,null,null,null,null,null,null,null,null,0,0,0]
[null,null,null,null,null,null,null,null,null,null,null,null,null,null,null,null,null,null,null,null,null,null,null,null,null,null,null,null,0,0,0]
[null,null,null,null,null,null,null,null,null,null,null,null,null,null,null,null,null,null,null,null,null,null,null,null,null,null,null,null,0,0,0]
[null,null,null,null,null,null,null,null,null,null,null,null,null,null,null,null,null,null,null,null,null,null,null,null,null,null,null,null,0,0,0]
[null,null,null,null,null,null,null,null,null,null,null,null,null,null,null,null,null,null,null,null,null,null,null,null,null,null,null,null,0,0,0]
[null,null,null,null,null,null,null,null,null,null,null,null,null,null,null,null,null,null,null,null,null,null,null,null,null,null,null,null,0,0,0]
[null,null,null,null,null,null,null,null,null,null,null,null,null,null,null,null,null,null,null,null,null,null,null,null,null,null,null,null,0,0,0]
[null,null,null,null,null,null,null,null,null,null,null,null,null,null,null,null,null,null,null,null,null,null,null,null,null,null,null,null,{"$f":"IF(AA386=0,0,_xlfn.DAYS(AA386,TODAY()))","v":0},0,0]
[null,null,null,null,null,null,null,null,null,null,null,null,null,null,null,null,null,null,null,null,null,null,null,null,null,null,null,null,0,0,{"$f":"IF(Z387=0,0,_xlfn.DAYS(Z387,TODAY()))","v":0}]
[null,null,null,null,null,null,null,null,null,null,null,null,null,null,null,null,null,null,null,null,null,null,null,null,null,null,null,null,0,0,0]
[null,null,null,null,null,null,null,null,null,null,null,null,null,null,null,null,null,null,null,null,null,null,null,null,null,null,null,null,0,0,0]
[null,null,null,null,null,null,null,null,null,null,null,null,null,null,null,null,null,null,null,null,null,null,null,null,null,null,null,null,0,0,0]
[null,null,null,null,null,null,null,null,null,null,null,null,null,null,null,null,null,null,null,null,null,null,null,null,null,null,null,null,0,0,0]
[null,null,null,null,null,null,null,null,null,null,null,null,null,null,null,null,null,null,null,null,null,null,null,null,null,null,null,null,0,0,0]
[null,null,null,null,null,null,null,null,null,null,null,null,null,null,null,null,null,null,null,null,null,null,null,null,null,null,null,null,0,0,0]
[null,null,null,null,null,null,null,null,null,null,null,null,null,null,null,null,null,null,null,null,null,null,null,null,null,null,null,null,0,0,0]
[null,null,null,null,null,null,null,null,null,null,null,null,null,null,null,null,null,null,null,null,null,null,null,null,null,null,null,null,0,0,0]
[null,null,null,null,null,null,null,null,null,null,null,null,null,null,null,null,null,null,null,null,null,null,null,null,null,null,null,null,0,0,0]
[null,null,null,null,null,null,null,null,null,null,null,null,null,null,null,null,null,null,null,null,null,null,null,null,null,null,null,null,0,0,0]
[null,null,null,null,null,null,null,null,null,null,null,null,null,null,null,null,null,null,null,null,null,null,null,null,null,null,null,null,0,0,0]
[null,null,null,null,null,null,null,null,null,null,null,null,null,null,null,null,null,null,null,null,null,null,null,null,null,null,null,null,0,0,0]
[null,null,null,null,null,null,null,null,null,null,null,null,null,null,null,null,null,null,null,null,null,null,null,null,null,null,null,null,0,0,0]
[null,null,null,null,null,null,null,null,null,null,null,null,null,null,null,null,null,null,null,null,null,null,null,null,null,null,null,null,0,0,0]
[null,null,null,null,null,null,null,null,null,null,null,null,null,null,null,null,null,null,null,null,null,null,null,null,null,null,null,null,0,0,0]
[null,null,null,null,null,null,null,null,null,null,null,null,null,null,null,null,null,null,null,null,null,null,null,null,null,null,null,null,0,0,0]
[null,null,null,null,null,null,null,null,null,null,null,null,null,null,null,null,null,null,null,null,null,null,null,null,null,null,null,null,0,0,0]
[null,null,null,null,null,null,null,null,null,null,null,null,null,null,null,null,null,null,null,null,null,null,null,null,null,null,null,null,0,0,0]
[null,null,null,null,null,null,null,null,null,null,null,null,null,null,null,null,null,null,null,null,null,null,null,null,null,null,null,null,0,0,0]
[null,null,null,null,null,null,null,null,null,null,null,null,null,null,null,null,null,null,null,null,null,null,null,null,null,null,null,null,0,0,0]
[null,null,null,null,null,null,null,null,null,null,null,null,null,null,null,null,null,null,null,null,null,null,null,null,null,null,null,null,0,0,0]
[null,null,null,null,null,null,null,null,null,null,null,null,null,null,null,null,null,null,null,null,null,null,null,null,null,null,null,null,0,0,0]
[null,null,null,null,null,null,null,null,null,null,null,null,null,null,null,null,null,null,null,null,null,null,null,null,null,null,null,null,0,0,0]
[null,null,null,null,null,null,null,null,null,null,null,null,null,null,null,null,null,null,null,null,null,null,null,null,null,null,null,null,0,0,0]
[null,null,null,null,null,null,null,null,null,null,null,null,null,null,null,null,null,null,null,null,null,null,null,null,null,null,null,null,0,0,0]
[null,null,null,null,null,null,null,null,null,null,null,null,null,null,null,null,null,null,null,null,null,null,null,null,null,null,null,null,0,0,0]
[null,null,null,null,null,null,null,null,null,null,null,null,null,null,null,null,null,null,null,null,null,null,null,null,null,null,null,null,0,0,0]
[null,null,null,null,null,null,null,null,null,null,null,null,null,null,null,null,null,null,null,null,null,null,null,null,null,null,null,null,0,0,0]
[null,null,null,null,null,null,null,null,null,null,null,null,null,null,null,null,null,null,null,null,null,null,null,null,null,null,null,null,0,0,0]
[null,null,null,null,null,null,null,null,null,null,null,null,null,null,null,null,null,null,null,null,null,null,null,null,null,null,null,null,0,0,0]
[null,null,null,null,null,null,null,null,null,null,null,null,null,null,null,null,null,null,null,null,null,null,null,null,null,null,null,null,0,0,0]
[null,null,null,null,null,null,null,null,null,null,null,null,null,null,null,null,null,null,null,null,null,null,null,null,null,null,null,null,0,0,0]
[null,null,null,null,null,null,null,null,null,null,null,null,null,null,null,null,null,null,null,null,null,null,null,null,null,null,null,null,0,0,0]
[null,null,null,null,null,null,null,null,null,null,null,null,null,null,null,null,null,null,null,null,null,null,null,null,null,null,null,null,0,0,0]
[null,null,null,null,null,null,null,null,null,null,null,null,null,null,null,null,null,null,null,null,null,null,null,null,null,null,null,null,0,0,0]
[null,null,null,null,null,null,null,null,null,null,null,null,null,null,null,null,null,null,null,null,null,null,null,null,null,null,null,null,0,0,0]
[null,null,null,null,null,null,null,null,null,null,null,null,null,null,null,null,null,null,null,null,null,null,null,null,null,null,null,null,0,0,0]
[null,null,null,null,null,null,null,null,null,null,null,null,null,null,null,null,null,null,null,null,null,null,null,null,null,null,null,null,0,0,0]
[null,null,null,null,null,null,null,null,null,null,null,null,null,null,null,null,null,null,null,null,null,null,null,null,null,null,null,null,0,0,0]
[null,null,null,null,null,null,null,null,null,null,null,null,null,null,null,null,null,null,null,null,null,null,null,null,null,null,null,null,0,0,0]
[null,null,null,null,null,null,null,null,null,null,null,null,null,null,null,null,null,null,null,null,null,null,null,null,null,null,null,null,0,0,0]
[null,null,null,null,null,null,null,null,null,null,null,null,null,null,null,null,null,null,null,null,null,null,null,null,null,null,null,null,0,0,0]
[null,null,null,null,null,null,null,null,null,null,null,null,null,null,null,null,null,null,null,null,null,null,null,null,null,null,null,null,0,0,0]
[null,null,null,null,null,null,null,null,null,null,null,null,null,null,null,null,null,null,null,null,null,null,null,null,null,null,null,null,0,0,0]
[null,null,null,null,null,null,null,null,null,null,null,null,null,null,null,null,null,null,null,null,null,null,null,null,null,null,null,null,0,0,0]
[null,null,null,null,null,null,null,null,null,null,null,null,null,null,null,null,null,null,null,null,null,null,null,null,null,null,null,null,0,0,0]
[null,null,null,null,null,null,null,null,null,null,null,null,null,null,null,null,null,null,null,null,null,null,null,null,null,null,null,null,0,0,0]
[null,null,null,null,null,null,null,null,null,null,null,null,null,null,null,null,null,null,null,null,null,null,null,null,null,null,null,null,0,0,0]
[null,null,null,null,null,null,null,null,null,null,null,null,null,null,null,null,null,null,null,null,null,null,null,null,null,null,null,null,0,0,0]
[null,null,null,null,null,null,null,null,null,null,null,null,null,null,null,null,null,null,null,null,null,null,null,null,null,null,null,null,0,0,0]
[null,null,null,null,null,null,null,null,null,null,null,null,null,null,null,null,null,null,null,null,null,null,null,null,null,null,null,null,0,0,0]
[null,null,null,null,null,null,null,null,null,null,null,null,null,null,null,null,null,null,null,null,null,null,null,null,null,null,null,null,0,0,0]
[null,null,null,null,null,null,null,null,null,null,null,null,null,null,null,null,null,null,null,null,null,null,null,null,null,null,null,null,0,0,0]
[null,null,null,null,null,null,null,null,null,null,null,null,null,null,null,null,null,null,null,null,null,null,null,null,null,null,null,null,0,0,0]
[null,null,null,null,null,null,null,null,null,null,null,null,null,null,null,null,null,null,null,null,null,null,null,null,null,null,null,null,0,0,0]
[null,null,null,null,null,null,null,null,null,null,null,null,null,null,null,null,null,null,null,null,null,null,null,null,null,null,null,null,0,0,0]
[null,null,null,null,null,null,null,null,null,null,null,null,null,null,null,null,null,null,null,null,null,null,null,null,null,null,null,null,0,0,0]
[null,null,null,null,null,null,null,null,null,null,null,null,null,null,null,null,null,null,null,null,null,null,null,null,null,null,null,null,0,0,0]
[null,null,null,null,null,null,null,null,null,null,null,null,null,null,null,null,null,null,null,null,null,null,null,null,null,null,null,null,0,0,0]
[null,null,null,null,null,null,null,null,null,null,null,null,null,null,null,null,null,null,null,null,null,null,null,null,null,null,null,null,0,0,0]
[null,null,null,null,null,null,null,null,null,null,null,null,null,null,null,null,null,null,null,null,null,null,null,null,null,null,null,null,0,0,0]
[null,null,null,null,null,null,null,null,null,null,null,null,null,null,null,null,null,null,null,null,null,null,null,null,null,null,null,null,0,0,0]
[null,null,null,null,null,null,null,null,null,null,null,null,null,null,null,null,null,null,null,null,null,null,null,null,null,null,null,null,{"$f":"IF(AA450=0,0,_xlfn.DAYS(AA450,TODAY()))","v":0},0,0]
[null,null,null,null,null,null,null,null,null,null,null,null,null,null,null,null,null,null,null,null,null,null,null,null,null,null,null,null,0,0,{"$f":"IF(Z451=0,0,_xlfn.DAYS(Z451,TODAY()))","v":0}]
[null,null,null,null,null,null,null,null,null,null,null,null,null,null,null,null,null,null,null,null,null,null,null,null,null,null,null,null,0,0,0]
[null,null,null,null,null,null,null,null,null,null,null,null,null,null,null,null,null,null,null,null,null,null,null,null,null,null,null,null,0,0,0]
[null,null,null,null,null,null,null,null,null,null,null,null,null,null,null,null,null,null,null,null,null,null,null,null,null,null,null,null,0,0,0]
[null,null,null,null,null,null,null,null,null,null,null,null,null,null,null,null,null,null,null,null,null,null,null,null,null,null,null,null,0,0,0]
[null,null,null,null,null,null,null,null,null,null,null,null,null,null,null,null,null,null,null,null,null,null,null,null,null,null,null,null,0,0,0]
[null,null,null,null,null,null,null,null,null,null,null,null,null,null,null,null,null,null,null,null,null,null,null,null,null,null,null,null,0,0,0]
[null,null,null,null,null,null,null,null,null,null,null,null,null,null,null,null,null,null,null,null,null,null,null,null,null,null,null,null,0,0,0]
[null,null,null,null,null,null,null,null,null,null,null,null,null,null,null,null,null,null,null,null,null,null,null,null,null,null,null,null,0,0,0]
[null,null,null,null,null,null,null,null,null,null,null,null,null,null,null,null,null,null,null,null,null,null,null,null,null,null,null,null,0,0,0]
[null,null,null,null,null,null,null,null,null,null,null,null,null,null,null,null,null,null,null,null,null,null,null,null,null,null,null,null,0,0,0]
[null,null,null,null,null,null,null,null,null,null,null,null,null,null,null,null,null,null,null,null,null,null,null,null,null,null,null,null,0,0,0]
[null,null,null,null,null,null,null,null,null,null,null,null,null,null,null,null,null,null,null,null,null,null,null,null,null,null,null,null,0,0,0]
[null,null,null,null,null,null,null,null,null,null,null,null,null,null,null,null,null,null,null,null,null,null,null,null,null,null,null,null,0,0,0]
[null,null,null,null,null,null,null,null,null,null,null,null,null,null,null,null,null,null,null,null,null,null,null,null,null,null,null,null,0,0,0]
[null,null,null,null,null,null,null,null,null,null,null,null,null,null,null,null,null,null,null,null,null,null,null,null,null,null,null,null,0,0,0]
[null,null,null,null,null,null,null,null,null,null,null,null,null,null,null,null,null,null,null,null,null,null,null,null,null,null,null,null,0,0,0]
[null,null,null,null,null,null,null,null,null,null,null,null,null,null,null,null,null,null,null,null,null,null,null,null,null,null,null,null,0,0,0]
[null,null,null,null,null,null,null,null,null,null,null,null,null,null,null,null,null,null,null,null,null,null,null,null,null,null,null,null,0,0,0]
[null,null,null,null,null,null,null,null,null,null,null,null,null,null,null,null,null,null,null,null,null,null,null,null,null,null,null,null,0,0,0]
[null,null,null,null,null,null,null,null,null,null,null,null,null,null,null,null,null,null,null,null,null,null,null,null,null,null,null,null,0,0,0]
[null,null,null,null,null,null,null,null,null,null,null,null,null,null,null,null,null,null,null,null,null,null,null,null,null,null,null,null,0,0,0]
[null,null,null,null,null,null,null,null,null,null,null,null,null,null,null,null,null,null,null,null,null,null,null,null,null,null,null,null,0,0,0]
[null,null,null,null,null,null,null,null,null,null,null,null,null,null,null,null,null,null,null,null,null,null,null,null,null,null,null,null,0,0,0]
[null,null,null,null,null,null,null,null,null,null,null,null,null,null,null,null,null,null,null,null,null,null,null,null,null,null,null,null,0,0,0]
[null,null,null,null,null,null,null,null,null,null,null,null,null,null,null,null,null,null,null,null,null,null,null,null,null,null,null,null,0,0,0]
[null,null,null,null,null,null,null,null,null,null,null,null,null,null,null,null,null,null,null,null,null,null,null,null,null,null,null,null,0,0,0]
[null,null,null,null,null,null,null,null,null,null,null,null,null,null,null,null,null,null,null,null,null,null,null,null,null,null,null,null,0,0,0]
[null,null,null,null,null,null,null,null,null,null,null,null,null,null,null,null,null,null,null,null,null,null,null,null,null,null,null,null,0,0,0]
[null,null,null,null,null,null,null,null,null,null,null,null,null,null,null,null,null,null,null,null,null,null,null,null,null,null,null,null,0,0,0]
[null,null,null,null,null,null,null,null,null,null,null,null,null,null,null,null,null,null,null,null,null,null,null,null,null,null,null,null,0,0,0]
[null,null,null,null,null,null,null,null,null,null,null,null,null,null,null,null,null,null,null,null,null,null,null,null,null,null,null,null,0,0,0]
[null,null,null,null,null,null,null,null,null,null,null,null,null,null,null,null,null,null,null,null,null,null,null,null,null,null,null,null,0,0,0]
[null,null,null,null,null,null,null,null,null,null,null,null,null,null,null,null,null,null,null,null,null,null,null,null,null,null,null,null,0,0,0]
[null,null,null,null,null,null,null,null,null,null,null,null,null,null,null,null,null,null,null,null,null,null,null,null,null,null,null,null,0,0,0]
[null,null,null,null,null,null,null,null,null,null,null,null,null,null,null,null,null,null,null,null,null,null,null,null,null,null,null,null,0,0,0]
[null,null,null,null,null,null,null,null,null,null,null,null,null,null,null,null,null,null,null,null,null,null,null,null,null,null,null,null,0,0,0]
[null,null,null,null,null,null,null,null,null,null,null,null,null,null,null,null,null,null,null,null,null,null,null,null,null,null,null,null,0,0,0]
[null,null,null,null,null,null,null,null,null,null,null,null,null,null,null,null,null,null,null,null,null,null,null,null,null,null,null,null,0,0,0]
[null,null,null,null,null,null,null,null,null,null,null,null,null,null,null,null,null,null,null,null,null,null,null,null,null,null,null,null,0,0,0]
[null,null,null,null,null,null,null,null,null,null,null,null,null,null,null,null,null,null,null,null,null,null,null,null,null,null,null,null,0,0,0]
[null,null,null,null,null,null,null,null,null,null,null,null,null,null,null,null,null,null,null,null,null,null,null,null,null,null,null,null,0,0,0]
[null,null,null,null,null,null,null,null,null,null,null,null,null,null,null,null,null,null,null,null,null,null,null,null,null,null,null,null,0,0,0]
[null,null,null,null,null,null,null,null,null,null,null,null,null,null,null,null,null,null,null,null,null,null,null,null,null,null,null,null,0,0,0]
[null,null,null,null,null,null,null,null,null,null,null,null,null,null,null,null,null,null,null,null,null,null,null,null,null,null,null,null,0,0,0]
[null,null,null,null,null,null,null,null,null,null,null,null,null,null,null,null,null,null,null,null,null,null,null,null,null,null,null,null,0,0,0]
[null,null,null,null,null,null,null,null,null,null,null,null,null,null,null,null,null,null,null,null,null,null,null,null,null,null,null,null,0,0,0]
[null,null,null,null,null,null,null,null,null,null,null,null,null,null,null,null,null,null,null,null,null,null,null,null,null,null,null,null,0,0,0]
[null,null,null,null,null,null,null,null,null,null,null,null,null,null,null,null,null,null,null,null,null,null,null,null,null,null,null,null,0,0,0]
[null,null,null,null,null,null,null,null,null,null,null,null,null,null,null,null,null,null,null,null,null,null,null,null,null,null,null,null,0,0,0]
[null,null,null,null,null,null,null,null,null,null,null,null,null,null,null,null,null,null,null,null,null,null,null,null,null,null,null,null,0,0,0]
[null,null,null,null,null,null,null,null,null,null,null,null,null,null,null,null,null,null,null,null,null,null,null,null,null,null,null,null,0,0,0]
[null,null,null,null,null,null,null,null,null,null,null,null,null,null,null,null,null,null,null,null,null,null,null,null,null,null,null,null,0,0,0]
[null,null,null,null,null,null,null,null,null,null,null,null,null,null,null,null,null,null,null,null,null,null,null,null,null,null,null,null,0,0,0]
[null,null,null,null,null,null,null,null,null,null,null,null,null,null,null,null,null,null,null,null,null,null,null,null,null,null,null,null,0,0,0]
[null,null,null,null,null,null,null,null,null,null,null,null,null,null,null,null,null,null,null,null,null,null,null,null,null,null,null,null,0,0,0]
[null,null,null,null,null,null,null,null,null,null,null,null,null,null,null,null,null,null,null,null,null,null,null,null,null,null,null,null,0,0,0]
[null,null,null,null,null,null,null,null,null,null,null,null,null,null,null,null,null,null,null,null,null,null,null,null,null,null,null,null,0,0,0]
[null,null,null,null,null,null,null,null,null,null,null,null,null,null,null,null,null,null,null,null,null,null,null,null,null,null,null,null,0,0,0]
[null,null,null,null,null,null,null,null,null,null,null,null,null,null,null,null,null,null,null,null,null,null,null,null,null,null,null,null,0,0,0]
[null,null,null,null,null,null,null,null,null,null,null,null,null,null,null,null,null,null,null,null,null,null,null,null,null,null,null,null,0,0,0]
[null,null,null,null,null,null,null,null,null,null,null,null,null,null,null,null,null,null,null,null,null,null,null,null,null,null,null,null,0,0,0]
[null,null,null,null,null,null,null,null,null,null,null,null,null,null,null,null,null,null,null,null,null,null,null,null,null,null,null,null,0,0,0]
[null,null,null,null,null,null,null,null,null,null,null,null,null,null,null,null,null,null,null,null,null,null,null,null,null,null,null,null,{"$f":"IF(AA514=0,0,_xlfn.DAYS(AA514,TODAY()))","v":0},0,0]
[null,null,null,null,null,null,null,null,null,null,null,null,null,null,null,null,null,null,null,null,null,null,null,null,null,null,null,null,0,0,{"$f":"IF(Z515=0,0,_xlfn.DAYS(Z515,TODAY()))","v":0}]
[null,null,null,null,null,null,null,null,null,null,null,null,null,null,null,null,null,null,null,null,null,null,null,null,null,null,null,null,0,0,0]
[null,null,null,null,null,null,null,null,null,null,null,null,null,null,null,null,null,null,null,null,null,null,null,null,null,null,null,null,0,0,0]
[null,null,null,null,null,null,null,null,null,null,null,null,null,null,null,null,null,null,null,null,null,null,null,null,null,null,null,null,0,0,0]
[null,null,null,null,null,null,null,null,null,null,null,null,null,null,null,null,null,null,null,null,null,null,null,null,null,null,null,null,0,0,0]
[null,null,null,null,null,null,null,null,null,null,null,null,null,null,null,null,null,null,null,null,null,null,null,null,null,null,null,null,0,0,0]
[null,null,null,null,null,null,null,null,null,null,null,null,null,null,null,null,null,null,null,null,null,null,null,null,null,null,null,null,0,0,0]
[null,null,null,null,null,null,null,null,null,null,null,null,null,null,null,null,null,null,null,null,null,null,null,null,null,null,null,null,0,0,0]
[null,null,null,null,null,null,null,null,null,null,null,null,null,null,null,null,null,null,null,null,null,null,null,null,null,null,null,null,0,0,0]
[null,null,null,null,null,null,null,null,null,null,null,null,null,null,null,null,null,null,null,null,null,null,null,null,null,null,null,null,0,0,0]
[null,null,null,null,null,null,null,null,null,null,null,null,null,null,null,null,null,null,null,null,null,null,null,null,null,null,null,null,0,0,0]
[null,null,null,null,null,null,null,null,null,null,null,null,null,null,null,null,null,null,null,null,null,null,null,null,null,null,null,null,0,0,0]
[null,null,null,null,null,null,null,null,null,null,null,null,null,null,null,null,null,null,null,null,null,null,null,null,null,null,null,null,0,0,0]
[null,null,null,null,null,null,null,null,null,null,null,null,null,null,null,null,null,null,null,null,null,null,null,null,null,null,null,null,0,0,0]
[null,null,null,null,null,null,null,null,null,null,null,null,null,null,null,null,null,null,null,null,null,null,null,null,null,null,null,null,0,0,0]
[null,null,null,null,null,null,null,null,null,null,null,null,null,null,null,null,null,null,null,null,null,null,null,null,null,null,null,null,0,0,0]
[null,null,null,null,null,null,null,null,null,null,null,null,null,null,null,null,null,null,null,null,null,null,null,null,null,null,null,null,0,0,0]
[null,null,null,null,null,null,null,null,null,null,null,null,null,null,null,null,null,null,null,null,null,null,null,null,null,null,null,null,0,0,0]
[null,null,null,null,null,null,null,null,null,null,null,null,null,null,null,null,null,null,null,null,null,null,null,null,null,null,null,null,0,0,0]
[null,null,null,null,null,null,null,null,null,null,null,null,null,null,null,null,null,null,null,null,null,null,null,null,null,null,null,null,0,0]
[null,null,null,null,null,null,null,null,null,null,null,null,null,null,null,null,null,null,null,null,null,null,null,null,null,null,null,null,0,0]
[null,null,null,null,null,null,null,null,null,null,null,null,null,null,null,null,null,null,null,null,null,null,null,null,null,null,null,null,0,0]
[null,null,null,null,null,null,null,null,null,null,null,null,null,null,null,null,null,null,null,null,null,null,null,null,null,null,null,null,0,0]
[null,null,null,null,null,null,null,null,null,null,null,null,null,null,null,null,null,null,null,null,null,null,null,null,null,null,null,null,0,0]
[null,null,null,null,null,null,null,null,null,null,null,null,null,null,null,null,null,null,null,null,null,null,null,null,null,null,null,null,{"$f":"IF(AA539=0,0,_xlfn.DAYS(AA539,TODAY()))","v":0},0]
[null,null,null,null,null,null,null,null,null,null,null,null,null,null,null,null,null,null,null,null,null,null,null,null,null,null,null,null,0,0]
[null,null,null,null,null,null,null,null,null,null,null,null,null,null,null,null,null,null,null,null,null,null,null,null,null,null,null,null,0,0]
[null,null,null,null,null,null,null,null,null,null,null,null,null,null,null,null,null,null,null,null,null,null,null,null,null,null,null,null,0,0]
[null,null,null,null,null,null,null,null,null,null,null,null,null,null,null,null,null,null,null,null,null,null,null,null,null,null,null,null,0,{"$f":"IF(AB543=0,0,_xlfn.DAYS(AB543,TODAY()))","v":0}]
[null,null,null,null,null,null,null,null,null,null,null,null,null,null,null,null,null,null,null,null,null,null,null,null,null,null,null,null,0,0]
[null,null,null,null,null,null,null,null,null,null,null,null,null,null,null,null,null,null,null,null,null,null,null,null,null,null,null,null,0,0]
[null,null,null,null,null,null,null,null,null,null,null,null,null,null,null,null,null,null,null,null,null,null,null,null,null,null,null,null,0,0]
[null,null,null,null,null,null,null,null,null,null,null,null,null,null,null,null,null,null,null,null,null,null,null,null,null,null,null,null,0,0]
[null,null,null,null,null,null,null,null,null,null,null,null,null,null,null,null,null,null,null,null,null,null,null,null,null,null,null,null,0,0]
[null,null,null,null,null,null,null,null,null,null,null,null,null,null,null,null,null,null,null,null,null,null,null,null,null,null,null,null,0,0]
[null,null,null,null,null,null,null,null,null,null,null,null,null,null,null,null,null,null,null,null,null,null,null,null,null,null,null,null,0,0]
[null,null,null,null,null,null,null,null,null,null,null,null,null,null,null,null,null,null,null,null,null,null,null,null,null,null,null,null,0,0]
[null,null,null,null,null,null,null,null,null,null,null,null,null,null,null,null,null,null,null,null,null,null,null,null,null,null,null,null,0,0]
[null,null,null,null,null,null,null,null,null,null,null,null,null,null,null,null,null,null,null,null,null,null,null,null,null,null,null,null,0,0]
[null,null,null,null,null,null,null,null,null,null,null,null,null,null,null,null,null,null,null,null,null,null,null,null,null,null,null,null,0,0]
[null,null,null,null,null,null,null,null,null,null,null,null,null,null,null,null,null,null,null,null,null,null,null,null,null,null,null,null,0,0]
[null,null,null,null,null,null,null,null,null,null,null,null,null,null,null,null,null,null,null,null,null,null,null,null,null,null,null,null,0,0]
[null,null,null,null,null,null,null,null,null,null,null,null,null,null,null,null,null,null,null,null,null,null,null,null,null,null,null,null,0,0]
[null,null,null,null,null,null,null,null,null,null,null,null,null,null,null,null,null,null,null,null,null,null,null,null,null,null,null,null,0,0]
[null,null,null,null,null,null,null,null,null,null,null,null,null,null,null,null,null,null,null,null,null,null,null,null,null,null,null,null,0,0]
[null,null,null,null,null,null,null,null,null,null,null,null,null,null,null,null,null,null,null,null,null,null,null,null,null,null,null,null,0,0]
[null,null,null,null,null,null,null,null,null,null,null,null,null,null,null,null,null,null,null,null,null,null,null,null,null,null,null,null,0,0]
[null,null,null,null,null,null,null,null,null,null,null,null,null,null,null,null,null,null,null,null,null,null,null,null,null,null,null,null,0,0]
[null,null,null,null,null,null,null,null,null,null,null,null,null,null,null,null,null,null,null,null,null,null,null,null,null,null,null,null,0,0]
[null,null,null,null,null,null,null,null,null,null,null,null,null,null,null,null,null,null,null,null,null,null,null,null,null,null,null,null,0,0]
[null,null,null,null,null,null,null,null,null,null,null,null,null,null,null,null,null,null,null,null,null,null,null,null,null,null,null,null,0,0]
[null,null,null,null,null,null,null,null,null,null,null,null,null,null,null,null,null,null,null,null,null,null,null,null,null,null,null,null,0,0]
[null,null,null,null,null,null,null,null,null,null,null,null,null,null,null,null,null,null,null,null,null,null,null,null,null,null,null,null,0,0]
[null,null,null,null,null,null,null,null,null,null,null,null,null,null,null,null,null,null,null,null,null,null,null,null,null,null,null,null,0,0]
[null,null,null,null,null,null,null,null,null,null,null,null,null,null,null,null,null,null,null,null,null,null,null,null,null,null,null,null,0,0]
[null,null,null,null,null,null,null,null,null,null,null,null,null,null,null,null,null,null,null,null,null,null,null,null,null,null,null,null,0,0]
[null,null,null,null,null,null,null,null,null,null,null,null,null,null,null,null,null,null,null,null,null,null,null,null,null,null,null,null,0,0]
[null,null,null,null,null,null,null,null,null,null,null,null,null,null,null,null,null,null,null,null,null,null,null,null,null,null,null,null,0,0]
[null,null,null,null,null,null,null,null,null,null,null,null,null,null,null,null,null,null,null,null,null,null,null,null,null,null,null,null,0,0]
[null,null,null,null,null,null,null,null,null,null,null,null,null,null,null,null,null,null,null,null,null,null,null,null,null,null,null,null,0,0]
[null,null,null,null,null,null,null,null,null,null,null,null,null,null,null,null,null,null,null,null,null,null,null,null,null,null,null,null,0,0]
[null,null,null,null,null,null,null,null,null,null,null,null,null,null,null,null,null,null,null,null,null,null,null,null,null,null,null,null,0,0]
[null,null,null,null,null,null,null,null,null,null,null,null,null,null,null,null,null,null,null,null,null,null,null,null,null,null,null,null,0,0]
[null,null,null,null,null,null,null,null,null,null,null,null,null,null,null,null,null,null,null,null,null,null,null,null,null,null,null,null,{"$f":"IF(AA578=0,0,_xlfn.DAYS(AA578,TODAY()))","v":0},{"$f":"IF(AB578=0,0,_xlfn.DAYS(AB578,TODAY()))","v":0}]
[null,null,null,null,null,null,null,null,null,null,null,null,null,null,null,null,null,null,null,null,null,null,null,null,null,null,null,null,0,0]
[null,null,null,null,null,null,null,null,null,null,null,null,null,null,null,null,null,null,null,null,null,null,null,null,null,null,null,null,0,0]
[null,null,null,null,null,null,null,null,null,null,null,null,null,null,null,null,null,null,null,null,null,null,null,null,null,null,null,null,0,0]
[null,null,null,null,null,null,null,null,null,null,null,null,null,null,null,null,null,null,null,null,null,null,null,null,null,null,null,null,0,0]
[null,null,null,null,null,null,null,null,null,null,null,null,null,null,null,null,null,null,null,null,null,null,null,null,null,null,null,null,0,0]
[null,null,null,null,null,null,null,null,null,null,null,null,null,null,null,null,null,null,null,null,null,null,null,null,null,null,null,null,0,0]
[null,null,null,null,null,null,null,null,null,null,null,null,null,null,null,null,null,null,null,null,null,null,null,null,null,null,null,null,0,0]
[null,null,null,null,null,null,null,null,null,null,null,null,null,null,null,null,null,null,null,null,null,null,null,null,null,null,null,null,0,0]
[null,null,null,null,null,null,null,null,null,null,null,null,null,null,null,null,null,null,null,null,null,null,null,null,null,null,null,null,0,0]
[null,null,null,null,null,null,null,null,null,null,null,null,null,null,null,null,null,null,null,null,null,null,null,null,null,null,null,null,0,0]
[null,null,null,null,null,null,null,null,null,null,null,null,null,null,null,null,null,null,null,null,null,null,null,null,null,null,null,null,0,0]
[null,null,null,null,null,null,null,null,null,null,null,null,null,null,null,null,null,null,null,null,null,null,null,null,null,null,null,null,0,0]
[null,null,null,null,null,null,null,null,null,null,null,null,null,null,null,null,null,null,null,null,null,null,null,null,null,null,null,null,0,0]
[null,null,null,null,null,null,null,null,null,null,null,null,null,null,null,null,null,null,null,null,null,null,null,null,null,null,null,null,0,0]
[null,null,null,null,null,null,null,null,null,null,null,null,null,null,null,null,null,null,null,null,null,null,null,null,null,null,null,null,0,0]
[null,null,null,null,null,null,null,null,null,null,null,null,null,null,null,null,null,null,null,null,null,null,null,null,null,null,null,null,0,0]
[null,null,null,null,null,null,null,null,null,null,null,null,null,null,null,null,null,null,null,null,null,null,null,null,null,null,null,null,0,0]
[null,null,null,null,null,null,null,null,null,null,null,null,null,null,null,null,null,null,null,null,null,null,null,null,null,null,null,null,0,0]
[null,null,null,null,null,null,null,null,null,null,null,null,null,null,null,null,null,null,null,null,null,null,null,null,null,null,null,null,0,0]
[null,null,null,null,null,null,null,null,null,null,null,null,null,null,null,null,null,null,null,null,null,null,null,null,null,null,null,null,0,0]
[null,null,null,null,null,null,null,null,null,null,null,null,null,null,null,null,null,null,null,null,null,null,null,null,null,null,null,null,0,0]
[null,null,null,null,null,null,null,null,null,null,null,null,null,null,null,null,null,null,null,null,null,null,null,null,null,null,null,null,0,0]
[null,null,null,null,null,null,null,null,null,null,null,null,null,null,null,null,null,null,null,null,null,null,null,null,null,null,null,null,0,0]
[null,null,null,null,null,null,null,null,null,null,null,null,null,null,null,null,null,null,null,null,null,null,null,null,null,null,null,null,0,0]
[null,null,null,null,null,null,null,null,null,null,null,null,null,null,null,null,null,null,null,null,null,null,null,null,null,null,null,null,0,0]
[null,null,null,null,null,null,null,null,null,null,null,null,null,null,null,null,null,null,null,null,null,null,null,null,null,null,null,null,0,0]
[null,null,null,null,null,null,null,null,null,null,null,null,null,null,null,null,null,null,null,null,null,null,null,null,null,null,null,null,0,0]
[null,null,null,null,null,null,null,null,null,null,null,null,null,null,null,null,null,null,null,null,null,null,null,null,null,null,null,null,0,0]
[null,null,null,null,null,null,null,null,null,null,null,null,null,null,null,null,null,null,null,null,null,null,null,null,null,null,null,null,0,0]
[null,null,null,null,null,null,null,null,null,null,null,null,null,null,null,null,null,null,null,null,null,null,null,null,null,null,null,null,0,0]
[null,null,null,null,null,null,null,null,null,null,null,null,null,null,null,null,null,null,null,null,null,null,null,null,null,null,null,null,0,0]
[null,null,null,null,null,null,null,null,null,null,null,null,null,null,null,null,null,null,null,null,null,null,null,null,null,null,null,null,0,0]
[null,null,null,null,null,null,null,null,null,null,null,null,null,null,null,null,null,null,null,null,null,null,null,null,null,null,null,null,0,0]
[null,null,null,null,null,null,null,null,null,null,null,null,null,null,null,null,null,null,null,null,null,null,null,null,null,null,null,null,0,0]
[null,null,null,null,null,null,null,null,null,null,null,null,null,null,null,null,null,null,null,null,null,null,null,null,null,null,null,null,0,0]
[null,null,null,null,null,null,null,null,null,null,null,null,null,null,null,null,null,null,null,null,null,null,null,null,null,null,null,null,0,0]
[null,null,null,null,null,null,null,null,null,null,null,null,null,null,null,null,null,null,null,null,null,null,null,null,null,null,null,null,0,0]
[null,null,null,null,null,null,null,null,null,null,null,null,null,null,null,null,null,null,null,null,null,null,null,null,null,null,null,null,0,0]
[null,null,null,null,null,null,null,null,null,null,null,null,null,null,null,null,null,null,null,null,null,null,null,null,null,null,null,null,0,0]
[null,null,null,null,null,null,null,null,null,null,null,null,null,null,null,null,null,null,null,null,null,null,null,null,null,null,null,null,0,0]
[null,null,null,null,null,null,null,null,null,null,null,null,null,null,null,null,null,null,null,null,null,null,null,null,null,null,null,null,0,0]
[null,null,null,null,null,null,null,null,null,null,null,null,null,null,null,null,null,null,null,null,null,null,null,null,null,null,null,null,0,0]
[null,null,null,null,null,null,null,null,null,null,null,null,null,null,null,null,null,null,null,null,null,null,null,null,null,null,null,null,0,0]
[null,null,null,null,null,null,null,null,null,null,null,null,null,null,null,null,null,null,null,null,null,null,null,null,null,null,null,null,0,0]
[null,null,null,null,null,null,null,null,null,null,null,null,null,null,null,null,null,null,null,null,null,null,null,null,null,null,null,null,0,0]
[null,null,null,null,null,null,null,null,null,null,null,null,null,null,null,null,null,null,null,null,null,null,null,null,null,null,null,null,0,0]
[null,null,null,null,null,null,null,null,null,null,null,null,null,null,null,null,null,null,null,null,null,null,null,null,null,null,null,null,0,0]
[null,null,null,null,null,null,null,null,null,null,null,null,null,null,null,null,null,null,null,null,null,null,null,null,null,null,null,null,0,0]
[null,null,null,null,null,null,null,null,null,null,null,null,null,null,null,null,null,null,null,null,null,null,null,null,null,null,null,null,0,0]
[null,null,null,null,null,null,null,null,null,null,null,null,null,null,null,null,null,null,null,null,null,null,null,null,null,null,null,null,0,0]
[null,null,null,null,null,null,null,null,null,null,null,null,null,null,null,null,null,null,null,null,null,null,null,null,null,null,null,null,0,0]
[null,null,null,null,null,null,null,null,null,null,null,null,null,null,null,null,null,null,null,null,null,null,null,null,null,null,null,null,0,0]
[null,null,null,null,null,null,null,null,null,null,null,null,null,null,null,null,null,null,null,null,null,null,null,null,null,null,null,null,0,0]
[null,null,null,null,null,null,null,null,null,null,null,null,null,null,null,null,null,null,null,null,null,null,null,null,null,null,null,null,0,0]
[null,null,null,null,null,null,null,null,null,null,null,null,null,null,null,null,null,null,null,null,null,null,null,null,null,null,null,null,0,0]
[null,null,null,null,null,null,null,null,null,null,null,null,null,null,null,null,null,null,null,null,null,null,null,null,null,null,null,null,0,0]
[null,null,null,null,null,null,null,null,null,null,null,null,null,null,null,null,null,null,null,null,null,null,null,null,null,null,null,null,0,0]
[null,null,null,null,null,null,null,null,null,null,null,null,null,null,null,null,null,null,null,null,null,null,null,null,null,null,null,null,0,0]
[null,null,null,null,null,null,null,null,null,null,null,null,null,null,null,null,null,null,null,null,null,null,null,null,null,null,null,null,0,0]
[null,null,null,null,null,null,null,null,null,null,null,null,null,null,null,null,null,null,null,null,null,null,null,null,null,null,null,null,0,0]
[null,null,null,null,null,null,null,null,null,null,null,null,null,null,null,null,null,null,null,null,null,null,null,null,null,null,null,null,0,0]
[null,null,null,null,null,null,null,null,null,null,null,null,null,null,null,null,null,null,null,null,null,null,null,null,null,null,null,null,0,0]
[null,null,null,null,null,null,null,null,null,null,null,null,null,null,null,null,null,null,null,null,null,null,null,null,null,null,null,null,0,0]
[null,null,null,null,null,null,null,null,null,null,null,null,null,null,null,null,null,null,null,null,null,null,null,null,null,null,null,null,{"$f":"IF(AA642=0,0,_xlfn.DAYS(AA642,TODAY()))","v":0},{"$f":"IF(AB642=0,0,_xlfn.DAYS(AB642,TODAY()))","v":0}]
[null,null,null,null,null,null,null,null,null,null,null,null,null,null,null,null,null,null,null,null,null,null,null,null,null,null,null,null,0,0]
[null,null,null,null,null,null,null,null,null,null,null,null,null,null,null,null,null,null,null,null,null,null,null,null,null,null,null,null,0,0]
[null,null,null,null,null,null,null,null,null,null,null,null,null,null,null,null,null,null,null,null,null,null,null,null,null,null,null,null,0,0]
[null,null,null,null,null,null,null,null,null,null,null,null,null,null,null,null,null,null,null,null,null,null,null,null,null,null,null,null,0,0]
[null,null,null,null,null,null,null,null,null,null,null,null,null,null,null,null,null,null,null,null,null,null,null,null,null,null,null,null,0,0]
[null,null,null,null,null,null,null,null,null,null,null,null,null,null,null,null,null,null,null,null,null,null,null,null,null,null,null,null,0,0]
[null,null,null,null,null,null,null,null,null,null,null,null,null,null,null,null,null,null,null,null,null,null,null,null,null,null,null,null,0,0]
[null,null,null,null,null,null,null,null,null,null,null,null,null,null,null,null,null,null,null,null,null,null,null,null,null,null,null,null,0,0]
[null,null,null,null,null,null,null,null,null,null,null,null,null,null,null,null,null,null,null,null,null,null,null,null,null,null,null,null,0,0]
[null,null,null,null,null,null,null,null,null,null,null,null,null,null,null,null,null,null,null,null,null,null,null,null,null,null,null,null,0,0]
[null,null,null,null,null,null,null,null,null,null,null,null,null,null,null,null,null,null,null,null,null,null,null,null,null,null,null,null,0,0]
[null,null,null,null,null,null,null,null,null,null,null,null,null,null,null,null,null,null,null,null,null,null,null,null,null,null,null,null,0,0]
[null,null,null,null,null,null,null,null,null,null,null,null,null,null,null,null,null,null,null,null,null,null,null,null,null,null,null,null,0,0]
[null,null,null,null,null,null,null,null,null,null,null,null,null,null,null,null,null,null,null,null,null,null,null,null,null,null,null,null,0,0]
[null,null,null,null,null,null,null,null,null,null,null,null,null,null,null,null,null,null,null,null,null,null,null,null,null,null,null,null,0,0]
[null,null,null,null,null,null,null,null,null,null,null,null,null,null,null,null,null,null,null,null,null,null,null,null,null,null,null,null,0,0]
[null,null,null,null,null,null,null,null,null,null,null,null,null,null,null,null,null,null,null,null,null,null,null,null,null,null,null,null,0,0]
[null,null,null,null,null,null,null,null,null,null,null,null,null,null,null,null,null,null,null,null,null,null,null,null,null,null,null,null,0,0]
[null,null,null,null,null,null,null,null,null,null,null,null,null,null,null,null,null,null,null,null,null,null,null,null,null,null,null,null,0,0]
[null,null,null,null,null,null,null,null,null,null,null,null,null,null,null,null,null,null,null,null,null,null,null,null,null,null,null,null,0,0]
[null,null,null,null,null,null,null,null,null,null,null,null,null,null,null,null,null,null,null,null,null,null,null,null,null,null,null,null,0,0]
[null,null,null,null,null,null,null,null,null,null,null,null,null,null,null,null,null,null,null,null,null,null,null,null,null,null,null,null,0,0]
[null,null,null,null,null,null,null,null,null,null,null,null,null,null,null,null,null,null,null,null,null,null,null,null,null,null,null,null,0,0]
[null,null,null,null,null,null,null,null,null,null,null,null,null,null,null,null,null,null,null,null,null,null,null,null,null,null,null,null,0,0]
[null,null,null,null,null,null,null,null,null,null,null,null,null,null,null,null,null,null,null,null,null,null,null,null,null,null,null,null,0,0]
[null,null,null,null,null,null,null,null,null,null,null,null,null,null,null,null,null,null,null,null,null,null,null,null,null,null,null,null,0,0]
[null,null,null,null,null,null,null,null,null,null,null,null,null,null,null,null,null,null,null,null,null,null,null,null,null,null,null,null,0,0]
[null,null,null,null,null,null,null,null,null,null,null,null,null,null,null,null,null,null,null,null,null,null,null,null,null,null,null,null,0,0]
[null,null,null,null,null,null,null,null,null,null,null,null,null,null,null,null,null,null,null,null,null,null,null,null,null,null,null,null,0,0]
[null,null,null,null,null,null,null,null,null,null,null,null,null,null,null,null,null,null,null,null,null,null,null,null,null,null,null,null,0,0]
[null,null,null,null,null,null,null,null,null,null,null,null,null,null,null,null,null,null,null,null,null,null,null,null,null,null,null,null,0,0]
[null,null,null,null,null,null,null,null,null,null,null,null,null,null,null,null,null,null,null,null,null,null,null,null,null,null,null,null,0,0]
[null,null,null,null,null,null,null,null,null,null,null,null,null,null,null,null,null,null,null,null,null,null,null,null,null,null,null,null,0,0]
[null,null,null,null,null,null,null,null,null,null,null,null,null,null,null,null,null,null,null,null,null,null,null,null,null,null,null,null,0,0]
[null,null,null,null,null,null,null,null,null,null,null,null,null,null,null,null,null,null,null,null,null,null,null,null,null,null,null,null,0,0]
[null,null,null,null,null,null,null,null,null,null,null,null,null,null,null,null,null,null,null,null,null,null,null,null,null,null,null,null,0,0]
[null,null,null,null,null,null,null,null,null,null,null,null,null,null,null,null,null,null,null,null,null,null,null,null,null,null,null,null,0,0]
[null,null,null,null,null,null,null,null,null,null,null,null,null,null,null,null,null,null,null,null,null,null,null,null,null,null,null,null,0,0]
[null,null,null,null,null,null,null,null,null,null,null,null,null,null,null,null,null,null,null,null,null,null,null,null,null,null,null,null,0,0]
[null,null,null,null,null,null,null,null,null,null,null,null,null,null,null,null,null,null,null,null,null,null,null,null,null,null,null,null,0,0]
[null,null,null,null,null,null,null,null,null,null,null,null,null,null,null,null,null,null,null,null,null,null,null,null,null,null,null,null,0,0]
[null,null,null,null,null,null,null,null,null,null,null,null,null,null,null,null,null,null,null,null,null,null,null,null,null,null,null,null,0,0]
[null,null,null,null,null,null,null,null,null,null,null,null,null,null,null,null,null,null,null,null,null,null,null,null,null,null,null,null,0,0]
[null,null,null,null,null,null,null,null,null,null,null,null,null,null,null,null,null,null,null,null,null,null,null,null,null,null,null,null,0,0]
[null,null,null,null,null,null,null,null,null,null,null,null,null,null,null,null,null,null,null,null,null,null,null,null,null,null,null,null,0,0]
[null,null,null,null,null,null,null,null,null,null,null,null,null,null,null,null,null,null,null,null,null,null,null,null,null,null,null,null,0,0]
[null,null,null,null,null,null,null,null,null,null,null,null,null,null,null,null,null,null,null,null,null,null,null,null,null,null,null,null,0,0]
[null,null,null,null,null,null,null,null,null,null,null,null,null,null,null,null,null,null,null,null,null,null,null,null,null,null,null,null,0,0]
[null,null,null,null,null,null,null,null,null,null,null,null,null,null,null,null,null,null,null,null,null,null,null,null,null,null,null,null,0,0]
[null,null,null,null,null,null,null,null,null,null,null,null,null,null,null,null,null,null,null,null,null,null,null,null,null,null,null,null,0,0]
[null,null,null,null,null,null,null,null,null,null,null,null,null,null,null,null,null,null,null,null,null,null,null,null,null,null,null,null,0,0]
[null,null,null,null,null,null,null,null,null,null,null,null,null,null,null,null,null,null,null,null,null,null,null,null,null,null,null,null,0,0]
[null,null,null,null,null,null,null,null,null,null,null,null,null,null,null,null,null,null,null,null,null,null,null,null,null,null,null,null,0,0]
[null,null,null,null,null,null,null,null,null,null,null,null,null,null,null,null,null,null,null,null,null,null,null,null,null,null,null,null,0,0]
[null,null,null,null,null,null,null,null,null,null,null,null,null,null,null,null,null,null,null,null,null,null,null,null,null,null,null,null,0,0]
[null,null,null,null,null,null,null,null,null,null,null,null,null,null,null,null,null,null,null,null,null,null,null,null,null,null,null,null,0,0]
[null,null,null,null,null,null,null,null,null,null,null,null,null,null,null,null,null,null,null,null,null,null,null,null,null,null,null,null,0,0]
[null,null,null,null,null,null,null,null,null,null,null,null,null,null,null,null,null,null,null,null,null,null,null,null,null,null,null,null,0,0]
[null,null,null,null,null,null,null,null,null,null,null,null,null,null,null,null,null,null,null,null,null,null,null,null,null,null,null,null,0,0]
[null,null,null,null,null,null,null,null,null,null,null,null,null,null,null,null,null,null,null,null,null,null,null,null,null,null,null,null,0,0]
[null,null,null,null,null,null,null,null,null,null,null,null,null,null,null,null,null,null,null,null,null,null,null,null,null,null,null,null,0,0]
[null,null,null,null,null,null,null,null,null,null,null,null,null,null,null,null,null,null,null,null,null,null,null,null,null,null,null,null,0,0]
[null,null,null,null,null,null,null,null,null,null,null,null,null,null,null,null,null,null,null,null,null,null,null,null,null,null,null,null,0,0]
[null,null,null,null,null,null,null,null,null,null,null,null,null,null,null,null,null,null,null,null,null,null,null,null,null,null,null,null,{"$f":"IF(AA706=0,0,_xlfn.DAYS(AA706,TODAY()))","v":0},{"$f":"IF(AB706=0,0,_xlfn.DAYS(AB706,TODAY()))","v":0}]
[null,null,null,null,null,null,null,null,null,null,null,null,null,null,null,null,null,null,null,null,null,null,null,null,null,null,null,null,0,0]
[null,null,null,null,null,null,null,null,null,null,null,null,null,null,null,null,null,null,null,null,null,null,null,null,null,null,null,null,0,0]
[null,null,null,null,null,null,null,null,null,null,null,null,null,null,null,null,null,null,null,null,null,null,null,null,null,null,null,null,0,0]
[null,null,null,null,null,null,null,null,null,null,null,null,null,null,null,null,null,null,null,null,null,null,null,null,null,null,null,null,0,0]
[null,null,null,null,null,null,null,null,null,null,null,null,null,null,null,null,null,null,null,null,null,null,null,null,null,null,null,null,0,0]
[null,null,null,null,null,null,null,null,null,null,null,null,null,null,null,null,null,null,null,null,null,null,null,null,null,null,null,null,0,0]
[null,null,null,null,null,null,null,null,null,null,null,null,null,null,null,null,null,null,null,null,null,null,null,null,null,null,null,null,0,0]
[null,null,null,null,null,null,null,null,null,null,null,null,null,null,null,null,null,null,null,null,null,null,null,null,null,null,null,null,0,0]
[null,null,null,null,null,null,null,null,null,null,null,null,null,null,null,null,null,null,null,null,null,null,null,null,null,null,null,null,0,0]
[null,null,null,null,null,null,null,null,null,null,null,null,null,null,null,null,null,null,null,null,null,null,null,null,null,null,null,null,0,0]
[null,null,null,null,null,null,null,null,null,null,null,null,null,null,null,null,null,null,null,null,null,null,null,null,null,null,null,null,0,0]
[null,null,null,null,null,null,null,null,null,null,null,null,null,null,null,null,null,null,null,null,null,null,null,null,null,null,null,null,0,0]
[null,null,null,null,null,null,null,null,null,null,null,null,null,null,null,null,null,null,null,null,null,null,null,null,null,null,null,null,0,0]
[null,null,null,null,null,null,null,null,null,null,null,null,null,null,null,null,null,null,null,null,null,null,null,null,null,null,null,null,0,0]
[null,null,null,null,null,null,null,null,null,null,null,null,null,null,null,null,null,null,null,null,null,null,null,null,null,null,null,null,0,0]
[null,null,null,null,null,null,null,null,null,null,null,null,null,null,null,null,null,null,null,null,null,null,null,null,null,null,null,null,0,0]
[null,null,null,null,null,null,null,null,null,null,null,null,null,null,null,null,null,null,null,null,null,null,null,null,null,null,null,null,0,0]
[null,null,null,null,null,null,null,null,null,null,null,null,null,null,null,null,null,null,null,null,null,null,null,null,null,null,null,null,0,0]
[null,null,null,null,null,null,null,null,null,null,null,null,null,null,null,null,null,null,null,null,null,null,null,null,null,null,null,null,0,0]
[null,null,null,null,null,null,null,null,null,null,null,null,null,null,null,null,null,null,null,null,null,null,null,null,null,null,null,null,0,0]
[null,null,null,null,null,null,null,null,null,null,null,null,null,null,null,null,null,null,null,null,null,null,null,null,null,null,null,null,0,0]
[null,null,null,null,null,null,null,null,null,null,null,null,null,null,null,null,null,null,null,null,null,null,null,null,null,null,null,null,0,0]
[null,null,null,null,null,null,null,null,null,null,null,null,null,null,null,null,null,null,null,null,null,null,null,null,null,null,null,null,0,0]
[null,null,null,null,null,null,null,null,null,null,null,null,null,null,null,null,null,null,null,null,null,null,null,null,null,null,null,null,0,0]
[null,null,null,null,null,null,null,null,null,null,null,null,null,null,null,null,null,null,null,null,null,null,null,null,null,null,null,null,0,0]
[null,null,null,null,null,null,null,null,null,null,null,null,null,null,null,null,null,null,null,null,null,null,null,null,null,null,null,null,0,0]
[null,null,null,null,null,null,null,null,null,null,null,null,null,null,null,null,null,null,null,null,null,null,null,null,null,null,null,null,0,0]
[null,null,null,null,null,null,null,null,null,null,null,null,null,null,null,null,null,null,null,null,null,null,null,null,null,null,null,null,0,0]
[null,null,null,null,null,null,null,null,null,null,null,null,null,null,null,null,null,null,null,null,null,null,null,null,null,null,null,null,0,0]
[null,null,null,null,null,null,null,null,null,null,null,null,null,null,null,null,null,null,null,null,null,null,null,null,null,null,null,null,0,0]
[null,null,null,null,null,null,null,null,null,null,null,null,null,null,null,null,null,null,null,null,null,null,null,null,null,null,null,null,0,0]
[null,null,null,null,null,null,null,null,null,null,null,null,null,null,null,null,null,null,null,null,null,null,null,null,null,null,null,null,0,0]
[null,null,null,null,null,null,null,null,null,null,null,null,null,null,null,null,null,null,null,null,null,null,null,null,null,null,null,null,0,0]
[null,null,null,null,null,null,null,null,null,null,null,null,null,null,null,null,null,null,null,null,null,null,null,null,null,null,null,null,0,0]
[null,null,null,null,null,null,null,null,null,null,null,null,null,null,null,null,null,null,null,null,null,null,null,null,null,null,null,null,0,0]
[null,null,null,null,null,null,null,null,null,null,null,null,null,null,null,null,null,null,null,null,null,null,null,null,null,null,null,null,0,0]
[null,null,null,null,null,null,null,null,null,null,null,null,null,null,null,null,null,null,null,null,null,null,null,null,null,null,null,null,0,0]
[null,null,null,null,null,null,null,null,null,null,null,null,null,null,null,null,null,null,null,null,null,null,null,null,null,null,null,null,0,0]
[null,null,null,null,null,null,null,null,null,null,null,null,null,null,null,null,null,null,null,null,null,null,null,null,null,null,null,null,0,0]
[null,null,null,null,null,null,null,null,null,null,null,null,null,null,null,null,null,null,null,null,null,null,null,null,null,null,null,null,0,0]
[null,null,null,null,null,null,null,null,null,null,null,null,null,null,null,null,null,null,null,null,null,null,null,null,null,null,null,null,0,0]
[null,null,null,null,null,null,null,null,null,null,null,null,null,null,null,null,null,null,null,null,null,null,null,null,null,null,null,null,0,0]
[null,null,null,null,null,null,null,null,null,null,null,null,null,null,null,null,null,null,null,null,null,null,null,null,null,null,null,null,0,0]
[null,null,null,null,null,null,null,null,null,null,null,null,null,null,null,null,null,null,null,null,null,null,null,null,null,null,null,null,0,0]
[null,null,null,null,null,null,null,null,null,null,null,null,null,null,null,null,null,null,null,null,null,null,null,null,null,null,null,null,0,0]
[null,null,null,null,null,null,null,null,null,null,null,null,null,null,null,null,null,null,null,null,null,null,null,null,null,null,null,null,0,0]
[null,null,null,null,null,null,null,null,null,null,null,null,null,null,null,null,null,null,null,null,null,null,null,null,null,null,null,null,0,0]
[null,null,null,null,null,null,null,null,null,null,null,null,null,null,null,null,null,null,null,null,null,null,null,null,null,null,null,null,0,0]
[null,null,null,null,null,null,null,null,null,null,null,null,null,null,null,null,null,null,null,null,null,null,null,null,null,null,null,null,0,0]
[null,null,null,null,null,null,null,null,null,null,null,null,null,null,null,null,null,null,null,null,null,null,null,null,null,null,null,null,0,0]
[null,null,null,null,null,null,null,null,null,null,null,null,null,null,null,null,null,null,null,null,null,null,null,null,null,null,null,null,0,0]
[null,null,null,null,null,null,null,null,null,null,null,null,null,null,null,null,null,null,null,null,null,null,null,null,null,null,null,null,0,0]
[null,null,null,null,null,null,null,null,null,null,null,null,null,null,null,null,null,null,null,null,null,null,null,null,null,null,null,null,0,0]
[null,null,null,null,null,null,null,null,null,null,null,null,null,null,null,null,null,null,null,null,null,null,null,null,null,null,null,null,0,0]
[null,null,null,null,null,null,null,null,null,null,null,null,null,null,null,null,null,null,null,null,null,null,null,null,null,null,null,null,0,0]
[null,null,null,null,null,null,null,null,null,null,null,null,null,null,null,null,null,null,null,null,null,null,null,null,null,null,null,null,0,0]
[null,null,null,null,null,null,null,null,null,null,null,null,null,null,null,null,null,null,null,null,null,null,null,null,null,null,null,null,0,0]
[null,null,null,null,null,null,null,null,null,null,null,null,null,null,null,null,null,null,null,null,null,null,null,null,null,null,null,null,0,0]
[null,null,null,null,null,null,null,null,null,null,null,null,null,null,null,null,null,null,null,null,null,null,null,null,null,null,null,null,0,0]
[null,null,null,null,null,null,null,null,null,null,null,null,null,null,null,null,null,null,null,null,null,null,null,null,null,null,null,null,0,0]
[null,null,null,null,null,null,null,null,null,null,null,null,null,null,null,null,null,null,null,null,null,null,null,null,null,null,null,null,0,0]
[null,null,null,null,null,null,null,null,null,null,null,null,null,null,null,null,null,null,null,null,null,null,null,null,null,null,null,null,0,0]
[null,null,null,null,null,null,null,null,null,null,null,null,null,null,null,null,null,null,null,null,null,null,null,null,null,null,null,null,0,0]
[null,null,null,null,null,null,null,null,null,null,null,null,null,null,null,null,null,null,null,null,null,null,null,null,null,null,null,null,{"$f":"IF(AA770=0,0,_xlfn.DAYS(AA770,TODAY()))","v":0},{"$f":"IF(AB770=0,0,_xlfn.DAYS(AB770,TODAY()))","v":0}]
[null,null,null,null,null,null,null,null,null,null,null,null,null,null,null,null,null,null,null,null,null,null,null,null,null,null,null,null,0,0]
[null,null,null,null,null,null,null,null,null,null,null,null,null,null,null,null,null,null,null,null,null,null,null,null,null,null,null,null,0,0]
[null,null,null,null,null,null,null,null,null,null,null,null,null,null,null,null,null,null,null,null,null,null,null,null,null,null,null,null,0,0]
[null,null,null,null,null,null,null,null,null,null,null,null,null,null,null,null,null,null,null,null,null,null,null,null,null,null,null,null,0,0]
[null,null,null,null,null,null,null,null,null,null,null,null,null,null,null,null,null,null,null,null,null,null,null,null,null,null,null,null,0,0]
[null,null,null,null,null,null,null,null,null,null,null,null,null,null,null,null,null,null,null,null,null,null,null,null,null,null,null,null,0,0]
[null,null,null,null,null,null,null,null,null,null,null,null,null,null,null,null,null,null,null,null,null,null,null,null,null,null,null,null,0,0]
[null,null,null,null,null,null,null,null,null,null,null,null,null,null,null,null,null,null,null,null,null,null,null,null,null,null,null,null,0,0]
[null,null,null,null,null,null,null,null,null,null,null,null,null,null,null,null,null,null,null,null,null,null,null,null,null,null,null,null,0,0]
[null,null,null,null,null,null,null,null,null,null,null,null,null,null,null,null,null,null,null,null,null,null,null,null,null,null,null,null,0,0]
[null,null,null,null,null,null,null,null,null,null,null,null,null,null,null,null,null,null,null,null,null,null,null,null,null,null,null,null,0,0]
[null,null,null,null,null,null,null,null,null,null,null,null,null,null,null,null,null,null,null,null,null,null,null,null,null,null,null,null,0,0]
[null,null,null,null,null,null,null,null,null,null,null,null,null,null,null,null,null,null,null,null,null,null,null,null,null,null,null,null,0,0]
[null,null,null,null,null,null,null,null,null,null,null,null,null,null,null,null,null,null,null,null,null,null,null,null,null,null,null,null,0,0]
[null,null,null,null,null,null,null,null,null,null,null,null,null,null,null,null,null,null,null,null,null,null,null,null,null,null,null,null,0,0]
[null,null,null,null,null,null,null,null,null,null,null,null,null,null,null,null,null,null,null,null,null,null,null,null,null,null,null,null,0,0]
[null,null,null,null,null,null,null,null,null,null,null,null,null,null,null,null,null,null,null,null,null,null,null,null,null,null,null,null,0,0]
[null,null,null,null,null,null,null,null,null,null,null,null,null,null,null,null,null,null,null,null,null,null,null,null,null,null,null,null,0,0]
[null,null,null,null,null,null,null,null,null,null,null,null,null,null,null,null,null,null,null,null,null,null,null,null,null,null,null,null,0,0]
[null,null,null,null,null,null,null,null,null,null,null,null,null,null,null,null,null,null,null,null,null,null,null,null,null,null,null,null,0,0]
[null,null,null,null,null,null,null,null,null,null,null,null,null,null,null,null,null,null,null,null,null,null,null,null,null,null,null,null,0,0]
[null,null,null,null,null,null,null,null,null,null,null,null,null,null,null,null,null,null,null,null,null,null,null,null,null,null,null,null,0,0]
[null,null,null,null,null,null,null,null,null,null,null,null,null,null,null,null,null,null,null,null,null,null,null,null,null,null,null,null,0,0]
[null,null,null,null,null,null,null,null,null,null,null,null,null,null,null,null,null,null,null,null,null,null,null,null,null,null,null,null,0,0]
[null,null,null,null,null,null,null,null,null,null,null,null,null,null,null,null,null,null,null,null,null,null,null,null,null,null,null,null,0,0]
[null,null,null,null,null,null,null,null,null,null,null,null,null,null,null,null,null,null,null,null,null,null,null,null,null,null,null,null,0,0]
[null,null,null,null,null,null,null,null,null,null,null,null,null,null,null,null,null,null,null,null,null,null,null,null,null,null,null,null,0,0]
[null,null,null,null,null,null,null,null,null,null,null,null,null,null,null,null,null,null,null,null,null,null,null,null,null,null,null,null,0,0]
[null,null,null,null,null,null,null,null,null,null,null,null,null,null,null,null,null,null,null,null,null,null,null,null,null,null,null,null,0,0]
[null,null,null,null,null,null,null,null,null,null,null,null,null,null,null,null,null,null,null,null,null,null,null,null,null,null,null,null,0,0]
[null,null,null,null,null,null,null,null,null,null,null,null,null,null,null,null,null,null,null,null,null,null,null,null,null,null,null,null,0,0]
[null,null,null,null,null,null,null,null,null,null,null,null,null,null,null,null,null,null,null,null,null,null,null,null,null,null,null,null,0,0]
[null,null,null,null,null,null,null,null,null,null,null,null,null,null,null,null,null,null,null,null,null,null,null,null,null,null,null,null,0,0]
[null,null,null,null,null,null,null,null,null,null,null,null,null,null,null,null,null,null,null,null,null,null,null,null,null,null,null,null,0,0]
[null,null,null,null,null,null,null,null,null,null,null,null,null,null,null,null,null,null,null,null,null,null,null,null,null,null,null,null,0,0]
[null,null,null,null,null,null,null,null,null,null,null,null,null,null,null,null,null,null,null,null,null,null,null,null,null,null,null,null,0,0]
[null,null,null,null,null,null,null,null,null,null,null,null,null,null,null,null,null,null,null,null,null,null,null,null,null,null,null,null,0,0]
[null,null,null,null,null,null,null,null,null,null,null,null,null,null,null,null,null,null,null,null,null,null,null,null,null,null,null,null,0,0]
[null,null,null,null,null,null,null,null,null,null,null,null,null,null,null,null,null,null,null,null,null,null,null,null,null,null,null,null,0,0]
[null,null,null,null,null,null,null,null,null,null,null,null,null,null,null,null,null,null,null,null,null,null,null,null,null,null,null,null,0,0]
[null,null,null,null,null,null,null,null,null,null,null,null,null,null,null,null,null,null,null,null,null,null,null,null,null,null,null,null,0,0]
[null,null,null,null,null,null,null,null,null,null,null,null,null,null,null,null,null,null,null,null,null,null,null,null,null,null,null,null,0,0]
[null,null,null,null,null,null,null,null,null,null,null,null,null,null,null,null,null,null,null,null,null,null,null,null,null,null,null,null,0,0]
[null,null,null,null,null,null,null,null,null,null,null,null,null,null,null,null,null,null,null,null,null,null,null,null,null,null,null,null,0,0]
[null,null,null,null,null,null,null,null,null,null,null,null,null,null,null,null,null,null,null,null,null,null,null,null,null,null,null,null,0,0]
[null,null,null,null,null,null,null,null,null,null,null,null,null,null,null,null,null,null,null,null,null,null,null,null,null,null,null,null,0,0]
[null,null,null,null,null,null,null,null,null,null,null,null,null,null,null,null,null,null,null,null,null,null,null,null,null,null,null,null,0,0]
[null,null,null,null,null,null,null,null,null,null,null,null,null,null,null,null,null,null,null,null,null,null,null,null,null,null,null,null,0,0]
[null,null,null,null,null,null,null,null,null,null,null,null,null,null,null,null,null,null,null,null,null,null,null,null,null,null,null,null,0,0]
[null,null,null,null,null,null,null,null,null,null,null,null,null,null,null,null,null,null,null,null,null,null,null,null,null,null,null,null,0,0]
[null,null,null,null,null,null,null,null,null,null,null,null,null,null,null,null,null,null,null,null,null,null,null,null,null,null,null,null,0,0]
[null,null,null,null,null,null,null,null,null,null,null,null,null,null,null,null,null,null,null,null,null,null,null,null,null,null,null,null,0,0]
[null,null,null,null,null,null,null,null,null,null,null,null,null,null,null,null,null,null,null,null,null,null,null,null,null,null,null,null,0,0]
[null,null,null,null,null,null,null,null,null,null,null,null,null,null,null,null,null,null,null,null,null,null,null,null,null,null,null,null,0,0]
[null,null,null,null,null,null,null,null,null,null,null,null,null,null,null,null,null,null,null,null,null,null,null,null,null,null,null,null,0,0]
[null,null,null,null,null,null,null,null,null,null,null,null,null,null,null,null,null,null,null,null,null,null,null,null,null,null,null,null,0,0]
[null,null,null,null,null,null,null,null,null,null,null,null,null,null,null,null,null,null,null,null,null,null,null,null,null,null,null,null,0,0]
[null,null,null,null,null,null,null,null,null,null,null,null,null,null,null,null,null,null,null,null,null,null,null,null,null,null,null,null,0,0]
[null,null,null,null,null,null,null,null,null,null,null,null,null,null,null,null,null,null,null,null,null,null,null,null,null,null,null,null,0,0]
[null,null,null,null,null,null,null,null,null,null,null,null,null,null,null,null,null,null,null,null,null,null,null,null,null,null,null,null,0,0]
[null,null,null,null,null,null,null,null,null,null,null,null,null,null,null,null,null,null,null,null,null,null,null,null,null,null,null,null,0,0]
[null,null,null,null,null,null,null,null,null,null,null,null,null,null,null,null,null,null,null,null,null,null,null,null,null,null,null,null,0,0]
[null,null,null,null,null,null,null,null,null,null,null,null,null,null,null,null,null,null,null,null,null,null,null,null,null,null,null,null,0,0]
[null,null,null,null,null,null,null,null,null,null,null,null,null,null,null,null,null,null,null,null,null,null,null,null,null,null,null,null,{"$f":"IF(AA834=0,0,_xlfn.DAYS(AA834,TODAY()))","v":0},{"$f":"IF(AB834=0,0,_xlfn.DAYS(AB834,TODAY()))","v":0}]
[null,null,null,null,null,null,null,null,null,null,null,null,null,null,null,null,null,null,null,null,null,null,null,null,null,null,null,null,0,0]
[null,null,null,null,null,null,null,null,null,null,null,null,null,null,null,null,null,null,null,null,null,null,null,null,null,null,null,null,0,0]
[null,null,null,null,null,null,null,null,null,null,null,null,null,null,null,null,null,null,null,null,null,null,null,null,null,null,null,null,0,0]
[null,null,null,null,null,null,null,null,null,null,null,null,null,null,null,null,null,null,null,null,null,null,null,null,null,null,null,null,0,0]
[null,null,null,null,null,null,null,null,null,null,null,null,null,null,null,null,null,null,null,null,null,null,null,null,null,null,null,null,0,0]
[null,null,null,null,null,null,null,null,null,null,null,null,null,null,null,null,null,null,null,null,null,null,null,null,null,null,null,null,0,0]
[null,null,null,null,null,null,null,null,null,null,null,null,null,null,null,null,null,null,null,null,null,null,null,null,null,null,null,null,0,0]
[null,null,null,null,null,null,null,null,null,null,null,null,null,null,null,null,null,null,null,null,null,null,null,null,null,null,null,null,0,0]
[null,null,null,null,null,null,null,null,null,null,null,null,null,null,null,null,null,null,null,null,null,null,null,null,null,null,null,null,0,0]
[null,null,null,null,null,null,null,null,null,null,null,null,null,null,null,null,null,null,null,null,null,null,null,null,null,null,null,null,0,0]
[null,null,null,null,null,null,null,null,null,null,null,null,null,null,null,null,null,null,null,null,null,null,null,null,null,null,null,null,0,0]
[null,null,null,null,null,null,null,null,null,null,null,null,null,null,null,null,null,null,null,null,null,null,null,null,null,null,null,null,0,0]
[null,null,null,null,null,null,null,null,null,null,null,null,null,null,null,null,null,null,null,null,null,null,null,null,null,null,null,null,0,0]
[null,null,null,null,null,null,null,null,null,null,null,null,null,null,null,null,null,null,null,null,null,null,null,null,null,null,null,null,0,0]
[null,null,null,null,null,null,null,null,null,null,null,null,null,null,null,null,null,null,null,null,null,null,null,null,null,null,null,null,0,0]
[null,null,null,null,null,null,null,null,null,null,null,null,null,null,null,null,null,null,null,null,null,null,null,null,null,null,null,null,0,0]
[null,null,null,null,null,null,null,null,null,null,null,null,null,null,null,null,null,null,null,null,null,null,null,null,null,null,null,null,0,0]
[null,null,null,null,null,null,null,null,null,null,null,null,null,null,null,null,null,null,null,null,null,null,null,null,null,null,null,null,0,0]
[null,null,null,null,null,null,null,null,null,null,null,null,null,null,null,null,null,null,null,null,null,null,null,null,null,null,null,null,0,0]
[null,null,null,null,null,null,null,null,null,null,null,null,null,null,null,null,null,null,null,null,null,null,null,null,null,null,null,null,0,0]
[null,null,null,null,null,null,null,null,null,null,null,null,null,null,null,null,null,null,null,null,null,null,null,null,null,null,null,null,0,0]
[null,null,null,null,null,null,null,null,null,null,null,null,null,null,null,null,null,null,null,null,null,null,null,null,null,null,null,null,0,0]
[null,null,null,null,null,null,null,null,null,null,null,null,null,null,null,null,null,null,null,null,null,null,null,null,null,null,null,null,0,0]
[null,null,null,null,null,null,null,null,null,null,null,null,null,null,null,null,null,null,null,null,null,null,null,null,null,null,null,null,0,0]
[null,null,null,null,null,null,null,null,null,null,null,null,null,null,null,null,null,null,null,null,null,null,null,null,null,null,null,null,0,0]
[null,null,null,null,null,null,null,null,null,null,null,null,null,null,null,null,null,null,null,null,null,null,null,null,null,null,null,null,0,0]
[null,null,null,null,null,null,null,null,null,null,null,null,null,null,null,null,null,null,null,null,null,null,null,null,null,null,null,null,0,0]
[null,null,null,null,null,null,null,null,null,null,null,null,null,null,null,null,null,null,null,null,null,null,null,null,null,null,null,null,0,0]
[null,null,null,null,null,null,null,null,null,null,null,null,null,null,null,null,null,null,null,null,null,null,null,null,null,null,null,null,0,0]
[null,null,null,null,null,null,null,null,null,null,null,null,null,null,null,null,null,null,null,null,null,null,null,null,null,null,null,null,0,0]
[null,null,null,null,null,null,null,null,null,null,null,null,null,null,null,null,null,null,null,null,null,null,null,null,null,null,null,null,0,0]
[null,null,null,null,null,null,null,null,null,null,null,null,null,null,null,null,null,null,null,null,null,null,null,null,null,null,null,null,0,0]
[null,null,null,null,null,null,null,null,null,null,null,null,null,null,null,null,null,null,null,null,null,null,null,null,null,null,null,null,0,0]
[null,null,null,null,null,null,null,null,null,null,null,null,null,null,null,null,null,null,null,null,null,null,null,null,null,null,null,null,0,0]
[null,null,null,null,null,null,null,null,null,null,null,null,null,null,null,null,null,null,null,null,null,null,null,null,null,null,null,null,0,0]
[null,null,null,null,null,null,null,null,null,null,null,null,null,null,null,null,null,null,null,null,null,null,null,null,null,null,null,null,0,0]
[null,null,null,null,null,null,null,null,null,null,null,null,null,null,null,null,null,null,null,null,null,null,null,null,null,null,null,null,0,0]
[null,null,null,null,null,null,null,null,null,null,null,null,null,null,null,null,null,null,null,null,null,null,null,null,null,null,null,null,0,0]
[null,null,null,null,null,null,null,null,null,null,null,null,null,null,null,null,null,null,null,null,null,null,null,null,null,null,null,null,0,0]
[null,null,null,null,null,null,null,null,null,null,null,null,null,null,null,null,null,null,null,null,null,null,null,null,null,null,null,null,0,0]
[null,null,null,null,null,null,null,null,null,null,null,null,null,null,null,null,null,null,null,null,null,null,null,null,null,null,null,null,0,0]
[null,null,null,null,null,null,null,null,null,null,null,null,null,null,null,null,null,null,null,null,null,null,null,null,null,null,null,null,0,0]
[null,null,null,null,null,null,null,null,null,null,null,null,null,null,null,null,null,null,null,null,null,null,null,null,null,null,null,null,0,0]
[null,null,null,null,null,null,null,null,null,null,null,null,null,null,null,null,null,null,null,null,null,null,null,null,null,null,null,null,0,0]
[null,null,null,null,null,null,null,null,null,null,null,null,null,null,null,null,null,null,null,null,null,null,null,null,null,null,null,null,0,0]
[null,null,null,null,null,null,null,null,null,null,null,null,null,null,null,null,null,null,null,null,null,null,null,null,null,null,null,null,0,0]
[null,null,null,null,null,null,null,null,null,null,null,null,null,null,null,null,null,null,null,null,null,null,null,null,null,null,null,null,0,0]
[null,null,null,null,null,null,null,null,null,null,null,null,null,null,null,null,null,null,null,null,null,null,null,null,null,null,null,null,0,0]
[null,null,null,null,null,null,null,null,null,null,null,null,null,null,null,null,null,null,null,null,null,null,null,null,null,null,null,null,0,0]
[null,null,null,null,null,null,null,null,null,null,null,null,null,null,null,null,null,null,null,null,null,null,null,null,null,null,null,null,0,0]
[null,null,null,null,null,null,null,null,null,null,null,null,null,null,null,null,null,null,null,null,null,null,null,null,null,null,null,null,0,0]
[null,null,null,null,null,null,null,null,null,null,null,null,null,null,null,null,null,null,null,null,null,null,null,null,null,null,null,null,0,0]
[null,null,null,null,null,null,null,null,null,null,null,null,null,null,null,null,null,null,null,null,null,null,null,null,null,null,null,null,0,0]
[null,null,null,null,null,null,null,null,null,null,null,null,null,null,null,null,null,null,null,null,null,null,null,null,null,null,null,null,0,0]
[null,null,null,null,null,null,null,null,null,null,null,null,null,null,null,null,null,null,null,null,null,null,null,null,null,null,null,null,0,0]
[null,null,null,null,null,null,null,null,null,null,null,null,null,null,null,null,null,null,null,null,null,null,null,null,null,null,null,null,0,0]
[null,null,null,null,null,null,null,null,null,null,null,null,null,null,null,null,null,null,null,null,null,null,null,null,null,null,null,null,0,0]
[null,null,null,null,null,null,null,null,null,null,null,null,null,null,null,null,null,null,null,null,null,null,null,null,null,null,null,null,0,0]
[null,null,null,null,null,null,null,null,null,null,null,null,null,null,null,null,null,null,null,null,null,null,null,null,null,null,null,null,0,0]
[null,null,null,null,null,null,null,null,null,null,null,null,null,null,null,null,null,null,null,null,null,null,null,null,null,null,null,null,0,0]
[null,null,null,null,null,null,null,null,null,null,null,null,null,null,null,null,null,null,null,null,null,null,null,null,null,null,null,null,0,0]
[null,null,null,null,null,null,null,null,null,null,null,null,null,null,null,null,null,null,null,null,null,null,null,null,null,null,null,null,0,0]
[null,null,null,null,null,null,null,null,null,null,null,null,null,null,null,null,null,null,null,null,null,null,null,null,null,null,null,null,0,0]
[null,null,null,null,null,null,null,null,null,null,null,null,null,null,null,null,null,null,null,null,null,null,null,null,null,null,null,null,{"$f":"IF(AA898=0,0,_xlfn.DAYS(AA898,TODAY()))","v":0},{"$f":"IF(AB898=0,0,_xlfn.DAYS(AB898,TODAY()))","v":0}]
[null,null,null,null,null,null,null,null,null,null,null,null,null,null,null,null,null,null,null,null,null,null,null,null,null,null,null,null,0,0]
[null,null,null,null,null,null,null,null,null,null,null,null,null,null,null,null,null,null,null,null,null,null,null,null,null,null,null,null,0,0]
[null,null,null,null,null,null,null,null,null,null,null,null,null,null,null,null,null,null,null,null,null,null,null,null,null,null,null,null,0,0]
[null,null,null,null,null,null,null,null,null,null,null,null,null,null,null,null,null,null,null,null,null,null,null,null,null,null,null,null,0,0]
[null,null,null,null,null,null,null,null,null,null,null,null,null,null,null,null,null,null,null,null,null,null,null,null,null,null,null,null,0,0]
[null,null,null,null,null,null,null,null,null,null,null,null,null,null,null,null,null,null,null,null,null,null,null,null,null,null,null,null,0,0]
[null,null,null,null,null,null,null,null,null,null,null,null,null,null,null,null,null,null,null,null,null,null,null,null,null,null,null,null,0,0]
[null,null,null,null,null,null,null,null,null,null,null,null,null,null,null,null,null,null,null,null,null,null,null,null,null,null,null,null,0,0]
[null,null,null,null,null,null,null,null,null,null,null,null,null,null,null,null,null,null,null,null,null,null,null,null,null,null,null,null,0,0]
[null,null,null,null,null,null,null,null,null,null,null,null,null,null,null,null,null,null,null,null,null,null,null,null,null,null,null,null,0,0]
[null,null,null,null,null,null,null,null,null,null,null,null,null,null,null,null,null,null,null,null,null,null,null,null,null,null,null,null,0,0]
[null,null,null,null,null,null,null,null,null,null,null,null,null,null,null,null,null,null,null,null,null,null,null,null,null,null,null,null,0,0]
[null,null,null,null,null,null,null,null,null,null,null,null,null,null,null,null,null,null,null,null,null,null,null,null,null,null,null,null,0,0]
[null,null,null,null,null,null,null,null,null,null,null,null,null,null,null,null,null,null,null,null,null,null,null,null,null,null,null,null,0,0]
[null,null,null,null,null,null,null,null,null,null,null,null,null,null,null,null,null,null,null,null,null,null,null,null,null,null,null,null,0,0]
[null,null,null,null,null,null,null,null,null,null,null,null,null,null,null,null,null,null,null,null,null,null,null,null,null,null,null,null,0,0]
[null,null,null,null,null,null,null,null,null,null,null,null,null,null,null,null,null,null,null,null,null,null,null,null,null,null,null,null,0,0]
[null,null,null,null,null,null,null,null,null,null,null,null,null,null,null,null,null,null,null,null,null,null,null,null,null,null,null,null,0,0]
[null,null,null,null,null,null,null,null,null,null,null,null,null,null,null,null,null,null,null,null,null,null,null,null,null,null,null,null,0,0]
[null,null,null,null,null,null,null,null,null,null,null,null,null,null,null,null,null,null,null,null,null,null,null,null,null,null,null,null,0,0]
[null,null,null,null,null,null,null,null,null,null,null,null,null,null,null,null,null,null,null,null,null,null,null,null,null,null,null,null,0,0]
[null,null,null,null,null,null,null,null,null,null,null,null,null,null,null,null,null,null,null,null,null,null,null,null,null,null,null,null,0,0]
[null,null,null,null,null,null,null,null,null,null,null,null,null,null,null,null,null,null,null,null,null,null,null,null,null,null,null,null,0,0]
[null,null,null,null,null,null,null,null,null,null,null,null,null,null,null,null,null,null,null,null,null,null,null,null,null,null,null,null,0,0]
[null,null,null,null,null,null,null,null,null,null,null,null,null,null,null,null,null,null,null,null,null,null,null,null,null,null,null,null,0,0]
[null,null,null,null,null,null,null,null,null,null,null,null,null,null,null,null,null,null,null,null,null,null,null,null,null,null,null,null,0,0]
[null,null,null,null,null,null,null,null,null,null,null,null,null,null,null,null,null,null,null,null,null,null,null,null,null,null,null,null,0,0]
[null,null,null,null,null,null,null,null,null,null,null,null,null,null,null,null,null,null,null,null,null,null,null,null,null,null,null,null,0,0]
[null,null,null,null,null,null,null,null,null,null,null,null,null,null,null,null,null,null,null,null,null,null,null,null,null,null,null,null,0,0]
[null,null,null,null,null,null,null,null,null,null,null,null,null,null,null,null,null,null,null,null,null,null,null,null,null,null,null,null,0,0]
[null,null,null,null,null,null,null,null,null,null,null,null,null,null,null,null,null,null,null,null,null,null,null,null,null,null,null,null,0,0]
[null,null,null,null,null,null,null,null,null,null,null,null,null,null,null,null,null,null,null,null,null,null,null,null,null,null,null,null,0,0]
[null,null,null,null,null,null,null,null,null,null,null,null,null,null,null,null,null,null,null,null,null,null,null,null,null,null,null,null,0,0]
[null,null,null,null,null,null,null,null,null,null,null,null,null,null,null,null,null,null,null,null,null,null,null,null,null,null,null,null,0,0]
[null,null,null,null,null,null,null,null,null,null,null,null,null,null,null,null,null,null,null,null,null,null,null,null,null,null,null,null,0,0]
[null,null,null,null,null,null,null,null,null,null,null,null,null,null,null,null,null,null,null,null,null,null,null,null,null,null,null,null,0,0]
[null,null,null,null,null,null,null,null,null,null,null,null,null,null,null,null,null,null,null,null,null,null,null,null,null,null,null,null,0,0]
[null,null,null,null,null,null,null,null,null,null,null,null,null,null,null,null,null,null,null,null,null,null,null,null,null,null,null,null,0,0]
[null,null,null,null,null,null,null,null,null,null,null,null,null,null,null,null,null,null,null,null,null,null,null,null,null,null,null,null,0,0]
[null,null,null,null,null,null,null,null,null,null,null,null,null,null,null,null,null,null,null,null,null,null,null,null,null,null,null,null,0,0]
[null,null,null,null,null,null,null,null,null,null,null,null,null,null,null,null,null,null,null,null,null,null,null,null,null,null,null,null,0,0]
[null,null,null,null,null,null,null,null,null,null,null,null,null,null,null,null,null,null,null,null,null,null,null,null,null,null,null,null,0,0]
[null,null,null,null,null,null,null,null,null,null,null,null,null,null,null,null,null,null,null,null,null,null,null,null,null,null,null,null,0,0]
[null,null,null,null,null,null,null,null,null,null,null,null,null,null,null,null,null,null,null,null,null,null,null,null,null,null,null,null,0,0]
[null,null,null,null,null,null,null,null,null,null,null,null,null,null,null,null,null,null,null,null,null,null,null,null,null,null,null,null,0,0]
[null,null,null,null,null,null,null,null,null,null,null,null,null,null,null,null,null,null,null,null,null,null,null,null,null,null,null,null,0,0]
[null,null,null,null,null,null,null,null,null,null,null,null,null,null,null,null,null,null,null,null,null,null,null,null,null,null,null,null,0,0]
[null,null,null,null,null,null,null,null,null,null,null,null,null,null,null,null,null,null,null,null,null,null,null,null,null,null,null,null,0,0]
[null,null,null,null,null,null,null,null,null,null,null,null,null,null,null,null,null,null,null,null,null,null,null,null,null,null,null,null,0,0]
[null,null,null,null,null,null,null,null,null,null,null,null,null,null,null,null,null,null,null,null,null,null,null,null,null,null,null,null,0,0]
[null,null,null,null,null,null,null,null,null,null,null,null,null,null,null,null,null,null,null,null,null,null,null,null,null,null,null,null,0,0]
[null,null,null,null,null,null,null,null,null,null,null,null,null,null,null,null,null,null,null,null,null,null,null,null,null,null,null,null,0,0]
[null,null,null,null,null,null,null,null,null,null,null,null,null,null,null,null,null,null,null,null,null,null,null,null,null,null,null,null,0,0]
[null,null,null,null,null,null,null,null,null,null,null,null,null,null,null,null,null,null,null,null,null,null,null,null,null,null,null,null,0,0]
[null,null,null,null,null,null,null,null,null,null,null,null,null,null,null,null,null,null,null,null,null,null,null,null,null,null,null,null,0,0]
[null,null,null,null,null,null,null,null,null,null,null,null,null,null,null,null,null,null,null,null,null,null,null,null,null,null,null,null,0,0]
[null,null,null,null,null,null,null,null,null,null,null,null,null,null,null,null,null,null,null,null,null,null,null,null,null,null,null,null,0,0]
[null,null,null,null,null,null,null,null,null,null,null,null,null,null,null,null,null,null,null,null,null,null,null,null,null,null,null,null,0,0]
[null,null,null,null,null,null,null,null,null,null,null,null,null,null,null,null,null,null,null,null,null,null,null,null,null,null,null,null,0,0]
[null,null,null,null,null,null,null,null,null,null,null,null,null,null,null,null,null,null,null,null,null,null,null,null,null,null,null,null,0,0]
[null,null,null,null,null,null,null,null,null,null,null,null,null,null,null,null,null,null,null,null,null,null,null,null,null,null,null,null,0,0]
[null,null,null,null,null,null,null,null,null,null,null,null,null,null,null,null,null,null,null,null,null,null,null,null,null,null,null,null,0,0]
[null,null,null,null,null,null,null,null,null,null,null,null,null,null,null,null,null,null,null,null,null,null,null,null,null,null,null,null,0,0]
[null,null,null,null,null,null,null,null,null,null,null,null,null,null,null,null,null,null,null,null,null,null,null,null,null,null,null,null,{"$f":"IF(AA962=0,0,_xlfn.DAYS(AA962,TODAY()))","v":0},{"$f":"IF(AB962=0,0,_xlfn.DAYS(AB962,TODAY()))","v":0}]
[null,null,null,null,null,null,null,null,null,null,null,null,null,null,null,null,null,null,null,null,null,null,null,null,null,null,null,null,0,0]
[null,null,null,null,null,null,null,null,null,null,null,null,null,null,null,null,null,null,null,null,null,null,null,null,null,null,null,null,0,0]
[null,null,null,null,null,null,null,null,null,null,null,null,null,null,null,null,null,null,null,null,null,null,null,null,null,null,null,null,0,0]
[null,null,null,null,null,null,null,null,null,null,null,null,null,null,null,null,null,null,null,null,null,null,null,null,null,null,null,null,0,0]
[null,null,null,null,null,null,null,null,null,null,null,null,null,null,null,null,null,null,null,null,null,null,null,null,null,null,null,null,0,0]
[null,null,null,null,null,null,null,null,null,null,null,null,null,null,null,null,null,null,null,null,null,null,null,null,null,null,null,null,0,0]
[null,null,null,null,null,null,null,null,null,null,null,null,null,null,null,null,null,null,null,null,null,null,null,null,null,null,null,null,0,0]
[null,null,null,null,null,null,null,null,null,null,null,null,null,null,null,null,null,null,null,null,null,null,null,null,null,null,null,null,0,0]
[null,null,null,null,null,null,null,null,null,null,null,null,null,null,null,null,null,null,null,null,null,null,null,null,null,null,null,null,0,0]
[null,null,null,null,null,null,null,null,null,null,null,null,null,null,null,null,null,null,null,null,null,null,null,null,null,null,null,null,0,0]
[null,null,null,null,null,null,null,null,null,null,null,null,null,null,null,null,null,null,null,null,null,null,null,null,null,null,null,null,0,0]
[null,null,null,null,null,null,null,null,null,null,null,null,null,null,null,null,null,null,null,null,null,null,null,null,null,null,null,null,0,0]
[null,null,null,null,null,null,null,null,null,null,null,null,null,null,null,null,null,null,null,null,null,null,null,null,null,null,null,null,0,0]
[null,null,null,null,null,null,null,null,null,null,null,null,null,null,null,null,null,null,null,null,null,null,null,null,null,null,null,null,0,0]
[null,null,null,null,null,null,null,null,null,null,null,null,null,null,null,null,null,null,null,null,null,null,null,null,null,null,null,null,0,0]
[null,null,null,null,null,null,null,null,null,null,null,null,null,null,null,null,null,null,null,null,null,null,null,null,null,null,null,null,0,0]
[null,null,null,null,null,null,null,null,null,null,null,null,null,null,null,null,null,null,null,null,null,null,null,null,null,null,null,null,0,0]
[null,null,null,null,null,null,null,null,null,null,null,null,null,null,null,null,null,null,null,null,null,null,null,null,null,null,null,null,0,0]
[null,null,null,null,null,null,null,null,null,null,null,null,null,null,null,null,null,null,null,null,null,null,null,null,null,null,null,null,0,0]
[null,null,null,null,null,null,null,null,null,null,null,null,null,null,null,null,null,null,null,null,null,null,null,null,null,null,null,null,0,0]
[null,null,null,null,null,null,null,null,null,null,null,null,null,null,null,null,null,null,null,null,null,null,null,null,null,null,null,null,0,0]
[null,null,null,null,null,null,null,null,null,null,null,null,null,null,null,null,null,null,null,null,null,null,null,null,null,null,null,null,0,0]
[null,null,null,null,null,null,null,null,null,null,null,null,null,null,null,null,null,null,null,null,null,null,null,null,null,null,null,null,0,0]
[null,null,null,null,null,null,null,null,null,null,null,null,null,null,null,null,null,null,null,null,null,null,null,null,null,null,null,null,0,0]
[null,null,null,null,null,null,null,null,null,null,null,null,null,null,null,null,null,null,null,null,null,null,null,null,null,null,null,null,0,0]
[null,null,null,null,null,null,null,null,null,null,null,null,null,null,null,null,null,null,null,null,null,null,null,null,null,null,null,null,0,0]
[null,null,null,null,null,null,null,null,null,null,null,null,null,null,null,null,null,null,null,null,null,null,null,null,null,null,null,null,0,0]
[null,null,null,null,null,null,null,null,null,null,null,null,null,null,null,null,null,null,null,null,null,null,null,null,null,null,null,null,0,0]
[null,null,null,null,null,null,null,null,null,null,null,null,null,null,null,null,null,null,null,null,null,null,null,null,null,null,null,null,0,0]
[null,null,null,null,null,null,null,null,null,null,null,null,null,null,null,null,null,null,null,null,null,null,null,null,null,null,null,null,0,0]
[null,null,null,null,null,null,null,null,null,null,null,null,null,null,null,null,null,null,null,null,null,null,null,null,null,null,null,null,0,0]
[null,null,null,null,null,null,null,null,null,null,null,null,null,null,null,null,null,null,null,null,null,null,null,null,null,null,null,null,0,0]
[null,null,null,null,null,null,null,null,null,null,null,null,null,null,null,null,null,null,null,null,null,null,null,null,null,null,null,null,0,0]
[null,null,null,null,null,null,null,null,null,null,null,null,null,null,null,null,null,null,null,null,null,null,null,null,null,null,null,null,0,0]
[null,null,null,null,null,null,null,null,null,null,null,null,null,null,null,null,null,null,null,null,null,null,null,null,null,null,null,null,0,0]
[null,null,null,null,null,null,null,null,null,null,null,null,null,null,null,null,null,null,null,null,null,null,null,null,null,null,null,null,0,0]
[null,null,null,null,null,null,null,null,null,null,null,null,null,null,null,null,null,null,null,null,null,null,null,null,null,null,null,null,0,0]
[null,null,null,null,null,null,null,null,null,null,null,null,null,null,null,null,null,null,null,null,null,null,null,null,null,null,null,null,0,0]
[null,null,null,null,null,null,null,null,null,null,null,null,null,null,null,null,null,null,null,null,null,null,null,null,null,null,null,null,0,0]
[null,null,null,null,null,null,null,null,null,null,null,null,null,null,null,null,null,null,null,null,null,null,null,null,null,null,null,null,0,0]
[null,null,null,null,null,null,null,null,null,null,null,null,null,null,null,null,null,null,null,null,null,null,null,null,null,null,null,null,0,0]
[null,null,null,null,null,null,null,null,null,null,null,null,null,null,null,null,null,null,null,null,null,null,null,null,null,null,null,null,0,0]
[null,null,null,null,null,null,null,null,null,null,null,null,null,null,null,null,null,null,null,null,null,null,null,null,null,null,null,null,0,0]
[null,null,null,null,null,null,null,null,null,null,null,null,null,null,null,null,null,null,null,null,null,null,null,null,null,null,null,null,0,0]
[null,null,null,null,null,null,null,null,null,null,null,null,null,null,null,null,null,null,null,null,null,null,null,null,null,null,null,null,0,0]
[null,null,null,null,null,null,null,null,null,null,null,null,null,null,null,null,null,null,null,null,null,null,null,null,null,null,null,null,0,0]
[null,null,null,null,null,null,null,null,null,null,null,null,null,null,null,null,null,null,null,null,null,null,null,null,null,null,null,null,0,0]
[null,null,null,null,null,null,null,null,null,null,null,null,null,null,null,null,null,null,null,null,null,null,null,null,null,null,null,null,0,0]
[null,null,null,null,null,null,null,null,null,null,null,null,null,null,null,null,null,null,null,null,null,null,null,null,null,null,null,null,0,0]
[null,null,null,null,null,null,null,null,null,null,null,null,null,null,null,null,null,null,null,null,null,null,null,null,null,null,null,null,0,0]
[null,null,null,null,null,null,null,null,null,null,null,null,null,null,null,null,null,null,null,null,null,null,null,null,null,null,null,null,0,0]
[null,null,null,null,null,null,null,null,null,null,null,null,null,null,null,null,null,null,null,null,null,null,null,null,null,null,null,null,0,0]
[null,null,null,null,null,null,null,null,null,null,null,null,null,null,null,null,null,null,null,null,null,null,null,null,null,null,null,null,0,0]
[null,null,null,null,null,null,null,null,null,null,null,null,null,null,null,null,null,null,null,null,null,null,null,null,null,null,null,null,0,0]
[null,null,null,null,null,null,null,null,null,null,null,null,null,null,null,null,null,null,null,null,null,null,null,null,null,null,null,null,0,0]
[null,null,null,null,null,null,null,null,null,null,null,null,null,null,null,null,null,null,null,null,null,null,null,null,null,null,null,null,0,0]
[null,null,null,null,null,null,null,null,null,null,null,null,null,null,null,null,null,null,null,null,null,null,null,null,null,null,null,null,0,0]
[null,null,null,null,null,null,null,null,null,null,null,null,null,null,null,null,null,null,null,null,null,null,null,null,null,null,null,null,0,0]
[null,null,null,null,null,null,null,null,null,null,null,null,null,null,null,null,null,null,null,null,null,null,null,null,null,null,null,null,0,0]
[null,null,null,null,null,null,null,null,null,null,null,null,null,null,null,null,null,null,null,null,null,null,null,null,null,null,null,null,0,0]
[null,null,null,null,null,null,null,null,null,null,null,null,null,null,null,null,null,null,null,null,null,null,null,null,null,null,null,null,0,0]
[null,null,null,null,null,null,null,null,null,null,null,null,null,null,null,null,null,null,null,null,null,null,null,null,null,null,null,null,0,0]
[null,null,null,null,null,null,null,null,null,null,null,null,null,null,null,null,null,null,null,null,null,null,null,null,null,null,null,null,0,0]
[null,null,null,null,null,null,null,null,null,null,null,null,null,null,null,null,null,null,null,null,null,null,null,null,null,null,null,null,{"$f":"IF(AA1026=0,0,_xlfn.DAYS(AA1026,TODAY()))","v":0},{"$f":"IF(AB1026=0,0,_xlfn.DAYS(AB1026,TODAY()))","v":0}]
[null,null,null,null,null,null,null,null,null,null,null,null,null,null,null,null,null,null,null,null,null,null,null,null,null,null,null,null,0,0]
[null,null,null,null,null,null,null,null,null,null,null,null,null,null,null,null,null,null,null,null,null,null,null,null,null,null,null,null,0,0]
[null,null,null,null,null,null,null,null,null,null,null,null,null,null,null,null,null,null,null,null,null,null,null,null,null,null,null,null,0,0]
[null,null,null,null,null,null,null,null,null,null,null,null,null,null,null,null,null,null,null,null,null,null,null,null,null,null,null,null,0,0]
[null,null,null,null,null,null,null,null,null,null,null,null,null,null,null,null,null,null,null,null,null,null,null,null,null,null,null,null,0,0]
[null,null,null,null,null,null,null,null,null,null,null,null,null,null,null,null,null,null,null,null,null,null,null,null,null,null,null,null,0,0]
[null,null,null,null,null,null,null,null,null,null,null,null,null,null,null,null,null,null,null,null,null,null,null,null,null,null,null,null,0,0]
[null,null,null,null,null,null,null,null,null,null,null,null,null,null,null,null,null,null,null,null,null,null,null,null,null,null,null,null,0,0]
[null,null,null,null,null,null,null,null,null,null,null,null,null,null,null,null,null,null,null,null,null,null,null,null,null,null,null,null,0,0]
[null,null,null,null,null,null,null,null,null,null,null,null,null,null,null,null,null,null,null,null,null,null,null,null,null,null,null,null,0,0]
[null,null,null,null,null,null,null,null,null,null,null,null,null,null,null,null,null,null,null,null,null,null,null,null,null,null,null,null,0,0]
[null,null,null,null,null,null,null,null,null,null,null,null,null,null,null,null,null,null,null,null,null,null,null,null,null,null,null,null,0,0]
[null,null,null,null,null,null,null,null,null,null,null,null,null,null,null,null,null,null,null,null,null,null,null,null,null,null,null,null,0,0]
[null,null,null,null,null,null,null,null,null,null,null,null,null,null,null,null,null,null,null,null,null,null,null,null,null,null,null,null,0,0]
[null,null,null,null,null,null,null,null,null,null,null,null,null,null,null,null,null,null,null,null,null,null,null,null,null,null,null,null,0,0]
[null,null,null,null,null,null,null,null,null,null,null,null,null,null,null,null,null,null,null,null,null,null,null,null,null,null,null,null,0,0]
[null,null,null,null,null,null,null,null,null,null,null,null,null,null,null,null,null,null,null,null,null,null,null,null,null,null,null,null,0,0]
[null,null,null,null,null,null,null,null,null,null,null,null,null,null,null,null,null,null,null,null,null,null,null,null,null,null,null,null,0,0]
[null,null,null,null,null,null,null,null,null,null,null,null,null,null,null,null,null,null,null,null,null,null,null,null,null,null,null,null,0,0]
[null,null,null,null,null,null,null,null,null,null,null,null,null,null,null,null,null,null,null,null,null,null,null,null,null,null,null,null,0,0]
[null,null,null,null,null,null,null,null,null,null,null,null,null,null,null,null,null,null,null,null,null,null,null,null,null,null,null,null,0,0]
[null,null,null,null,null,null,null,null,null,null,null,null,null,null,null,null,null,null,null,null,null,null,null,null,null,null,null,null,0,0]
[null,null,null,null,null,null,null,null,null,null,null,null,null,null,null,null,null,null,null,null,null,null,null,null,null,null,null,null,0,0]
[null,null,null,null,null,null,null,null,null,null,null,null,null,null,null,null,null,null,null,null,null,null,null,null,null,null,null,null,0,0]
[null,null,null,null,null,null,null,null,null,null,null,null,null,null,null,null,null,null,null,null,null,null,null,null,null,null,null,null,0,0]
[null,null,null,null,null,null,null,null,null,null,null,null,null,null,null,null,null,null,null,null,null,null,null,null,null,null,null,null,0,0]
[null,null,null,null,null,null,null,null,null,null,null,null,null,null,null,null,null,null,null,null,null,null,null,null,null,null,null,null,0,0]
[null,null,null,null,null,null,null,null,null,null,null,null,null,null,null,null,null,null,null,null,null,null,null,null,null,null,null,null,0,0]
[null,null,null,null,null,null,null,null,null,null,null,null,null,null,null,null,null,null,null,null,null,null,null,null,null,null,null,null,0,0]
[null,null,null,null,null,null,null,null,null,null,null,null,null,null,null,null,null,null,null,null,null,null,null,null,null,null,null,null,0,0]
[null,null,null,null,null,null,null,null,null,null,null,null,null,null,null,null,null,null,null,null,null,null,null,null,null,null,null,null,0,0]
[null,null,null,null,null,null,null,null,null,null,null,null,null,null,null,null,null,null,null,null,null,null,null,null,null,null,null,null,0,0]
[null,null,null,null,null,null,null,null,null,null,null,null,null,null,null,null,null,null,null,null,null,null,null,null,null,null,null,null,0,0]
[null,null,null,null,null,null,null,null,null,null,null,null,null,null,null,null,null,null,null,null,null,null,null,null,null,null,null,null,0,0]
[null,null,null,null,null,null,null,null,null,null,null,null,null,null,null,null,null,null,null,null,null,null,null,null,null,null,null,null,0,0]
[null,null,null,null,null,null,null,null,null,null,null,null,null,null,null,null,null,null,null,null,null,null,null,null,null,null,null,null,0,0]
[null,null,null,null,null,null,null,null,null,null,null,null,null,null,null,null,null,null,null,null,null,null,null,null,null,null,null,null,0,0]
[null,null,null,null,null,null,null,null,null,null,null,null,null,null,null,null,null,null,null,null,null,null,null,null,null,null,null,null,0,0]
[null,null,null,null,null,null,null,null,null,null,null,null,null,null,null,null,null,null,null,null,null,null,null,null,null,null,null,null,0,0]
[null,null,null,null,null,null,null,null,null,null,null,null,null,null,null,null,null,null,null,null,null,null,null,null,null,null,null,null,0,0]
[null,null,null,null,null,null,null,null,null,null,null,null,null,null,null,null,null,null,null,null,null,null,null,null,null,null,null,null,0,0]
[null,null,null,null,null,null,null,null,null,null,null,null,null,null,null,null,null,null,null,null,null,null,null,null,null,null,null,null,0,0]
[null,null,null,null,null,null,null,null,null,null,null,null,null,null,null,null,null,null,null,null,null,null,null,null,null,null,null,null,0,0]
[null,null,null,null,null,null,null,null,null,null,null,null,null,null,null,null,null,null,null,null,null,null,null,null,null,null,null,null,0,0]
[null,null,null,null,null,null,null,null,null,null,null,null,null,null,null,null,null,null,null,null,null,null,null,null,null,null,null,null,0,0]
[null,null,null,null,null,null,null,null,null,null,null,null,null,null,null,null,null,null,null,null,null,null,null,null,null,null,null,null,0,0]
[null,null,null,null,null,null,null,null,null,null,null,null,null,null,null,null,null,null,null,null,null,null,null,null,null,null,null,null,0,0]
[null,null,null,null,null,null,null,null,null,null,null,null,null,null,null,null,null,null,null,null,null,null,null,null,null,null,null,null,0,0]
[null,null,null,null,null,null,null,null,null,null,null,null,null,null,null,null,null,null,null,null,null,null,null,null,null,null,null,null,0,0]
[null,null,null,null,null,null,null,null,null,null,null,null,null,null,null,null,null,null,null,null,null,null,null,null,null,null,null,null,0,0]
[null,null,null,null,null,null,null,null,null,null,null,null,null,null,null,null,null,null,null,null,null,null,null,null,null,null,null,null,0,0]
[null,null,null,null,null,null,null,null,null,null,null,null,null,null,null,null,null,null,null,null,null,null,null,null,null,null,null,null,0,0]
[null,null,null,null,null,null,null,null,null,null,null,null,null,null,null,null,null,null,null,null,null,null,null,null,null,null,null,null,0,0]
[null,null,null,null,null,null,null,null,null,null,null,null,null,null,null,null,null,null,null,null,null,null,null,null,null,null,null,null,0,0]
[null,null,null,null,null,null,null,null,null,null,null,null,null,null,null,null,null,null,null,null,null,null,null,null,null,null,null,null,0,0]
[null,null,null,null,null,null,null,null,null,null,null,null,null,null,null,null,null,null,null,null,null,null,null,null,null,null,null,null,0,0]
[null,null,null,null,null,null,null,null,null,null,null,null,null,null,null,null,null,null,null,null,null,null,null,null,null,null,null,null,0,0]
[null,null,null,null,null,null,null,null,null,null,null,null,null,null,null,null,null,null,null,null,null,null,null,null,null,null,null,null,0,0]
[null,null,null,null,null,null,null,null,null,null,null,null,null,null,null,null,null,null,null,null,null,null,null,null,null,null,null,null,0,0]
[null,null,null,null,null,null,null,null,null,null,null,null,null,null,null,null,null,null,null,null,null,null,null,null,null,null,null,null,0,0]
[null,null,null,null,null,null,null,null,null,null,null,null,null,null,null,null,null,null,null,null,null,null,null,null,null,null,null,null,0,0]
[null,null,null,null,null,null,null,null,null,null,null,null,null,null,null,null,null,null,null,null,null,null,null,null,null,null,null,null,0,0]
[null,null,null,null,null,null,null,null,null,null,null,null,null,null,null,null,null,null,null,null,null,null,null,null,null,null,null,null,0,0]
[null,null,null,null,null,null,null,null,null,null,null,null,null,null,null,null,null,null,null,null,null,null,null,null,null,null,null,null,{"$f":"IF(AA1090=0,0,_xlfn.DAYS(AA1090,TODAY()))","v":0},{"$f":"IF(AB1090=0,0,_xlfn.DAYS(AB1090,TODAY()))","v":0}]
[null,null,null,null,null,null,null,null,null,null,null,null,null,null,null,null,null,null,null,null,null,null,null,null,null,null,null,null,0,0]
[null,null,null,null,null,null,null,null,null,null,null,null,null,null,null,null,null,null,null,null,null,null,null,null,null,null,null,null,0,0]
[null,null,null,null,null,null,null,null,null,null,null,null,null,null,null,null,null,null,null,null,null,null,null,null,null,null,null,null,0,0]
[null,null,null,null,null,null,null,null,null,null,null,null,null,null,null,null,null,null,null,null,null,null,null,null,null,null,null,null,0,0]
[null,null,null,null,null,null,null,null,null,null,null,null,null,null,null,null,null,null,null,null,null,null,null,null,null,null,null,null,0,0]
[null,null,null,null,null,null,null,null,null,null,null,null,null,null,null,null,null,null,null,null,null,null,null,null,null,null,null,null,0,0]
[null,null,null,null,null,null,null,null,null,null,null,null,null,null,null,null,null,null,null,null,null,null,null,null,null,null,null,null,0,0]
[null,null,null,null,null,null,null,null,null,null,null,null,null,null,null,null,null,null,null,null,null,null,null,null,null,null,null,null,0,0]
[null,null,null,null,null,null,null,null,null,null,null,null,null,null,null,null,null,null,null,null,null,null,null,null,null,null,null,null,0,0]
[null,null,null,null,null,null,null,null,null,null,null,null,null,null,null,null,null,null,null,null,null,null,null,null,null,null,null,null,0,0]
[null,null,null,null,null,null,null,null,null,null,null,null,null,null,null,null,null,null,null,null,null,null,null,null,null,null,null,null,0,0]
[null,null,null,null,null,null,null,null,null,null,null,null,null,null,null,null,null,null,null,null,null,null,null,null,null,null,null,null,0,0]
[null,null,null,null,null,null,null,null,null,null,null,null,null,null,null,null,null,null,null,null,null,null,null,null,null,null,null,null,0,0]
[null,null,null,null,null,null,null,null,null,null,null,null,null,null,null,null,null,null,null,null,null,null,null,null,null,null,null,null,0,0]
[null,null,null,null,null,null,null,null,null,null,null,null,null,null,null,null,null,null,null,null,null,null,null,null,null,null,null,null,0,0]
[null,null,null,null,null,null,null,null,null,null,null,null,null,null,null,null,null,null,null,null,null,null,null,null,null,null,null,null,0,0]
[null,null,null,null,null,null,null,null,null,null,null,null,null,null,null,null,null,null,null,null,null,null,null,null,null,null,null,null,0,0]
[null,null,null,null,null,null,null,null,null,null,null,null,null,null,null,null,null,null,null,null,null,null,null,null,null,null,null,null,0,0]
[null,null,null,null,null,null,null,null,null,null,null,null,null,null,null,null,null,null,null,null,null,null,null,null,null,null,null,null,0,0]
[null,null,null,null,null,null,null,null,null,null,null,null,null,null,null,null,null,null,null,null,null,null,null,null,null,null,null,null,0,0]
[null,null,null,null,null,null,null,null,null,null,null,null,null,null,null,null,null,null,null,null,null,null,null,null,null,null,null,null,0,0]
[null,null,null,null,null,null,null,null,null,null,null,null,null,null,null,null,null,null,null,null,null,null,null,null,null,null,null,null,0,0]
[null,null,null,null,null,null,null,null,null,null,null,null,null,null,null,null,null,null,null,null,null,null,null,null,null,null,null,null,0,0]
[null,null,null,null,null,null,null,null,null,null,null,null,null,null,null,null,null,null,null,null,null,null,null,null,null,null,null,null,0,0]
[null,null,null,null,null,null,null,null,null,null,null,null,null,null,null,null,null,null,null,null,null,null,null,null,null,null,null,null,0,0]
[null,null,null,null,null,null,null,null,null,null,null,null,null,null,null,null,null,null,null,null,null,null,null,null,null,null,null,null,0,0]
[null,null,null,null,null,null,null,null,null,null,null,null,null,null,null,null,null,null,null,null,null,null,null,null,null,null,null,null,0,0]
[null,null,null,null,null,null,null,null,null,null,null,null,null,null,null,null,null,null,null,null,null,null,null,null,null,null,null,null,0,0]
[null,null,null,null,null,null,null,null,null,null,null,null,null,null,null,null,null,null,null,null,null,null,null,null,null,null,null,null,0,0]
[null,null,null,null,null,null,null,null,null,null,null,null,null,null,null,null,null,null,null,null,null,null,null,null,null,null,null,null,0,0]
[null,null,null,null,null,null,null,null,null,null,null,null,null,null,null,null,null,null,null,null,null,null,null,null,null,null,null,null,0,0]
[null,null,null,null,null,null,null,null,null,null,null,null,null,null,null,null,null,null,null,null,null,null,null,null,null,null,null,null,0,0]
[null,null,null,null,null,null,null,null,null,null,null,null,null,null,null,null,null,null,null,null,null,null,null,null,null,null,null,null,0,0]
[null,null,null,null,null,null,null,null,null,null,null,null,null,null,null,null,null,null,null,null,null,null,null,null,null,null,null,null,0,0]
[null,null,null,null,null,null,null,null,null,null,null,null,null,null,null,null,null,null,null,null,null,null,null,null,null,null,null,null,0,0]
[null,null,null,null,null,null,null,null,null,null,null,null,null,null,null,null,null,null,null,null,null,null,null,null,null,null,null,null,0,0]
[null,null,null,null,null,null,null,null,null,null,null,null,null,null,null,null,null,null,null,null,null,null,null,null,null,null,null,null,0,0]
[null,null,null,null,null,null,null,null,null,null,null,null,null,null,null,null,null,null,null,null,null,null,null,null,null,null,null,null,0,0]
[null,null,null,null,null,null,null,null,null,null,null,null,null,null,null,null,null,null,null,null,null,null,null,null,null,null,null,null,0,0]
[null,null,null,null,null,null,null,null,null,null,null,null,null,null,null,null,null,null,null,null,null,null,null,null,null,null,null,null,0,0]
[null,null,null,null,null,null,null,null,null,null,null,null,null,null,null,null,null,null,null,null,null,null,null,null,null,null,null,null,0,0]
[null,null,null,null,null,null,null,null,null,null,null,null,null,null,null,null,null,null,null,null,null,null,null,null,null,null,null,null,0,0]
[null,null,null,null,null,null,null,null,null,null,null,null,null,null,null,null,null,null,null,null,null,null,null,null,null,null,null,null,0,0]
[null,null,null,null,null,null,null,null,null,null,null,null,null,null,null,null,null,null,null,null,null,null,null,null,null,null,null,null,0,0]
[null,null,null,null,null,null,null,null,null,null,null,null,null,null,null,null,null,null,null,null,null,null,null,null,null,null,null,null,0,0]
[null,null,null,null,null,null,null,null,null,null,null,null,null,null,null,null,null,null,null,null,null,null,null,null,null,null,null,null,0,0]
[null,null,null,null,null,null,null,null,null,null,null,null,null,null,null,null,null,null,null,null,null,null,null,null,null,null,null,null,0,0]
[null,null,null,null,null,null,null,null,null,null,null,null,null,null,null,null,null,null,null,null,null,null,null,null,null,null,null,null,0,0]
[null,null,null,null,null,null,null,null,null,null,null,null,null,null,null,null,null,null,null,null,null,null,null,null,null,null,null,null,0,0]
[null,null,null,null,null,null,null,null,null,null,null,null,null,null,null,null,null,null,null,null,null,null,null,null,null,null,null,null,0,0]
[null,null,null,null,null,null,null,null,null,null,null,null,null,null,null,null,null,null,null,null,null,null,null,null,null,null,null,null,0,0]
[null,null,null,null,null,null,null,null,null,null,null,null,null,null,null,null,null,null,null,null,null,null,null,null,null,null,null,null,0,0]
[null,null,null,null,null,null,null,null,null,null,null,null,null,null,null,null,null,null,null,null,null,null,null,null,null,null,null,null,0,0]
[null,null,null,null,null,null,null,null,null,null,null,null,null,null,null,null,null,null,null,null,null,null,null,null,null,null,null,null,0,0]
[null,null,null,null,null,null,null,null,null,null,null,null,null,null,null,null,null,null,null,null,null,null,null,null,null,null,null,null,0,0]
[null,null,null,null,null,null,null,null,null,null,null,null,null,null,null,null,null,null,null,null,null,null,null,null,null,null,null,null,0,0]
[null,null,null,null,null,null,null,null,null,null,null,null,null,null,null,null,null,null,null,null,null,null,null,null,null,null,null,null,0,0]
[null,null,null,null,null,null,null,null,null,null,null,null,null,null,null,null,null,null,null,null,null,null,null,null,null,null,null,null,0,0]
[null,null,null,null,null,null,null,null,null,null,null,null,null,null,null,null,null,null,null,null,null,null,null,null,null,null,null,null,0,0]
[null,null,null,null,null,null,null,null,null,null,null,null,null,null,null,null,null,null,null,null,null,null,null,null,null,null,null,null,0,0]
[null,null,null,null,null,null,null,null,null,null,null,null,null,null,null,null,null,null,null,null,null,null,null,null,null,null,null,null,0,0]
[null,null,null,null,null,null,null,null,null,null,null,null,null,null,null,null,null,null,null,null,null,null,null,null,null,null,null,null,0,0]
[null,null,null,null,null,null,null,null,null,null,null,null,null,null,null,null,null,null,null,null,null,null,null,null,null,null,null,null,0,0]
[null,null,null,null,null,null,null,null,null,null,null,null,null,null,null,null,null,null,null,null,null,null,null,null,null,null,null,null,{"$f":"IF(AA1154=0,0,_xlfn.DAYS(AA1154,TODAY()))","v":0},{"$f":"IF(AB1154=0,0,_xlfn.DAYS(AB1154,TODAY()))","v":0}]
[null,null,null,null,null,null,null,null,null,null,null,null,null,null,null,null,null,null,null,null,null,null,null,null,null,null,null,null,0,0]
[null,null,null,null,null,null,null,null,null,null,null,null,null,null,null,null,null,null,null,null,null,null,null,null,null,null,null,null,0,0]
[null,null,null,null,null,null,null,null,null,null,null,null,null,null,null,null,null,null,null,null,null,null,null,null,null,null,null,null,0,0]
[null,null,null,null,null,null,null,null,null,null,null,null,null,null,null,null,null,null,null,null,null,null,null,null,null,null,null,null,0,0]
[null,null,null,null,null,null,null,null,null,null,null,null,null,null,null,null,null,null,null,null,null,null,null,null,null,null,null,null,0,0]
[null,null,null,null,null,null,null,null,null,null,null,null,null,null,null,null,null,null,null,null,null,null,null,null,null,null,null,null,0,0]
[null,null,null,null,null,null,null,null,null,null,null,null,null,null,null,null,null,null,null,null,null,null,null,null,null,null,null,null,0,0]
[null,null,null,null,null,null,null,null,null,null,null,null,null,null,null,null,null,null,null,null,null,null,null,null,null,null,null,null,0,0]
[null,null,null,null,null,null,null,null,null,null,null,null,null,null,null,null,null,null,null,null,null,null,null,null,null,null,null,null,0,0]
[null,null,null,null,null,null,null,null,null,null,null,null,null,null,null,null,null,null,null,null,null,null,null,null,null,null,null,null,0,0]
[null,null,null,null,null,null,null,null,null,null,null,null,null,null,null,null,null,null,null,null,null,null,null,null,null,null,null,null,0,0]
[null,null,null,null,null,null,null,null,null,null,null,null,null,null,null,null,null,null,null,null,null,null,null,null,null,null,null,null,0,0]
[null,null,null,null,null,null,null,null,null,null,null,null,null,null,null,null,null,null,null,null,null,null,null,null,null,null,null,null,0,0]
[null,null,null,null,null,null,null,null,null,null,null,null,null,null,null,null,null,null,null,null,null,null,null,null,null,null,null,null,0,0]
[null,null,null,null,null,null,null,null,null,null,null,null,null,null,null,null,null,null,null,null,null,null,null,null,null,null,null,null,0,0]
[null,null,null,null,null,null,null,null,null,null,null,null,null,null,null,null,null,null,null,null,null,null,null,null,null,null,null,null,0,0]
[null,null,null,null,null,null,null,null,null,null,null,null,null,null,null,null,null,null,null,null,null,null,null,null,null,null,null,null,0,0]
[null,null,null,null,null,null,null,null,null,null,null,null,null,null,null,null,null,null,null,null,null,null,null,null,null,null,null,null,0,0]
[null,null,null,null,null,null,null,null,null,null,null,null,null,null,null,null,null,null,null,null,null,null,null,null,null,null,null,null,0,0]
[null,null,null,null,null,null,null,null,null,null,null,null,null,null,null,null,null,null,null,null,null,null,null,null,null,null,null,null,0,0]
[null,null,null,null,null,null,null,null,null,null,null,null,null,null,null,null,null,null,null,null,null,null,null,null,null,null,null,null,0,0]
[null,null,null,null,null,null,null,null,null,null,null,null,null,null,null,null,null,null,null,null,null,null,null,null,null,null,null,null,0,0]
[null,null,null,null,null,null,null,null,null,null,null,null,null,null,null,null,null,null,null,null,null,null,null,null,null,null,null,null,0,0]
[null,null,null,null,null,null,null,null,null,null,null,null,null,null,null,null,null,null,null,null,null,null,null,null,null,null,null,null,0,0]
[null,null,null,null,null,null,null,null,null,null,null,null,null,null,null,null,null,null,null,null,null,null,null,null,null,null,null,null,0,0]
[null,null,null,null,null,null,null,null,null,null,null,null,null,null,null,null,null,null,null,null,null,null,null,null,null,null,null,null,0,0]
[null,null,null,null,null,null,null,null,null,null,null,null,null,null,null,null,null,null,null,null,null,null,null,null,null,null,null,null,0,0]
[null,null,null,null,null,null,null,null,null,null,null,null,null,null,null,null,null,null,null,null,null,null,null,null,null,null,null,null,0,0]
[null,null,null,null,null,null,null,null,null,null,null,null,null,null,null,null,null,null,null,null,null,null,null,null,null,null,null,null,0,0]
[null,null,null,null,null,null,null,null,null,null,null,null,null,null,null,null,null,null,null,null,null,null,null,null,null,null,null,null,0,0]
[null,null,null,null,null,null,null,null,null,null,null,null,null,null,null,null,null,null,null,null,null,null,null,null,null,null,null,null,0,0]
[null,null,null,null,null,null,null,null,null,null,null,null,null,null,null,null,null,null,null,null,null,null,null,null,null,null,null,null,0,0]
[null,null,null,null,null,null,null,null,null,null,null,null,null,null,null,null,null,null,null,null,null,null,null,null,null,null,null,null,0,0]
[null,null,null,null,null,null,null,null,null,null,null,null,null,null,null,null,null,null,null,null,null,null,null,null,null,null,null,null,0,0]
[null,null,null,null,null,null,null,null,null,null,null,null,null,null,null,null,null,null,null,null,null,null,null,null,null,null,null,null,0,0]
[null,null,null,null,null,null,null,null,null,null,null,null,null,null,null,null,null,null,null,null,null,null,null,null,null,null,null,null,0,0]
[null,null,null,null,null,null,null,null,null,null,null,null,null,null,null,null,null,null,null,null,null,null,null,null,null,null,null,null,0,0]
[null,null,null,null,null,null,null,null,null,null,null,null,null,null,null,null,null,null,null,null,null,null,null,null,null,null,null,null,0,0]
[null,null,null,null,null,null,null,null,null,null,null,null,null,null,null,null,null,null,null,null,null,null,null,null,null,null,null,null,0,0]
[null,null,null,null,null,null,null,null,null,null,null,null,null,null,null,null,null,null,null,null,null,null,null,null,null,null,null,null,0,0]
[null,null,null,null,null,null,null,null,null,null,null,null,null,null,null,null,null,null,null,null,null,null,null,null,null,null,null,null,0,0]
[null,null,null,null,null,null,null,null,null,null,null,null,null,null,null,null,null,null,null,null,null,null,null,null,null,null,null,null,0,0]
[null,null,null,null,null,null,null,null,null,null,null,null,null,null,null,null,null,null,null,null,null,null,null,null,null,null,null,null,0,0]
[null,null,null,null,null,null,null,null,null,null,null,null,null,null,null,null,null,null,null,null,null,null,null,null,null,null,null,null,0,0]
[null,null,null,null,null,null,null,null,null,null,null,null,null,null,null,null,null,null,null,null,null,null,null,null,null,null,null,null,0,0]
[null,null,null,null,null,null,null,null,null,null,null,null,null,null,null,null,null,null,null,null,null,null,null,null,null,null,null,null,0,0]
[null,null,null,null,null,null,null,null,null,null,null,null,null,null,null,null,null,null,null,null,null,null,null,null,null,null,null,null,0,0]
[null,null,null,null,null,null,null,null,null,null,null,null,null,null,null,null,null,null,null,null,null,null,null,null,null,null,null,null,0,0]
[null,null,null,null,null,null,null,null,null,null,null,null,null,null,null,null,null,null,null,null,null,null,null,null,null,null,null,null,0,0]
[null,null,null,null,null,null,null,null,null,null,null,null,null,null,null,null,null,null,null,null,null,null,null,null,null,null,null,null,0,0]
[null,null,null,null,null,null,null,null,null,null,null,null,null,null,null,null,null,null,null,null,null,null,null,null,null,null,null,null,0,0]
[null,null,null,null,null,null,null,null,null,null,null,null,null,null,null,null,null,null,null,null,null,null,null,null,null,null,null,null,0,0]
[null,null,null,null,null,null,null,null,null,null,null,null,null,null,null,null,null,null,null,null,null,null,null,null,null,null,null,null,0,0]
[null,null,null,null,null,null,null,null,null,null,null,null,null,null,null,null,null,null,null,null,null,null,null,null,null,null,null,null,0,0]
[null,null,null,null,null,null,null,null,null,null,null,null,null,null,null,null,null,null,null,null,null,null,null,null,null,null,null,null,0,0]
[null,null,null,null,null,null,null,null,null,null,null,null,null,null,null,null,null,null,null,null,null,null,null,null,null,null,null,null,0,0]
[null,null,null,null,null,null,null,null,null,null,null,null,null,null,null,null,null,null,null,null,null,null,null,null,null,null,null,null,0,0]
[null,null,null,null,null,null,null,null,null,null,null,null,null,null,null,null,null,null,null,null,null,null,null,null,null,null,null,null,0,0]
[null,null,null,null,null,null,null,null,null,null,null,null,null,null,null,null,null,null,null,null,null,null,null,null,null,null,null,null,0,0]
[null,null,null,null,null,null,null,null,null,null,null,null,null,null,null,null,null,null,null,null,null,null,null,null,null,null,null,null,0,0]
[null,null,null,null,null,null,null,null,null,null,null,null,null,null,null,null,null,null,null,null,null,null,null,null,null,null,null,null,0,0]
[null,null,null,null,null,null,null,null,null,null,null,null,null,null,null,null,null,null,null,null,null,null,null,null,null,null,null,null,0,0]
[null,null,null,null,null,null,null,null,null,null,null,null,null,null,null,null,null,null,null,null,null,null,null,null,null,null,null,null,0,0]
[null,null,null,null,null,null,null,null,null,null,null,null,null,null,null,null,null,null,null,null,null,null,null,null,null,null,null,null,{"$f":"IF(AA1218=0,0,_xlfn.DAYS(AA1218,TODAY()))","v":0},{"$f":"IF(AB1218=0,0,_xlfn.DAYS(AB1218,TODAY()))","v":0}]
[null,null,null,null,null,null,null,null,null,null,null,null,null,null,null,null,null,null,null,null,null,null,null,null,null,null,null,null,0,0]
[null,null,null,null,null,null,null,null,null,null,null,null,null,null,null,null,null,null,null,null,null,null,null,null,null,null,null,null,0,0]
[null,null,null,null,null,null,null,null,null,null,null,null,null,null,null,null,null,null,null,null,null,null,null,null,null,null,null,null,0,0]
[null,null,null,null,null,null,null,null,null,null,null,null,null,null,null,null,null,null,null,null,null,null,null,null,null,null,null,null,0,0]
[null,null,null,null,null,null,null,null,null,null,null,null,null,null,null,null,null,null,null,null,null,null,null,null,null,null,null,null,0,0]
[null,null,null,null,null,null,null,null,null,null,null,null,null,null,null,null,null,null,null,null,null,null,null,null,null,null,null,null,0,0]
[null,null,null,null,null,null,null,null,null,null,null,null,null,null,null,null,null,null,null,null,null,null,null,null,null,null,null,null,0,0]
[null,null,null,null,null,null,null,null,null,null,null,null,null,null,null,null,null,null,null,null,null,null,null,null,null,null,null,null,0,0]
[null,null,null,null,null,null,null,null,null,null,null,null,null,null,null,null,null,null,null,null,null,null,null,null,null,null,null,null,0,0]
[null,null,null,null,null,null,null,null,null,null,null,null,null,null,null,null,null,null,null,null,null,null,null,null,null,null,null,null,0,0]
[null,null,null,null,null,null,null,null,null,null,null,null,null,null,null,null,null,null,null,null,null,null,null,null,null,null,null,null,0,0]
[null,null,null,null,null,null,null,null,null,null,null,null,null,null,null,null,null,null,null,null,null,null,null,null,null,null,null,null,0,0]
[null,null,null,null,null,null,null,null,null,null,null,null,null,null,null,null,null,null,null,null,null,null,null,null,null,null,null,null,0,0]
[null,null,null,null,null,null,null,null,null,null,null,null,null,null,null,null,null,null,null,null,null,null,null,null,null,null,null,null,0,0]
[null,null,null,null,null,null,null,null,null,null,null,null,null,null,null,null,null,null,null,null,null,null,null,null,null,null,null,null,0,0]
[null,null,null,null,null,null,null,null,null,null,null,null,null,null,null,null,null,null,null,null,null,null,null,null,null,null,null,null,0,0]
[null,null,null,null,null,null,null,null,null,null,null,null,null,null,null,null,null,null,null,null,null,null,null,null,null,null,null,null,0,0]
[null,null,null,null,null,null,null,null,null,null,null,null,null,null,null,null,null,null,null,null,null,null,null,null,null,null,null,null,0,0]
[null,null,null,null,null,null,null,null,null,null,null,null,null,null,null,null,null,null,null,null,null,null,null,null,null,null,null,null,0,0]
[null,null,null,null,null,null,null,null,null,null,null,null,null,null,null,null,null,null,null,null,null,null,null,null,null,null,null,null,0,0]
[null,null,null,null,null,null,null,null,null,null,null,null,null,null,null,null,null,null,null,null,null,null,null,null,null,null,null,null,0,0]
[null,null,null,null,null,null,null,null,null,null,null,null,null,null,null,null,null,null,null,null,null,null,null,null,null,null,null,null,0,0]
[null,null,null,null,null,null,null,null,null,null,null,null,null,null,null,null,null,null,null,null,null,null,null,null,null,null,null,null,0,0]
[null,null,null,null,null,null,null,null,null,null,null,null,null,null,null,null,null,null,null,null,null,null,null,null,null,null,null,null,0,0]
[null,null,null,null,null,null,null,null,null,null,null,null,null,null,null,null,null,null,null,null,null,null,null,null,null,null,null,null,0,0]
[null,null,null,null,null,null,null,null,null,null,null,null,null,null,null,null,null,null,null,null,null,null,null,null,null,null,null,null,0,0]
[null,null,null,null,null,null,null,null,null,null,null,null,null,null,null,null,null,null,null,null,null,null,null,null,null,null,null,null,0,0]
[null,null,null,null,null,null,null,null,null,null,null,null,null,null,null,null,null,null,null,null,null,null,null,null,null,null,null,null,0,0]
[null,null,null,null,null,null,null,null,null,null,null,null,null,null,null,null,null,null,null,null,null,null,null,null,null,null,null,null,0,0]
[null,null,null,null,null,null,null,null,null,null,null,null,null,null,null,null,null,null,null,null,null,null,null,null,null,null,null,null,0,0]
[null,null,null,null,null,null,null,null,null,null,null,null,null,null,null,null,null,null,null,null,null,null,null,null,null,null,null,null,0,0]
[null,null,null,null,null,null,null,null,null,null,null,null,null,null,null,null,null,null,null,null,null,null,null,null,null,null,null,null,0,0]
[null,null,null,null,null,null,null,null,null,null,null,null,null,null,null,null,null,null,null,null,null,null,null,null,null,null,null,null,0,0]
[null,null,null,null,null,null,null,null,null,null,null,null,null,null,null,null,null,null,null,null,null,null,null,null,null,null,null,null,0,0]
[null,null,null,null,null,null,null,null,null,null,null,null,null,null,null,null,null,null,null,null,null,null,null,null,null,null,null,null,0,0]
[null,null,null,null,null,null,null,null,null,null,null,null,null,null,null,null,null,null,null,null,null,null,null,null,null,null,null,null,0,0]
[null,null,null,null,null,null,null,null,null,null,null,null,null,null,null,null,null,null,null,null,null,null,null,null,null,null,null,null,0,0]
[null,null,null,null,null,null,null,null,null,null,null,null,null,null,null,null,null,null,null,null,null,null,null,null,null,null,null,null,0,0]
[null,null,null,null,null,null,null,null,null,null,null,null,null,null,null,null,null,null,null,null,null,null,null,null,null,null,null,null,0,0]
[null,null,null,null,null,null,null,null,null,null,null,null,null,null,null,null,null,null,null,null,null,null,null,null,null,null,null,null,0,0]
[null,null,null,null,null,null,null,null,null,null,null,null,null,null,null,null,null,null,null,null,null,null,null,null,null,null,null,null,0,0]
[null,null,null,null,null,null,null,null,null,null,null,null,null,null,null,null,null,null,null,null,null,null,null,null,null,null,null,null,0,0]
[null,null,null,null,null,null,null,null,null,null,null,null,null,null,null,null,null,null,null,null,null,null,null,null,null,null,null,null,0,0]
[null,null,null,null,null,null,null,null,null,null,null,null,null,null,null,null,null,null,null,null,null,null,null,null,null,null,null,null,0,0]
[null,null,null,null,null,null,null,null,null,null,null,null,null,null,null,null,null,null,null,null,null,null,null,null,null,null,null,null,0,0]
[null,null,null,null,null,null,null,null,null,null,null,null,null,null,null,null,null,null,null,null,null,null,null,null,null,null,null,null,0,0]
[null,null,null,null,null,null,null,null,null,null,null,null,null,null,null,null,null,null,null,null,null,null,null,null,null,null,null,null,0,0]
[null,null,null,null,null,null,null,null,null,null,null,null,null,null,null,null,null,null,null,null,null,null,null,null,null,null,null,null,0,0]
[null,null,null,null,null,null,null,null,null,null,null,null,null,null,null,null,null,null,null,null,null,null,null,null,null,null,null,null,0,0]
[null,null,null,null,null,null,null,null,null,null,null,null,null,null,null,null,null,null,null,null,null,null,null,null,null,null,null,null,0,0]
[null,null,null,null,null,null,null,null,null,null,null,null,null,null,null,null,null,null,null,null,null,null,null,null,null,null,null,null,0,0]
[null,null,null,null,null,null,null,null,null,null,null,null,null,null,null,null,null,null,null,null,null,null,null,null,null,null,null,null,0,0]
[null,null,null,null,null,null,null,null,null,null,null,null,null,null,null,null,null,null,null,null,null,null,null,null,null,null,null,null,0,0]
[null,null,null,null,null,null,null,null,null,null,null,null,null,null,null,null,null,null,null,null,null,null,null,null,null,null,null,null,0,0]
[null,null,null,null,null,null,null,null,null,null,null,null,null,null,null,null,null,null,null,null,null,null,null,null,null,null,null,null,0,0]
[null,null,null,null,null,null,null,null,null,null,null,null,null,null,null,null,null,null,null,null,null,null,null,null,null,null,null,null,0,0]
[null,null,null,null,null,null,null,null,null,null,null,null,null,null,null,null,null,null,null,null,null,null,null,null,null,null,null,null,0,0]
[null,null,null,null,null,null,null,null,null,null,null,null,null,null,null,null,null,null,null,null,null,null,null,null,null,null,null,null,0,0]
[null,null,null,null,null,null,null,null,null,null,null,null,null,null,null,null,null,null,null,null,null,null,null,null,null,null,null,null,0,0]
[null,null,null,null,null,null,null,null,null,null,null,null,null,null,null,null,null,null,null,null,null,null,null,null,null,null,null,null,0,0]
[null,null,null,null,null,null,null,null,null,null,null,null,null,null,null,null,null,null,null,null,null,null,null,null,null,null,null,null,0,0]
[null,null,null,null,null,null,null,null,null,null,null,null,null,null,null,null,null,null,null,null,null,null,null,null,null,null,null,null,0,0]
[null,null,null,null,null,null,null,null,null,null,null,null,null,null,null,null,null,null,null,null,null,null,null,null,null,null,null,null,0,0]
[null,null,null,null,null,null,null,null,null,null,null,null,null,null,null,null,null,null,null,null,null,null,null,null,null,null,null,null,{"$f":"IF(AA1282=0,0,_xlfn.DAYS(AA1282,TODAY()))","v":0},{"$f":"IF(AB1282=0,0,_xlfn.DAYS(AB1282,TODAY()))","v":0}]
[null,null,null,null,null,null,null,null,null,null,null,null,null,null,null,null,null,null,null,null,null,null,null,null,null,null,null,null,0,0]
[null,null,null,null,null,null,null,null,null,null,null,null,null,null,null,null,null,null,null,null,null,null,null,null,null,null,null,null,0,0]
[null,null,null,null,null,null,null,null,null,null,null,null,null,null,null,null,null,null,null,null,null,null,null,null,null,null,null,null,0,0]
[null,null,null,null,null,null,null,null,null,null,null,null,null,null,null,null,null,null,null,null,null,null,null,null,null,null,null,null,0,0]
[null,null,null,null,null,null,null,null,null,null,null,null,null,null,null,null,null,null,null,null,null,null,null,null,null,null,null,null,0,0]
[null,null,null,null,null,null,null,null,null,null,null,null,null,null,null,null,null,null,null,null,null,null,null,null,null,null,null,null,0,0]
[null,null,null,null,null,null,null,null,null,null,null,null,null,null,null,null,null,null,null,null,null,null,null,null,null,null,null,null,0,0]
[null,null,null,null,null,null,null,null,null,null,null,null,null,null,null,null,null,null,null,null,null,null,null,null,null,null,null,null,0,0]
[null,null,null,null,null,null,null,null,null,null,null,null,null,null,null,null,null,null,null,null,null,null,null,null,null,null,null,null,0,0]
[null,null,null,null,null,null,null,null,null,null,null,null,null,null,null,null,null,null,null,null,null,null,null,null,null,null,null,null,0,0]
[null,null,null,null,null,null,null,null,null,null,null,null,null,null,null,null,null,null,null,null,null,null,null,null,null,null,null,null,0,0]
[null,null,null,null,null,null,null,null,null,null,null,null,null,null,null,null,null,null,null,null,null,null,null,null,null,null,null,null,0,0]
[null,null,null,null,null,null,null,null,null,null,null,null,null,null,null,null,null,null,null,null,null,null,null,null,null,null,null,null,0,0]
[null,null,null,null,null,null,null,null,null,null,null,null,null,null,null,null,null,null,null,null,null,null,null,null,null,null,null,null,0,0]
[null,null,null,null,null,null,null,null,null,null,null,null,null,null,null,null,null,null,null,null,null,null,null,null,null,null,null,null,0,0]
[null,null,null,null,null,null,null,null,null,null,null,null,null,null,null,null,null,null,null,null,null,null,null,null,null,null,null,null,0,0]
[null,null,null,null,null,null,null,null,null,null,null,null,null,null,null,null,null,null,null,null,null,null,null,null,null,null,null,null,0,0]
[null,null,null,null,null,null,null,null,null,null,null,null,null,null,null,null,null,null,null,null,null,null,null,null,null,null,null,null,0,0]
[null,null,null,null,null,null,null,null,null,null,null,null,null,null,null,null,null,null,null,null,null,null,null,null,null,null,null,null,0,0]
[null,null,null,null,null,null,null,null,null,null,null,null,null,null,null,null,null,null,null,null,null,null,null,null,null,null,null,null,0,0]
[null,null,null,null,null,null,null,null,null,null,null,null,null,null,null,null,null,null,null,null,null,null,null,null,null,null,null,null,0,0]
[null,null,null,null,null,null,null,null,null,null,null,null,null,null,null,null,null,null,null,null,null,null,null,null,null,null,null,null,0,0]
[null,null,null,null,null,null,null,null,null,null,null,null,null,null,null,null,null,null,null,null,null,null,null,null,null,null,null,null,0,0]
[null,null,null,null,null,null,null,null,null,null,null,null,null,null,null,null,null,null,null,null,null,null,null,null,null,null,null,null,0,0]
[null,null,null,null,null,null,null,null,null,null,null,null,null,null,null,null,null,null,null,null,null,null,null,null,null,null,null,null,0,0]
[null,null,null,null,null,null,null,null,null,null,null,null,null,null,null,null,null,null,null,null,null,null,null,null,null,null,null,null,0,0]
[null,null,null,null,null,null,null,null,null,null,null,null,null,null,null,null,null,null,null,null,null,null,null,null,null,null,null,null,0,0]
[null,null,null,null,null,null,null,null,null,null,null,null,null,null,null,null,null,null,null,null,null,null,null,null,null,null,null,null,0,0]
[null,null,null,null,null,null,null,null,null,null,null,null,null,null,null,null,null,null,null,null,null,null,null,null,null,null,null,null,0,0]
[null,null,null,null,null,null,null,null,null,null,null,null,null,null,null,null,null,null,null,null,null,null,null,null,null,null,null,null,0,0]
[null,null,null,null,null,null,null,null,null,null,null,null,null,null,null,null,null,null,null,null,null,null,null,null,null,null,null,null,0,0]
[null,null,null,null,null,null,null,null,null,null,null,null,null,null,null,null,null,null,null,null,null,null,null,null,null,null,null,null,0,0]
[null,null,null,null,null,null,null,null,null,null,null,null,null,null,null,null,null,null,null,null,null,null,null,null,null,null,null,null,0,0]
[null,null,null,null,null,null,null,null,null,null,null,null,null,null,null,null,null,null,null,null,null,null,null,null,null,null,null,null,0,0]
[null,null,null,null,null,null,null,null,null,null,null,null,null,null,null,null,null,null,null,null,null,null,null,null,null,null,null,null,0,0]
[null,null,null,null,null,null,null,null,null,null,null,null,null,null,null,null,null,null,null,null,null,null,null,null,null,null,null,null,0,0]
[null,null,null,null,null,null,null,null,null,null,null,null,null,null,null,null,null,null,null,null,null,null,null,null,null,null,null,null,0,0]
[null,null,null,null,null,null,null,null,null,null,null,null,null,null,null,null,null,null,null,null,null,null,null,null,null,null,null,null,0,0]
[null,null,null,null,null,null,null,null,null,null,null,null,null,null,null,null,null,null,null,null,null,null,null,null,null,null,null,null,0,0]
[null,null,null,null,null,null,null,null,null,null,null,null,null,null,null,null,null,null,null,null,null,null,null,null,null,null,null,null,0,0]
[null,null,null,null,null,null,null,null,null,null,null,null,null,null,null,null,null,null,null,null,null,null,null,null,null,null,null,null,0,0]
[null,null,null,null,null,null,null,null,null,null,null,null,null,null,null,null,null,null,null,null,null,null,null,null,null,null,null,null,0,0]
[null,null,null,null,null,null,null,null,null,null,null,null,null,null,null,null,null,null,null,null,null,null,null,null,null,null,null,null,0,0]
[null,null,null,null,null,null,null,null,null,null,null,null,null,null,null,null,null,null,null,null,null,null,null,null,null,null,null,null,0,0]
[null,null,null,null,null,null,null,null,null,null,null,null,null,null,null,null,null,null,null,null,null,null,null,null,null,null,null,null,0,0]
[null,null,null,null,null,null,null,null,null,null,null,null,null,null,null,null,null,null,null,null,null,null,null,null,null,null,null,null,0,0]
[null,null,null,null,null,null,null,null,null,null,null,null,null,null,null,null,null,null,null,null,null,null,null,null,null,null,null,null,0,0]
[null,null,null,null,null,null,null,null,null,null,null,null,null,null,null,null,null,null,null,null,null,null,null,null,null,null,null,null,0,0]
[null,null,null,null,null,null,null,null,null,null,null,null,null,null,null,null,null,null,null,null,null,null,null,null,null,null,null,null,0,0]
[null,null,null,null,null,null,null,null,null,null,null,null,null,null,null,null,null,null,null,null,null,null,null,null,null,null,null,null,0,0]
[null,null,null,null,null,null,null,null,null,null,null,null,null,null,null,null,null,null,null,null,null,null,null,null,null,null,null,null,0,0]
[null,null,null,null,null,null,null,null,null,null,null,null,null,null,null,null,null,null,null,null,null,null,null,null,null,null,null,null,0,0]
[null,null,null,null,null,null,null,null,null,null,null,null,null,null,null,null,null,null,null,null,null,null,null,null,null,null,null,null,0,0]
[null,null,null,null,null,null,null,null,null,null,null,null,null,null,null,null,null,null,null,null,null,null,null,null,null,null,null,null,0,0]
[null,null,null,null,null,null,null,null,null,null,null,null,null,null,null,null,null,null,null,null,null,null,null,null,null,null,null,null,0,0]
[null,null,null,null,null,null,null,null,null,null,null,null,null,null,null,null,null,null,null,null,null,null,null,null,null,null,null,null,0,0]
[null,null,null,null,null,null,null,null,null,null,null,null,null,null,null,null,null,null,null,null,null,null,null,null,null,null,null,null,0,0]
[null,null,null,null,null,null,null,null,null,null,null,null,null,null,null,null,null,null,null,null,null,null,null,null,null,null,null,null,0,0]
[null,null,null,null,null,null,null,null,null,null,null,null,null,null,null,null,null,null,null,null,null,null,null,null,null,null,null,null,0,0]
[null,null,null,null,null,null,null,null,null,null,null,null,null,null,null,null,null,null,null,null,null,null,null,null,null,null,null,null,0,0]
[null,null,null,null,null,null,null,null,null,null,null,null,null,null,null,null,null,null,null,null,null,null,null,null,null,null,null,null,0,0]
[null,null,null,null,null,null,null,null,null,null,null,null,null,null,null,null,null,null,null,null,null,null,null,null,null,null,null,null,0,0]
[null,null,null,null,null,null,null,null,null,null,null,null,null,null,null,null,null,null,null,null,null,null,null,null,null,null,null,null,0,0]
[null,null,null,null,null,null,null,null,null,null,null,null,null,null,null,null,null,null,null,null,null,null,null,null,null,null,null,null,{"$f":"IF(AA1346=0,0,_xlfn.DAYS(AA1346,TODAY()))","v":0},{"$f":"IF(AB1346=0,0,_xlfn.DAYS(AB1346,TODAY()))","v":0}]
[null,null,null,null,null,null,null,null,null,null,null,null,null,null,null,null,null,null,null,null,null,null,null,null,null,null,null,null,0,0]
[null,null,null,null,null,null,null,null,null,null,null,null,null,null,null,null,null,null,null,null,null,null,null,null,null,null,null,null,0,0]
[null,null,null,null,null,null,null,null,null,null,null,null,null,null,null,null,null,null,null,null,null,null,null,null,null,null,null,null,0,0]
[null,null,null,null,null,null,null,null,null,null,null,null,null,null,null,null,null,null,null,null,null,null,null,null,null,null,null,null,0,0]
[null,null,null,null,null,null,null,null,null,null,null,null,null,null,null,null,null,null,null,null,null,null,null,null,null,null,null,null,0,0]
[null,null,null,null,null,null,null,null,null,null,null,null,null,null,null,null,null,null,null,null,null,null,null,null,null,null,null,null,0,0]
[null,null,null,null,null,null,null,null,null,null,null,null,null,null,null,null,null,null,null,null,null,null,null,null,null,null,null,null,0,0]
[null,null,null,null,null,null,null,null,null,null,null,null,null,null,null,null,null,null,null,null,null,null,null,null,null,null,null,null,0,0]
[null,null,null,null,null,null,null,null,null,null,null,null,null,null,null,null,null,null,null,null,null,null,null,null,null,null,null,null,0,0]
[null,null,null,null,null,null,null,null,null,null,null,null,null,null,null,null,null,null,null,null,null,null,null,null,null,null,null,null,0,0]
[null,null,null,null,null,null,null,null,null,null,null,null,null,null,null,null,null,null,null,null,null,null,null,null,null,null,null,null,0,0]
[null,null,null,null,null,null,null,null,null,null,null,null,null,null,null,null,null,null,null,null,null,null,null,null,null,null,null,null,0,0]
[null,null,null,null,null,null,null,null,null,null,null,null,null,null,null,null,null,null,null,null,null,null,null,null,null,null,null,null,0,0]
[null,null,null,null,null,null,null,null,null,null,null,null,null,null,null,null,null,null,null,null,null,null,null,null,null,null,null,null,0,0]
[null,null,null,null,null,null,null,null,null,null,null,null,null,null,null,null,null,null,null,null,null,null,null,null,null,null,null,null,0,0]
[null,null,null,null,null,null,null,null,null,null,null,null,null,null,null,null,null,null,null,null,null,null,null,null,null,null,null,null,0,0]
[null,null,null,null,null,null,null,null,null,null,null,null,null,null,null,null,null,null,null,null,null,null,null,null,null,null,null,null,0,0]
[null,null,null,null,null,null,null,null,null,null,null,null,null,null,null,null,null,null,null,null,null,null,null,null,null,null,null,null,0,0]
[null,null,null,null,null,null,null,null,null,null,null,null,null,null,null,null,null,null,null,null,null,null,null,null,null,null,null,null,0,0]
[null,null,null,null,null,null,null,null,null,null,null,null,null,null,null,null,null,null,null,null,null,null,null,null,null,null,null,null,0,0]
[null,null,null,null,null,null,null,null,null,null,null,null,null,null,null,null,null,null,null,null,null,null,null,null,null,null,null,null,0,0]
[null,null,null,null,null,null,null,null,null,null,null,null,null,null,null,null,null,null,null,null,null,null,null,null,null,null,null,null,0,0]
[null,null,null,null,null,null,null,null,null,null,null,null,null,null,null,null,null,null,null,null,null,null,null,null,null,null,null,null,0,0]
[null,null,null,null,null,null,null,null,null,null,null,null,null,null,null,null,null,null,null,null,null,null,null,null,null,null,null,null,0,0]
[null,null,null,null,null,null,null,null,null,null,null,null,null,null,null,null,null,null,null,null,null,null,null,null,null,null,null,null,0,0]
[null,null,null,null,null,null,null,null,null,null,null,null,null,null,null,null,null,null,null,null,null,null,null,null,null,null,null,null,0,0]
[null,null,null,null,null,null,null,null,null,null,null,null,null,null,null,null,null,null,null,null,null,null,null,null,null,null,null,null,0,0]
[null,null,null,null,null,null,null,null,null,null,null,null,null,null,null,null,null,null,null,null,null,null,null,null,null,null,null,null,0,0]
[null,null,null,null,null,null,null,null,null,null,null,null,null,null,null,null,null,null,null,null,null,null,null,null,null,null,null,null,0,0]
[null,null,null,null,null,null,null,null,null,null,null,null,null,null,null,null,null,null,null,null,null,null,null,null,null,null,null,null,0,0]
[null,null,null,null,null,null,null,null,null,null,null,null,null,null,null,null,null,null,null,null,null,null,null,null,null,null,null,null,0,0]
[null,null,null,null,null,null,null,null,null,null,null,null,null,null,null,null,null,null,null,null,null,null,null,null,null,null,null,null,0,0]
[null,null,null,null,null,null,null,null,null,null,null,null,null,null,null,null,null,null,null,null,null,null,null,null,null,null,null,null,0,0]
[null,null,null,null,null,null,null,null,null,null,null,null,null,null,null,null,null,null,null,null,null,null,null,null,null,null,null,null,0,0]
[null,null,null,null,null,null,null,null,null,null,null,null,null,null,null,null,null,null,null,null,null,null,null,null,null,null,null,null,0,0]
[null,null,null,null,null,null,null,null,null,null,null,null,null,null,null,null,null,null,null,null,null,null,null,null,null,null,null,null,0,0]
[null,null,null,null,null,null,null,null,null,null,null,null,null,null,null,null,null,null,null,null,null,null,null,null,null,null,null,null,0,0]
[null,null,null,null,null,null,null,null,null,null,null,null,null,null,null,null,null,null,null,null,null,null,null,null,null,null,null,null,0,0]
[null,null,null,null,null,null,null,null,null,null,null,null,null,null,null,null,null,null,null,null,null,null,null,null,null,null,null,null,0,0]
[null,null,null,null,null,null,null,null,null,null,null,null,null,null,null,null,null,null,null,null,null,null,null,null,null,null,null,null,0,0]
[null,null,null,null,null,null,null,null,null,null,null,null,null,null,null,null,null,null,null,null,null,null,null,null,null,null,null,null,0,0]
[null,null,null,null,null,null,null,null,null,null,null,null,null,null,null,null,null,null,null,null,null,null,null,null,null,null,null,null,0,0]
[null,null,null,null,null,null,null,null,null,null,null,null,null,null,null,null,null,null,null,null,null,null,null,null,null,null,null,null,0,0]
[null,null,null,null,null,null,null,null,null,null,null,null,null,null,null,null,null,null,null,null,null,null,null,null,null,null,null,null,0,0]
[null,null,null,null,null,null,null,null,null,null,null,null,null,null,null,null,null,null,null,null,null,null,null,null,null,null,null,null,0,0]
[null,null,null,null,null,null,null,null,null,null,null,null,null,null,null,null,null,null,null,null,null,null,null,null,null,null,null,null,0,0]
[null,null,null,null,null,null,null,null,null,null,null,null,null,null,null,null,null,null,null,null,null,null,null,null,null,null,null,null,0,0]
[null,null,null,null,null,null,null,null,null,null,null,null,null,null,null,null,null,null,null,null,null,null,null,null,null,null,null,null,0,0]
[null,null,null,null,null,null,null,null,null,null,null,null,null,null,null,null,null,null,null,null,null,null,null,null,null,null,null,null,0,0]
[null,null,null,null,null,null,null,null,null,null,null,null,null,null,null,null,null,null,null,null,null,null,null,null,null,null,null,null,0,0]
[null,null,null,null,null,null,null,null,null,null,null,null,null,null,null,null,null,null,null,null,null,null,null,null,null,null,null,null,0,0]
[null,null,null,null,null,null,null,null,null,null,null,null,null,null,null,null,null,null,null,null,null,null,null,null,null,null,null,null,0,0]
[null,null,null,null,null,null,null,null,null,null,null,null,null,null,null,null,null,null,null,null,null,null,null,null,null,null,null,null,0,0]
[null,null,null,null,null,null,null,null,null,null,null,null,null,null,null,null,null,null,null,null,null,null,null,null,null,null,null,null,0,0]
[null,null,null,null,null,null,null,null,null,null,null,null,null,null,null,null,null,null,null,null,null,null,null,null,null,null,null,null,0,0]
[null,null,null,null,null,null,null,null,null,null,null,null,null,null,null,null,null,null,null,null,null,null,null,null,null,null,null,null,0,0]
[null,null,null,null,null,null,null,null,null,null,null,null,null,null,null,null,null,null,null,null,null,null,null,null,null,null,null,null,0,0]
[null,null,null,null,null,null,null,null,null,null,null,null,null,null,null,null,null,null,null,null,null,null,null,null,null,null,null,null,0,0]
[null,null,null,null,null,null,null,null,null,null,null,null,null,null,null,null,null,null,null,null,null,null,null,null,null,null,null,null,0,0]
[null,null,null,null,null,null,null,null,null,null,null,null,null,null,null,null,null,null,null,null,null,null,null,null,null,null,null,null,0,0]
[null,null,null,null,null,null,null,null,null,null,null,null,null,null,null,null,null,null,null,null,null,null,null,null,null,null,null,null,0,0]
[null,null,null,null,null,null,null,null,null,null,null,null,null,null,null,null,null,null,null,null,null,null,null,null,null,null,null,null,0,0]
[null,null,null,null,null,null,null,null,null,null,null,null,null,null,null,null,null,null,null,null,null,null,null,null,null,null,null,null,0,0]
[null,null,null,null,null,null,null,null,null,null,null,null,null,null,null,null,null,null,null,null,null,null,null,null,null,null,null,null,{"$f":"IF(AA1410=0,0,_xlfn.DAYS(AA1410,TODAY()))","v":0},{"$f":"IF(AB1410=0,0,_xlfn.DAYS(AB1410,TODAY()))","v":0}]
[null,null,null,null,null,null,null,null,null,null,null,null,null,null,null,null,null,null,null,null,null,null,null,null,null,null,null,null,0,0]
[null,null,null,null,null,null,null,null,null,null,null,null,null,null,null,null,null,null,null,null,null,null,null,null,null,null,null,null,0,0]
[null,null,null,null,null,null,null,null,null,null,null,null,null,null,null,null,null,null,null,null,null,null,null,null,null,null,null,null,0,0]
[null,null,null,null,null,null,null,null,null,null,null,null,null,null,null,null,null,null,null,null,null,null,null,null,null,null,null,null,0,0]
[null,null,null,null,null,null,null,null,null,null,null,null,null,null,null,null,null,null,null,null,null,null,null,null,null,null,null,null,0,0]
[null,null,null,null,null,null,null,null,null,null,null,null,null,null,null,null,null,null,null,null,null,null,null,null,null,null,null,null,0,0]
[null,null,null,null,null,null,null,null,null,null,null,null,null,null,null,null,null,null,null,null,null,null,null,null,null,null,null,null,0,0]
[null,null,null,null,null,null,null,null,null,null,null,null,null,null,null,null,null,null,null,null,null,null,null,null,null,null,null,null,0,0]
[null,null,null,null,null,null,null,null,null,null,null,null,null,null,null,null,null,null,null,null,null,null,null,null,null,null,null,null,0,0]
[null,null,null,null,null,null,null,null,null,null,null,null,null,null,null,null,null,null,null,null,null,null,null,null,null,null,null,null,0,0]
[null,null,null,null,null,null,null,null,null,null,null,null,null,null,null,null,null,null,null,null,null,null,null,null,null,null,null,null,0,0]
[null,null,null,null,null,null,null,null,null,null,null,null,null,null,null,null,null,null,null,null,null,null,null,null,null,null,null,null,0,0]
[null,null,null,null,null,null,null,null,null,null,null,null,null,null,null,null,null,null,null,null,null,null,null,null,null,null,null,null,0,0]
[null,null,null,null,null,null,null,null,null,null,null,null,null,null,null,null,null,null,null,null,null,null,null,null,null,null,null,null,0,0]
[null,null,null,null,null,null,null,null,null,null,null,null,null,null,null,null,null,null,null,null,null,null,null,null,null,null,null,null,0,0]
[null,null,null,null,null,null,null,null,null,null,null,null,null,null,null,null,null,null,null,null,null,null,null,null,null,null,null,null,0,0]
[null,null,null,null,null,null,null,null,null,null,null,null,null,null,null,null,null,null,null,null,null,null,null,null,null,null,null,null,0,0]
[null,null,null,null,null,null,null,null,null,null,null,null,null,null,null,null,null,null,null,null,null,null,null,null,null,null,null,null,0,0]
[null,null,null,null,null,null,null,null,null,null,null,null,null,null,null,null,null,null,null,null,null,null,null,null,null,null,null,null,0,0]
[null,null,null,null,null,null,null,null,null,null,null,null,null,null,null,null,null,null,null,null,null,null,null,null,null,null,null,null,0,0]
[null,null,null,null,null,null,null,null,null,null,null,null,null,null,null,null,null,null,null,null,null,null,null,null,null,null,null,null,0,0]
[null,null,null,null,null,null,null,null,null,null,null,null,null,null,null,null,null,null,null,null,null,null,null,null,null,null,null,null,0,0]
[null,null,null,null,null,null,null,null,null,null,null,null,null,null,null,null,null,null,null,null,null,null,null,null,null,null,null,null,0,0]
[null,null,null,null,null,null,null,null,null,null,null,null,null,null,null,null,null,null,null,null,null,null,null,null,null,null,null,null,0,0]
[null,null,null,null,null,null,null,null,null,null,null,null,null,null,null,null,null,null,null,null,null,null,null,null,null,null,null,null,0,0]
[null,null,null,null,null,null,null,null,null,null,null,null,null,null,null,null,null,null,null,null,null,null,null,null,null,null,null,null,0,0]
[null,null,null,null,null,null,null,null,null,null,null,null,null,null,null,null,null,null,null,null,null,null,null,null,null,null,null,null,0,0]
[null,null,null,null,null,null,null,null,null,null,null,null,null,null,null,null,null,null,null,null,null,null,null,null,null,null,null,null,0,0]
[null,null,null,null,null,null,null,null,null,null,null,null,null,null,null,null,null,null,null,null,null,null,null,null,null,null,null,null,0,0]
[null,null,null,null,null,null,null,null,null,null,null,null,null,null,null,null,null,null,null,null,null,null,null,null,null,null,null,null,0,0]
[null,null,null,null,null,null,null,null,null,null,null,null,null,null,null,null,null,null,null,null,null,null,null,null,null,null,null,null,0,0]
[null,null,null,null,null,null,null,null,null,null,null,null,null,null,null,null,null,null,null,null,null,null,null,null,null,null,null,null,0,0]
[null,null,null,null,null,null,null,null,null,null,null,null,null,null,null,null,null,null,null,null,null,null,null,null,null,null,null,null,0,0]
[null,null,null,null,null,null,null,null,null,null,null,null,null,null,null,null,null,null,null,null,null,null,null,null,null,null,null,null,0,0]
[null,null,null,null,null,null,null,null,null,null,null,null,null,null,null,null,null,null,null,null,null,null,null,null,null,null,null,null,0,0]
[null,null,null,null,null,null,null,null,null,null,null,null,null,null,null,null,null,null,null,null,null,null,null,null,null,null,null,null,0,0]
[null,null,null,null,null,null,null,null,null,null,null,null,null,null,null,null,null,null,null,null,null,null,null,null,null,null,null,null,0,0]
[null,null,null,null,null,null,null,null,null,null,null,null,null,null,null,null,null,null,null,null,null,null,null,null,null,null,null,null,0,0]
[null,null,null,null,null,null,null,null,null,null,null,null,null,null,null,null,null,null,null,null,null,null,null,null,null,null,null,null,0,0]
[null,null,null,null,null,null,null,null,null,null,null,null,null,null,null,null,null,null,null,null,null,null,null,null,null,null,null,null,0,0]
[null,null,null,null,null,null,null,null,null,null,null,null,null,null,null,null,null,null,null,null,null,null,null,null,null,null,null,null,0,0]
[null,null,null,null,null,null,null,null,null,null,null,null,null,null,null,null,null,null,null,null,null,null,null,null,null,null,null,null,0,0]
[null,null,null,null,null,null,null,null,null,null,null,null,null,null,null,null,null,null,null,null,null,null,null,null,null,null,null,null,0,0]
[null,null,null,null,null,null,null,null,null,null,null,null,null,null,null,null,null,null,null,null,null,null,null,null,null,null,null,null,0,0]
[null,null,null,null,null,null,null,null,null,null,null,null,null,null,null,null,null,null,null,null,null,null,null,null,null,null,null,null,0,0]
[null,null,null,null,null,null,null,null,null,null,null,null,null,null,null,null,null,null,null,null,null,null,null,null,null,null,null,null,0,0]
[null,null,null,null,null,null,null,null,null,null,null,null,null,null,null,null,null,null,null,null,null,null,null,null,null,null,null,null,0,0]
[null,null,null,null,null,null,null,null,null,null,null,null,null,null,null,null,null,null,null,null,null,null,null,null,null,null,null,null,0,0]
[null,null,null,null,null,null,null,null,null,null,null,null,null,null,null,null,null,null,null,null,null,null,null,null,null,null,null,null,0,0]
[null,null,null,null,null,null,null,null,null,null,null,null,null,null,null,null,null,null,null,null,null,null,null,null,null,null,null,null,0,0]
[null,null,null,null,null,null,null,null,null,null,null,null,null,null,null,null,null,null,null,null,null,null,null,null,null,null,null,null,0,0]
[null,null,null,null,null,null,null,null,null,null,null,null,null,null,null,null,null,null,null,null,null,null,null,null,null,null,null,null,0,0]
[null,null,null,null,null,null,null,null,null,null,null,null,null,null,null,null,null,null,null,null,null,null,null,null,null,null,null,null,0,0]
[null,null,null,null,null,null,null,null,null,null,null,null,null,null,null,null,null,null,null,null,null,null,null,null,null,null,null,null,0,0]
[null,null,null,null,null,null,null,null,null,null,null,null,null,null,null,null,null,null,null,null,null,null,null,null,null,null,null,null,0,0]
[null,null,null,null,null,null,null,null,null,null,null,null,null,null,null,null,null,null,null,null,null,null,null,null,null,null,null,null,0,0]
[null,null,null,null,null,null,null,null,null,null,null,null,null,null,null,null,null,null,null,null,null,null,null,null,null,null,null,null,0,0]
[null,null,null,null,null,null,null,null,null,null,null,null,null,null,null,null,null,null,null,null,null,null,null,null,null,null,null,null,0,0]
[null,null,null,null,null,null,null,null,null,null,null,null,null,null,null,null,null,null,null,null,null,null,null,null,null,null,null,null,0,0]
[null,null,null,null,null,null,null,null,null,null,null,null,null,null,null,null,null,null,null,null,null,null,null,null,null,null,null,null,0,0]
[null,null,null,null,null,null,null,null,null,null,null,null,null,null,null,null,null,null,null,null,null,null,null,null,null,null,null,null,0,0]
[null,null,null,null,null,null,null,null,null,null,null,null,null,null,null,null,null,null,null,null,null,null,null,null,null,null,null,null,0,0]
[null,null,null,null,null,null,null,null,null,null,null,null,null,null,null,null,null,null,null,null,null,null,null,null,null,null,null,null,0,0]
[null,null,null,null,null,null,null,null,null,null,null,null,null,null,null,null,null,null,null,null,null,null,null,null,null,null,null,null,{"$f":"IF(AA1474=0,0,_xlfn.DAYS(AA1474,TODAY()))","v":0},{"$f":"IF(AB1474=0,0,_xlfn.DAYS(AB1474,TODAY()))","v":0}]
[null,null,null,null,null,null,null,null,null,null,null,null,null,null,null,null,null,null,null,null,null,null,null,null,null,null,null,null,0,0]
[null,null,null,null,null,null,null,null,null,null,null,null,null,null,null,null,null,null,null,null,null,null,null,null,null,null,null,null,0,0]
[null,null,null,null,null,null,null,null,null,null,null,null,null,null,null,null,null,null,null,null,null,null,null,null,null,null,null,null,0,0]
[null,null,null,null,null,null,null,null,null,null,null,null,null,null,null,null,null,null,null,null,null,null,null,null,null,null,null,null,0,0]
[null,null,null,null,null,null,null,null,null,null,null,null,null,null,null,null,null,null,null,null,null,null,null,null,null,null,null,null,0,0]
[null,null,null,null,null,null,null,null,null,null,null,null,null,null,null,null,null,null,null,null,null,null,null,null,null,null,null,null,0,0]
[null,null,null,null,null,null,null,null,null,null,null,null,null,null,null,null,null,null,null,null,null,null,null,null,null,null,null,null,0,0]
[null,null,null,null,null,null,null,null,null,null,null,null,null,null,null,null,null,null,null,null,null,null,null,null,null,null,null,null,0,0]
[null,null,null,null,null,null,null,null,null,null,null,null,null,null,null,null,null,null,null,null,null,null,null,null,null,null,null,null,0,0]
[null,null,null,null,null,null,null,null,null,null,null,null,null,null,null,null,null,null,null,null,null,null,null,null,null,null,null,null,0,0]
[null,null,null,null,null,null,null,null,null,null,null,null,null,null,null,null,null,null,null,null,null,null,null,null,null,null,null,null,0,0]
[null,null,null,null,null,null,null,null,null,null,null,null,null,null,null,null,null,null,null,null,null,null,null,null,null,null,null,null,0,0]
[null,null,null,null,null,null,null,null,null,null,null,null,null,null,null,null,null,null,null,null,null,null,null,null,null,null,null,null,0,0]
[null,null,null,null,null,null,null,null,null,null,null,null,null,null,null,null,null,null,null,null,null,null,null,null,null,null,null,null,0,0]
[null,null,null,null,null,null,null,null,null,null,null,null,null,null,null,null,null,null,null,null,null,null,null,null,null,null,null,null,0,0]
[null,null,null,null,null,null,null,null,null,null,null,null,null,null,null,null,null,null,null,null,null,null,null,null,null,null,null,null,0,0]
[null,null,null,null,null,null,null,null,null,null,null,null,null,null,null,null,null,null,null,null,null,null,null,null,null,null,null,null,0,0]
[null,null,null,null,null,null,null,null,null,null,null,null,null,null,null,null,null,null,null,null,null,null,null,null,null,null,null,null,0,0]
[null,null,null,null,null,null,null,null,null,null,null,null,null,null,null,null,null,null,null,null,null,null,null,null,null,null,null,null,0,0]
[null,null,null,null,null,null,null,null,null,null,null,null,null,null,null,null,null,null,null,null,null,null,null,null,null,null,null,null,0,0]
[null,null,null,null,null,null,null,null,null,null,null,null,null,null,null,null,null,null,null,null,null,null,null,null,null,null,null,null,0,0]
[null,null,null,null,null,null,null,null,null,null,null,null,null,null,null,null,null,null,null,null,null,null,null,null,null,null,null,null,0,0]
[null,null,null,null,null,null,null,null,null,null,null,null,null,null,null,null,null,null,null,null,null,null,null,null,null,null,null,null,0,0]
[null,null,null,null,null,null,null,null,null,null,null,null,null,null,null,null,null,null,null,null,null,null,null,null,null,null,null,null,0,0]
[null,null,null,null,null,null,null,null,null,null,null,null,null,null,null,null,null,null,null,null,null,null,null,null,null,null,null,null,0,0]
[null,null,null,null,null,null,null,null,null,null,null,null,null,null,null,null,null,null,null,null,null,null,null,null,null,null,null,null,0,0]
[null,null,null,null,null,null,null,null,null,null,null,null,null,null,null,null,null,null,null,null,null,null,null,null,null,null,null,null,0,0]
[null,null,null,null,null,null,null,null,null,null,null,null,null,null,null,null,null,null,null,null,null,null,null,null,null,null,null,null,0,0]
[null,null,null,null,null,null,null,null,null,null,null,null,null,null,null,null,null,null,null,null,null,null,null,null,null,null,null,null,0,0]
[null,null,null,null,null,null,null,null,null,null,null,null,null,null,null,null,null,null,null,null,null,null,null,null,null,null,null,null,0,0]
[null,null,null,null,null,null,null,null,null,null,null,null,null,null,null,null,null,null,null,null,null,null,null,null,null,null,null,null,0,0]
[null,null,null,null,null,null,null,null,null,null,null,null,null,null,null,null,null,null,null,null,null,null,null,null,null,null,null,null,0,0]
[null,null,null,null,null,null,null,null,null,null,null,null,null,null,null,null,null,null,null,null,null,null,null,null,null,null,null,null,0,0]
[null,null,null,null,null,null,null,null,null,null,null,null,null,null,null,null,null,null,null,null,null,null,null,null,null,null,null,null,0,0]
[null,null,null,null,null,null,null,null,null,null,null,null,null,null,null,null,null,null,null,null,null,null,null,null,null,null,null,null,0,0]
[null,null,null,null,null,null,null,null,null,null,null,null,null,null,null,null,null,null,null,null,null,null,null,null,null,null,null,null,0,0]
[null,null,null,null,null,null,null,null,null,null,null,null,null,null,null,null,null,null,null,null,null,null,null,null,null,null,null,null,0,0]
[null,null,null,null,null,null,null,null,null,null,null,null,null,null,null,null,null,null,null,null,null,null,null,null,null,null,null,null,0,0]
[null,null,null,null,null,null,null,null,null,null,null,null,null,null,null,null,null,null,null,null,null,null,null,null,null,null,null,null,0,0]
[null,null,null,null,null,null,null,null,null,null,null,null,null,null,null,null,null,null,null,null,null,null,null,null,null,null,null,null,0,0]
[null,null,null,null,null,null,null,null,null,null,null,null,null,null,null,null,null,null,null,null,null,null,null,null,null,null,null,null,0,0]
[null,null,null,null,null,null,null,null,null,null,null,null,null,null,null,null,null,null,null,null,null,null,null,null,null,null,null,null,0,0]
[null,null,null,null,null,null,null,null,null,null,null,null,null,null,null,null,null,null,null,null,null,null,null,null,null,null,null,null,0,0]
[null,null,null,null,null,null,null,null,null,null,null,null,null,null,null,null,null,null,null,null,null,null,null,null,null,null,null,null,0,0]
[null,null,null,null,null,null,null,null,null,null,null,null,null,null,null,null,null,null,null,null,null,null,null,null,null,null,null,null,0,0]
[null,null,null,null,null,null,null,null,null,null,null,null,null,null,null,null,null,null,null,null,null,null,null,null,null,null,null,null,0,0]
[null,null,null,null,null,null,null,null,null,null,null,null,null,null,null,null,null,null,null,null,null,null,null,null,null,null,null,null,0,0]
[null,null,null,null,null,null,null,null,null,null,null,null,null,null,null,null,null,null,null,null,null,null,null,null,null,null,null,null,0,0]
[null,null,null,null,null,null,null,null,null,null,null,null,null,null,null,null,null,null,null,null,null,null,null,null,null,null,null,null,0,0]
[null,null,null,null,null,null,null,null,null,null,null,null,null,null,null,null,null,null,null,null,null,null,null,null,null,null,null,null,0,0]
[null,null,null,null,null,null,null,null,null,null,null,null,null,null,null,null,null,null,null,null,null,null,null,null,null,null,null,null,0,0]
[null,null,null,null,null,null,null,null,null,null,null,null,null,null,null,null,null,null,null,null,null,null,null,null,null,null,null,null,0,0]
[null,null,null,null,null,null,null,null,null,null,null,null,null,null,null,null,null,null,null,null,null,null,null,null,null,null,null,null,0,0]
[null,null,null,null,null,null,null,null,null,null,null,null,null,null,null,null,null,null,null,null,null,null,null,null,null,null,null,null,0,0]
[null,null,null,null,null,null,null,null,null,null,null,null,null,null,null,null,null,null,null,null,null,null,null,null,null,null,null,null,0,0]
[null,null,null,null,null,null,null,null,null,null,null,null,null,null,null,null,null,null,null,null,null,null,null,null,null,null,null,null,0,0]
[null,null,null,null,null,null,null,null,null,null,null,null,null,null,null,null,null,null,null,null,null,null,null,null,null,null,null,null,0,0]
[null,null,null,null,null,null,null,null,null,null,null,null,null,null,null,null,null,null,null,null,null,null,null,null,null,null,null,null,0,0]
[null,null,null,null,null,null,null,null,null,null,null,null,null,null,null,null,null,null,null,null,null,null,null,null,null,null,null,null,0,0]
[null,null,null,null,null,null,null,null,null,null,null,null,null,null,null,null,null,null,null,null,null,null,null,null,null,null,null,null,0,0]
[null,null,null,null,null,null,null,null,null,null,null,null,null,null,null,null,null,null,null,null,null,null,null,null,null,null,null,null,0,0]
[null,null,null,null,null,null,null,null,null,null,null,null,null,null,null,null,null,null,null,null,null,null,null,null,null,null,null,null,0,0]
[null,null,null,null,null,null,null,null,null,null,null,null,null,null,null,null,null,null,null,null,null,null,null,null,null,null,null,null,0,0]
[null,null,null,null,null,null,null,null,null,null,null,null,null,null,null,null,null,null,null,null,null,null,null,null,null,null,null,null,{"$f":"IF(AA1538=0,0,_xlfn.DAYS(AA1538,TODAY()))","v":0},{"$f":"IF(AB1538=0,0,_xlfn.DAYS(AB1538,TODAY()))","v":0}]
[null,null,null,null,null,null,null,null,null,null,null,null,null,null,null,null,null,null,null,null,null,null,null,null,null,null,null,null,0,0]
[null,null,null,null,null,null,null,null,null,null,null,null,null,null,null,null,null,null,null,null,null,null,null,null,null,null,null,null,0,0]
[null,null,null,null,null,null,null,null,null,null,null,null,null,null,null,null,null,null,null,null,null,null,null,null,null,null,null,null,0,0]
[null,null,null,null,null,null,null,null,null,null,null,null,null,null,null,null,null,null,null,null,null,null,null,null,null,null,null,null,0,0]
[null,null,null,null,null,null,null,null,null,null,null,null,null,null,null,null,null,null,null,null,null,null,null,null,null,null,null,null,0,0]
[null,null,null,null,null,null,null,null,null,null,null,null,null,null,null,null,null,null,null,null,null,null,null,null,null,null,null,null,0,0]
[null,null,null,null,null,null,null,null,null,null,null,null,null,null,null,null,null,null,null,null,null,null,null,null,null,null,null,null,0,0]
[null,null,null,null,null,null,null,null,null,null,null,null,null,null,null,null,null,null,null,null,null,null,null,null,null,null,null,null,0,0]
[null,null,null,null,null,null,null,null,null,null,null,null,null,null,null,null,null,null,null,null,null,null,null,null,null,null,null,null,0,0]
[null,null,null,null,null,null,null,null,null,null,null,null,null,null,null,null,null,null,null,null,null,null,null,null,null,null,null,null,0,0]
[null,null,null,null,null,null,null,null,null,null,null,null,null,null,null,null,null,null,null,null,null,null,null,null,null,null,null,null,0,0]
[null,null,null,null,null,null,null,null,null,null,null,null,null,null,null,null,null,null,null,null,null,null,null,null,null,null,null,null,0,0]
[null,null,null,null,null,null,null,null,null,null,null,null,null,null,null,null,null,null,null,null,null,null,null,null,null,null,null,null,0,0]
[null,null,null,null,null,null,null,null,null,null,null,null,null,null,null,null,null,null,null,null,null,null,null,null,null,null,null,null,0,0]
[null,null,null,null,null,null,null,null,null,null,null,null,null,null,null,null,null,null,null,null,null,null,null,null,null,null,null,null,0,0]
[null,null,null,null,null,null,null,null,null,null,null,null,null,null,null,null,null,null,null,null,null,null,null,null,null,null,null,null,0,0]
[null,null,null,null,null,null,null,null,null,null,null,null,null,null,null,null,null,null,null,null,null,null,null,null,null,null,null,null,0,0]
[null,null,null,null,null,null,null,null,null,null,null,null,null,null,null,null,null,null,null,null,null,null,null,null,null,null,null,null,0,0]
[null,null,null,null,null,null,null,null,null,null,null,null,null,null,null,null,null,null,null,null,null,null,null,null,null,null,null,null,0,0]
[null,null,null,null,null,null,null,null,null,null,null,null,null,null,null,null,null,null,null,null,null,null,null,null,null,null,null,null,0,0]
[null,null,null,null,null,null,null,null,null,null,null,null,null,null,null,null,null,null,null,null,null,null,null,null,null,null,null,null,0,0]
[null,null,null,null,null,null,null,null,null,null,null,null,null,null,null,null,null,null,null,null,null,null,null,null,null,null,null,null,0,0]
[null,null,null,null,null,null,null,null,null,null,null,null,null,null,null,null,null,null,null,null,null,null,null,null,null,null,null,null,0,0]
[null,null,null,null,null,null,null,null,null,null,null,null,null,null,null,null,null,null,null,null,null,null,null,null,null,null,null,null,0,0]
[null,null,null,null,null,null,null,null,null,null,null,null,null,null,null,null,null,null,null,null,null,null,null,null,null,null,null,null,0,0]
[null,null,null,null,null,null,null,null,null,null,null,null,null,null,null,null,null,null,null,null,null,null,null,null,null,null,null,null,0,0]
[null,null,null,null,null,null,null,null,null,null,null,null,null,null,null,null,null,null,null,null,null,null,null,null,null,null,null,null,0,0]
[null,null,null,null,null,null,null,null,null,null,null,null,null,null,null,null,null,null,null,null,null,null,null,null,null,null,null,null,0,0]
[null,null,null,null,null,null,null,null,null,null,null,null,null,null,null,null,null,null,null,null,null,null,null,null,null,null,null,null,0,0]
[null,null,null,null,null,null,null,null,null,null,null,null,null,null,null,null,null,null,null,null,null,null,null,null,null,null,null,null,0,0]
[null,null,null,null,null,null,null,null,null,null,null,null,null,null,null,null,null,null,null,null,null,null,null,null,null,null,null,null,0,0]
[null,null,null,null,null,null,null,null,null,null,null,null,null,null,null,null,null,null,null,null,null,null,null,null,null,null,null,null,0,0]
[null,null,null,null,null,null,null,null,null,null,null,null,null,null,null,null,null,null,null,null,null,null,null,null,null,null,null,null,0,0]
[null,null,null,null,null,null,null,null,null,null,null,null,null,null,null,null,null,null,null,null,null,null,null,null,null,null,null,null,0,0]
[null,null,null,null,null,null,null,null,null,null,null,null,null,null,null,null,null,null,null,null,null,null,null,null,null,null,null,null,0,0]
[null,null,null,null,null,null,null,null,null,null,null,null,null,null,null,null,null,null,null,null,null,null,null,null,null,null,null,null,0,0]
[null,null,null,null,null,null,null,null,null,null,null,null,null,null,null,null,null,null,null,null,null,null,null,null,null,null,null,null,0,0]
[null,null,null,null,null,null,null,null,null,null,null,null,null,null,null,null,null,null,null,null,null,null,null,null,null,null,null,null,0,0]
[null,null,null,null,null,null,null,null,null,null,null,null,null,null,null,null,null,null,null,null,null,null,null,null,null,null,null,null,0,0]
[null,null,null,null,null,null,null,null,null,null,null,null,null,null,null,null,null,null,null,null,null,null,null,null,null,null,null,null,0,0]
[null,null,null,null,null,null,null,null,null,null,null,null,null,null,null,null,null,null,null,null,null,null,null,null,null,null,null,null,0,0]
[null,null,null,null,null,null,null,null,null,null,null,null,null,null,null,null,null,null,null,null,null,null,null,null,null,null,null,null,0,0]
[null,null,null,null,null,null,null,null,null,null,null,null,null,null,null,null,null,null,null,null,null,null,null,null,null,null,null,null,0,0]
[null,null,null,null,null,null,null,null,null,null,null,null,null,null,null,null,null,null,null,null,null,null,null,null,null,null,null,null,0,0]
[null,null,null,null,null,null,null,null,null,null,null,null,null,null,null,null,null,null,null,null,null,null,null,null,null,null,null,null,0,0]
[null,null,null,null,null,null,null,null,null,null,null,null,null,null,null,null,null,null,null,null,null,null,null,null,null,null,null,null,0,0]
[null,null,null,null,null,null,null,null,null,null,null,null,null,null,null,null,null,null,null,null,null,null,null,null,null,null,null,null,0,0]
[null,null,null,null,null,null,null,null,null,null,null,null,null,null,null,null,null,null,null,null,null,null,null,null,null,null,null,null,0,0]
[null,null,null,null,null,null,null,null,null,null,null,null,null,null,null,null,null,null,null,null,null,null,null,null,null,null,null,null,0,0]
[null,null,null,null,null,null,null,null,null,null,null,null,null,null,null,null,null,null,null,null,null,null,null,null,null,null,null,null,0,0]
[null,null,null,null,null,null,null,null,null,null,null,null,null,null,null,null,null,null,null,null,null,null,null,null,null,null,null,null,0,0]
[null,null,null,null,null,null,null,null,null,null,null,null,null,null,null,null,null,null,null,null,null,null,null,null,null,null,null,null,0,0]
[null,null,null,null,null,null,null,null,null,null,null,null,null,null,null,null,null,null,null,null,null,null,null,null,null,null,null,null,0,0]
[null,null,null,null,null,null,null,null,null,null,null,null,null,null,null,null,null,null,null,null,null,null,null,null,null,null,null,null,0,0]
[null,null,null,null,null,null,null,null,null,null,null,null,null,null,null,null,null,null,null,null,null,null,null,null,null,null,null,null,0,0]
[null,null,null,null,null,null,null,null,null,null,null,null,null,null,null,null,null,null,null,null,null,null,null,null,null,null,null,null,0,0]
[null,null,null,null,null,null,null,null,null,null,null,null,null,null,null,null,null,null,null,null,null,null,null,null,null,null,null,null,0,0]
[null,null,null,null,null,null,null,null,null,null,null,null,null,null,null,null,null,null,null,null,null,null,null,null,null,null,null,null,0,0]
[null,null,null,null,null,null,null,null,null,null,null,null,null,null,null,null,null,null,null,null,null,null,null,null,null,null,null,null,0,0]
[null,null,null,null,null,null,null,null,null,null,null,null,null,null,null,null,null,null,null,null,null,null,null,null,null,null,null,null,0,0]
[null,null,null,null,null,null,null,null,null,null,null,null,null,null,null,null,null,null,null,null,null,null,null,null,null,null,null,null,0,0]
[null,null,null,null,null,null,null,null,null,null,null,null,null,null,null,null,null,null,null,null,null,null,null,null,null,null,null,null,0,0]
[null,null,null,null,null,null,null,null,null,null,null,null,null,null,null,null,null,null,null,null,null,null,null,null,null,null,null,null,0,0]
[null,null,null,null,null,null,null,null,null,null,null,null,null,null,null,null,null,null,null,null,null,null,null,null,null,null,null,null,{"$f":"IF(AA1602=0,0,_xlfn.DAYS(AA1602,TODAY()))","v":0},{"$f":"IF(AB1602=0,0,_xlfn.DAYS(AB1602,TODAY()))","v":0}]
[null,null,null,null,null,null,null,null,null,null,null,null,null,null,null,null,null,null,null,null,null,null,null,null,null,null,null,null,0,0]
[null,null,null,null,null,null,null,null,null,null,null,null,null,null,null,null,null,null,null,null,null,null,null,null,null,null,null,null,0,0]
[null,null,null,null,null,null,null,null,null,null,null,null,null,null,null,null,null,null,null,null,null,null,null,null,null,null,null,null,0,0]
[null,null,null,null,null,null,null,null,null,null,null,null,null,null,null,null,null,null,null,null,null,null,null,null,null,null,null,null,0,0]
[null,null,null,null,null,null,null,null,null,null,null,null,null,null,null,null,null,null,null,null,null,null,null,null,null,null,null,null,0,0]
[null,null,null,null,null,null,null,null,null,null,null,null,null,null,null,null,null,null,null,null,null,null,null,null,null,null,null,null,0,0]
[null,null,null,null,null,null,null,null,null,null,null,null,null,null,null,null,null,null,null,null,null,null,null,null,null,null,null,null,0,0]
[null,null,null,null,null,null,null,null,null,null,null,null,null,null,null,null,null,null,null,null,null,null,null,null,null,null,null,null,0,0]
[null,null,null,null,null,null,null,null,null,null,null,null,null,null,null,null,null,null,null,null,null,null,null,null,null,null,null,null,0,0]
[null,null,null,null,null,null,null,null,null,null,null,null,null,null,null,null,null,null,null,null,null,null,null,null,null,null,null,null,0,0]
[null,null,null,null,null,null,null,null,null,null,null,null,null,null,null,null,null,null,null,null,null,null,null,null,null,null,null,null,0,0]
[null,null,null,null,null,null,null,null,null,null,null,null,null,null,null,null,null,null,null,null,null,null,null,null,null,null,null,null,0,0]
[null,null,null,null,null,null,null,null,null,null,null,null,null,null,null,null,null,null,null,null,null,null,null,null,null,null,null,null,0,0]
[null,null,null,null,null,null,null,null,null,null,null,null,null,null,null,null,null,null,null,null,null,null,null,null,null,null,null,null,0,0]
[null,null,null,null,null,null,null,null,null,null,null,null,null,null,null,null,null,null,null,null,null,null,null,null,null,null,null,null,0,0]
[null,null,null,null,null,null,null,null,null,null,null,null,null,null,null,null,null,null,null,null,null,null,null,null,null,null,null,null,0,0]
[null,null,null,null,null,null,null,null,null,null,null,null,null,null,null,null,null,null,null,null,null,null,null,null,null,null,null,null,0,0]
[null,null,null,null,null,null,null,null,null,null,null,null,null,null,null,null,null,null,null,null,null,null,null,null,null,null,null,null,0,0]
[null,null,null,null,null,null,null,null,null,null,null,null,null,null,null,null,null,null,null,null,null,null,null,null,null,null,null,null,0,0]
[null,null,null,null,null,null,null,null,null,null,null,null,null,null,null,null,null,null,null,null,null,null,null,null,null,null,null,null,0,0]
[null,null,null,null,null,null,null,null,null,null,null,null,null,null,null,null,null,null,null,null,null,null,null,null,null,null,null,null,0,0]
[null,null,null,null,null,null,null,null,null,null,null,null,null,null,null,null,null,null,null,null,null,null,null,null,null,null,null,null,0,0]
[null,null,null,null,null,null,null,null,null,null,null,null,null,null,null,null,null,null,null,null,null,null,null,null,null,null,null,null,0,0]
[null,null,null,null,null,null,null,null,null,null,null,null,null,null,null,null,null,null,null,null,null,null,null,null,null,null,null,null,0,0]
[null,null,null,null,null,null,null,null,null,null,null,null,null,null,null,null,null,null,null,null,null,null,null,null,null,null,null,null,0,0]
[null,null,null,null,null,null,null,null,null,null,null,null,null,null,null,null,null,null,null,null,null,null,null,null,null,null,null,null,0,0]
[null,null,null,null,null,null,null,null,null,null,null,null,null,null,null,null,null,null,null,null,null,null,null,null,null,null,null,null,0,0]
[null,null,null,null,null,null,null,null,null,null,null,null,null,null,null,null,null,null,null,null,null,null,null,null,null,null,null,null,0,0]
[null,null,null,null,null,null,null,null,null,null,null,null,null,null,null,null,null,null,null,null,null,null,null,null,null,null,null,null,0,0]
[null,null,null,null,null,null,null,null,null,null,null,null,null,null,null,null,null,null,null,null,null,null,null,null,null,null,null,null,0,0]
[null,null,null,null,null,null,null,null,null,null,null,null,null,null,null,null,null,null,null,null,null,null,null,null,null,null,null,null,0,0]
[null,null,null,null,null,null,null,null,null,null,null,null,null,null,null,null,null,null,null,null,null,null,null,null,null,null,null,null,0,0]
[null,null,null,null,null,null,null,null,null,null,null,null,null,null,null,null,null,null,null,null,null,null,null,null,null,null,null,null,0,0]
[null,null,null,null,null,null,null,null,null,null,null,null,null,null,null,null,null,null,null,null,null,null,null,null,null,null,null,null,0,0]
[null,null,null,null,null,null,null,null,null,null,null,null,null,null,null,null,null,null,null,null,null,null,null,null,null,null,null,null,0,0]
[null,null,null,null,null,null,null,null,null,null,null,null,null,null,null,null,null,null,null,null,null,null,null,null,null,null,null,null,0,0]
[null,null,null,null,null,null,null,null,null,null,null,null,null,null,null,null,null,null,null,null,null,null,null,null,null,null,null,null,0,0]
[null,null,null,null,null,null,null,null,null,null,null,null,null,null,null,null,null,null,null,null,null,null,null,null,null,null,null,null,0,0]
[null,null,null,null,null,null,null,null,null,null,null,null,null,null,null,null,null,null,null,null,null,null,null,null,null,null,null,null,0,0]
[null,null,null,null,null,null,null,null,null,null,null,null,null,null,null,null,null,null,null,null,null,null,null,null,null,null,null,null,0,0]
[null,null,null,null,null,null,null,null,null,null,null,null,null,null,null,null,null,null,null,null,null,null,null,null,null,null,null,null,0,0]
[null,null,null,null,null,null,null,null,null,null,null,null,null,null,null,null,null,null,null,null,null,null,null,null,null,null,null,null,0,0]
[null,null,null,null,null,null,null,null,null,null,null,null,null,null,null,null,null,null,null,null,null,null,null,null,null,null,null,null,0,0]
[null,null,null,null,null,null,null,null,null,null,null,null,null,null,null,null,null,null,null,null,null,null,null,null,null,null,null,null,0,0]
[null,null,null,null,null,null,null,null,null,null,null,null,null,null,null,null,null,null,null,null,null,null,null,null,null,null,null,null,0,0]
[null,null,null,null,null,null,null,null,null,null,null,null,null,null,null,null,null,null,null,null,null,null,null,null,null,null,null,null,0,0]
[null,null,null,null,null,null,null,null,null,null,null,null,null,null,null,null,null,null,null,null,null,null,null,null,null,null,null,null,0,0]
[null,null,null,null,null,null,null,null,null,null,null,null,null,null,null,null,null,null,null,null,null,null,null,null,null,null,null,null,0,0]
[null,null,null,null,null,null,null,null,null,null,null,null,null,null,null,null,null,null,null,null,null,null,null,null,null,null,null,null,0,0]